Workbook

Sheet PFP
A1: PROPOSTA FINANCEIRA DO PROJETO | J1: CODIGO:
J2: PFP
A3: NOME DA CONSULTORA:
A5: PROJETO: | F5: CONTRATANTE: | J5: BASE: Jul/2021
A6: Estudos de Viabilidade Técnica, Econômica e Ambiental (EVTEA) da Ciclovia entre os municípios de Aracajú/SE e Salvador/BA | F6: CODEVASF (SEDE) | J6: PROP: Jul/2021 SINAPI/BA-SE: Jul/2021 SICRO/NA: Jan/2021
A7: Base | B7: Cod2 | C7: Cod3 | D7: Categoria / Insumo | E7: Uni | F7: Qde | G7: CUD | H7: PU | I7: FatorK | J7: CT | K7: PT
A8: SICRO | B8: MO3 | C8: P0 | D8: Engenheiro coordenador (P8061) | E8: mês | F8: ='CRO1_Ins-Pro'!D5 -> 2 | H8: =ROUND(I8*G8,2) -> 0 | I8: =PFP2.3_FatorKc!E36 -> 1 | J8: =ROUND(F8*G8,2) -> 0 | K8: =ROUND(F8*H8,2) -> 0
A9: SICRO | B9: MO2 | C9: P1 | D9: Engenheiro de projetos sênior (P8067) | E9: mês | F9: ='CRO1_Ins-Pro'!D6 -> 8 | H9: 0 | I9: =PFP2.2_FatorKb!$E$36 -> 1 | J9: 0 | K9: 0
A10: SICRO | B10: MO1 | C10: P2 | D10: Engenheiro de projetos pleno (P8066) | E10: mês | F10: ='CRO1_Ins-Pro'!D7 -> 8 | H10: =ROUND(I10*G10,2) -> 0 | I10: =PFP2.1_FatorKa!$E$35 -> 1 | J10: =ROUND(F10*G10,2) -> 0 | K10: 0
A11: SICRO | B11: MO1 | C11: P3 | D11: Engenheiro de projetos júnior (P8065) | E11: mês | F11: ='CRO1_Ins-Pro'!D8 -> 8 | H11: =ROUND(I11*G11,2) -> 0 | I11: =PFP2.1_FatorKa!$E$35 -> 1 | J11: =ROUND(F11*G11,2) -> 0 | K11: 0
A12: SIVRO | B12: MO01 | C12: P2 | D12: Geólogo Pleno (P8081) | E12: mês | F12: ='CRO1_Ins-Pro'!D9 -> 1.583333333 | H12: =ROUND(I12*G12,2) -> 0 | I12: =PFP2.1_FatorKa!$E$35 -> 1 | J12: =ROUND(F12*G12,2) -> 0 | K12: 0
A13: SICRO | B13: MO1 | C13: T1 | D13: Técnico de projetos/obra (P8147) | E13: mês | F13: ='CRO1_Ins-Pro'!D10 -> 8 | H13: 0 | I13: =PFP2.1_FatorKa!$E$35 -> 1 | J13: 0 | K13: 0
A14: SICRO | B14: MO1 | C14: A1 | D14: Secretária (P8135) | E14: mês | F14: ='CRO1_Ins-Pro'!D11 -> 8 | H14: =ROUND(I14*G14,2) -> 0 | I14: =PFP2.1_FatorKa!$E$35 -> 1 | J14: =ROUND(F14*G14,2) -> 0 | K14: =ROUND(F14*H14,2) -> 0
A15: SICRO | B15: MO1 | C15: D | D15: Desenhista (P9848) | E15: mês | F15: ='CRO1_Ins-Pro'!D12 -> 8 | H15: 0 | I15: =PFP2.1_FatorKa!$E$35 -> 1 | J15: 0 | K15: 0
A16: SICRO | B16: MO1 | C16: P2 | D16: Engenheiro Ambiental Pleno (P8058) | E16: mês | F16: ='CRO1_Ins-Pro'!D13 -> 2.333333333 | H16: 0 | I16: =PFP2.1_FatorKa!$E$35 -> 1 | J16: 0 | K16: 0
A17: SICRO | B17: MO1 | C17: P2 | D17: Economista Pleno (P8046) | E17: mês | F17: ='CRO1_Ins-Pro'!D14 -> 1.25 | H17: 0 | I17: =PFP2.1_FatorKa!$E$35 -> 1 | J17: 0 | K17: 0
A18: SICRO | B18: EC | C18: ECA | D18: Encargos Comp. e Adicionais | E18: mês | F18: ='CRO1_Ins-Pro'!D15 -> 55.16666667 | H18: 0 | I18: =PFP2.4_FatorKd!$E$17 -> 1 | J18: =ROUND(F18*G18,2) -> 0 | K18: =ROUND(F18*H18,2) -> 0
A19: CODE | B19: LO | C19: V1 | D19: Diárias | E19: dia | F19: ='CRO1_Ins-Pro'!D16 -> 200 | H19: 0 | I19: =PFP2.4_FatorKd!$E$17 -> 1 | J19: 0 | K19: 0
A20: PROP | B20: LO | C20: V2 | D20: Pick-up Cab.dupla 2.8 4x4 Diesel | E20: dia | F20: ='CRO1_Ins-Pro'!D17 -> 50 | H20: 0 | I20: =PFP2.4_FatorKd!$E$17 -> 1 | J20: 0 | K20: 0
A21: PROP | B21: LO | C21: V3 | D21: Passagens Aéreas (ida e volta) | E21: un | F21: ='CRO1_Ins-Pro'!D18 -> 11.99760048 | H21: 0 | I21: =PFP2.4_FatorKd!$E$17 -> 1 | J21: 0 | K21: 0
A22: CODE | B22: EM | C22: M1 | D22: Relatório Parcial | E22: un | F22: ='CRO1_Ins-Pro'!D19 -> 11 | H22: 0 | I22: =PFP2.4_FatorKd!$E$17 -> 1 | J22: 0 | K22: =ROUND(F22*H22,2) -> 0
A23: CODE | B23: EM | C23: M2 | D23: Relatório Final | E23: un | F23: ='CRO1_Ins-Pro'!D20 -> 5 | H23: 0 | I23: =PFP2.4_FatorKd!$E$17 -> 1 | J23: 0 | K23: =ROUND(F23*H23,2) -> 0
A24: TOTAL DOS CUSTOS DIRETOS | H24: =SUM(J8:J23) -> 0
A25: TOTAL DOS ENCARGOS E DISPESAS DIVERSAS | H25: =H26-H24 -> 0
A26: TOTAL DA PROPOSTA | H26: =SUM(K8:K23) -> 0
A27: OBSERVAÇÃO:
A28: Alocar os Insumos MO, com respectivo FatorK, dentro da categoria de vínculo contratual (celetista, autonomo, societario)
A29: Uni - unidade de medição do insumo;
A30: Qde - Quantidade do Insumo (não pode ocorrer alteração pela Licitante)
A31: CUD - Custo Unitário Direto do Insumo (sem encargos, taxas e impostos, valor não pode ser maior que o Orçado pela Codevasf)
A32: CT - Custo Total (sem encargos, taxas e impostos) - CT = Qde x CUD
A33: FatorK - Taxa de Ressarcimento de Despesas e Encargos (detalhar composição nas Planilhas "PFP2.1", "PFP2.2", "PFP3")
A34: PU - Preço Unitário do Insumo (incluído encargos, taxas e impostos) - PU = CUD x FatorK
A35: PT - Preço Total do Insumo (incluído encargos, taxas e impostos) - PT = Qde x PU
A36: P - Profissionais nível superior nas áreas de Engenharia, Química, Arquitetura, Agronomia e Veterinária, conforme disposições da Lei 4.950-A/66
A37: S - Profissionais de nível superior nas demais áreas de atuação, incluindo Arqueólogo, Biólogo, Geógrafo e Sociólogo
A38: T - Profissionais de nível médio técnico nas diversas áreas de atuação
A39: A - Profissionais de nível médio de apoio técnico-administrativo

Sheet PFP2.1_FatorKa
A1: DETALHAMENTO DOS ENCARGOS SOCIAIS: Ka | F1: CODIGO:
F2: PFP-2.1
A3: NOME DA CONSULTORA:
A5: PROJETO: | C5: CONTRATANTE: | F5: BASE: Jul/2021
A6: =PFP!A6 -> Estudos de Viabilidade Técnica, Econômica e Ambiental (EVTEA) da Ciclovia entre os municípios de Aracajú/SE e Salvador/BA | C6: CODEVASF (SEDE) | F6: SINAPI/BA-SE: Jul/2021
A7: Cod | B7: DESCRIÇÃO | E7: % | F7: R$
A8: A | B8: ENCARGOS SOCIAIS BÁSICOS | E8: =ROUND(SUM(E9:E16),4) -> 0 | F8: =ROUND(E8*SUMIF(PFP!$B$8:$B$23,"MO1",PFP!$J$8:$J$23),2) -> 0
A9: A1 | B9: INSS | F9: =ROUND(E9*SUMIF(PFP!$B$8:$B$23,"MO1",PFP!$J$8:$J$23),2) -> 0
A10: A2 | B10: SESI | F10: =ROUND(E10*SUMIF(PFP!$B$8:$B$23,"MO1",PFP!$J$8:$J$23),2) -> 0
A11: A3 | B11: SENAI | F11: =ROUND(E11*SUMIF(PFP!$B$8:$B$23,"MO1",PFP!$J$8:$J$23),2) -> 0
A12: A4 | B12: INCRA | F12: =ROUND(E12*SUMIF(PFP!$B$8:$B$23,"MO1",PFP!$J$8:$J$23),2) -> 0
A13: A5 | B13: SEBRAE | F13: =ROUND(E13*SUMIF(PFP!$B$8:$B$23,"MO1",PFP!$J$8:$J$23),2) -> 0
A14: A6 | B14: Salário Educação | F14: =ROUND(E14*SUMIF(PFP!$B$8:$B$23,"MO1",PFP!$J$8:$J$23),2) -> 0
A15: A7 | B15: Seguro Contra Acidentes de Trabalho | F15: =ROUND(E15*SUMIF(PFP!$B$8:$B$23,"MO1",PFP!$J$8:$J$23),2) -> 0
A16: A8 | B16: FGTS | F16: =ROUND(E16*SUMIF(PFP!$B$8:$B$23,"MO1",PFP!$J$8:$J$23),2) -> 0
A17: B | B17: ENCARGOS SOCIAIS QUE RECEBEM INCIDÊNCIA DE "A" | E17: =ROUND(SUM(E18:E24),4) -> 0 | F17: =ROUND(E17*SUMIF(PFP!$B$8:$B$23,"MO1",PFP!$J$8:$J$23),2) -> 0
A18: B3 | B18: Auxílio Enfermidade | F18: =ROUND(E18*SUMIF(PFP!$B$8:$B$23,"MO1",PFP!$J$8:$J$23),2) -> 0
A19: B4 | B19: 13º Salário | F19: =ROUND(E19*SUMIF(PFP!$B$8:$B$23,"MO1",PFP!$J$8:$J$23),2) -> 0
A20: B5 | B20: Licença Paternidade | F20: =ROUND(E20*SUMIF(PFP!$B$8:$B$23,"MO1",PFP!$J$8:$J$23),2) -> 0
A21: B6 | B21: Faltas Justificadas | F21: =ROUND(E21*SUMIF(PFP!$B$8:$B$23,"MO1",PFP!$J$8:$J$23),2) -> 0
A22: B8 | B22: Auxílio Acidente de Trabalho | F22: =ROUND(E22*SUMIF(PFP!$B$8:$B$23,"MO1",PFP!$J$8:$J$23),2) -> 0
A23: B9 | B23: Férias Gozadas | F23: =ROUND(E23*SUMIF(PFP!$B$8:$B$23,"MO1",PFP!$J$8:$J$23),2) -> 0
A24: B10 | B24: Salário Maternidade | F24: =ROUND(E24*SUMIF(PFP!$B$8:$B$23,"MO1",PFP!$J$8:$J$23),2) -> 0
A25: C | B25: ENCARGOS SOCIAIS QUE NÃO RECEBEM INCIDÊNCIA DE "A" | E25: =ROUND(SUM(E26:E30),4) -> 0 | F25: =ROUND(E25*SUMIF(PFP!$B$8:$B$23,"MO1",PFP!$J$8:$J$23),2) -> 0
A26: C1 | B26: Aviso Prévio Indenizado | F26: =ROUND(E26*SUMIF(PFP!$B$8:$B$23,"MO1",PFP!$J$8:$J$23),2) -> 0
A27: C2 | B27: Aviso Prévio Trabalhado | F27: =ROUND(E27*SUMIF(PFP!$B$8:$B$23,"MO1",PFP!$J$8:$J$23),2) -> 0
A28: C3 | B28: Férias Indenizadas | F28: =ROUND(E28*SUMIF(PFP!$B$8:$B$23,"MO1",PFP!$J$8:$J$23),2) -> 0
A29: C4 | B29: Depósito Rescisão Sem Justa Causa | F29: =ROUND(E29*SUMIF(PFP!$B$8:$B$23,"MO1",PFP!$J$8:$J$23),2) -> 0
A30: C5 | B30: Indenização Adicional | F30: =ROUND(E30*SUMIF(PFP!$B$8:$B$23,"MO1",PFP!$J$8:$J$23),2) -> 0
A31: D | B31: REINCIDÊNCIAS | E31: =ROUND(SUM(E32:E33),4) -> 0 | F31: =ROUND(E31*SUMIF(PFP!$B$8:$B$23,"MO1",PFP!$J$8:$J$23),2) -> 0
A32: D1 | B32: Reincidência de "A" sobre "B" | E32: =ROUND(E8*E17,4) -> 0 | F32: =ROUND(E32*SUMIF(PFP!$B$8:$B$23,"MO1",PFP!$J$8:$J$23),2) -> 0
A33: D2 | B33: Reincidência de "A" sobre Aviso Prévio Trabalhado e reincidência do FGTS sobre Aviso Prévio Indenizado | E33: =ROUND((E27*E8)+(E26*E16),4) -> 0 | F33: =ROUND(E33*SUMIF(PFP!$B$8:$B$23,"MO1",PFP!$J$8:$J$23),2) -> 0
A34: K1a | B34: ENCARGOS SOCIAIS | E34: =ROUND(E8+E17+E25+E31,4) -> 0 | F34: =ROUND(E34*SUMIF(PFP!$B$8:$B$23,"MO1",PFP!$J$8:$J$23),2) -> 0
A35: Ka | B35: TAXA DE RESSARCIMENTO DE DESPESAS E ENCARGOS SOBRE MO1 | E35: =ROUND((1+E34+PFP2.4_FatorKd!E13)*(1+PFP2.4_FatorKd!E12)*(1+PFP2.4_FatorKd!E8),4) -> 1
A36: OBSERVAÇÃO: CELETISTAS E EQUIVALENTES
A37: 1 - DISCRIMINAR OS ENCARGOS SOCIAIS COM SEUS RESPECTIVOS PERCENTUAS TOTALIZANDO OS MESMOS.
A38: 2 - APLICAR O % TOTAL P/ CALCULAR OS E. SOCIAIS INCIDENTES NA MÃO-DE-OBRA CELETISTAS
A39: Ka - Taxa de Ressarcimento de Despesas e Encargos sobre a Mão de Obra CELETISTA (incide apenas no Insumo Codigo MO1)
A40: Ka = (1 + K1 + K2) x (1 + K3) x (1 + K4)

Sheet PFP2.2_FatorKb
A1: DETALHAMENTO DOS ENCARGOS SOCIAIS: Kb | F1: CODIGO:
F2: PFP-2.2
A3: NOME DA CONSULTORA:
A5: PROJETO: | C5: CONTRATANTE: | F5: BASE: Jul/2021
A6: =PFP!A6 -> Estudos de Viabilidade Técnica, Econômica e Ambiental (EVTEA) da Ciclovia entre os municípios de Aracajú/SE e Salvador/BA | C6: CODEVASF (SEDE) | F6: SINAPI/BA-SE: Jul/2021
A7: Cod | B7: DESCRIÇÃO | E7: % | F7: R$
A8: A | B8: ENCARGOS SOCIAIS BÁSICOS | E8: =ROUND(SUM(E9:E17),4) -> 0 | F8: =ROUND(E8*SUMIF(PFP!$B$8:$B$23,"MO2",PFP!$J$8:$J$23),2) -> 0
A9: A1 | B9: INSS | F9: =ROUND(E9*SUMIF(PFP!$B$8:$B$23,"MO2",PFP!$J$8:$J$23),2) -> 0
A10: A2 | B10: SESI | F10: =ROUND(E10*SUMIF(PFP!$B$8:$B$23,"MO2",PFP!$J$8:$J$23),2) -> 0
A11: A3 | B11: SENAI | F11: =ROUND(E11*SUMIF(PFP!$B$8:$B$23,"MO2",PFP!$J$8:$J$23),2) -> 0
A12: A4 | B12: INCRA | F12: =ROUND(E12*SUMIF(PFP!$B$8:$B$23,"MO2",PFP!$J$8:$J$23),2) -> 0
A13: A5 | B13: SEBRAE | F13: =ROUND(E13*SUMIF(PFP!$B$8:$B$23,"MO2",PFP!$J$8:$J$23),2) -> 0
A14: A6 | B14: Salário Educação | F14: =ROUND(E14*SUMIF(PFP!$B$8:$B$23,"MO2",PFP!$J$8:$J$23),2) -> 0
A15: A7 | B15: Seguro Contra Acidentes de Trabalho | F15: =ROUND(E15*SUMIF(PFP!$B$8:$B$23,"MO2",PFP!$J$8:$J$23),2) -> 0
A16: A8 | B16: FGTS | F16: =ROUND(E16*SUMIF(PFP!$B$8:$B$23,"MO2",PFP!$J$8:$J$23),2) -> 0
A17: A9 | B17: SECONCI | F17: =ROUND(E17*SUMIF(PFP!$B$8:$B$23,"MO2",PFP!$J$8:$J$23),2) -> 0
A18: B | B18: ENCARGOS SOCIAIS QUE RECEBEM INCIDÊNCIA DE "A" | E18: =ROUND(SUM(E19:E25),4) -> 0 | F18: =ROUND(E18*SUMIF(PFP!$B$8:$B$23,"MO2",PFP!$J$8:$J$23),2) -> 0
A19: B3 | B19: Auxílio Enfermidade | F19: =ROUND(E19*SUMIF(PFP!$B$8:$B$23,"MO2",PFP!$J$8:$J$23),2) -> 0
A20: B4 | B20: 13º Salário | F20: =ROUND(E20*SUMIF(PFP!$B$8:$B$23,"MO2",PFP!$J$8:$J$23),2) -> 0
A21: B5 | B21: Licença Paternidade | F21: =ROUND(E21*SUMIF(PFP!$B$8:$B$23,"MO2",PFP!$J$8:$J$23),2) -> 0
A22: B6 | B22: Faltas Justificadas | F22: =ROUND(E22*SUMIF(PFP!$B$8:$B$23,"MO2",PFP!$J$8:$J$23),2) -> 0
A23: B8 | B23: Auxílio Acidente de Trabalho | F23: =ROUND(E23*SUMIF(PFP!$B$8:$B$23,"MO2",PFP!$J$8:$J$23),2) -> 0
A24: B9 | B24: Férias Gozadas | F24: =ROUND(E24*SUMIF(PFP!$B$8:$B$23,"MO2",PFP!$J$8:$J$23),2) -> 0
A25: B10 | B25: Salário Maternidade | F25: =ROUND(E25*SUMIF(PFP!$B$8:$B$23,"MO2",PFP!$J$8:$J$23),2) -> 0
A26: C | B26: ENCARGOS SOCIAIS QUE NÃO RECEBEM INCIDÊNCIA DE "A" | E26: =ROUND(SUM(E27:E31),4) -> 0 | F26: =ROUND(E26*SUMIF(PFP!$B$8:$B$23,"MO2",PFP!$J$8:$J$23),2) -> 0
A27: C1 | B27: Aviso Prévio Indenizado | F27: =ROUND(E27*SUMIF(PFP!$B$8:$B$23,"MO2",PFP!$J$8:$J$23),2) -> 0
A28: C2 | B28: Aviso Prévio Trabalhado | F28: =ROUND(E28*SUMIF(PFP!$B$8:$B$23,"MO2",PFP!$J$8:$J$23),2) -> 0
A29: C3 | B29: Férias Indenizadas | F29: =ROUND(E29*SUMIF(PFP!$B$8:$B$23,"MO2",PFP!$J$8:$J$23),2) -> 0
A30: C4 | B30: Depósito Rescisão Sem Justa Causa | F30: =ROUND(E30*SUMIF(PFP!$B$8:$B$23,"MO2",PFP!$J$8:$J$23),2) -> 0
A31: C5 | B31: Indenização Adicional | F31: =ROUND(E31*SUMIF(PFP!$B$8:$B$23,"MO2",PFP!$J$8:$J$23),2) -> 0
A32: D | B32: REINCIDÊNCIAS | E32: =ROUND(SUM(E33:E34),4) -> 0 | F32: =ROUND(E32*SUMIF(PFP!$B$8:$B$23,"MO2",PFP!$J$8:$J$23),2) -> 0
A33: D1 | B33: Reincidência de "A" sobre "B" | E33: =ROUND(E8*E18,4) -> 0 | F33: =ROUND(E33*SUMIF(PFP!$B$8:$B$23,"MO2",PFP!$J$8:$J$23),2) -> 0
A34: D2 | B34: Reincidência de "A" sobre Aviso Prévio Trabalhado e reincidência do FGTS sobre Aviso Prévio Indenizado | E34: =ROUND(E8*E28,4)+ROUND(E27*E11,4) -> 0 | F34: =ROUND(E34*SUMIF(PFP!$B$8:$B$23,"MO2",PFP!$J$8:$J$23),2) -> 0
A35: K1b | B35: ENCARGOS SOCIAIS | E35: =ROUND(E8+E18+E26+E32,4) -> 0 | F35: =ROUND(E35*SUMIF(PFP!$B$8:$B$23,"MO2",PFP!$J$8:$J$23),2) -> 0
A36: Kb | B36: TAXA DE RESSARCIMENTO DE DESPESAS E ENCARGOS SOBRE MO2 | E36: =ROUND((1+E35+PFP2.4_FatorKd!E13)*(1+PFP2.4_FatorKd!E12)*(1+PFP2.4_FatorKd!E8),4) -> 1
A37: OBSERVAÇÃO: AUTÔNOMOS E EQUIVALENTES
A38: 1 - DISCRIMINAR OS ENCARGOS SOCIAIS COM SEUS RESPECTIVOS PERCENTUAS TOTALIZANDO OS MESMOS.
A39: 2 - APLICAR O % TOTAL P/ CALCULAR OS E. SOCIAIS INCIDENTES NA MÃO-DE-OBRA AUTONÔMOS
A40: Kb - Taxa de Ressarcimento de Despesas e Encargos sobre a Mão de Obra AUTONÔMA (incide apenas no Insumo Codigo MO2)
A41: Kb = (1 + K1 + K2) x (1 + K3) x (1 + K4)

Sheet PFP2.3_FatorKc
A1: DETALHAMENTO DOS ENCARGOS SOCIAIS: Kc | F1: CODIGO:
F2: PFP-2.3
A3: NOME DA CONSULTORA:
A5: PROJETO: | C5: CONTRATANTE: | F5: BASE: Jul/2021
A6: =PFP!A6 -> Estudos de Viabilidade Técnica, Econômica e Ambiental (EVTEA) da Ciclovia entre os municípios de Aracajú/SE e Salvador/BA | C6: CODEVASF (SEDE) | F6: SINAPI/BA-SE: Jul/2021
A7: Cod | B7: DESCRIÇÃO | E7: % | F7: R$
A8: A | B8: ENCARGOS SOCIAIS BÁSICOS | E8: =SUM(E9:E17) -> 0 | F8: =ROUND(E8*SUMIF(PFP!$B$8:$B$23,"MO3",PFP!$J$8:$J$23),2) -> 0
A9: A1 | B9: INSS | E9: 0 | F9: =ROUND(E9*SUMIF(PFP!$B$8:$B$23,"MO3",PFP!$J$8:$J$23),2) -> 0
A10: A2 | B10: SESI | E10: 0 | F10: =ROUND(E10*SUMIF(PFP!$B$8:$B$23,"MO3",PFP!$J$8:$J$23),2) -> 0
A11: A3 | B11: SENAI | E11: 0 | F11: =ROUND(E11*SUMIF(PFP!$B$8:$B$23,"MO3",PFP!$J$8:$J$23),2) -> 0
A12: A4 | B12: INCRA | E12: 0 | F12: =ROUND(E12*SUMIF(PFP!$B$8:$B$23,"MO3",PFP!$J$8:$J$23),2) -> 0
A13: A5 | B13: SEBRAE | E13: 0 | F13: =ROUND(E13*SUMIF(PFP!$B$8:$B$23,"MO3",PFP!$J$8:$J$23),2) -> 0
A14: A6 | B14: Salário Educação | E14: 0 | F14: =ROUND(E14*SUMIF(PFP!$B$8:$B$23,"MO3",PFP!$J$8:$J$23),2) -> 0
A15: A7 | B15: Seguro Contra Acidentes de Trabalho | E15: 0 | F15: =ROUND(E15*SUMIF(PFP!$B$8:$B$23,"MO3",PFP!$J$8:$J$23),2) -> 0
A16: A8 | B16: FGTS | E16: 0 | F16: =ROUND(E16*SUMIF(PFP!$B$8:$B$23,"MO3",PFP!$J$8:$J$23),2) -> 0
A17: A9 | B17: SECONCI | E17: 0 | F17: =ROUND(E17*SUMIF(PFP!$B$8:$B$23,"MO3",PFP!$J$8:$J$23),2) -> 0
A18: B | B18: ENCARGOS SOCIAIS QUE RECEBEM INCIDÊNCIA DE "A" | E18: =ROUND(SUM(E19:E25),4) -> 0 | F18: =ROUND(E18*SUMIF(PFP!$B$8:$B$23,"MO3",PFP!$J$8:$J$23),2) -> 0
A19: B3 | B19: Auxílio Enfermidade | E19: 0 | F19: =ROUND(E19*SUMIF(PFP!$B$8:$B$23,"MO3",PFP!$J$8:$J$23),2) -> 0
A20: B4 | B20: 13º Salário | E20: 0 | F20: =ROUND(E20*SUMIF(PFP!$B$8:$B$23,"MO3",PFP!$J$8:$J$23),2) -> 0
A21: B5 | B21: Licença Paternidade | E21: 0 | F21: =ROUND(E21*SUMIF(PFP!$B$8:$B$23,"MO3",PFP!$J$8:$J$23),2) -> 0
A22: B6 | B22: Faltas Justificadas | E22: 0 | F22: =ROUND(E22*SUMIF(PFP!$B$8:$B$23,"MO3",PFP!$J$8:$J$23),2) -> 0
A23: B8 | B23: Auxílio Acidente de Trabalho | E23: 0 | F23: =ROUND(E23*SUMIF(PFP!$B$8:$B$23,"MO3",PFP!$J$8:$J$23),2) -> 0
A24: B9 | B24: Férias Gozadas | E24: 0 | F24: =ROUND(E24*SUMIF(PFP!$B$8:$B$23,"MO3",PFP!$J$8:$J$23),2) -> 0
A25: B10 | B25: Salário Maternidade | E25: 0 | F25: =ROUND(E25*SUMIF(PFP!$B$8:$B$23,"MO3",PFP!$J$8:$J$23),2) -> 0
A26: C | B26: ENCARGOS SOCIAIS QUE NÃO RECEBEM INCIDÊNCIA DE "A" | E26: =ROUND(SUM(E27:E31),4) -> 0 | F26: =ROUND(E26*SUMIF(PFP!$B$8:$B$23,"MO3",PFP!$J$8:$J$23),2) -> 0
A27: C1 | B27: Aviso Prévio Indenizado | E27: 0 | F27: =ROUND(E27*SUMIF(PFP!$B$8:$B$23,"MO3",PFP!$J$8:$J$23),2) -> 0
A28: C2 | B28: Aviso Prévio Trabalhado | E28: 0 | F28: =ROUND(E28*SUMIF(PFP!$B$8:$B$23,"MO3",PFP!$J$8:$J$23),2) -> 0
A29: C3 | B29: Férias Indenizadas | E29: 0 | F29: =ROUND(E29*SUMIF(PFP!$B$8:$B$23,"MO3",PFP!$J$8:$J$23),2) -> 0
A30: C4 | B30: Depósito Rescisão Sem Justa Causa | E30: 0 | F30: =ROUND(E30*SUMIF(PFP!$B$8:$B$23,"MO3",PFP!$J$8:$J$23),2) -> 0
A31: C5 | B31: Indenização Adicional | E31: 0 | F31: =ROUND(E31*SUMIF(PFP!$B$8:$B$23,"MO3",PFP!$J$8:$J$23),2) -> 0
A32: D | B32: REINCIDÊNCIAS | E32: =ROUND(SUM(E33:E34),4) -> 0 | F32: =ROUND(E32*SUMIF(PFP!$B$8:$B$23,"MO3",PFP!$J$8:$J$23),2) -> 0
A33: D1 | B33: Reincidência de "A" sobre "B" | E33: =ROUND(E8*E18,4) -> 0 | F33: =ROUND(E33*SUMIF(PFP!$B$8:$B$23,"MO3",PFP!$J$8:$J$23),2) -> 0
A34: D2 | B34: Reincidência de "A" sobre Aviso Prévio Trabalhado e reincidência do FGTS sobre Aviso Prévio Indenizado | E34: =ROUND(E8*E28,4)+ROUND(E27*E11,4) -> 0 | F34: =ROUND(E34*SUMIF(PFP!$B$8:$B$23,"MO3",PFP!$J$8:$J$23),2) -> 0
A35: K1c | B35: ENCARGOS SOCIAIS | E35: =ROUND(E8+E18+E26+E32,4) -> 0 | F35: =ROUND(E35*SUMIF(PFP!$B$8:$B$23,"MO3",PFP!$J$8:$J$23),2) -> 0
A36: Kc | B36: TAXA DE RESSARCIMENTO DE DESPESAS E ENCARGOS SOBRE MO3 | E36: =ROUND((1+E35+PFP2.4_FatorKd!E13)*(1+PFP2.4_FatorKd!E12)*(1+PFP2.4_FatorKd!E8),4) -> 1
A37: OBSERVAÇÃO: SOCIETÁRIOS E EQUIVALENTES
A38: 1 - DISCRIMINAR OS ENCARGOS SOCIAIS COM SEUS RESPECTIVOS PERCENTUAS TOTALIZANDO OS MESMOS.
A39: 2 - APLICAR O % TOTAL P/ CALCULAR OS E. SOCIAIS INCIDENTES NA MÃO-DE-OBRA DE SOCIETÁRIOS
A40: Kc - Taxa de Ressarcimento de Despesas e Encargos sobre a Mão de Obra SOCIETÁRIA (incide apenas no Insumo Codigo MO3)
A41: Kc = (1 + K1 + K2) x (1 + K3) x (1 + K4)

Sheet PFP2.4_FatorKd
A1: DESPESAS FISCAIS E CUSTOS DIVERSOS: Kd | F1: CODIGO:
F2: PFP-2.4
A3: NOME DA CONSULTORA:
A5: PROJETO: | C5: CONTRATANTE: | F5: BASE: Jul/2021
A6: =PFP!A6 -> Estudos de Viabilidade Técnica, Econômica e Ambiental (EVTEA) da Ciclovia entre os municípios de Aracajú/SE e Salvador/BA | C6: CODEVASF (SEDE) | F6: PROP: Jul/2021
A7: Cod | B7: DESCRIÇÃO1 | D7: % preço2 | E7: % custo4 | F7: R$
A8: K4 | B8: TRIBUTOS | D8: =ROUND(D9+D10+D11,4) -> 0 | E8: =ROUND(E9+E10+E11,4) -> 0 | F8: =E8*SUM(SUMIF(PFP!$B$8:$B$23,"MO1",PFP!$J$8:$J$23)*(1+PFP2.1_FatorKa!$E$34)+SUMIF(PFP!$B$8:$B$23,"MO2",PFP!$J$8:$J$23)*(1+PFP2.2_FatorKb!$E$35)+SUMIF(PFP!$B$8:$B$23,"<>MO*",PFP!$J$8:$J$23)+$F$13+$F$12) -> 0
A9: K4.1 | B9: ISS | E9: =ROUND((1/(1-$D$8))*D9,4) -> 0 | F9: =E9*SUM(SUMIF(PFP!$B$8:$B$23,"MO1",PFP!$J$8:$J$23)*(1+PFP2.1_FatorKa!$E$34)+SUMIF(PFP!$B$8:$B$23,"MO2",PFP!$J$8:$J$23)*(1+PFP2.2_FatorKb!$E$35)+SUMIF(PFP!$B$8:$B$23,"<>MO*",PFP!$J$8:$J$23)+$F$13+$F$12) -> 0
A10: K4.2 | B10: PIS3 - aliquota efetiva aplicavel percentual-desconto | E10: =ROUND((1/(1-$D$8))*D10,4) -> 0 | F10: =E10*SUM(SUMIF(PFP!$B$8:$B$23,"MO1",PFP!$J$8:$J$23)*(1+PFP2.1_FatorKa!$E$34)+SUMIF(PFP!$B$8:$B$23,"MO2",PFP!$J$8:$J$23)*(1+PFP2.2_FatorKb!$E$35)+SUMIF(PFP!$B$8:$B$23,"<>MO*",PFP!$J$8:$J$23)+$F$13+$F$12) -> 0
A11: K4.3 | B11: COFINS3 - aliquota efetiva aplicavel percentual-desconto | E11: =ROUND((1/(1-$D$8))*D11,4) -> 0 | F11: =E11*SUM(SUMIF(PFP!$B$8:$B$23,"MO1",PFP!$J$8:$J$23)*(1+PFP2.1_FatorKa!$E$34)+SUMIF(PFP!$B$8:$B$23,"MO2",PFP!$J$8:$J$23)*(1+PFP2.2_FatorKb!$E$35)+SUMIF(PFP!$B$8:$B$23,"<>MO*",PFP!$J$8:$J$23)+$F$13+$F$12) -> 0
A12: K3 | B12: REMUNERAÇÃO DA EMPRESA (LUCRO) | F12: =E12*SUM(SUMIF(PFP!$B$8:$B$23,"MO1",PFP!$J$8:$J$23)*(1+PFP2.1_FatorKa!$E$34)+SUMIF(PFP!$B$8:$B$23,"MO2",PFP!$J$8:$J$23)*(1+PFP2.2_FatorKb!$E$35)+SUMIF(PFP!$B$8:$B$23,"<>MO*",PFP!$J$8:$J$23)+$F$13) -> 0
A13: K2 | B13: CUSTOS DA ADMINISTRAÇÃO CENTRAL | E13: =ROUND(SUM(E14:E16),4) -> 0 | F13: =ROUND(E13*SUMIF(PFP!$B$8:$B$23,"MO*",PFP!$J$8:$J$23),2) -> 0
A14: K2.1 | B14: Custos da administração central da empresa (diretoria, pessoal técnico de apoio e pessoal administrativo não diretamente vinculado à prestação dos serviços) | F14: =ROUND(E14*SUMIF(PFP!$B$8:$B$23,"MO*",PFP!$J$8:$J$23),2) -> 0
A15: K2.2 | B15: Outras despesas que afetam o custo de produção como treinamento, biblioteca, programa de qualidade, programa de benefícios, auditoria interna e externa | F15: =ROUND(E15*SUMIF(PFP!$B$8:$B$23,"MO*",PFP!$J$8:$J$23),2) -> 0
A16: K2.3 | B16: Despesas fixas e variaveis com patrimônio, aluguéis, comunicação, manutenção e transporte não diretamente relacionados com o custo direto dos serviços | F16: =ROUND(E16*SUMIF(PFP!$B$8:$B$23,"MO*",PFP!$J$8:$J$23),2) -> 0
A17: Kd | B17: TAXA RESSARCIMENTO DE DESPESAS SOBRE CUSTOS DIVERSOS | E17: =ROUND((1+E12)*(1+E8),4) -> 1
A18: NOME DO INFORMANTE: | E18: QUALIFICAÇÃO:
A20: ASSINATURA: | E20: DATA:
A22: Observação:
A23: 1 - RELACIONAR OS CUSTOS DE ADMINISTRAÇÃO COM RESPECTIVOS PERCENTUAIS INCIDENTES NA MÃO -DE-OBRA
A24: 1 - DISCRIMINAR OS TRIBUTOS QUE INCIDEM SOBRE OS CUSTOS DA PRESTAÇÃO DOS SERVIÇOS
A25: 2 - K4 = INDICAR % DE CADA TRIBUTO E A SOMA DOS MESMOS (ex: ISS 5% + PIS 1,65% + COFINS 7,60% = 14,25%)
A26: 3 - PIS e COFINS, Regime de Incidencia Acumulativa (0,65% e 3,00% - sem percentual de desconto) ou em Regime de Incidencia Não Acumulativa (1,65% e 7,60% - aplicável percentual de desconto) de acordo com a forma de apuração do lucro no IRPJ. APRESENTAR COMPROVANTES de aproveitamento de créditos tributários dos últimos 12 meses em caso de aplicação de "percentual de desconto".
A27: 4 - AS DESPESAS FISCAIS (K4) INCIDEM SOBRE O TOTAL DA FATURA E NÃO SOBRE OS CUSTOS INCORRIDOS,
A28: DEVENDO SER CALCULADO O K4' APLICANDO-SE A SEGUINTE FÓRMULA:
A29: K4' = { [ 1 / ( 1 - K4) ] - 1 } x 100
A30: =CONCATENATE(" K4' = { [ 1 / ( 1 - ",D8," ) ] - 1 } x 100") -> K4' = { [ 1 / ( 1 - 0 ) ] - 1 } x 100
A31: Kc - Taxa de Ressarcimento de Despesas sobre Custos Diversos (incide sobre os Insumos Codigo DP e EM)
A32: Kc = (1 + K3) x (1 + K4)
A33: K2 - Incide sobre o Custo Total (CT) da Mão de Obra (MO* = MO1 + MO2)
A34: K3 - Incide sobre o Custo Total (CT) Mão de Obra com encargos (MO1 x Ka ou MO2 x Kb), demais Custos (DP e EM), e Custos da Administração Central (K2)
A35: K4 - Incide sobre o Custo Total (CT) Mão de Obra com encargos (MO1 x Ka ou MO2 x Kb), demais Custos (DP e EM), e Custos da Administração Central (K2) e Lucro (K3)

Sheet CRO1_Ins-Pro
A1: INSUMOS POR ETAPA/PRODUTO | Q1: CODIGO:
Q2: CRO-1
A3: Cod. | B3: Categoria / Insumo | C3: Uni | D3: Qde | E3: CUD | F3: PU | G3: FatorK | H3: E1 | I3: E2 | J3: E3 | K3: E4 | L3: E5 | M3: E6 | N3: E7 | O3: E8 | P3: E9 | Q3: E10 | R3: E11 | S3: E12
G4: Meses | H4: ='CRO2_Pro-Mes'!D3 -> 0.5 | I4: ='CRO2_Pro-Mes'!D4 -> 0.5 | J4: ='CRO2_Pro-Mes'!D5 -> 0.5 | K4: ='CRO2_Pro-Mes'!D6 -> 0.5 | L4: ='CRO2_Pro-Mes'!D7 -> 0.5 | M4: ='CRO2_Pro-Mes'!D8 -> 0.5 | N4: ='CRO2_Pro-Mes'!D9 -> 2 | O4: ='CRO2_Pro-Mes'!D10 -> 0.3333333333 | P4: ='CRO2_Pro-Mes'!D11 -> 0.3333333333 | Q4: ='CRO2_Pro-Mes'!D12 -> 0.3333333333 | R4: ='CRO2_Pro-Mes'!D13 -> 1 | S4: ='CRO2_Pro-Mes'!D14 -> 1
A5: =PFP!C8 -> P0 | B5: =PFP!D8 -> Engenheiro coordenador (P8061) | C5: =PFP!E8 -> mês | D5: =SUM(H5:S5) -> 2 | E5: =PFP!G8 -> 0 | F5: =PFP!H8 -> 0 | G5: =PFP!I8 -> 1 | H5: =0.25*H4 -> 0.125 | I5: =0.25*I4 -> 0.125 | J5: 0.125 | K5: 0.125 | L5: 0.125 | M5: 0.125 | N5: 0.5 | O5: 0.08333333333 | P5: 0.08333333333 | Q5: 0.08333333333 | R5: 0.25 | S5: 0.25
A6: =PFP!C9 -> P1 | B6: =PFP!D9 -> Engenheiro de projetos sênior (P8067) | C6: =PFP!E9 -> mês | D6: 8 | E6: =PFP!G9 -> 0 | F6: =PFP!H9 -> 0 | G6: =PFP!I9 -> 1 | H6: =1*H4 -> 0.5 | I6: =1*I4 -> 0.5 | J6: 0.5 | K6: 0.5 | L6: 0.5 | M6: 0.5 | N6: 2 | O6: 0.3333333333 | P6: 0.3333333333 | Q6: 0.3333333333 | R6: 1 | S6: 1
A7: =PFP!C10 -> P2 | B7: =PFP!D10 -> Engenheiro de projetos pleno (P8066) | C7: =PFP!E10 -> mês | D7: 8 | E7: =PFP!G10 -> 0 | F7: =PFP!H10 -> 0 | G7: =PFP!I10 -> 1 | H7: =1*H4 -> 0.5 | I7: =1*I4 -> 0.5 | J7: 0.5 | K7: 0.5 | L7: 0.5 | M7: 0.5 | N7: 2 | O7: 0.3333333333 | P7: 0.3333333333 | Q7: 0.3333333333 | R7: 1 | S7: 1
A8: =PFP!C11 -> P3 | B8: =PFP!D11 -> Engenheiro de projetos júnior (P8065) | C8: =PFP!E11 -> mês | D8: 8 | E8: =PFP!G11 -> 0 | F8: =PFP!H11 -> 0 | G8: =PFP!I11 -> 1 | H8: =1*H4 -> 0.5 | I8: =1*I4 -> 0.5 | J8: 0.5 | K8: 0.5 | L8: 0.5 | M8: 0.5 | N8: 2 | O8: 0.3333333333 | P8: 0.3333333333 | Q8: 0.3333333333 | R8: 1 | S8: 1
A9: =PFP!C12 -> P2 | B9: =PFP!D12 -> Geólogo Pleno (P8081) | C9: =PFP!E12 -> mês | D9: 1.583333333 | E9: =PFP!G12 -> 0 | F9: =PFP!H12 -> 0 | G9: =PFP!I12 -> 1 | H9: 0 | I9: =0.5*I4 -> 0.25 | J9: =1*J4 -> 0.5 | K9: =0.5*K4 -> 0.25 | L9: 0 | M9: 0 | N9: 0 | O9: 0 | P9: 0 | Q9: =0.25*Q4 -> 0.08333333333 | R9: =0.25*R4 -> 0.25 | S9: 0.25
A10: =PFP!C13 -> T1 | B10: =PFP!D13 -> Técnico de projetos/obra (P8147) | C10: =PFP!E13 -> mês | D10: 8 | E10: =PFP!G13 -> 0 | F10: =PFP!H13 -> 0 | G10: =PFP!I13 -> 1 | H10: =1*H4 -> 0.5 | I10: =1*I4 -> 0.5 | J10: 0.5 | K10: 0.5 | L10: 0.5 | M10: 0.5 | N10: 2 | O10: 0.3333333333 | P10: 0.3333333333 | Q10: 0.3333333333 | R10: 1 | S10: 1
A11: =PFP!C14 -> A1 | B11: =PFP!D14 -> Secretária (P8135) | C11: =PFP!E14 -> mês | D11: 8 | E11: =PFP!G14 -> 0 | F11: =PFP!H14 -> 0 | G11: =PFP!I14 -> 1 | H11: =1*H4 -> 0.5 | I11: =1*I4 -> 0.5 | J11: 0.5 | K11: 0.5 | L11: 0.5 | M11: 0.5 | N11: 2 | O11: 0.3333333333 | P11: 0.3333333333 | Q11: 0.3333333333 | R11: 1 | S11: 1
A12: =PFP!C15 -> D | B12: =PFP!D15 -> Desenhista (P9848) | C12: =PFP!E15 -> mês | D12: 8 | E12: =PFP!G15 -> 0 | F12: =PFP!H15 -> 0 | G12: =PFP!I15 -> 1 | H12: =1*H4 -> 0.5 | I12: =1*I4 -> 0.5 | J12: 0.5 | K12: 0.5 | L12: 0.5 | M12: 0.5 | N12: 2 | O12: 0.3333333333 | P12: 0.3333333333 | Q12: 0.3333333333 | R12: 1 | S12: 1
A13: =PFP!C16 -> P2 | B13: =PFP!D16 -> Engenheiro Ambiental Pleno (P8058) | C13: =PFP!E16 -> mês | D13: 2.333333333 | E13: =PFP!G16 -> 0 | F13: =PFP!H16 -> 0 | G13: =PFP!I16 -> 1 | H13: 0 | I13: 0 | J13: 0 | K13: 0 | L13: =1*L4 -> 0.5 | M13: =1*M4 -> 0.5 | N13: =0.25*N4 -> 0.5 | O13: =1*O4 -> 0.3333333333 | P13: 0 | Q13: 0 | R13: =0.25*R4 -> 0.25 | S13: =0.25*S4 -> 0.25
A14: =PFP!C17 -> P2 | B14: =PFP!D17 -> Economista Pleno (P8046) | C14: =PFP!E17 -> mês | D14: 1.25 | E14: =PFP!G17 -> 0 | F14: =PFP!H17 -> 0 | G14: =PFP!I17 -> 1 | H14: 0 | I14: 0 | J14: 0 | K14: 0 | L14: 0 | M14: 0 | N14: 0 | O14: =1*O4 -> 0.3333333333 | P14: =1*P4 -> 0.3333333333 | Q14: 0.3333333333 | R14: 0 | S14: =0.25*S4 -> 0.25
A15: =PFP!C18 -> ECA | B15: =PFP!D18 -> Encargos Comp. e Adicionais | C15: =PFP!E18 -> mês | D15: 55.16666667 | E15: =PFP!G18 -> 0 | F15: =PFP!H18 -> 0 | G15: =PFP!I18 -> 1 | H15: =SUM(H5:H14) -> 3.125 | I15: =SUM(I5:I14) -> 3.375 | J15: 3.625 | K15: 3.375 | L15: 3.625 | M15: 3.625 | N15: 13 | O15: 2.75 | P15: 2.416666667 | Q15: 2.5 | R15: 6.75 | S15: 7
A16: =PFP!C19 -> V1 | B16: =PFP!D19 -> Diárias | C16: =PFP!E19 -> dia | D16: 200 | E16: =PFP!G19 -> 0 | F16: =PFP!H19 -> 0 | G16: =PFP!I19 -> 1 | H16: =H4*5*5 -> 12.5 | I16: =I4*5*5 -> 12.5 | J16: 12.5 | K16: 12.5 | L16: 12.5 | M16: 12.5 | N16: 50 | O16: 8.333333333 | P16: 8.333333333 | Q16: 8.333333333 | R16: 25 | S16: 25
A17: =PFP!C20 -> V2 | B17: =PFP!D20 -> Pick-up Cab.dupla 2.8 4x4 Diesel | C17: =PFP!E20 -> dia | D17: 50 | E17: =PFP!G20 -> 0 | F17: =PFP!H20 -> 0 | G17: =PFP!I20 -> 1 | H17: =H16/4 -> 3.125 | I17: =I16/4 -> 3.125 | J17: 3.125 | K17: 3.125 | L17: 3.125 | M17: 3.125 | N17: 12.5 | O17: 2.083333333 | P17: 2.083333333 | Q17: 2.083333333 | R17: 6.25 | S17: 6.25
A18: =PFP!C21 -> V3 | B18: =PFP!D21 -> Passagens Aéreas (ida e volta) | C18: =PFP!E21 -> un | D18: 11.99760048 | E18: =PFP!G21 -> 0 | F18: =PFP!H21 -> 0 | G18: =PFP!I21 -> 1 | H18: =H16/16.67 -> 0.74985003 | I18: =I16/16.67 -> 0.74985003 | J18: 0.74985003 | K18: 0.74985003 | L18: 0.74985003 | M18: 0.74985003 | N18: 2.99940012 | O18: 0.49990002 | P18: 0.49990002 | Q18: 0.49990002 | R18: 1.49970006 | S18: 1.49970006 | T18: =T16/25 -> 0 | U18: 0 | V18: 0 | W18: 0 | X18: 0 | Y18: 0 | Z18: 0 | AA18: 0 | AB18: 0 | AC18: 0 | AD18: 0 | AE18: 0 | AF18: 0 | AG18: 0 | AH18: 0 | AI18: 0 | AJ18: 0 | AK18: 0 | AL18: 0 | AM18: 0 | AN18: 0 | AO18: 0 | AP18: 0 | AQ18: 0 | AR18: 0 | AS18: 0 | AT18: 0 | AU18: 0 | AV18: 0 | AW18: 0 | AX18: 0 | AY18: 0 | AZ18: 0 | BA18: 0 | BB18: 0 | BC18: 0 | BD18: 0 | BE18: 0 | BF18: 0 | BG18: 0 | BH18: 0 | BI18: 0 | BJ18: 0 | BK18: 0 | BL18: 0 | BM18: 0 | BN18: 0 | BO18: 0 | BP18: 0 | BQ18: 0 | BR18: 0 | BS18: 0 | BT18: 0 | BU18: =BU16/25 -> 0 | BV18: 0 | BW18: 0 | BX18: 0 | BY18: 0 | BZ18: 0 | CA18: 0 | CB18: 0 | CC18: 0 | CD18: 0 | CE18: 0 | CF18: 0 | CG18: 0 | CH18: 0 | CI18: 0 | CJ18: 0 | CK18: 0 | CL18: 0 | CM18: 0 | CN18: 0 | CO18: 0 | CP18: 0 | CQ18: 0 | CR18: 0 | CS18: 0 | CT18: 0 | CU18: 0 | CV18: 0 | CW18: 0 | CX18: 0 | CY18: 0 | CZ18: 0 | DA18: 0 | DB18: 0 | DC18: 0 | DD18: 0 | DE18: 0 | DF18: 0 | DG18: 0 | DH18: 0 | DI18: 0 | DJ18: 0 | DK18: 0 | DL18: 0 | DM18: 0 | DN18: 0 | DO18: 0 | DP18: 0 | DQ18: 0 | DR18: 0 | DS18: 0 | DT18: 0 | DU18: 0 | DV18: 0 | DW18: 0 | DX18: 0 | DY18: 0 | DZ18: 0 | EA18: 0 | EB18: 0 | EC18: 0 | ED18: 0 | EE18: 0 | EF18: 0 | EG18: =EG16/25 -> 0 | EH18: 0 | EI18: 0 | EJ18: 0 | EK18: 0 | EL18: 0 | EM18: 0 | EN18: 0 | EO18: 0 | EP18: 0 | EQ18: 0 | ER18: 0 | ES18: 0 | ET18: 0 | EU18: 0 | EV18: 0 | EW18: 0 | EX18: 0 | EY18: 0 | EZ18: 0 | FA18: 0 | FB18: 0 | FC18: 0 | FD18: 0 | FE18: 0 | FF18: 0 | FG18: 0 | FH18: 0 | FI18: 0 | FJ18: 0 | FK18: 0 | FL18: 0 | FM18: 0 | FN18: 0 | FO18: 0 | FP18: 0 | FQ18: 0 | FR18: 0 | FS18: 0 | FT18: 0 | FU18: 0 | FV18: 0 | FW18: 0 | FX18: 0 | FY18: 0 | FZ18: 0 | GA18: 0 | GB18: 0 | GC18: 0 | GD18: 0 | GE18: 0 | GF18: 0 | GG18: 0 | GH18: 0 | GI18: 0 | GJ18: 0 | GK18: 0 | GL18: 0 | GM18: 0 | GN18: 0 | GO18: 0 | GP18: 0 | GQ18: 0 | GR18: 0 | GS18: =GS16/25 -> 0 | GT18: 0 | GU18: 0 | GV18: 0 | GW18: 0 | GX18: 0 | GY18: 0 | GZ18: 0 | HA18: 0 | HB18: 0 | HC18: 0 | HD18: 0 | HE18: 0 | HF18: 0 | HG18: 0 | HH18: 0 | HI18: 0 | HJ18: 0 | HK18: 0 | HL18: 0 | HM18: 0 | HN18: 0 | HO18: 0 | HP18: 0 | HQ18: 0 | HR18: 0 | HS18: 0 | HT18: 0 | HU18: 0 | HV18: 0 | HW18: 0 | HX18: 0 | HY18: 0 | HZ18: 0 | IA18: 0 | IB18: 0 | IC18: 0 | ID18: 0 | IE18: 0 | IF18: 0 | IG18: 0 | IH18: 0 | II18: 0 | IJ18: 0 | IK18: 0 | IL18: 0 | IM18: 0 | IN18: 0 | IO18: 0 | IP18: 0 | IQ18: 0 | IR18: 0 | IS18: 0 | IT18: 0 | IU18: 0 | IV18: 0 | IW18: 0 | IX18: 0 | IY18: 0 | IZ18: 0 | JA18: 0 | JB18: 0 | JC18: 0 | JD18: 0 | JE18: =JE16/25 -> 0 | JF18: 0 | JG18: 0 | JH18: 0 | JI18: 0 | JJ18: 0 | JK18: 0 | JL18: 0 | JM18: 0 | JN18: 0 | JO18: 0 | JP18: 0 | JQ18: 0 | JR18: 0 | JS18: 0 | JT18: 0 | JU18: 0 | JV18: 0 | JW18: 0 | JX18: 0 | JY18: 0 | JZ18: 0 | KA18: 0 | KB18: 0 | KC18: 0 | KD18: 0 | KE18: 0 | KF18: 0 | KG18: 0 | KH18: 0 | KI18: 0 | KJ18: 0 | KK18: 0 | KL18: 0 | KM18: 0 | KN18: 0 | KO18: 0 | KP18: 0 | KQ18: 0 | KR18: 0 | KS18: 0 | KT18: 0 | KU18: 0 | KV18: 0 | KW18: 0 | KX18: 0 | KY18: 0 | KZ18: 0 | LA18: 0 | LB18: 0 | LC18: 0 | LD18: 0 | LE18: 0 | LF18: 0 | LG18: 0 | LH18: 0 | LI18: 0 | LJ18: 0 | LK18: 0 | LL18: 0 | LM18: 0 | LN18: 0 | LO18: 0 | LP18: 0 | LQ18: =LQ16/25 -> 0 | LR18: 0 | LS18: 0 | LT18: 0 | LU18: 0 | LV18: 0 | LW18: 0 | LX18: 0 | LY18: 0 | LZ18: 0 | MA18: 0 | MB18: 0 | MC18: 0 | MD18: 0 | ME18: 0 | MF18: 0 | MG18: 0 | MH18: 0 | MI18: 0 | MJ18: 0 | MK18: 0 | ML18: 0 | MM18: 0 | MN18: 0 | MO18: 0 | MP18: 0 | MQ18: 0 | MR18: 0 | MS18: 0 | MT18: 0 | MU18: 0 | MV18: 0 | MW18: 0 | MX18: 0 | MY18: 0 | MZ18: 0 | NA18: 0 | NB18: 0 | NC18: 0 | ND18: 0 | NE18: 0 | NF18: 0 | NG18: 0 | NH18: 0 | NI18: 0 | NJ18: 0 | NK18: 0 | NL18: 0 | NM18: 0 | NN18: 0 | NO18: 0 | NP18: 0 | NQ18: 0 | NR18: 0 | NS18: 0 | NT18: 0 | NU18: 0 | NV18: 0 | NW18: 0 | NX18: 0 | NY18: 0 | NZ18: 0 | OA18: 0 | OB18: 0 | OC18: =OC16/25 -> 0 | OD18: 0 | OE18: 0 | OF18: 0 | OG18: 0 | OH18: 0 | OI18: 0 | OJ18: 0 | OK18: 0 | OL18: 0 | OM18: 0 | ON18: 0 | OO18: 0 | OP18: 0 | OQ18: 0 | OR18: 0 | OS18: 0 | OT18: 0 | OU18: 0 | OV18: 0 | OW18: 0 | OX18: 0 | OY18: 0 | OZ18: 0 | PA18: 0 | PB18: 0 | PC18: 0 | PD18: 0 | PE18: 0 | PF18: 0 | PG18: 0 | PH18: 0 | PI18: 0 | PJ18: 0 | PK18: 0 | PL18: 0 | PM18: 0 | PN18: 0 | PO18: 0 | PP18: 0 | PQ18: 0 | PR18: 0 | PS18: 0 | PT18: 0 | PU18: 0 | PV18: 0 | PW18: 0 | PX18: 0 | PY18: 0 | PZ18: 0 | QA18: 0 | QB18: 0 | QC18: 0 | QD18: 0 | QE18: 0 | QF18: 0 | QG18: 0 | QH18: 0 | QI18: 0 | QJ18: 0 | QK18: 0 | QL18: 0 | QM18: 0 | QN18: 0 | QO18: =QO16/25 -> 0 | QP18: 0 | QQ18: 0 | QR18: 0 | QS18: 0 | QT18: 0 | QU18: 0 | QV18: 0 | QW18: 0 | QX18: 0 | QY18: 0 | QZ18: 0 | RA18: 0 | RB18: 0 | RC18: 0 | RD18: 0 | RE18: 0 | RF18: 0 | RG18: 0 | RH18: 0 | RI18: 0 | RJ18: 0 | RK18: 0 | RL18: 0 | RM18: 0 | RN18: 0 | RO18: 0 | RP18: 0 | RQ18: 0 | RR18: 0 | RS18: 0 | RT18: 0 | RU18: 0 | RV18: 0 | RW18: 0 | RX18: 0 | RY18: 0 | RZ18: 0 | SA18: 0 | SB18: 0 | SC18: 0 | SD18: 0 | SE18: 0 | SF18: 0 | SG18: 0 | SH18: 0 | SI18: 0 | SJ18: 0 | SK18: 0 | SL18: 0 | SM18: 0 | SN18: 0 | SO18: 0 | SP18: 0 | SQ18: 0 | SR18: 0 | SS18: 0 | ST18: 0 | SU18: 0 | SV18: 0 | SW18: 0 | SX18: 0 | SY18: 0 | SZ18: 0 | TA18: =TA16/25 -> 0 | TB18: 0 | TC18: 0 | TD18: 0 | TE18: 0 | TF18: 0 | TG18: 0 | TH18: 0 | TI18: 0 | TJ18: 0 | TK18: 0 | TL18: 0 | TM18: 0 | TN18: 0 | TO18: 0 | TP18: 0 | TQ18: 0 | TR18: 0 | TS18: 0 | TT18: 0 | TU18: 0 | TV18: 0 | TW18: 0 | TX18: 0 | TY18: 0 | TZ18: 0 | UA18: 0 | UB18: 0 | UC18: 0 | UD18: 0 | UE18: 0 | UF18: 0 | UG18: 0 | UH18: 0 | UI18: 0 | UJ18: 0 | UK18: 0 | UL18: 0 | UM18: 0 | UN18: 0 | UO18: 0 | UP18: 0 | UQ18: 0 | UR18: 0 | US18: 0 | UT18: 0 | UU18: 0 | UV18: 0 | UW18: 0 | UX18: 0 | UY18: 0 | UZ18: 0 | VA18: 0 | VB18: 0 | VC18: 0 | VD18: 0 | VE18: 0 | VF18: 0 | VG18: 0 | VH18: 0 | VI18: 0 | VJ18: 0 | VK18: 0 | VL18: 0 | VM18: =VM16/25 -> 0 | VN18: 0 | VO18: 0 | VP18: 0 | VQ18: 0 | VR18: 0 | VS18: 0 | VT18: 0 | VU18: 0 | VV18: 0 | VW18: 0 | VX18: 0 | VY18: 0 | VZ18: 0 | WA18: 0 | WB18: 0 | WC18: 0 | WD18: 0 | WE18: 0 | WF18: 0 | WG18: 0 | WH18: 0 | WI18: 0 | WJ18: 0 | WK18: 0 | WL18: 0 | WM18: 0 | WN18: 0 | WO18: 0 | WP18: 0 | WQ18: 0 | WR18: 0 | WS18: 0 | WT18: 0 | WU18: 0 | WV18: 0 | WW18: 0 | WX18: 0 | WY18: 0 | WZ18: 0 | XA18: 0 | XB18: 0 | XC18: 0 | XD18: 0 | XE18: 0 | XF18: 0 | XG18: 0 | XH18: 0 | XI18: 0 | XJ18: 0 | XK18: 0 | XL18: 0 | XM18: 0 | XN18: 0 | XO18: 0 | XP18: 0 | XQ18: 0 | XR18: 0 | XS18: 0 | XT18: 0 | XU18: 0 | XV18: 0 | XW18: 0 | XX18: 0 | XY18: =XY16/25 -> 0 | XZ18: 0 | YA18: 0 | YB18: 0 | YC18: 0 | YD18: 0 | YE18: 0 | YF18: 0 | YG18: 0 | YH18: 0 | YI18: 0 | YJ18: 0 | YK18: 0 | YL18: 0 | YM18: 0 | YN18: 0 | YO18: 0 | YP18: 0 | YQ18: 0 | YR18: 0 | YS18: 0 | YT18: 0 | YU18: 0 | YV18: 0 | YW18: 0 | YX18: 0 | YY18: 0 | YZ18: 0 | ZA18: 0 | ZB18: 0 | ZC18: 0 | ZD18: 0 | ZE18: 0 | ZF18: 0 | ZG18: 0 | ZH18: 0 | ZI18: 0 | ZJ18: 0 | ZK18: 0 | ZL18: 0 | ZM18: 0 | ZN18: 0 | ZO18: 0 | ZP18: 0 | ZQ18: 0 | ZR18: 0 | ZS18: 0 | ZT18: 0 | ZU18: 0 | ZV18: 0 | ZW18: 0 | ZX18: 0 | ZY18: 0 | ZZ18: 0 | AAA18: 0 | AAB18: 0 | AAC18: 0 | AAD18: 0 | AAE18: 0 | AAF18: 0 | AAG18: 0 | AAH18: 0 | AAI18: 0 | AAJ18: 0 | AAK18: =AAK16/25 -> 0 | AAL18: 0 | AAM18: 0 | AAN18: 0 | AAO18: 0 | AAP18: 0 | AAQ18: 0 | AAR18: 0 | AAS18: 0 | AAT18: 0 | AAU18: 0 | AAV18: 0 | AAW18: 0 | AAX18: 0 | AAY18: 0 | AAZ18: 0 | ABA18: 0 | ABB18: 0 | ABC18: 0 | ABD18: 0 | ABE18: 0 | ABF18: 0 | ABG18: 0 | ABH18: 0 | ABI18: 0 | ABJ18: 0 | ABK18: 0 | ABL18: 0 | ABM18: 0 | ABN18: 0 | ABO18: 0 | ABP18: 0 | ABQ18: 0 | ABR18: 0 | ABS18: 0 | ABT18: 0 | ABU18: 0 | ABV18: 0 | ABW18: 0 | ABX18: 0 | ABY18: 0 | ABZ18: 0 | ACA18: 0 | ACB18: 0 | ACC18: 0 | ACD18: 0 | ACE18: 0 | ACF18: 0 | ACG18: 0 | ACH18: 0 | ACI18: 0 | ACJ18: 0 | ACK18: 0 | ACL18: 0 | ACM18: 0 | ACN18: 0 | ACO18: 0 | ACP18: 0 | ACQ18: 0 | ACR18: 0 | ACS18: 0 | ACT18: 0 | ACU18: 0 | ACV18: 0 | ACW18: =ACW16/25 -> 0 | ACX18: 0 | ACY18: 0 | ACZ18: 0 | ADA18: 0 | ADB18: 0 | ADC18: 0 | ADD18: 0 | ADE18: 0 | ADF18: 0 | ADG18: 0 | ADH18: 0 | ADI18: 0 | ADJ18: 0 | ADK18: 0 | ADL18: 0 | ADM18: 0 | ADN18: 0 | ADO18: 0 | ADP18: 0 | ADQ18: 0 | ADR18: 0 | ADS18: 0 | ADT18: 0 | ADU18: 0 | ADV18: 0 | ADW18: 0 | ADX18: 0 | ADY18: 0 | ADZ18: 0 | AEA18: 0 | AEB18: 0 | AEC18: 0 | AED18: 0 | AEE18: 0 | AEF18: 0 | AEG18: 0 | AEH18: 0 | AEI18: 0 | AEJ18: 0 | AEK18: 0 | AEL18: 0 | AEM18: 0 | AEN18: 0 | AEO18: 0 | AEP18: 0 | AEQ18: 0 | AER18: 0 | AES18: 0 | AET18: 0 | AEU18: 0 | AEV18: 0 | AEW18: 0 | AEX18: 0 | AEY18: 0 | AEZ18: 0 | AFA18: 0 | AFB18: 0 | AFC18: 0 | AFD18: 0 | AFE18: 0 | AFF18: 0 | AFG18: 0 | AFH18: 0 | AFI18: =AFI16/25 -> 0 | AFJ18: 0 | AFK18: 0 | AFL18: 0 | AFM18: 0 | AFN18: 0 | AFO18: 0 | AFP18: 0 | AFQ18: 0 | AFR18: 0 | AFS18: 0 | AFT18: 0 | AFU18: 0 | AFV18: 0 | AFW18: 0 | AFX18: 0 | AFY18: 0 | AFZ18: 0 | AGA18: 0 | AGB18: 0 | AGC18: 0 | AGD18: 0 | AGE18: 0 | AGF18: 0 | AGG18: 0 | AGH18: 0 | AGI18: 0 | AGJ18: 0 | AGK18: 0 | AGL18: 0 | AGM18: 0 | AGN18: 0 | AGO18: 0 | AGP18: 0 | AGQ18: 0 | AGR18: 0 | AGS18: 0 | AGT18: 0 | AGU18: 0 | AGV18: 0 | AGW18: 0 | AGX18: 0 | AGY18: 0 | AGZ18: 0 | AHA18: 0 | AHB18: 0 | AHC18: 0 | AHD18: 0 | AHE18: 0 | AHF18: 0 | AHG18: 0 | AHH18: 0 | AHI18: 0 | AHJ18: 0 | AHK18: 0 | AHL18: 0 | AHM18: 0 | AHN18: 0 | AHO18: 0 | AHP18: 0 | AHQ18: 0 | AHR18: 0 | AHS18: 0 | AHT18: 0 | AHU18: =AHU16/25 -> 0 | AHV18: 0 | AHW18: 0 | AHX18: 0 | AHY18: 0 | AHZ18: 0 | AIA18: 0 | AIB18: 0 | AIC18: 0 | AID18: 0 | AIE18: 0 | AIF18: 0 | AIG18: 0 | AIH18: 0 | AII18: 0 | AIJ18: 0 | AIK18: 0 | AIL18: 0 | AIM18: 0 | AIN18: 0 | AIO18: 0 | AIP18: 0 | AIQ18: 0 | AIR18: 0 | AIS18: 0 | AIT18: 0 | AIU18: 0 | AIV18: 0 | AIW18: 0 | AIX18: 0 | AIY18: 0 | AIZ18: 0 | AJA18: 0 | AJB18: 0 | AJC18: 0 | AJD18: 0 | AJE18: 0 | AJF18: 0 | AJG18: 0 | AJH18: 0 | AJI18: 0 | AJJ18: 0 | AJK18: 0 | AJL18: 0 | AJM18: 0 | AJN18: 0 | AJO18: 0 | AJP18: 0 | AJQ18: 0 | AJR18: 0 | AJS18: 0 | AJT18: 0 | AJU18: 0 | AJV18: 0 | AJW18: 0 | AJX18: 0 | AJY18: 0 | AJZ18: 0 | AKA18: 0 | AKB18: 0 | AKC18: 0 | AKD18: 0 | AKE18: 0 | AKF18: 0 | AKG18: =AKG16/25 -> 0 | AKH18: 0 | AKI18: 0 | AKJ18: 0 | AKK18: 0 | AKL18: 0 | AKM18: 0 | AKN18: 0 | AKO18: 0 | AKP18: 0 | AKQ18: 0 | AKR18: 0 | AKS18: 0 | AKT18: 0 | AKU18: 0 | AKV18: 0 | AKW18: 0 | AKX18: 0 | AKY18: 0 | AKZ18: 0 | ALA18: 0 | ALB18: 0 | ALC18: 0 | ALD18: 0 | ALE18: 0 | ALF18: 0 | ALG18: 0 | ALH18: 0 | ALI18: 0 | ALJ18: 0 | ALK18: 0 | ALL18: 0 | ALM18: 0 | ALN18: 0 | ALO18: 0 | ALP18: 0 | ALQ18: 0 | ALR18: 0 | ALS18: 0 | ALT18: 0 | ALU18: 0 | ALV18: 0 | ALW18: 0 | ALX18: 0 | ALY18: 0 | ALZ18: 0 | AMA18: 0 | AMB18: 0 | AMC18: 0 | AMD18: 0 | AME18: 0 | AMF18: 0 | AMG18: 0 | AMH18: 0 | AMI18: 0 | AMJ18: 0 | AMK18: 0 | AML18: 0 | AMM18: 0 | AMN18: 0 | AMO18: 0 | AMP18: 0 | AMQ18: 0 | AMR18: 0 | AMS18: =AMS16/25 -> 0 | AMT18: 0 | AMU18: 0 | AMV18: 0 | AMW18: 0 | AMX18: 0 | AMY18: 0 | AMZ18: 0 | ANA18: 0 | ANB18: 0 | ANC18: 0 | AND18: 0 | ANE18: 0 | ANF18: 0 | ANG18: 0 | ANH18: 0 | ANI18: 0 | ANJ18: 0 | ANK18: 0 | ANL18: 0 | ANM18: 0 | ANN18: 0 | ANO18: 0 | ANP18: 0 | ANQ18: 0 | ANR18: 0 | ANS18: 0 | ANT18: 0 | ANU18: 0 | ANV18: 0 | ANW18: 0 | ANX18: 0 | ANY18: 0 | ANZ18: 0 | AOA18: 0 | AOB18: 0 | AOC18: 0 | AOD18: 0 | AOE18: 0 | AOF18: 0 | AOG18: 0 | AOH18: 0 | AOI18: 0 | AOJ18: 0 | AOK18: 0 | AOL18: 0 | AOM18: 0 | AON18: 0 | AOO18: 0 | AOP18: 0 | AOQ18: 0 | AOR18: 0 | AOS18: 0 | AOT18: 0 | AOU18: 0 | AOV18: 0 | AOW18: 0 | AOX18: 0 | AOY18: 0 | AOZ18: 0 | APA18: 0 | APB18: 0 | APC18: 0 | APD18: 0 | APE18: =APE16/25 -> 0 | APF18: 0 | APG18: 0 | APH18: 0 | API18: 0 | APJ18: 0 | APK18: 0 | APL18: 0 | APM18: 0 | APN18: 0 | APO18: 0 | APP18: 0 | APQ18: 0 | APR18: 0 | APS18: 0 | APT18: 0 | APU18: 0 | APV18: 0 | APW18: 0 | APX18: 0 | APY18: 0 | APZ18: 0 | AQA18: 0 | AQB18: 0 | AQC18: 0 | AQD18: 0 | AQE18: 0 | AQF18: 0 | AQG18: 0 | AQH18: 0 | AQI18: 0 | AQJ18: 0 | AQK18: 0 | AQL18: 0 | AQM18: 0 | AQN18: 0 | AQO18: 0 | AQP18: 0 | AQQ18: 0 | AQR18: 0 | AQS18: 0 | AQT18: 0 | AQU18: 0 | AQV18: 0 | AQW18: 0 | AQX18: 0 | AQY18: 0 | AQZ18: 0 | ARA18: 0 | ARB18: 0 | ARC18: 0 | ARD18: 0 | ARE18: 0 | ARF18: 0 | ARG18: 0 | ARH18: 0 | ARI18: 0 | ARJ18: 0 | ARK18: 0 | ARL18: 0 | ARM18: 0 | ARN18: 0 | ARO18: 0 | ARP18: 0 | ARQ18: =ARQ16/25 -> 0 | ARR18: 0 | ARS18: 0 | ART18: 0 | ARU18: 0 | ARV18: 0 | ARW18: 0 | ARX18: 0 | ARY18: 0 | ARZ18: 0 | ASA18: 0 | ASB18: 0 | ASC18: 0 | ASD18: 0 | ASE18: 0 | ASF18: 0 | ASG18: 0 | ASH18: 0 | ASI18: 0 | ASJ18: 0 | ASK18: 0 | ASL18: 0 | ASM18: 0 | ASN18: 0 | ASO18: 0 | ASP18: 0 | ASQ18: 0 | ASR18: 0 | ASS18: 0 | AST18: 0 | ASU18: 0 | ASV18: 0 | ASW18: 0 | ASX18: 0 | ASY18: 0 | ASZ18: 0 | ATA18: 0 | ATB18: 0 | ATC18: 0 | ATD18: 0 | ATE18: 0 | ATF18: 0 | ATG18: 0 | ATH18: 0 | ATI18: 0 | ATJ18: 0 | ATK18: 0 | ATL18: 0 | ATM18: 0 | ATN18: 0 | ATO18: 0 | ATP18: 0 | ATQ18: 0 | ATR18: 0 | ATS18: 0 | ATT18: 0 | ATU18: 0 | ATV18: 0 | ATW18: 0 | ATX18: 0 | ATY18: 0 | ATZ18: 0 | AUA18: 0 | AUB18: 0 | AUC18: =AUC16/25 -> 0 | AUD18: 0 | AUE18: 0 | AUF18: 0 | AUG18: 0 | AUH18: 0 | AUI18: 0 | AUJ18: 0 | AUK18: 0 | AUL18: 0 | AUM18: 0 | AUN18: 0 | AUO18: 0 | AUP18: 0 | AUQ18: 0 | AUR18: 0 | AUS18: 0 | AUT18: 0 | AUU18: 0 | AUV18: 0 | AUW18: 0 | AUX18: 0 | AUY18: 0 | AUZ18: 0 | AVA18: 0 | AVB18: 0 | AVC18: 0 | AVD18: 0 | AVE18: 0 | AVF18: 0 | AVG18: 0 | AVH18: 0 | AVI18: 0 | AVJ18: 0 | AVK18: 0 | AVL18: 0 | AVM18: 0 | AVN18: 0 | AVO18: 0 | AVP18: 0 | AVQ18: 0 | AVR18: 0 | AVS18: 0 | AVT18: 0 | AVU18: 0 | AVV18: 0 | AVW18: 0 | AVX18: 0 | AVY18: 0 | AVZ18: 0 | AWA18: 0 | AWB18: 0 | AWC18: 0 | AWD18: 0 | AWE18: 0 | AWF18: 0 | AWG18: 0 | AWH18: 0 | AWI18: 0 | AWJ18: 0 | AWK18: 0 | AWL18: 0 | AWM18: 0 | AWN18: 0 | AWO18: =AWO16/25 -> 0 | AWP18: 0 | AWQ18: 0 | AWR18: 0 | AWS18: 0 | AWT18: 0 | AWU18: 0 | AWV18: 0 | AWW18: 0 | AWX18: 0 | AWY18: 0 | AWZ18: 0 | AXA18: 0 | AXB18: 0 | AXC18: 0 | AXD18: 0 | AXE18: 0 | AXF18: 0 | AXG18: 0 | AXH18: 0 | AXI18: 0 | AXJ18: 0 | AXK18: 0 | AXL18: 0 | AXM18: 0 | AXN18: 0 | AXO18: 0 | AXP18: 0 | AXQ18: 0 | AXR18: 0 | AXS18: 0 | AXT18: 0 | AXU18: 0 | AXV18: 0 | AXW18: 0 | AXX18: 0 | AXY18: 0 | AXZ18: 0 | AYA18: 0 | AYB18: 0 | AYC18: 0 | AYD18: 0 | AYE18: 0 | AYF18: 0 | AYG18: 0 | AYH18: 0 | AYI18: 0 | AYJ18: 0 | AYK18: 0 | AYL18: 0 | AYM18: 0 | AYN18: 0 | AYO18: 0 | AYP18: 0 | AYQ18: 0 | AYR18: 0 | AYS18: 0 | AYT18: 0 | AYU18: 0 | AYV18: 0 | AYW18: 0 | AYX18: 0 | AYY18: 0 | AYZ18: 0 | AZA18: =AZA16/25 -> 0 | AZB18: 0 | AZC18: 0 | AZD18: 0 | AZE18: 0 | AZF18: 0 | AZG18: 0 | AZH18: 0 | AZI18: 0 | AZJ18: 0 | AZK18: 0 | AZL18: 0 | AZM18: 0 | AZN18: 0 | AZO18: 0 | AZP18: 0 | AZQ18: 0 | AZR18: 0 | AZS18: 0 | AZT18: 0 | AZU18: 0 | AZV18: 0 | AZW18: 0 | AZX18: 0 | AZY18: 0 | AZZ18: 0 | BAA18: 0 | BAB18: 0 | BAC18: 0 | BAD18: 0 | BAE18: 0 | BAF18: 0 | BAG18: 0 | BAH18: 0 | BAI18: 0 | BAJ18: 0 | BAK18: 0 | BAL18: 0 | BAM18: 0 | BAN18: 0 | BAO18: 0 | BAP18: 0 | BAQ18: 0 | BAR18: 0 | BAS18: 0 | BAT18: 0 | BAU18: 0 | BAV18: 0 | BAW18: 0 | BAX18: 0 | BAY18: 0 | BAZ18: 0 | BBA18: 0 | BBB18: 0 | BBC18: 0 | BBD18: 0 | BBE18: 0 | BBF18: 0 | BBG18: 0 | BBH18: 0 | BBI18: 0 | BBJ18: 0 | BBK18: 0 | BBL18: 0 | BBM18: =BBM16/25 -> 0 | BBN18: 0 | BBO18: 0 | BBP18: 0 | BBQ18: 0 | BBR18: 0 | BBS18: 0 | BBT18: 0 | BBU18: 0 | BBV18: 0 | BBW18: 0 | BBX18: 0 | BBY18: 0 | BBZ18: 0 | BCA18: 0 | BCB18: 0 | BCC18: 0 | BCD18: 0 | BCE18: 0 | BCF18: 0 | BCG18: 0 | BCH18: 0 | BCI18: 0 | BCJ18: 0 | BCK18: 0 | BCL18: 0 | BCM18: 0 | BCN18: 0 | BCO18: 0 | BCP18: 0 | BCQ18: 0 | BCR18: 0 | BCS18: 0 | BCT18: 0 | BCU18: 0 | BCV18: 0 | BCW18: 0 | BCX18: 0 | BCY18: 0 | BCZ18: 0 | BDA18: 0 | BDB18: 0 | BDC18: 0 | BDD18: 0 | BDE18: 0 | BDF18: 0 | BDG18: 0 | BDH18: 0 | BDI18: 0 | BDJ18: 0 | BDK18: 0 | BDL18: 0 | BDM18: 0 | BDN18: 0 | BDO18: 0 | BDP18: 0 | BDQ18: 0 | BDR18: 0 | BDS18: 0 | BDT18: 0 | BDU18: 0 | BDV18: 0 | BDW18: 0 | BDX18: 0 | BDY18: =BDY16/25 -> 0 | BDZ18: 0 | BEA18: 0 | BEB18: 0 | BEC18: 0 | BED18: 0 | BEE18: 0 | BEF18: 0 | BEG18: 0 | BEH18: 0 | BEI18: 0 | BEJ18: 0 | BEK18: 0 | BEL18: 0 | BEM18: 0 | BEN18: 0 | BEO18: 0 | BEP18: 0 | BEQ18: 0 | BER18: 0 | BES18: 0 | BET18: 0 | BEU18: 0 | BEV18: 0 | BEW18: 0 | BEX18: 0 | BEY18: 0 | BEZ18: 0 | BFA18: 0 | BFB18: 0 | BFC18: 0 | BFD18: 0 | BFE18: 0 | BFF18: 0 | BFG18: 0 | BFH18: 0 | BFI18: 0 | BFJ18: 0 | BFK18: 0 | BFL18: 0 | BFM18: 0 | BFN18: 0 | BFO18: 0 | BFP18: 0 | BFQ18: 0 | BFR18: 0 | BFS18: 0 | BFT18: 0 | BFU18: 0 | BFV18: 0 | BFW18: 0 | BFX18: 0 | BFY18: 0 | BFZ18: 0 | BGA18: 0 | BGB18: 0 | BGC18: 0 | BGD18: 0 | BGE18: 0 | BGF18: 0 | BGG18: 0 | BGH18: 0 | BGI18: 0 | BGJ18: 0 | BGK18: =BGK16/25 -> 0 | BGL18: 0 | BGM18: 0 | BGN18: 0 | BGO18: 0 | BGP18: 0 | BGQ18: 0 | BGR18: 0 | BGS18: 0 | BGT18: 0 | BGU18: 0 | BGV18: 0 | BGW18: 0 | BGX18: 0 | BGY18: 0 | BGZ18: 0 | BHA18: 0 | BHB18: 0 | BHC18: 0 | BHD18: 0 | BHE18: 0 | BHF18: 0 | BHG18: 0 | BHH18: 0 | BHI18: 0 | BHJ18: 0 | BHK18: 0 | BHL18: 0 | BHM18: 0 | BHN18: 0 | BHO18: 0 | BHP18: 0 | BHQ18: 0 | BHR18: 0 | BHS18: 0 | BHT18: 0 | BHU18: 0 | BHV18: 0 | BHW18: 0 | BHX18: 0 | BHY18: 0 | BHZ18: 0 | BIA18: 0 | BIB18: 0 | BIC18: 0 | BID18: 0 | BIE18: 0 | BIF18: 0 | BIG18: 0 | BIH18: 0 | BII18: 0 | BIJ18: 0 | BIK18: 0 | BIL18: 0 | BIM18: 0 | BIN18: 0 | BIO18: 0 | BIP18: 0 | BIQ18: 0 | BIR18: 0 | BIS18: 0 | BIT18: 0 | BIU18: 0 | BIV18: 0 | BIW18: =BIW16/25 -> 0 | BIX18: 0 | BIY18: 0 | BIZ18: 0 | BJA18: 0 | BJB18: 0 | BJC18: 0 | BJD18: 0 | BJE18: 0 | BJF18: 0 | BJG18: 0 | BJH18: 0 | BJI18: 0 | BJJ18: 0 | BJK18: 0 | BJL18: 0 | BJM18: 0 | BJN18: 0 | BJO18: 0 | BJP18: 0 | BJQ18: 0 | BJR18: 0 | BJS18: 0 | BJT18: 0 | BJU18: 0 | BJV18: 0 | BJW18: 0 | BJX18: 0 | BJY18: 0 | BJZ18: 0 | BKA18: 0 | BKB18: 0 | BKC18: 0 | BKD18: 0 | BKE18: 0 | BKF18: 0 | BKG18: 0 | BKH18: 0 | BKI18: 0 | BKJ18: 0 | BKK18: 0 | BKL18: 0 | BKM18: 0 | BKN18: 0 | BKO18: 0 | BKP18: 0 | BKQ18: 0 | BKR18: 0 | BKS18: 0 | BKT18: 0 | BKU18: 0 | BKV18: 0 | BKW18: 0 | BKX18: 0 | BKY18: 0 | BKZ18: 0 | BLA18: 0 | BLB18: 0 | BLC18: 0 | BLD18: 0 | BLE18: 0 | BLF18: 0 | BLG18: 0 | BLH18: 0 | BLI18: =BLI16/25 -> 0 | BLJ18: 0 | BLK18: 0 | BLL18: 0 | BLM18: 0 | BLN18: 0 | BLO18: 0 | BLP18: 0 | BLQ18: 0 | BLR18: 0 | BLS18: 0 | BLT18: 0 | BLU18: 0 | BLV18: 0 | BLW18: 0 | BLX18: 0 | BLY18: 0 | BLZ18: 0 | BMA18: 0 | BMB18: 0 | BMC18: 0 | BMD18: 0 | BME18: 0 | BMF18: 0 | BMG18: 0 | BMH18: 0 | BMI18: 0 | BMJ18: 0 | BMK18: 0 | BML18: 0 | BMM18: 0 | BMN18: 0 | BMO18: 0 | BMP18: 0 | BMQ18: 0 | BMR18: 0 | BMS18: 0 | BMT18: 0 | BMU18: 0 | BMV18: 0 | BMW18: 0 | BMX18: 0 | BMY18: 0 | BMZ18: 0 | BNA18: 0 | BNB18: 0 | BNC18: 0 | BND18: 0 | BNE18: 0 | BNF18: 0 | BNG18: 0 | BNH18: 0 | BNI18: 0 | BNJ18: 0 | BNK18: 0 | BNL18: 0 | BNM18: 0 | BNN18: 0 | BNO18: 0 | BNP18: 0 | BNQ18: 0 | BNR18: 0 | BNS18: 0 | BNT18: 0 | BNU18: =BNU16/25 -> 0 | BNV18: 0 | BNW18: 0 | BNX18: 0 | BNY18: 0 | BNZ18: 0 | BOA18: 0 | BOB18: 0 | BOC18: 0 | BOD18: 0 | BOE18: 0 | BOF18: 0 | BOG18: 0 | BOH18: 0 | BOI18: 0 | BOJ18: 0 | BOK18: 0 | BOL18: 0 | BOM18: 0 | BON18: 0 | BOO18: 0 | BOP18: 0 | BOQ18: 0 | BOR18: 0 | BOS18: 0 | BOT18: 0 | BOU18: 0 | BOV18: 0 | BOW18: 0 | BOX18: 0 | BOY18: 0 | BOZ18: 0 | BPA18: 0 | BPB18: 0 | BPC18: 0 | BPD18: 0 | BPE18: 0 | BPF18: 0 | BPG18: 0 | BPH18: 0 | BPI18: 0 | BPJ18: 0 | BPK18: 0 | BPL18: 0 | BPM18: 0 | BPN18: 0 | BPO18: 0 | BPP18: 0 | BPQ18: 0 | BPR18: 0 | BPS18: 0 | BPT18: 0 | BPU18: 0 | BPV18: 0 | BPW18: 0 | BPX18: 0 | BPY18: 0 | BPZ18: 0 | BQA18: 0 | BQB18: 0 | BQC18: 0 | BQD18: 0 | BQE18: 0 | BQF18: 0 | BQG18: =BQG16/25 -> 0 | BQH18: 0 | BQI18: 0 | BQJ18: 0 | BQK18: 0 | BQL18: 0 | BQM18: 0 | BQN18: 0 | BQO18: 0 | BQP18: 0 | BQQ18: 0 | BQR18: 0 | BQS18: 0 | BQT18: 0 | BQU18: 0 | BQV18: 0 | BQW18: 0 | BQX18: 0 | BQY18: 0 | BQZ18: 0 | BRA18: 0 | BRB18: 0 | BRC18: 0 | BRD18: 0 | BRE18: 0 | BRF18: 0 | BRG18: 0 | BRH18: 0 | BRI18: 0 | BRJ18: 0 | BRK18: 0 | BRL18: 0 | BRM18: 0 | BRN18: 0 | BRO18: 0 | BRP18: 0 | BRQ18: 0 | BRR18: 0 | BRS18: 0 | BRT18: 0 | BRU18: 0 | BRV18: 0 | BRW18: 0 | BRX18: 0 | BRY18: 0 | BRZ18: 0 | BSA18: 0 | BSB18: 0 | BSC18: 0 | BSD18: 0 | BSE18: 0 | BSF18: 0 | BSG18: 0 | BSH18: 0 | BSI18: 0 | BSJ18: 0 | BSK18: 0 | BSL18: 0 | BSM18: 0 | BSN18: 0 | BSO18: 0 | BSP18: 0 | BSQ18: 0 | BSR18: 0 | BSS18: =BSS16/25 -> 0 | BST18: 0 | BSU18: 0 | BSV18: 0 | BSW18: 0 | BSX18: 0 | BSY18: 0 | BSZ18: 0 | BTA18: 0 | BTB18: 0 | BTC18: 0 | BTD18: 0 | BTE18: 0 | BTF18: 0 | BTG18: 0 | BTH18: 0 | BTI18: 0 | BTJ18: 0 | BTK18: 0 | BTL18: 0 | BTM18: 0 | BTN18: 0 | BTO18: 0 | BTP18: 0 | BTQ18: 0 | BTR18: 0 | BTS18: 0 | BTT18: 0 | BTU18: 0 | BTV18: 0 | BTW18: 0 | BTX18: 0 | BTY18: 0 | BTZ18: 0 | BUA18: 0 | BUB18: 0 | BUC18: 0 | BUD18: 0 | BUE18: 0 | BUF18: 0 | BUG18: 0 | BUH18: 0 | BUI18: 0 | BUJ18: 0 | BUK18: 0 | BUL18: 0 | BUM18: 0 | BUN18: 0 | BUO18: 0 | BUP18: 0 | BUQ18: 0 | BUR18: 0 | BUS18: 0 | BUT18: 0 | BUU18: 0 | BUV18: 0 | BUW18: 0 | BUX18: 0 | BUY18: 0 | BUZ18: 0 | BVA18: 0 | BVB18: 0 | BVC18: 0 | BVD18: 0 | BVE18: =BVE16/25 -> 0 | BVF18: 0 | BVG18: 0 | BVH18: 0 | BVI18: 0 | BVJ18: 0 | BVK18: 0 | BVL18: 0 | BVM18: 0 | BVN18: 0 | BVO18: 0 | BVP18: 0 | BVQ18: 0 | BVR18: 0 | BVS18: 0 | BVT18: 0 | BVU18: 0 | BVV18: 0 | BVW18: 0 | BVX18: 0 | BVY18: 0 | BVZ18: 0 | BWA18: 0 | BWB18: 0 | BWC18: 0 | BWD18: 0 | BWE18: 0 | BWF18: 0 | BWG18: 0 | BWH18: 0 | BWI18: 0 | BWJ18: 0 | BWK18: 0 | BWL18: 0 | BWM18: 0 | BWN18: 0 | BWO18: 0 | BWP18: 0 | BWQ18: 0 | BWR18: 0 | BWS18: 0 | BWT18: 0 | BWU18: 0 | BWV18: 0 | BWW18: 0 | BWX18: 0 | BWY18: 0 | BWZ18: 0 | BXA18: 0 | BXB18: 0 | BXC18: 0 | BXD18: 0 | BXE18: 0 | BXF18: 0 | BXG18: 0 | BXH18: 0 | BXI18: 0 | BXJ18: 0 | BXK18: 0 | BXL18: 0 | BXM18: 0 | BXN18: 0 | BXO18: 0 | BXP18: 0 | BXQ18: =BXQ16/25 -> 0 | BXR18: 0 | BXS18: 0 | BXT18: 0 | BXU18: 0 | BXV18: 0 | BXW18: 0 | BXX18: 0 | BXY18: 0 | BXZ18: 0 | BYA18: 0 | BYB18: 0 | BYC18: 0 | BYD18: 0 | BYE18: 0 | BYF18: 0 | BYG18: 0 | BYH18: 0 | BYI18: 0 | BYJ18: 0 | BYK18: 0 | BYL18: 0 | BYM18: 0 | BYN18: 0 | BYO18: 0 | BYP18: 0 | BYQ18: 0 | BYR18: 0 | BYS18: 0 | BYT18: 0 | BYU18: 0 | BYV18: 0 | BYW18: 0 | BYX18: 0 | BYY18: 0 | BYZ18: 0 | BZA18: 0 | BZB18: 0 | BZC18: 0 | BZD18: 0 | BZE18: 0 | BZF18: 0 | BZG18: 0 | BZH18: 0 | BZI18: 0 | BZJ18: 0 | BZK18: 0 | BZL18: 0 | BZM18: 0 | BZN18: 0 | BZO18: 0 | BZP18: 0 | BZQ18: 0 | BZR18: 0 | BZS18: 0 | BZT18: 0 | BZU18: 0 | BZV18: 0 | BZW18: 0 | BZX18: 0 | BZY18: 0 | BZZ18: 0 | CAA18: 0 | CAB18: 0 | CAC18: =CAC16/25 -> 0 | CAD18: 0 | CAE18: 0 | CAF18: 0 | CAG18: 0 | CAH18: 0 | CAI18: 0 | CAJ18: 0 | CAK18: 0 | CAL18: 0 | CAM18: 0 | CAN18: 0 | CAO18: 0 | CAP18: 0 | CAQ18: 0 | CAR18: 0 | CAS18: 0 | CAT18: 0 | CAU18: 0 | CAV18: 0 | CAW18: 0 | CAX18: 0 | CAY18: 0 | CAZ18: 0 | CBA18: 0 | CBB18: 0 | CBC18: 0 | CBD18: 0 | CBE18: 0 | CBF18: 0 | CBG18: 0 | CBH18: 0 | CBI18: 0 | CBJ18: 0 | CBK18: 0 | CBL18: 0 | CBM18: 0 | CBN18: 0 | CBO18: 0 | CBP18: 0 | CBQ18: 0 | CBR18: 0 | CBS18: 0 | CBT18: 0 | CBU18: 0 | CBV18: 0 | CBW18: 0 | CBX18: 0 | CBY18: 0 | CBZ18: 0 | CCA18: 0 | CCB18: 0 | CCC18: 0 | CCD18: 0 | CCE18: 0 | CCF18: 0 | CCG18: 0 | CCH18: 0 | CCI18: 0 | CCJ18: 0 | CCK18: 0 | CCL18: 0 | CCM18: 0 | CCN18: 0 | CCO18: =CCO16/25 -> 0 | CCP18: 0 | CCQ18: 0 | CCR18: 0 | CCS18: 0 | CCT18: 0 | CCU18: 0 | CCV18: 0 | CCW18: 0 | CCX18: 0 | CCY18: 0 | CCZ18: 0 | CDA18: 0 | CDB18: 0 | CDC18: 0 | CDD18: 0 | CDE18: 0 | CDF18: 0 | CDG18: 0 | CDH18: 0 | CDI18: 0 | CDJ18: 0 | CDK18: 0 | CDL18: 0 | CDM18: 0 | CDN18: 0 | CDO18: 0 | CDP18: 0 | CDQ18: 0 | CDR18: 0 | CDS18: 0 | CDT18: 0 | CDU18: 0 | CDV18: 0 | CDW18: 0 | CDX18: 0 | CDY18: 0 | CDZ18: 0 | CEA18: 0 | CEB18: 0 | CEC18: 0 | CED18: 0 | CEE18: 0 | CEF18: 0 | CEG18: 0 | CEH18: 0 | CEI18: 0 | CEJ18: 0 | CEK18: 0 | CEL18: 0 | CEM18: 0 | CEN18: 0 | CEO18: 0 | CEP18: 0 | CEQ18: 0 | CER18: 0 | CES18: 0 | CET18: 0 | CEU18: 0 | CEV18: 0 | CEW18: 0 | CEX18: 0 | CEY18: 0 | CEZ18: 0 | CFA18: =CFA16/25 -> 0 | CFB18: 0 | CFC18: 0 | CFD18: 0 | CFE18: 0 | CFF18: 0 | CFG18: 0 | CFH18: 0 | CFI18: 0 | CFJ18: 0 | CFK18: 0 | CFL18: 0 | CFM18: 0 | CFN18: 0 | CFO18: 0 | CFP18: 0 | CFQ18: 0 | CFR18: 0 | CFS18: 0 | CFT18: 0 | CFU18: 0 | CFV18: 0 | CFW18: 0 | CFX18: 0 | CFY18: 0 | CFZ18: 0 | CGA18: 0 | CGB18: 0 | CGC18: 0 | CGD18: 0 | CGE18: 0 | CGF18: 0 | CGG18: 0 | CGH18: 0 | CGI18: 0 | CGJ18: 0 | CGK18: 0 | CGL18: 0 | CGM18: 0 | CGN18: 0 | CGO18: 0 | CGP18: 0 | CGQ18: 0 | CGR18: 0 | CGS18: 0 | CGT18: 0 | CGU18: 0 | CGV18: 0 | CGW18: 0 | CGX18: 0 | CGY18: 0 | CGZ18: 0 | CHA18: 0 | CHB18: 0 | CHC18: 0 | CHD18: 0 | CHE18: 0 | CHF18: 0 | CHG18: 0 | CHH18: 0 | CHI18: 0 | CHJ18: 0 | CHK18: 0 | CHL18: 0 | CHM18: =CHM16/25 -> 0 | CHN18: 0 | CHO18: 0 | CHP18: 0 | CHQ18: 0 | CHR18: 0 | CHS18: 0 | CHT18: 0 | CHU18: 0 | CHV18: 0 | CHW18: 0 | CHX18: 0 | CHY18: 0 | CHZ18: 0 | CIA18: 0 | CIB18: 0 | CIC18: 0 | CID18: 0 | CIE18: 0 | CIF18: 0 | CIG18: 0 | CIH18: 0 | CII18: 0 | CIJ18: 0 | CIK18: 0 | CIL18: 0 | CIM18: 0 | CIN18: 0 | CIO18: 0 | CIP18: 0 | CIQ18: 0 | CIR18: 0 | CIS18: 0 | CIT18: 0 | CIU18: 0 | CIV18: 0 | CIW18: 0 | CIX18: 0 | CIY18: 0 | CIZ18: 0 | CJA18: 0 | CJB18: 0 | CJC18: 0 | CJD18: 0 | CJE18: 0 | CJF18: 0 | CJG18: 0 | CJH18: 0 | CJI18: 0 | CJJ18: 0 | CJK18: 0 | CJL18: 0 | CJM18: 0 | CJN18: 0 | CJO18: 0 | CJP18: 0 | CJQ18: 0 | CJR18: 0 | CJS18: 0 | CJT18: 0 | CJU18: 0 | CJV18: 0 | CJW18: 0 | CJX18: 0 | CJY18: =CJY16/25 -> 0 | CJZ18: 0 | CKA18: 0 | CKB18: 0 | CKC18: 0 | CKD18: 0 | CKE18: 0 | CKF18: 0 | CKG18: 0 | CKH18: 0 | CKI18: 0 | CKJ18: 0 | CKK18: 0 | CKL18: 0 | CKM18: 0 | CKN18: 0 | CKO18: 0 | CKP18: 0 | CKQ18: 0 | CKR18: 0 | CKS18: 0 | CKT18: 0 | CKU18: 0 | CKV18: 0 | CKW18: 0 | CKX18: 0 | CKY18: 0 | CKZ18: 0 | CLA18: 0 | CLB18: 0 | CLC18: 0 | CLD18: 0 | CLE18: 0 | CLF18: 0 | CLG18: 0 | CLH18: 0 | CLI18: 0 | CLJ18: 0 | CLK18: 0 | CLL18: 0 | CLM18: 0 | CLN18: 0 | CLO18: 0 | CLP18: 0 | CLQ18: 0 | CLR18: 0 | CLS18: 0 | CLT18: 0 | CLU18: 0 | CLV18: 0 | CLW18: 0 | CLX18: 0 | CLY18: 0 | CLZ18: 0 | CMA18: 0 | CMB18: 0 | CMC18: 0 | CMD18: 0 | CME18: 0 | CMF18: 0 | CMG18: 0 | CMH18: 0 | CMI18: 0 | CMJ18: 0 | CMK18: =CMK16/25 -> 0 | CML18: 0 | CMM18: 0 | CMN18: 0 | CMO18: 0 | CMP18: 0 | CMQ18: 0 | CMR18: 0 | CMS18: 0 | CMT18: 0 | CMU18: 0 | CMV18: 0 | CMW18: 0 | CMX18: 0 | CMY18: 0 | CMZ18: 0 | CNA18: 0 | CNB18: 0 | CNC18: 0 | CND18: 0 | CNE18: 0 | CNF18: 0 | CNG18: 0 | CNH18: 0 | CNI18: 0 | CNJ18: 0 | CNK18: 0 | CNL18: 0 | CNM18: 0 | CNN18: 0 | CNO18: 0 | CNP18: 0 | CNQ18: 0 | CNR18: 0 | CNS18: 0 | CNT18: 0 | CNU18: 0 | CNV18: 0 | CNW18: 0 | CNX18: 0 | CNY18: 0 | CNZ18: 0 | COA18: 0 | COB18: 0 | COC18: 0 | COD18: 0 | COE18: 0 | COF18: 0 | COG18: 0 | COH18: 0 | COI18: 0 | COJ18: 0 | COK18: 0 | COL18: 0 | COM18: 0 | CON18: 0 | COO18: 0 | COP18: 0 | COQ18: 0 | COR18: 0 | COS18: 0 | COT18: 0 | COU18: 0 | COV18: 0 | COW18: =COW16/25 -> 0 | COX18: 0 | COY18: 0 | COZ18: 0 | CPA18: 0 | CPB18: 0 | CPC18: 0 | CPD18: 0 | CPE18: 0 | CPF18: 0 | CPG18: 0 | CPH18: 0 | CPI18: 0 | CPJ18: 0 | CPK18: 0 | CPL18: 0 | CPM18: 0 | CPN18: 0 | CPO18: 0 | CPP18: 0 | CPQ18: 0 | CPR18: 0 | CPS18: 0 | CPT18: 0 | CPU18: 0 | CPV18: 0 | CPW18: 0 | CPX18: 0 | CPY18: 0 | CPZ18: 0 | CQA18: 0 | CQB18: 0 | CQC18: 0 | CQD18: 0 | CQE18: 0 | CQF18: 0 | CQG18: 0 | CQH18: 0 | CQI18: 0 | CQJ18: 0 | CQK18: 0 | CQL18: 0 | CQM18: 0 | CQN18: 0 | CQO18: 0 | CQP18: 0 | CQQ18: 0 | CQR18: 0 | CQS18: 0 | CQT18: 0 | CQU18: 0 | CQV18: 0 | CQW18: 0 | CQX18: 0 | CQY18: 0 | CQZ18: 0 | CRA18: 0 | CRB18: 0 | CRC18: 0 | CRD18: 0 | CRE18: 0 | CRF18: 0 | CRG18: 0 | CRH18: 0 | CRI18: =CRI16/25 -> 0 | CRJ18: 0 | CRK18: 0 | CRL18: 0 | CRM18: 0 | CRN18: 0 | CRO18: 0 | CRP18: 0 | CRQ18: 0 | CRR18: 0 | CRS18: 0 | CRT18: 0 | CRU18: 0 | CRV18: 0 | CRW18: 0 | CRX18: 0 | CRY18: 0 | CRZ18: 0 | CSA18: 0 | CSB18: 0 | CSC18: 0 | CSD18: 0 | CSE18: 0 | CSF18: 0 | CSG18: 0 | CSH18: 0 | CSI18: 0 | CSJ18: 0 | CSK18: 0 | CSL18: 0 | CSM18: 0 | CSN18: 0 | CSO18: 0 | CSP18: 0 | CSQ18: 0 | CSR18: 0 | CSS18: 0 | CST18: 0 | CSU18: 0 | CSV18: 0 | CSW18: 0 | CSX18: 0 | CSY18: 0 | CSZ18: 0 | CTA18: 0 | CTB18: 0 | CTC18: 0 | CTD18: 0 | CTE18: 0 | CTF18: 0 | CTG18: 0 | CTH18: 0 | CTI18: 0 | CTJ18: 0 | CTK18: 0 | CTL18: 0 | CTM18: 0 | CTN18: 0 | CTO18: 0 | CTP18: 0 | CTQ18: 0 | CTR18: 0 | CTS18: 0 | CTT18: 0 | CTU18: =CTU16/25 -> 0 | CTV18: 0 | CTW18: 0 | CTX18: 0 | CTY18: 0 | CTZ18: 0 | CUA18: 0 | CUB18: 0 | CUC18: 0 | CUD18: 0 | CUE18: 0 | CUF18: 0 | CUG18: 0 | CUH18: 0 | CUI18: 0 | CUJ18: 0 | CUK18: 0 | CUL18: 0 | CUM18: 0 | CUN18: 0 | CUO18: 0 | CUP18: 0 | CUQ18: 0 | CUR18: 0 | CUS18: 0 | CUT18: 0 | CUU18: 0 | CUV18: 0 | CUW18: 0 | CUX18: 0 | CUY18: 0 | CUZ18: 0 | CVA18: 0 | CVB18: 0 | CVC18: 0 | CVD18: 0 | CVE18: 0 | CVF18: 0 | CVG18: 0 | CVH18: 0 | CVI18: 0 | CVJ18: 0 | CVK18: 0 | CVL18: 0 | CVM18: 0 | CVN18: 0 | CVO18: 0 | CVP18: 0 | CVQ18: 0 | CVR18: 0 | CVS18: 0 | CVT18: 0 | CVU18: 0 | CVV18: 0 | CVW18: 0 | CVX18: 0 | CVY18: 0 | CVZ18: 0 | CWA18: 0 | CWB18: 0 | CWC18: 0 | CWD18: 0 | CWE18: 0 | CWF18: 0 | CWG18: =CWG16/25 -> 0 | CWH18: 0 | CWI18: 0 | CWJ18: 0 | CWK18: 0 | CWL18: 0 | CWM18: 0 | CWN18: 0 | CWO18: 0 | CWP18: 0 | CWQ18: 0 | CWR18: 0 | CWS18: 0 | CWT18: 0 | CWU18: 0 | CWV18: 0 | CWW18: 0 | CWX18: 0 | CWY18: 0 | CWZ18: 0 | CXA18: 0 | CXB18: 0 | CXC18: 0 | CXD18: 0 | CXE18: 0 | CXF18: 0 | CXG18: 0 | CXH18: 0 | CXI18: 0 | CXJ18: 0 | CXK18: 0 | CXL18: 0 | CXM18: 0 | CXN18: 0 | CXO18: 0 | CXP18: 0 | CXQ18: 0 | CXR18: 0 | CXS18: 0 | CXT18: 0 | CXU18: 0 | CXV18: 0 | CXW18: 0 | CXX18: 0 | CXY18: 0 | CXZ18: 0 | CYA18: 0 | CYB18: 0 | CYC18: 0 | CYD18: 0 | CYE18: 0 | CYF18: 0 | CYG18: 0 | CYH18: 0 | CYI18: 0 | CYJ18: 0 | CYK18: 0 | CYL18: 0 | CYM18: 0 | CYN18: 0 | CYO18: 0 | CYP18: 0 | CYQ18: 0 | CYR18: 0 | CYS18: =CYS16/25 -> 0 | CYT18: 0 | CYU18: 0 | CYV18: 0 | CYW18: 0 | CYX18: 0 | CYY18: 0 | CYZ18: 0 | CZA18: 0 | CZB18: 0 | CZC18: 0 | CZD18: 0 | CZE18: 0 | CZF18: 0 | CZG18: 0 | CZH18: 0 | CZI18: 0 | CZJ18: 0 | CZK18: 0 | CZL18: 0 | CZM18: 0 | CZN18: 0 | CZO18: 0 | CZP18: 0 | CZQ18: 0 | CZR18: 0 | CZS18: 0 | CZT18: 0 | CZU18: 0 | CZV18: 0 | CZW18: 0 | CZX18: 0 | CZY18: 0 | CZZ18: 0 | DAA18: 0 | DAB18: 0 | DAC18: 0 | DAD18: 0 | DAE18: 0 | DAF18: 0 | DAG18: 0 | DAH18: 0 | DAI18: 0 | DAJ18: 0 | DAK18: 0 | DAL18: 0 | DAM18: 0 | DAN18: 0 | DAO18: 0 | DAP18: 0 | DAQ18: 0 | DAR18: 0 | DAS18: 0 | DAT18: 0 | DAU18: 0 | DAV18: 0 | DAW18: 0 | DAX18: 0 | DAY18: 0 | DAZ18: 0 | DBA18: 0 | DBB18: 0 | DBC18: 0 | DBD18: 0 | DBE18: =DBE16/25 -> 0 | DBF18: 0 | DBG18: 0 | DBH18: 0 | DBI18: 0 | DBJ18: 0 | DBK18: 0 | DBL18: 0 | DBM18: 0 | DBN18: 0 | DBO18: 0 | DBP18: 0 | DBQ18: 0 | DBR18: 0 | DBS18: 0 | DBT18: 0 | DBU18: 0 | DBV18: 0 | DBW18: 0 | DBX18: 0 | DBY18: 0 | DBZ18: 0 | DCA18: 0 | DCB18: 0 | DCC18: 0 | DCD18: 0 | DCE18: 0 | DCF18: 0 | DCG18: 0 | DCH18: 0 | DCI18: 0 | DCJ18: 0 | DCK18: 0 | DCL18: 0 | DCM18: 0 | DCN18: 0 | DCO18: 0 | DCP18: 0 | DCQ18: 0 | DCR18: 0 | DCS18: 0 | DCT18: 0 | DCU18: 0 | DCV18: 0 | DCW18: 0 | DCX18: 0 | DCY18: 0 | DCZ18: 0 | DDA18: 0 | DDB18: 0 | DDC18: 0 | DDD18: 0 | DDE18: 0 | DDF18: 0 | DDG18: 0 | DDH18: 0 | DDI18: 0 | DDJ18: 0 | DDK18: 0 | DDL18: 0 | DDM18: 0 | DDN18: 0 | DDO18: 0 | DDP18: 0 | DDQ18: =DDQ16/25 -> 0 | DDR18: 0 | DDS18: 0 | DDT18: 0 | DDU18: 0 | DDV18: 0 | DDW18: 0 | DDX18: 0 | DDY18: 0 | DDZ18: 0 | DEA18: 0 | DEB18: 0 | DEC18: 0 | DED18: 0 | DEE18: 0 | DEF18: 0 | DEG18: 0 | DEH18: 0 | DEI18: 0 | DEJ18: 0 | DEK18: 0 | DEL18: 0 | DEM18: 0 | DEN18: 0 | DEO18: 0 | DEP18: 0 | DEQ18: 0 | DER18: 0 | DES18: 0 | DET18: 0 | DEU18: 0 | DEV18: 0 | DEW18: 0 | DEX18: 0 | DEY18: 0 | DEZ18: 0 | DFA18: 0 | DFB18: 0 | DFC18: 0 | DFD18: 0 | DFE18: 0 | DFF18: 0 | DFG18: 0 | DFH18: 0 | DFI18: 0 | DFJ18: 0 | DFK18: 0 | DFL18: 0 | DFM18: 0 | DFN18: 0 | DFO18: 0 | DFP18: 0 | DFQ18: 0 | DFR18: 0 | DFS18: 0 | DFT18: 0 | DFU18: 0 | DFV18: 0 | DFW18: 0 | DFX18: 0 | DFY18: 0 | DFZ18: 0 | DGA18: 0 | DGB18: 0 | DGC18: =DGC16/25 -> 0 | DGD18: 0 | DGE18: 0 | DGF18: 0 | DGG18: 0 | DGH18: 0 | DGI18: 0 | DGJ18: 0 | DGK18: 0 | DGL18: 0 | DGM18: 0 | DGN18: 0 | DGO18: 0 | DGP18: 0 | DGQ18: 0 | DGR18: 0 | DGS18: 0 | DGT18: 0 | DGU18: 0 | DGV18: 0 | DGW18: 0 | DGX18: 0 | DGY18: 0 | DGZ18: 0 | DHA18: 0 | DHB18: 0 | DHC18: 0 | DHD18: 0 | DHE18: 0 | DHF18: 0 | DHG18: 0 | DHH18: 0 | DHI18: 0 | DHJ18: 0 | DHK18: 0 | DHL18: 0 | DHM18: 0 | DHN18: 0 | DHO18: 0 | DHP18: 0 | DHQ18: 0 | DHR18: 0 | DHS18: 0 | DHT18: 0 | DHU18: 0 | DHV18: 0 | DHW18: 0 | DHX18: 0 | DHY18: 0 | DHZ18: 0 | DIA18: 0 | DIB18: 0 | DIC18: 0 | DID18: 0 | DIE18: 0 | DIF18: 0 | DIG18: 0 | DIH18: 0 | DII18: 0 | DIJ18: 0 | DIK18: 0 | DIL18: 0 | DIM18: 0 | DIN18: 0 | DIO18: =DIO16/25 -> 0 | DIP18: 0 | DIQ18: 0 | DIR18: 0 | DIS18: 0 | DIT18: 0 | DIU18: 0 | DIV18: 0 | DIW18: 0 | DIX18: 0 | DIY18: 0 | DIZ18: 0 | DJA18: 0 | DJB18: 0 | DJC18: 0 | DJD18: 0 | DJE18: 0 | DJF18: 0 | DJG18: 0 | DJH18: 0 | DJI18: 0 | DJJ18: 0 | DJK18: 0 | DJL18: 0 | DJM18: 0 | DJN18: 0 | DJO18: 0 | DJP18: 0 | DJQ18: 0 | DJR18: 0 | DJS18: 0 | DJT18: 0 | DJU18: 0 | DJV18: 0 | DJW18: 0 | DJX18: 0 | DJY18: 0 | DJZ18: 0 | DKA18: 0 | DKB18: 0 | DKC18: 0 | DKD18: 0 | DKE18: 0 | DKF18: 0 | DKG18: 0 | DKH18: 0 | DKI18: 0 | DKJ18: 0 | DKK18: 0 | DKL18: 0 | DKM18: 0 | DKN18: 0 | DKO18: 0 | DKP18: 0 | DKQ18: 0 | DKR18: 0 | DKS18: 0 | DKT18: 0 | DKU18: 0 | DKV18: 0 | DKW18: 0 | DKX18: 0 | DKY18: 0 | DKZ18: 0 | DLA18: =DLA16/25 -> 0 | DLB18: 0 | DLC18: 0 | DLD18: 0 | DLE18: 0 | DLF18: 0 | DLG18: 0 | DLH18: 0 | DLI18: 0 | DLJ18: 0 | DLK18: 0 | DLL18: 0 | DLM18: 0 | DLN18: 0 | DLO18: 0 | DLP18: 0 | DLQ18: 0 | DLR18: 0 | DLS18: 0 | DLT18: 0 | DLU18: 0 | DLV18: 0 | DLW18: 0 | DLX18: 0 | DLY18: 0 | DLZ18: 0 | DMA18: 0 | DMB18: 0 | DMC18: 0 | DMD18: 0 | DME18: 0 | DMF18: 0 | DMG18: 0 | DMH18: 0 | DMI18: 0 | DMJ18: 0 | DMK18: 0 | DML18: 0 | DMM18: 0 | DMN18: 0 | DMO18: 0 | DMP18: 0 | DMQ18: 0 | DMR18: 0 | DMS18: 0 | DMT18: 0 | DMU18: 0 | DMV18: 0 | DMW18: 0 | DMX18: 0 | DMY18: 0 | DMZ18: 0 | DNA18: 0 | DNB18: 0 | DNC18: 0 | DND18: 0 | DNE18: 0 | DNF18: 0 | DNG18: 0 | DNH18: 0 | DNI18: 0 | DNJ18: 0 | DNK18: 0 | DNL18: 0 | DNM18: =DNM16/25 -> 0 | DNN18: 0 | DNO18: 0 | DNP18: 0 | DNQ18: 0 | DNR18: 0 | DNS18: 0 | DNT18: 0 | DNU18: 0 | DNV18: 0 | DNW18: 0 | DNX18: 0 | DNY18: 0 | DNZ18: 0 | DOA18: 0 | DOB18: 0 | DOC18: 0 | DOD18: 0 | DOE18: 0 | DOF18: 0 | DOG18: 0 | DOH18: 0 | DOI18: 0 | DOJ18: 0 | DOK18: 0 | DOL18: 0 | DOM18: 0 | DON18: 0 | DOO18: 0 | DOP18: 0 | DOQ18: 0 | DOR18: 0 | DOS18: 0 | DOT18: 0 | DOU18: 0 | DOV18: 0 | DOW18: 0 | DOX18: 0 | DOY18: 0 | DOZ18: 0 | DPA18: 0 | DPB18: 0 | DPC18: 0 | DPD18: 0 | DPE18: 0 | DPF18: 0 | DPG18: 0 | DPH18: 0 | DPI18: 0 | DPJ18: 0 | DPK18: 0 | DPL18: 0 | DPM18: 0 | DPN18: 0 | DPO18: 0 | DPP18: 0 | DPQ18: 0 | DPR18: 0 | DPS18: 0 | DPT18: 0 | DPU18: 0 | DPV18: 0 | DPW18: 0 | DPX18: 0 | DPY18: =DPY16/25 -> 0 | DPZ18: 0 | DQA18: 0 | DQB18: 0 | DQC18: 0 | DQD18: 0 | DQE18: 0 | DQF18: 0 | DQG18: 0 | DQH18: 0 | DQI18: 0 | DQJ18: 0 | DQK18: 0 | DQL18: 0 | DQM18: 0 | DQN18: 0 | DQO18: 0 | DQP18: 0 | DQQ18: 0 | DQR18: 0 | DQS18: 0 | DQT18: 0 | DQU18: 0 | DQV18: 0 | DQW18: 0 | DQX18: 0 | DQY18: 0 | DQZ18: 0 | DRA18: 0 | DRB18: 0 | DRC18: 0 | DRD18: 0 | DRE18: 0 | DRF18: 0 | DRG18: 0 | DRH18: 0 | DRI18: 0 | DRJ18: 0 | DRK18: 0 | DRL18: 0 | DRM18: 0 | DRN18: 0 | DRO18: 0 | DRP18: 0 | DRQ18: 0 | DRR18: 0 | DRS18: 0 | DRT18: 0 | DRU18: 0 | DRV18: 0 | DRW18: 0 | DRX18: 0 | DRY18: 0 | DRZ18: 0 | DSA18: 0 | DSB18: 0 | DSC18: 0 | DSD18: 0 | DSE18: 0 | DSF18: 0 | DSG18: 0 | DSH18: 0 | DSI18: 0 | DSJ18: 0 | DSK18: =DSK16/25 -> 0 | DSL18: 0 | DSM18: 0 | DSN18: 0 | DSO18: 0 | DSP18: 0 | DSQ18: 0 | DSR18: 0 | DSS18: 0 | DST18: 0 | DSU18: 0 | DSV18: 0 | DSW18: 0 | DSX18: 0 | DSY18: 0 | DSZ18: 0 | DTA18: 0 | DTB18: 0 | DTC18: 0 | DTD18: 0 | DTE18: 0 | DTF18: 0 | DTG18: 0 | DTH18: 0 | DTI18: 0 | DTJ18: 0 | DTK18: 0 | DTL18: 0 | DTM18: 0 | DTN18: 0 | DTO18: 0 | DTP18: 0 | DTQ18: 0 | DTR18: 0 | DTS18: 0 | DTT18: 0 | DTU18: 0 | DTV18: 0 | DTW18: 0 | DTX18: 0 | DTY18: 0 | DTZ18: 0 | DUA18: 0 | DUB18: 0 | DUC18: 0 | DUD18: 0 | DUE18: 0 | DUF18: 0 | DUG18: 0 | DUH18: 0 | DUI18: 0 | DUJ18: 0 | DUK18: 0 | DUL18: 0 | DUM18: 0 | DUN18: 0 | DUO18: 0 | DUP18: 0 | DUQ18: 0 | DUR18: 0 | DUS18: 0 | DUT18: 0 | DUU18: 0 | DUV18: 0 | DUW18: =DUW16/25 -> 0 | DUX18: 0 | DUY18: 0 | DUZ18: 0 | DVA18: 0 | DVB18: 0 | DVC18: 0 | DVD18: 0 | DVE18: 0 | DVF18: 0 | DVG18: 0 | DVH18: 0 | DVI18: 0 | DVJ18: 0 | DVK18: 0 | DVL18: 0 | DVM18: 0 | DVN18: 0 | DVO18: 0 | DVP18: 0 | DVQ18: 0 | DVR18: 0 | DVS18: 0 | DVT18: 0 | DVU18: 0 | DVV18: 0 | DVW18: 0 | DVX18: 0 | DVY18: 0 | DVZ18: 0 | DWA18: 0 | DWB18: 0 | DWC18: 0 | DWD18: 0 | DWE18: 0 | DWF18: 0 | DWG18: 0 | DWH18: 0 | DWI18: 0 | DWJ18: 0 | DWK18: 0 | DWL18: 0 | DWM18: 0 | DWN18: 0 | DWO18: 0 | DWP18: 0 | DWQ18: 0 | DWR18: 0 | DWS18: 0 | DWT18: 0 | DWU18: 0 | DWV18: 0 | DWW18: 0 | DWX18: 0 | DWY18: 0 | DWZ18: 0 | DXA18: 0 | DXB18: 0 | DXC18: 0 | DXD18: 0 | DXE18: 0 | DXF18: 0 | DXG18: 0 | DXH18: 0 | DXI18: =DXI16/25 -> 0 | DXJ18: 0 | DXK18: 0 | DXL18: 0 | DXM18: 0 | DXN18: 0 | DXO18: 0 | DXP18: 0 | DXQ18: 0 | DXR18: 0 | DXS18: 0 | DXT18: 0 | DXU18: 0 | DXV18: 0 | DXW18: 0 | DXX18: 0 | DXY18: 0 | DXZ18: 0 | DYA18: 0 | DYB18: 0 | DYC18: 0 | DYD18: 0 | DYE18: 0 | DYF18: 0 | DYG18: 0 | DYH18: 0 | DYI18: 0 | DYJ18: 0 | DYK18: 0 | DYL18: 0 | DYM18: 0 | DYN18: 0 | DYO18: 0 | DYP18: 0 | DYQ18: 0 | DYR18: 0 | DYS18: 0 | DYT18: 0 | DYU18: 0 | DYV18: 0 | DYW18: 0 | DYX18: 0 | DYY18: 0 | DYZ18: 0 | DZA18: 0 | DZB18: 0 | DZC18: 0 | DZD18: 0 | DZE18: 0 | DZF18: 0 | DZG18: 0 | DZH18: 0 | DZI18: 0 | DZJ18: 0 | DZK18: 0 | DZL18: 0 | DZM18: 0 | DZN18: 0 | DZO18: 0 | DZP18: 0 | DZQ18: 0 | DZR18: 0 | DZS18: 0 | DZT18: 0 | DZU18: =DZU16/25 -> 0 | DZV18: 0 | DZW18: 0 | DZX18: 0 | DZY18: 0 | DZZ18: 0 | EAA18: 0 | EAB18: 0 | EAC18: 0 | EAD18: 0 | EAE18: 0 | EAF18: 0 | EAG18: 0 | EAH18: 0 | EAI18: 0 | EAJ18: 0 | EAK18: 0 | EAL18: 0 | EAM18: 0 | EAN18: 0 | EAO18: 0 | EAP18: 0 | EAQ18: 0 | EAR18: 0 | EAS18: 0 | EAT18: 0 | EAU18: 0 | EAV18: 0 | EAW18: 0 | EAX18: 0 | EAY18: 0 | EAZ18: 0 | EBA18: 0 | EBB18: 0 | EBC18: 0 | EBD18: 0 | EBE18: 0 | EBF18: 0 | EBG18: 0 | EBH18: 0 | EBI18: 0 | EBJ18: 0 | EBK18: 0 | EBL18: 0 | EBM18: 0 | EBN18: 0 | EBO18: 0 | EBP18: 0 | EBQ18: 0 | EBR18: 0 | EBS18: 0 | EBT18: 0 | EBU18: 0 | EBV18: 0 | EBW18: 0 | EBX18: 0 | EBY18: 0 | EBZ18: 0 | ECA18: 0 | ECB18: 0 | ECC18: 0 | ECD18: 0 | ECE18: 0 | ECF18: 0 | ECG18: =ECG16/25 -> 0 | ECH18: 0 | ECI18: 0 | ECJ18: 0 | ECK18: 0 | ECL18: 0 | ECM18: 0 | ECN18: 0 | ECO18: 0 | ECP18: 0 | ECQ18: 0 | ECR18: 0 | ECS18: 0 | ECT18: 0 | ECU18: 0 | ECV18: 0 | ECW18: 0 | ECX18: 0 | ECY18: 0 | ECZ18: 0 | EDA18: 0 | EDB18: 0 | EDC18: 0 | EDD18: 0 | EDE18: 0 | EDF18: 0 | EDG18: 0 | EDH18: 0 | EDI18: 0 | EDJ18: 0 | EDK18: 0 | EDL18: 0 | EDM18: 0 | EDN18: 0 | EDO18: 0 | EDP18: 0 | EDQ18: 0 | EDR18: 0 | EDS18: 0 | EDT18: 0 | EDU18: 0 | EDV18: 0 | EDW18: 0 | EDX18: 0 | EDY18: 0 | EDZ18: 0 | EEA18: 0 | EEB18: 0 | EEC18: 0 | EED18: 0 | EEE18: 0 | EEF18: 0 | EEG18: 0 | EEH18: 0 | EEI18: 0 | EEJ18: 0 | EEK18: 0 | EEL18: 0 | EEM18: 0 | EEN18: 0 | EEO18: 0 | EEP18: 0 | EEQ18: 0 | EER18: 0 | EES18: =EES16/25 -> 0 | EET18: 0 | EEU18: 0 | EEV18: 0 | EEW18: 0 | EEX18: 0 | EEY18: 0 | EEZ18: 0 | EFA18: 0 | EFB18: 0 | EFC18: 0 | EFD18: 0 | EFE18: 0 | EFF18: 0 | EFG18: 0 | EFH18: 0 | EFI18: 0 | EFJ18: 0 | EFK18: 0 | EFL18: 0 | EFM18: 0 | EFN18: 0 | EFO18: 0 | EFP18: 0 | EFQ18: 0 | EFR18: 0 | EFS18: 0 | EFT18: 0 | EFU18: 0 | EFV18: 0 | EFW18: 0 | EFX18: 0 | EFY18: 0 | EFZ18: 0 | EGA18: 0 | EGB18: 0 | EGC18: 0 | EGD18: 0 | EGE18: 0 | EGF18: 0 | EGG18: 0 | EGH18: 0 | EGI18: 0 | EGJ18: 0 | EGK18: 0 | EGL18: 0 | EGM18: 0 | EGN18: 0 | EGO18: 0 | EGP18: 0 | EGQ18: 0 | EGR18: 0 | EGS18: 0 | EGT18: 0 | EGU18: 0 | EGV18: 0 | EGW18: 0 | EGX18: 0 | EGY18: 0 | EGZ18: 0 | EHA18: 0 | EHB18: 0 | EHC18: 0 | EHD18: 0 | EHE18: =EHE16/25 -> 0 | EHF18: 0 | EHG18: 0 | EHH18: 0 | EHI18: 0 | EHJ18: 0 | EHK18: 0 | EHL18: 0 | EHM18: 0 | EHN18: 0 | EHO18: 0 | EHP18: 0 | EHQ18: 0 | EHR18: 0 | EHS18: 0 | EHT18: 0 | EHU18: 0 | EHV18: 0 | EHW18: 0 | EHX18: 0 | EHY18: 0 | EHZ18: 0 | EIA18: 0 | EIB18: 0 | EIC18: 0 | EID18: 0 | EIE18: 0 | EIF18: 0 | EIG18: 0 | EIH18: 0 | EII18: 0 | EIJ18: 0 | EIK18: 0 | EIL18: 0 | EIM18: 0 | EIN18: 0 | EIO18: 0 | EIP18: 0 | EIQ18: 0 | EIR18: 0 | EIS18: 0 | EIT18: 0 | EIU18: 0 | EIV18: 0 | EIW18: 0 | EIX18: 0 | EIY18: 0 | EIZ18: 0 | EJA18: 0 | EJB18: 0 | EJC18: 0 | EJD18: 0 | EJE18: 0 | EJF18: 0 | EJG18: 0 | EJH18: 0 | EJI18: 0 | EJJ18: 0 | EJK18: 0 | EJL18: 0 | EJM18: 0 | EJN18: 0 | EJO18: 0 | EJP18: 0 | EJQ18: =EJQ16/25 -> 0 | EJR18: 0 | EJS18: 0 | EJT18: 0 | EJU18: 0 | EJV18: 0 | EJW18: 0 | EJX18: 0 | EJY18: 0 | EJZ18: 0 | EKA18: 0 | EKB18: 0 | EKC18: 0 | EKD18: 0 | EKE18: 0 | EKF18: 0 | EKG18: 0 | EKH18: 0 | EKI18: 0 | EKJ18: 0 | EKK18: 0 | EKL18: 0 | EKM18: 0 | EKN18: 0 | EKO18: 0 | EKP18: 0 | EKQ18: 0 | EKR18: 0 | EKS18: 0 | EKT18: 0 | EKU18: 0 | EKV18: 0 | EKW18: 0 | EKX18: 0 | EKY18: 0 | EKZ18: 0 | ELA18: 0 | ELB18: 0 | ELC18: 0 | ELD18: 0 | ELE18: 0 | ELF18: 0 | ELG18: 0 | ELH18: 0 | ELI18: 0 | ELJ18: 0 | ELK18: 0 | ELL18: 0 | ELM18: 0 | ELN18: 0 | ELO18: 0 | ELP18: 0 | ELQ18: 0 | ELR18: 0 | ELS18: 0 | ELT18: 0 | ELU18: 0 | ELV18: 0 | ELW18: 0 | ELX18: 0 | ELY18: 0 | ELZ18: 0 | EMA18: 0 | EMB18: 0 | EMC18: =EMC16/25 -> 0 | EMD18: 0 | EME18: 0 | EMF18: 0 | EMG18: 0 | EMH18: 0 | EMI18: 0 | EMJ18: 0 | EMK18: 0 | EML18: 0 | EMM18: 0 | EMN18: 0 | EMO18: 0 | EMP18: 0 | EMQ18: 0 | EMR18: 0 | EMS18: 0 | EMT18: 0 | EMU18: 0 | EMV18: 0 | EMW18: 0 | EMX18: 0 | EMY18: 0 | EMZ18: 0 | ENA18: 0 | ENB18: 0 | ENC18: 0 | END18: 0 | ENE18: 0 | ENF18: 0 | ENG18: 0 | ENH18: 0 | ENI18: 0 | ENJ18: 0 | ENK18: 0 | ENL18: 0 | ENM18: 0 | ENN18: 0 | ENO18: 0 | ENP18: 0 | ENQ18: 0 | ENR18: 0 | ENS18: 0 | ENT18: 0 | ENU18: 0 | ENV18: 0 | ENW18: 0 | ENX18: 0 | ENY18: 0 | ENZ18: 0 | EOA18: 0 | EOB18: 0 | EOC18: 0 | EOD18: 0 | EOE18: 0 | EOF18: 0 | EOG18: 0 | EOH18: 0 | EOI18: 0 | EOJ18: 0 | EOK18: 0 | EOL18: 0 | EOM18: 0 | EON18: 0 | EOO18: =EOO16/25 -> 0 | EOP18: 0 | EOQ18: 0 | EOR18: 0 | EOS18: 0 | EOT18: 0 | EOU18: 0 | EOV18: 0 | EOW18: 0 | EOX18: 0 | EOY18: 0 | EOZ18: 0 | EPA18: 0 | EPB18: 0 | EPC18: 0 | EPD18: 0 | EPE18: 0 | EPF18: 0 | EPG18: 0 | EPH18: 0 | EPI18: 0 | EPJ18: 0 | EPK18: 0 | EPL18: 0 | EPM18: 0 | EPN18: 0 | EPO18: 0 | EPP18: 0 | EPQ18: 0 | EPR18: 0 | EPS18: 0 | EPT18: 0 | EPU18: 0 | EPV18: 0 | EPW18: 0 | EPX18: 0 | EPY18: 0 | EPZ18: 0 | EQA18: 0 | EQB18: 0 | EQC18: 0 | EQD18: 0 | EQE18: 0 | EQF18: 0 | EQG18: 0 | EQH18: 0 | EQI18: 0 | EQJ18: 0 | EQK18: 0 | EQL18: 0 | EQM18: 0 | EQN18: 0 | EQO18: 0 | EQP18: 0 | EQQ18: 0 | EQR18: 0 | EQS18: 0 | EQT18: 0 | EQU18: 0 | EQV18: 0 | EQW18: 0 | EQX18: 0 | EQY18: 0 | EQZ18: 0 | ERA18: =ERA16/25 -> 0 | ERB18: 0 | ERC18: 0 | ERD18: 0 | ERE18: 0 | ERF18: 0 | ERG18: 0 | ERH18: 0 | ERI18: 0 | ERJ18: 0 | ERK18: 0 | ERL18: 0 | ERM18: 0 | ERN18: 0 | ERO18: 0 | ERP18: 0 | ERQ18: 0 | ERR18: 0 | ERS18: 0 | ERT18: 0 | ERU18: 0 | ERV18: 0 | ERW18: 0 | ERX18: 0 | ERY18: 0 | ERZ18: 0 | ESA18: 0 | ESB18: 0 | ESC18: 0 | ESD18: 0 | ESE18: 0 | ESF18: 0 | ESG18: 0 | ESH18: 0 | ESI18: 0 | ESJ18: 0 | ESK18: 0 | ESL18: 0 | ESM18: 0 | ESN18: 0 | ESO18: 0 | ESP18: 0 | ESQ18: 0 | ESR18: 0 | ESS18: 0 | EST18: 0 | ESU18: 0 | ESV18: 0 | ESW18: 0 | ESX18: 0 | ESY18: 0 | ESZ18: 0 | ETA18: 0 | ETB18: 0 | ETC18: 0 | ETD18: 0 | ETE18: 0 | ETF18: 0 | ETG18: 0 | ETH18: 0 | ETI18: 0 | ETJ18: 0 | ETK18: 0 | ETL18: 0 | ETM18: =ETM16/25 -> 0 | ETN18: 0 | ETO18: 0 | ETP18: 0 | ETQ18: 0 | ETR18: 0 | ETS18: 0 | ETT18: 0 | ETU18: 0 | ETV18: 0 | ETW18: 0 | ETX18: 0 | ETY18: 0 | ETZ18: 0 | EUA18: 0 | EUB18: 0 | EUC18: 0 | EUD18: 0 | EUE18: 0 | EUF18: 0 | EUG18: 0 | EUH18: 0 | EUI18: 0 | EUJ18: 0 | EUK18: 0 | EUL18: 0 | EUM18: 0 | EUN18: 0 | EUO18: 0 | EUP18: 0 | EUQ18: 0 | EUR18: 0 | EUS18: 0 | EUT18: 0 | EUU18: 0 | EUV18: 0 | EUW18: 0 | EUX18: 0 | EUY18: 0 | EUZ18: 0 | EVA18: 0 | EVB18: 0 | EVC18: 0 | EVD18: 0 | EVE18: 0 | EVF18: 0 | EVG18: 0 | EVH18: 0 | EVI18: 0 | EVJ18: 0 | EVK18: 0 | EVL18: 0 | EVM18: 0 | EVN18: 0 | EVO18: 0 | EVP18: 0 | EVQ18: 0 | EVR18: 0 | EVS18: 0 | EVT18: 0 | EVU18: 0 | EVV18: 0 | EVW18: 0 | EVX18: 0 | EVY18: =EVY16/25 -> 0 | EVZ18: 0 | EWA18: 0 | EWB18: 0 | EWC18: 0 | EWD18: 0 | EWE18: 0 | EWF18: 0 | EWG18: 0 | EWH18: 0 | EWI18: 0 | EWJ18: 0 | EWK18: 0 | EWL18: 0 | EWM18: 0 | EWN18: 0 | EWO18: 0 | EWP18: 0 | EWQ18: 0 | EWR18: 0 | EWS18: 0 | EWT18: 0 | EWU18: 0 | EWV18: 0 | EWW18: 0 | EWX18: 0 | EWY18: 0 | EWZ18: 0 | EXA18: 0 | EXB18: 0 | EXC18: 0 | EXD18: 0 | EXE18: 0 | EXF18: 0 | EXG18: 0 | EXH18: 0 | EXI18: 0 | EXJ18: 0 | EXK18: 0 | EXL18: 0 | EXM18: 0 | EXN18: 0 | EXO18: 0 | EXP18: 0 | EXQ18: 0 | EXR18: 0 | EXS18: 0 | EXT18: 0 | EXU18: 0 | EXV18: 0 | EXW18: 0 | EXX18: 0 | EXY18: 0 | EXZ18: 0 | EYA18: 0 | EYB18: 0 | EYC18: 0 | EYD18: 0 | EYE18: 0 | EYF18: 0 | EYG18: 0 | EYH18: 0 | EYI18: 0 | EYJ18: 0 | EYK18: =EYK16/25 -> 0 | EYL18: 0 | EYM18: 0 | EYN18: 0 | EYO18: 0 | EYP18: 0 | EYQ18: 0 | EYR18: 0 | EYS18: 0 | EYT18: 0 | EYU18: 0 | EYV18: 0 | EYW18: 0 | EYX18: 0 | EYY18: 0 | EYZ18: 0 | EZA18: 0 | EZB18: 0 | EZC18: 0 | EZD18: 0 | EZE18: 0 | EZF18: 0 | EZG18: 0 | EZH18: 0 | EZI18: 0 | EZJ18: 0 | EZK18: 0 | EZL18: 0 | EZM18: 0 | EZN18: 0 | EZO18: 0 | EZP18: 0 | EZQ18: 0 | EZR18: 0 | EZS18: 0 | EZT18: 0 | EZU18: 0 | EZV18: 0 | EZW18: 0 | EZX18: 0 | EZY18: 0 | EZZ18: 0 | FAA18: 0 | FAB18: 0 | FAC18: 0 | FAD18: 0 | FAE18: 0 | FAF18: 0 | FAG18: 0 | FAH18: 0 | FAI18: 0 | FAJ18: 0 | FAK18: 0 | FAL18: 0 | FAM18: 0 | FAN18: 0 | FAO18: 0 | FAP18: 0 | FAQ18: 0 | FAR18: 0 | FAS18: 0 | FAT18: 0 | FAU18: 0 | FAV18: 0 | FAW18: =FAW16/25 -> 0 | FAX18: 0 | FAY18: 0 | FAZ18: 0 | FBA18: 0 | FBB18: 0 | FBC18: 0 | FBD18: 0 | FBE18: 0 | FBF18: 0 | FBG18: 0 | FBH18: 0 | FBI18: 0 | FBJ18: 0 | FBK18: 0 | FBL18: 0 | FBM18: 0 | FBN18: 0 | FBO18: 0 | FBP18: 0 | FBQ18: 0 | FBR18: 0 | FBS18: 0 | FBT18: 0 | FBU18: 0 | FBV18: 0 | FBW18: 0 | FBX18: 0 | FBY18: 0 | FBZ18: 0 | FCA18: 0 | FCB18: 0 | FCC18: 0 | FCD18: 0 | FCE18: 0 | FCF18: 0 | FCG18: 0 | FCH18: 0 | FCI18: 0 | FCJ18: 0 | FCK18: 0 | FCL18: 0 | FCM18: 0 | FCN18: 0 | FCO18: 0 | FCP18: 0 | FCQ18: 0 | FCR18: 0 | FCS18: 0 | FCT18: 0 | FCU18: 0 | FCV18: 0 | FCW18: 0 | FCX18: 0 | FCY18: 0 | FCZ18: 0 | FDA18: 0 | FDB18: 0 | FDC18: 0 | FDD18: 0 | FDE18: 0 | FDF18: 0 | FDG18: 0 | FDH18: 0 | FDI18: =FDI16/25 -> 0 | FDJ18: 0 | FDK18: 0 | FDL18: 0 | FDM18: 0 | FDN18: 0 | FDO18: 0 | FDP18: 0 | FDQ18: 0 | FDR18: 0 | FDS18: 0 | FDT18: 0 | FDU18: 0 | FDV18: 0 | FDW18: 0 | FDX18: 0 | FDY18: 0 | FDZ18: 0 | FEA18: 0 | FEB18: 0 | FEC18: 0 | FED18: 0 | FEE18: 0 | FEF18: 0 | FEG18: 0 | FEH18: 0 | FEI18: 0 | FEJ18: 0 | FEK18: 0 | FEL18: 0 | FEM18: 0 | FEN18: 0 | FEO18: 0 | FEP18: 0 | FEQ18: 0 | FER18: 0 | FES18: 0 | FET18: 0 | FEU18: 0 | FEV18: 0 | FEW18: 0 | FEX18: 0 | FEY18: 0 | FEZ18: 0 | FFA18: 0 | FFB18: 0 | FFC18: 0 | FFD18: 0 | FFE18: 0 | FFF18: 0 | FFG18: 0 | FFH18: 0 | FFI18: 0 | FFJ18: 0 | FFK18: 0 | FFL18: 0 | FFM18: 0 | FFN18: 0 | FFO18: 0 | FFP18: 0 | FFQ18: 0 | FFR18: 0 | FFS18: 0 | FFT18: 0 | FFU18: =FFU16/25 -> 0 | FFV18: 0 | FFW18: 0 | FFX18: 0 | FFY18: 0 | FFZ18: 0 | FGA18: 0 | FGB18: 0 | FGC18: 0 | FGD18: 0 | FGE18: 0 | FGF18: 0 | FGG18: 0 | FGH18: 0 | FGI18: 0 | FGJ18: 0 | FGK18: 0 | FGL18: 0 | FGM18: 0 | FGN18: 0 | FGO18: 0 | FGP18: 0 | FGQ18: 0 | FGR18: 0 | FGS18: 0 | FGT18: 0 | FGU18: 0 | FGV18: 0 | FGW18: 0 | FGX18: 0 | FGY18: 0 | FGZ18: 0 | FHA18: 0 | FHB18: 0 | FHC18: 0 | FHD18: 0 | FHE18: 0 | FHF18: 0 | FHG18: 0 | FHH18: 0 | FHI18: 0 | FHJ18: 0 | FHK18: 0 | FHL18: 0 | FHM18: 0 | FHN18: 0 | FHO18: 0 | FHP18: 0 | FHQ18: 0 | FHR18: 0 | FHS18: 0 | FHT18: 0 | FHU18: 0 | FHV18: 0 | FHW18: 0 | FHX18: 0 | FHY18: 0 | FHZ18: 0 | FIA18: 0 | FIB18: 0 | FIC18: 0 | FID18: 0 | FIE18: 0 | FIF18: 0 | FIG18: =FIG16/25 -> 0 | FIH18: 0 | FII18: 0 | FIJ18: 0 | FIK18: 0 | FIL18: 0 | FIM18: 0 | FIN18: 0 | FIO18: 0 | FIP18: 0 | FIQ18: 0 | FIR18: 0 | FIS18: 0 | FIT18: 0 | FIU18: 0 | FIV18: 0 | FIW18: 0 | FIX18: 0 | FIY18: 0 | FIZ18: 0 | FJA18: 0 | FJB18: 0 | FJC18: 0 | FJD18: 0 | FJE18: 0 | FJF18: 0 | FJG18: 0 | FJH18: 0 | FJI18: 0 | FJJ18: 0 | FJK18: 0 | FJL18: 0 | FJM18: 0 | FJN18: 0 | FJO18: 0 | FJP18: 0 | FJQ18: 0 | FJR18: 0 | FJS18: 0 | FJT18: 0 | FJU18: 0 | FJV18: 0 | FJW18: 0 | FJX18: 0 | FJY18: 0 | FJZ18: 0 | FKA18: 0 | FKB18: 0 | FKC18: 0 | FKD18: 0 | FKE18: 0 | FKF18: 0 | FKG18: 0 | FKH18: 0 | FKI18: 0 | FKJ18: 0 | FKK18: 0 | FKL18: 0 | FKM18: 0 | FKN18: 0 | FKO18: 0 | FKP18: 0 | FKQ18: 0 | FKR18: 0 | FKS18: =FKS16/25 -> 0 | FKT18: 0 | FKU18: 0 | FKV18: 0 | FKW18: 0 | FKX18: 0 | FKY18: 0 | FKZ18: 0 | FLA18: 0 | FLB18: 0 | FLC18: 0 | FLD18: 0 | FLE18: 0 | FLF18: 0 | FLG18: 0 | FLH18: 0 | FLI18: 0 | FLJ18: 0 | FLK18: 0 | FLL18: 0 | FLM18: 0 | FLN18: 0 | FLO18: 0 | FLP18: 0 | FLQ18: 0 | FLR18: 0 | FLS18: 0 | FLT18: 0 | FLU18: 0 | FLV18: 0 | FLW18: 0 | FLX18: 0 | FLY18: 0 | FLZ18: 0 | FMA18: 0 | FMB18: 0 | FMC18: 0 | FMD18: 0 | FME18: 0 | FMF18: 0 | FMG18: 0 | FMH18: 0 | FMI18: 0 | FMJ18: 0 | FMK18: 0 | FML18: 0 | FMM18: 0 | FMN18: 0 | FMO18: 0 | FMP18: 0 | FMQ18: 0 | FMR18: 0 | FMS18: 0 | FMT18: 0 | FMU18: 0 | FMV18: 0 | FMW18: 0 | FMX18: 0 | FMY18: 0 | FMZ18: 0 | FNA18: 0 | FNB18: 0 | FNC18: 0 | FND18: 0 | FNE18: =FNE16/25 -> 0 | FNF18: 0 | FNG18: 0 | FNH18: 0 | FNI18: 0 | FNJ18: 0 | FNK18: 0 | FNL18: 0 | FNM18: 0 | FNN18: 0 | FNO18: 0 | FNP18: 0 | FNQ18: 0 | FNR18: 0 | FNS18: 0 | FNT18: 0 | FNU18: 0 | FNV18: 0 | FNW18: 0 | FNX18: 0 | FNY18: 0 | FNZ18: 0 | FOA18: 0 | FOB18: 0 | FOC18: 0 | FOD18: 0 | FOE18: 0 | FOF18: 0 | FOG18: 0 | FOH18: 0 | FOI18: 0 | FOJ18: 0 | FOK18: 0 | FOL18: 0 | FOM18: 0 | FON18: 0 | FOO18: 0 | FOP18: 0 | FOQ18: 0 | FOR18: 0 | FOS18: 0 | FOT18: 0 | FOU18: 0 | FOV18: 0 | FOW18: 0 | FOX18: 0 | FOY18: 0 | FOZ18: 0 | FPA18: 0 | FPB18: 0 | FPC18: 0 | FPD18: 0 | FPE18: 0 | FPF18: 0 | FPG18: 0 | FPH18: 0 | FPI18: 0 | FPJ18: 0 | FPK18: 0 | FPL18: 0 | FPM18: 0 | FPN18: 0 | FPO18: 0 | FPP18: 0 | FPQ18: =FPQ16/25 -> 0 | FPR18: 0 | FPS18: 0 | FPT18: 0 | FPU18: 0 | FPV18: 0 | FPW18: 0 | FPX18: 0 | FPY18: 0 | FPZ18: 0 | FQA18: 0 | FQB18: 0 | FQC18: 0 | FQD18: 0 | FQE18: 0 | FQF18: 0 | FQG18: 0 | FQH18: 0 | FQI18: 0 | FQJ18: 0 | FQK18: 0 | FQL18: 0 | FQM18: 0 | FQN18: 0 | FQO18: 0 | FQP18: 0 | FQQ18: 0 | FQR18: 0 | FQS18: 0 | FQT18: 0 | FQU18: 0 | FQV18: 0 | FQW18: 0 | FQX18: 0 | FQY18: 0 | FQZ18: 0 | FRA18: 0 | FRB18: 0 | FRC18: 0 | FRD18: 0 | FRE18: 0 | FRF18: 0 | FRG18: 0 | FRH18: 0 | FRI18: 0 | FRJ18: 0 | FRK18: 0 | FRL18: 0 | FRM18: 0 | FRN18: 0 | FRO18: 0 | FRP18: 0 | FRQ18: 0 | FRR18: 0 | FRS18: 0 | FRT18: 0 | FRU18: 0 | FRV18: 0 | FRW18: 0 | FRX18: 0 | FRY18: 0 | FRZ18: 0 | FSA18: 0 | FSB18: 0 | FSC18: =FSC16/25 -> 0 | FSD18: 0 | FSE18: 0 | FSF18: 0 | FSG18: 0 | FSH18: 0 | FSI18: 0 | FSJ18: 0 | FSK18: 0 | FSL18: 0 | FSM18: 0 | FSN18: 0 | FSO18: 0 | FSP18: 0 | FSQ18: 0 | FSR18: 0 | FSS18: 0 | FST18: 0 | FSU18: 0 | FSV18: 0 | FSW18: 0 | FSX18: 0 | FSY18: 0 | FSZ18: 0 | FTA18: 0 | FTB18: 0 | FTC18: 0 | FTD18: 0 | FTE18: 0 | FTF18: 0 | FTG18: 0 | FTH18: 0 | FTI18: 0 | FTJ18: 0 | FTK18: 0 | FTL18: 0 | FTM18: 0 | FTN18: 0 | FTO18: 0 | FTP18: 0 | FTQ18: 0 | FTR18: 0 | FTS18: 0 | FTT18: 0 | FTU18: 0 | FTV18: 0 | FTW18: 0 | FTX18: 0 | FTY18: 0 | FTZ18: 0 | FUA18: 0 | FUB18: 0 | FUC18: 0 | FUD18: 0 | FUE18: 0 | FUF18: 0 | FUG18: 0 | FUH18: 0 | FUI18: 0 | FUJ18: 0 | FUK18: 0 | FUL18: 0 | FUM18: 0 | FUN18: 0 | FUO18: =FUO16/25 -> 0 | FUP18: 0 | FUQ18: 0 | FUR18: 0 | FUS18: 0 | FUT18: 0 | FUU18: 0 | FUV18: 0 | FUW18: 0 | FUX18: 0 | FUY18: 0 | FUZ18: 0 | FVA18: 0 | FVB18: 0 | FVC18: 0 | FVD18: 0 | FVE18: 0 | FVF18: 0 | FVG18: 0 | FVH18: 0 | FVI18: 0 | FVJ18: 0 | FVK18: 0 | FVL18: 0 | FVM18: 0 | FVN18: 0 | FVO18: 0 | FVP18: 0 | FVQ18: 0 | FVR18: 0 | FVS18: 0 | FVT18: 0 | FVU18: 0 | FVV18: 0 | FVW18: 0 | FVX18: 0 | FVY18: 0 | FVZ18: 0 | FWA18: 0 | FWB18: 0 | FWC18: 0 | FWD18: 0 | FWE18: 0 | FWF18: 0 | FWG18: 0 | FWH18: 0 | FWI18: 0 | FWJ18: 0 | FWK18: 0 | FWL18: 0 | FWM18: 0 | FWN18: 0 | FWO18: 0 | FWP18: 0 | FWQ18: 0 | FWR18: 0 | FWS18: 0 | FWT18: 0 | FWU18: 0 | FWV18: 0 | FWW18: 0 | FWX18: 0 | FWY18: 0 | FWZ18: 0 | FXA18: =FXA16/25 -> 0 | FXB18: 0 | FXC18: 0 | FXD18: 0 | FXE18: 0 | FXF18: 0 | FXG18: 0 | FXH18: 0 | FXI18: 0 | FXJ18: 0 | FXK18: 0 | FXL18: 0 | FXM18: 0 | FXN18: 0 | FXO18: 0 | FXP18: 0 | FXQ18: 0 | FXR18: 0 | FXS18: 0 | FXT18: 0 | FXU18: 0 | FXV18: 0 | FXW18: 0 | FXX18: 0 | FXY18: 0 | FXZ18: 0 | FYA18: 0 | FYB18: 0 | FYC18: 0 | FYD18: 0 | FYE18: 0 | FYF18: 0 | FYG18: 0 | FYH18: 0 | FYI18: 0 | FYJ18: 0 | FYK18: 0 | FYL18: 0 | FYM18: 0 | FYN18: 0 | FYO18: 0 | FYP18: 0 | FYQ18: 0 | FYR18: 0 | FYS18: 0 | FYT18: 0 | FYU18: 0 | FYV18: 0 | FYW18: 0 | FYX18: 0 | FYY18: 0 | FYZ18: 0 | FZA18: 0 | FZB18: 0 | FZC18: 0 | FZD18: 0 | FZE18: 0 | FZF18: 0 | FZG18: 0 | FZH18: 0 | FZI18: 0 | FZJ18: 0 | FZK18: 0 | FZL18: 0 | FZM18: =FZM16/25 -> 0 | FZN18: 0 | FZO18: 0 | FZP18: 0 | FZQ18: 0 | FZR18: 0 | FZS18: 0 | FZT18: 0 | FZU18: 0 | FZV18: 0 | FZW18: 0 | FZX18: 0 | FZY18: 0 | FZZ18: 0 | GAA18: 0 | GAB18: 0 | GAC18: 0 | GAD18: 0 | GAE18: 0 | GAF18: 0 | GAG18: 0 | GAH18: 0 | GAI18: 0 | GAJ18: 0 | GAK18: 0 | GAL18: 0 | GAM18: 0 | GAN18: 0 | GAO18: 0 | GAP18: 0 | GAQ18: 0 | GAR18: 0 | GAS18: 0 | GAT18: 0 | GAU18: 0 | GAV18: 0 | GAW18: 0 | GAX18: 0 | GAY18: 0 | GAZ18: 0 | GBA18: 0 | GBB18: 0 | GBC18: 0 | GBD18: 0 | GBE18: 0 | GBF18: 0 | GBG18: 0 | GBH18: 0 | GBI18: 0 | GBJ18: 0 | GBK18: 0 | GBL18: 0 | GBM18: 0 | GBN18: 0 | GBO18: 0 | GBP18: 0 | GBQ18: 0 | GBR18: 0 | GBS18: 0 | GBT18: 0 | GBU18: 0 | GBV18: 0 | GBW18: 0 | GBX18: 0 | GBY18: =GBY16/25 -> 0 | GBZ18: 0 | GCA18: 0 | GCB18: 0 | GCC18: 0 | GCD18: 0 | GCE18: 0 | GCF18: 0 | GCG18: 0 | GCH18: 0 | GCI18: 0 | GCJ18: 0 | GCK18: 0 | GCL18: 0 | GCM18: 0 | GCN18: 0 | GCO18: 0 | GCP18: 0 | GCQ18: 0 | GCR18: 0 | GCS18: 0 | GCT18: 0 | GCU18: 0 | GCV18: 0 | GCW18: 0 | GCX18: 0 | GCY18: 0 | GCZ18: 0 | GDA18: 0 | GDB18: 0 | GDC18: 0 | GDD18: 0 | GDE18: 0 | GDF18: 0 | GDG18: 0 | GDH18: 0 | GDI18: 0 | GDJ18: 0 | GDK18: 0 | GDL18: 0 | GDM18: 0 | GDN18: 0 | GDO18: 0 | GDP18: 0 | GDQ18: 0 | GDR18: 0 | GDS18: 0 | GDT18: 0 | GDU18: 0 | GDV18: 0 | GDW18: 0 | GDX18: 0 | GDY18: 0 | GDZ18: 0 | GEA18: 0 | GEB18: 0 | GEC18: 0 | GED18: 0 | GEE18: 0 | GEF18: 0 | GEG18: 0 | GEH18: 0 | GEI18: 0 | GEJ18: 0 | GEK18: =GEK16/25 -> 0 | GEL18: 0 | GEM18: 0 | GEN18: 0 | GEO18: 0 | GEP18: 0 | GEQ18: 0 | GER18: 0 | GES18: 0 | GET18: 0 | GEU18: 0 | GEV18: 0 | GEW18: 0 | GEX18: 0 | GEY18: 0 | GEZ18: 0 | GFA18: 0 | GFB18: 0 | GFC18: 0 | GFD18: 0 | GFE18: 0 | GFF18: 0 | GFG18: 0 | GFH18: 0 | GFI18: 0 | GFJ18: 0 | GFK18: 0 | GFL18: 0 | GFM18: 0 | GFN18: 0 | GFO18: 0 | GFP18: 0 | GFQ18: 0 | GFR18: 0 | GFS18: 0 | GFT18: 0 | GFU18: 0 | GFV18: 0 | GFW18: 0 | GFX18: 0 | GFY18: 0 | GFZ18: 0 | GGA18: 0 | GGB18: 0 | GGC18: 0 | GGD18: 0 | GGE18: 0 | GGF18: 0 | GGG18: 0 | GGH18: 0 | GGI18: 0 | GGJ18: 0 | GGK18: 0 | GGL18: 0 | GGM18: 0 | GGN18: 0 | GGO18: 0 | GGP18: 0 | GGQ18: 0 | GGR18: 0 | GGS18: 0 | GGT18: 0 | GGU18: 0 | GGV18: 0 | GGW18: =GGW16/25 -> 0 | GGX18: 0 | GGY18: 0 | GGZ18: 0 | GHA18: 0 | GHB18: 0 | GHC18: 0 | GHD18: 0 | GHE18: 0 | GHF18: 0 | GHG18: 0 | GHH18: 0 | GHI18: 0 | GHJ18: 0 | GHK18: 0 | GHL18: 0 | GHM18: 0 | GHN18: 0 | GHO18: 0 | GHP18: 0 | GHQ18: 0 | GHR18: 0 | GHS18: 0 | GHT18: 0 | GHU18: 0 | GHV18: 0 | GHW18: 0 | GHX18: 0 | GHY18: 0 | GHZ18: 0 | GIA18: 0 | GIB18: 0 | GIC18: 0 | GID18: 0 | GIE18: 0 | GIF18: 0 | GIG18: 0 | GIH18: 0 | GII18: 0 | GIJ18: 0 | GIK18: 0 | GIL18: 0 | GIM18: 0 | GIN18: 0 | GIO18: 0 | GIP18: 0 | GIQ18: 0 | GIR18: 0 | GIS18: 0 | GIT18: 0 | GIU18: 0 | GIV18: 0 | GIW18: 0 | GIX18: 0 | GIY18: 0 | GIZ18: 0 | GJA18: 0 | GJB18: 0 | GJC18: 0 | GJD18: 0 | GJE18: 0 | GJF18: 0 | GJG18: 0 | GJH18: 0 | GJI18: =GJI16/25 -> 0 | GJJ18: 0 | GJK18: 0 | GJL18: 0 | GJM18: 0 | GJN18: 0 | GJO18: 0 | GJP18: 0 | GJQ18: 0 | GJR18: 0 | GJS18: 0 | GJT18: 0 | GJU18: 0 | GJV18: 0 | GJW18: 0 | GJX18: 0 | GJY18: 0 | GJZ18: 0 | GKA18: 0 | GKB18: 0 | GKC18: 0 | GKD18: 0 | GKE18: 0 | GKF18: 0 | GKG18: 0 | GKH18: 0 | GKI18: 0 | GKJ18: 0 | GKK18: 0 | GKL18: 0 | GKM18: 0 | GKN18: 0 | GKO18: 0 | GKP18: 0 | GKQ18: 0 | GKR18: 0 | GKS18: 0 | GKT18: 0 | GKU18: 0 | GKV18: 0 | GKW18: 0 | GKX18: 0 | GKY18: 0 | GKZ18: 0 | GLA18: 0 | GLB18: 0 | GLC18: 0 | GLD18: 0 | GLE18: 0 | GLF18: 0 | GLG18: 0 | GLH18: 0 | GLI18: 0 | GLJ18: 0 | GLK18: 0 | GLL18: 0 | GLM18: 0 | GLN18: 0 | GLO18: 0 | GLP18: 0 | GLQ18: 0 | GLR18: 0 | GLS18: 0 | GLT18: 0 | GLU18: =GLU16/25 -> 0 | GLV18: 0 | GLW18: 0 | GLX18: 0 | GLY18: 0 | GLZ18: 0 | GMA18: 0 | GMB18: 0 | GMC18: 0 | GMD18: 0 | GME18: 0 | GMF18: 0 | GMG18: 0 | GMH18: 0 | GMI18: 0 | GMJ18: 0 | GMK18: 0 | GML18: 0 | GMM18: 0 | GMN18: 0 | GMO18: 0 | GMP18: 0 | GMQ18: 0 | GMR18: 0 | GMS18: 0 | GMT18: 0 | GMU18: 0 | GMV18: 0 | GMW18: 0 | GMX18: 0 | GMY18: 0 | GMZ18: 0 | GNA18: 0 | GNB18: 0 | GNC18: 0 | GND18: 0 | GNE18: 0 | GNF18: 0 | GNG18: 0 | GNH18: 0 | GNI18: 0 | GNJ18: 0 | GNK18: 0 | GNL18: 0 | GNM18: 0 | GNN18: 0 | GNO18: 0 | GNP18: 0 | GNQ18: 0 | GNR18: 0 | GNS18: 0 | GNT18: 0 | GNU18: 0 | GNV18: 0 | GNW18: 0 | GNX18: 0 | GNY18: 0 | GNZ18: 0 | GOA18: 0 | GOB18: 0 | GOC18: 0 | GOD18: 0 | GOE18: 0 | GOF18: 0 | GOG18: =GOG16/25 -> 0 | GOH18: 0 | GOI18: 0 | GOJ18: 0 | GOK18: 0 | GOL18: 0 | GOM18: 0 | GON18: 0 | GOO18: 0 | GOP18: 0 | GOQ18: 0 | GOR18: 0 | GOS18: 0 | GOT18: 0 | GOU18: 0 | GOV18: 0 | GOW18: 0 | GOX18: 0 | GOY18: 0 | GOZ18: 0 | GPA18: 0 | GPB18: 0 | GPC18: 0 | GPD18: 0 | GPE18: 0 | GPF18: 0 | GPG18: 0 | GPH18: 0 | GPI18: 0 | GPJ18: 0 | GPK18: 0 | GPL18: 0 | GPM18: 0 | GPN18: 0 | GPO18: 0 | GPP18: 0 | GPQ18: 0 | GPR18: 0 | GPS18: 0 | GPT18: 0 | GPU18: 0 | GPV18: 0 | GPW18: 0 | GPX18: 0 | GPY18: 0 | GPZ18: 0 | GQA18: 0 | GQB18: 0 | GQC18: 0 | GQD18: 0 | GQE18: 0 | GQF18: 0 | GQG18: 0 | GQH18: 0 | GQI18: 0 | GQJ18: 0 | GQK18: 0 | GQL18: 0 | GQM18: 0 | GQN18: 0 | GQO18: 0 | GQP18: 0 | GQQ18: 0 | GQR18: 0 | GQS18: =GQS16/25 -> 0 | GQT18: 0 | GQU18: 0 | GQV18: 0 | GQW18: 0 | GQX18: 0 | GQY18: 0 | GQZ18: 0 | GRA18: 0 | GRB18: 0 | GRC18: 0 | GRD18: 0 | GRE18: 0 | GRF18: 0 | GRG18: 0 | GRH18: 0 | GRI18: 0 | GRJ18: 0 | GRK18: 0 | GRL18: 0 | GRM18: 0 | GRN18: 0 | GRO18: 0 | GRP18: 0 | GRQ18: 0 | GRR18: 0 | GRS18: 0 | GRT18: 0 | GRU18: 0 | GRV18: 0 | GRW18: 0 | GRX18: 0 | GRY18: 0 | GRZ18: 0 | GSA18: 0 | GSB18: 0 | GSC18: 0 | GSD18: 0 | GSE18: 0 | GSF18: 0 | GSG18: 0 | GSH18: 0 | GSI18: 0 | GSJ18: 0 | GSK18: 0 | GSL18: 0 | GSM18: 0 | GSN18: 0 | GSO18: 0 | GSP18: 0 | GSQ18: 0 | GSR18: 0 | GSS18: 0 | GST18: 0 | GSU18: 0 | GSV18: 0 | GSW18: 0 | GSX18: 0 | GSY18: 0 | GSZ18: 0 | GTA18: 0 | GTB18: 0 | GTC18: 0 | GTD18: 0 | GTE18: =GTE16/25 -> 0 | GTF18: 0 | GTG18: 0 | GTH18: 0 | GTI18: 0 | GTJ18: 0 | GTK18: 0 | GTL18: 0 | GTM18: 0 | GTN18: 0 | GTO18: 0 | GTP18: 0 | GTQ18: 0 | GTR18: 0 | GTS18: 0 | GTT18: 0 | GTU18: 0 | GTV18: 0 | GTW18: 0 | GTX18: 0 | GTY18: 0 | GTZ18: 0 | GUA18: 0 | GUB18: 0 | GUC18: 0 | GUD18: 0 | GUE18: 0 | GUF18: 0 | GUG18: 0 | GUH18: 0 | GUI18: 0 | GUJ18: 0 | GUK18: 0 | GUL18: 0 | GUM18: 0 | GUN18: 0 | GUO18: 0 | GUP18: 0 | GUQ18: 0 | GUR18: 0 | GUS18: 0 | GUT18: 0 | GUU18: 0 | GUV18: 0 | GUW18: 0 | GUX18: 0 | GUY18: 0 | GUZ18: 0 | GVA18: 0 | GVB18: 0 | GVC18: 0 | GVD18: 0 | GVE18: 0 | GVF18: 0 | GVG18: 0 | GVH18: 0 | GVI18: 0 | GVJ18: 0 | GVK18: 0 | GVL18: 0 | GVM18: 0 | GVN18: 0 | GVO18: 0 | GVP18: 0 | GVQ18: =GVQ16/25 -> 0 | GVR18: 0 | GVS18: 0 | GVT18: 0 | GVU18: 0 | GVV18: 0 | GVW18: 0 | GVX18: 0 | GVY18: 0 | GVZ18: 0 | GWA18: 0 | GWB18: 0 | GWC18: 0 | GWD18: 0 | GWE18: 0 | GWF18: 0 | GWG18: 0 | GWH18: 0 | GWI18: 0 | GWJ18: 0 | GWK18: 0 | GWL18: 0 | GWM18: 0 | GWN18: 0 | GWO18: 0 | GWP18: 0 | GWQ18: 0 | GWR18: 0 | GWS18: 0 | GWT18: 0 | GWU18: 0 | GWV18: 0 | GWW18: 0 | GWX18: 0 | GWY18: 0 | GWZ18: 0 | GXA18: 0 | GXB18: 0 | GXC18: 0 | GXD18: 0 | GXE18: 0 | GXF18: 0 | GXG18: 0 | GXH18: 0 | GXI18: 0 | GXJ18: 0 | GXK18: 0 | GXL18: 0 | GXM18: 0 | GXN18: 0 | GXO18: 0 | GXP18: 0 | GXQ18: 0 | GXR18: 0 | GXS18: 0 | GXT18: 0 | GXU18: 0 | GXV18: 0 | GXW18: 0 | GXX18: 0 | GXY18: 0 | GXZ18: 0 | GYA18: 0 | GYB18: 0 | GYC18: =GYC16/25 -> 0 | GYD18: 0 | GYE18: 0 | GYF18: 0 | GYG18: 0 | GYH18: 0 | GYI18: 0 | GYJ18: 0 | GYK18: 0 | GYL18: 0 | GYM18: 0 | GYN18: 0 | GYO18: 0 | GYP18: 0 | GYQ18: 0 | GYR18: 0 | GYS18: 0 | GYT18: 0 | GYU18: 0 | GYV18: 0 | GYW18: 0 | GYX18: 0 | GYY18: 0 | GYZ18: 0 | GZA18: 0 | GZB18: 0 | GZC18: 0 | GZD18: 0 | GZE18: 0 | GZF18: 0 | GZG18: 0 | GZH18: 0 | GZI18: 0 | GZJ18: 0 | GZK18: 0 | GZL18: 0 | GZM18: 0 | GZN18: 0 | GZO18: 0 | GZP18: 0 | GZQ18: 0 | GZR18: 0 | GZS18: 0 | GZT18: 0 | GZU18: 0 | GZV18: 0 | GZW18: 0 | GZX18: 0 | GZY18: 0 | GZZ18: 0 | HAA18: 0 | HAB18: 0 | HAC18: 0 | HAD18: 0 | HAE18: 0 | HAF18: 0 | HAG18: 0 | HAH18: 0 | HAI18: 0 | HAJ18: 0 | HAK18: 0 | HAL18: 0 | HAM18: 0 | HAN18: 0 | HAO18: =HAO16/25 -> 0 | HAP18: 0 | HAQ18: 0 | HAR18: 0 | HAS18: 0 | HAT18: 0 | HAU18: 0 | HAV18: 0 | HAW18: 0 | HAX18: 0 | HAY18: 0 | HAZ18: 0 | HBA18: 0 | HBB18: 0 | HBC18: 0 | HBD18: 0 | HBE18: 0 | HBF18: 0 | HBG18: 0 | HBH18: 0 | HBI18: 0 | HBJ18: 0 | HBK18: 0 | HBL18: 0 | HBM18: 0 | HBN18: 0 | HBO18: 0 | HBP18: 0 | HBQ18: 0 | HBR18: 0 | HBS18: 0 | HBT18: 0 | HBU18: 0 | HBV18: 0 | HBW18: 0 | HBX18: 0 | HBY18: 0 | HBZ18: 0 | HCA18: 0 | HCB18: 0 | HCC18: 0 | HCD18: 0 | HCE18: 0 | HCF18: 0 | HCG18: 0 | HCH18: 0 | HCI18: 0 | HCJ18: 0 | HCK18: 0 | HCL18: 0 | HCM18: 0 | HCN18: 0 | HCO18: 0 | HCP18: 0 | HCQ18: 0 | HCR18: 0 | HCS18: 0 | HCT18: 0 | HCU18: 0 | HCV18: 0 | HCW18: 0 | HCX18: 0 | HCY18: 0 | HCZ18: 0 | HDA18: =HDA16/25 -> 0 | HDB18: 0 | HDC18: 0 | HDD18: 0 | HDE18: 0 | HDF18: 0 | HDG18: 0 | HDH18: 0 | HDI18: 0 | HDJ18: 0 | HDK18: 0 | HDL18: 0 | HDM18: 0 | HDN18: 0 | HDO18: 0 | HDP18: 0 | HDQ18: 0 | HDR18: 0 | HDS18: 0 | HDT18: 0 | HDU18: 0 | HDV18: 0 | HDW18: 0 | HDX18: 0 | HDY18: 0 | HDZ18: 0 | HEA18: 0 | HEB18: 0 | HEC18: 0 | HED18: 0 | HEE18: 0 | HEF18: 0 | HEG18: 0 | HEH18: 0 | HEI18: 0 | HEJ18: 0 | HEK18: 0 | HEL18: 0 | HEM18: 0 | HEN18: 0 | HEO18: 0 | HEP18: 0 | HEQ18: 0 | HER18: 0 | HES18: 0 | HET18: 0 | HEU18: 0 | HEV18: 0 | HEW18: 0 | HEX18: 0 | HEY18: 0 | HEZ18: 0 | HFA18: 0 | HFB18: 0 | HFC18: 0 | HFD18: 0 | HFE18: 0 | HFF18: 0 | HFG18: 0 | HFH18: 0 | HFI18: 0 | HFJ18: 0 | HFK18: 0 | HFL18: 0 | HFM18: =HFM16/25 -> 0 | HFN18: 0 | HFO18: 0 | HFP18: 0 | HFQ18: 0 | HFR18: 0 | HFS18: 0 | HFT18: 0 | HFU18: 0 | HFV18: 0 | HFW18: 0 | HFX18: 0 | HFY18: 0 | HFZ18: 0 | HGA18: 0 | HGB18: 0 | HGC18: 0 | HGD18: 0 | HGE18: 0 | HGF18: 0 | HGG18: 0 | HGH18: 0 | HGI18: 0 | HGJ18: 0 | HGK18: 0 | HGL18: 0 | HGM18: 0 | HGN18: 0 | HGO18: 0 | HGP18: 0 | HGQ18: 0 | HGR18: 0 | HGS18: 0 | HGT18: 0 | HGU18: 0 | HGV18: 0 | HGW18: 0 | HGX18: 0 | HGY18: 0 | HGZ18: 0 | HHA18: 0 | HHB18: 0 | HHC18: 0 | HHD18: 0 | HHE18: 0 | HHF18: 0 | HHG18: 0 | HHH18: 0 | HHI18: 0 | HHJ18: 0 | HHK18: 0 | HHL18: 0 | HHM18: 0 | HHN18: 0 | HHO18: 0 | HHP18: 0 | HHQ18: 0 | HHR18: 0 | HHS18: 0 | HHT18: 0 | HHU18: 0 | HHV18: 0 | HHW18: 0 | HHX18: 0 | HHY18: =HHY16/25 -> 0 | HHZ18: 0 | HIA18: 0 | HIB18: 0 | HIC18: 0 | HID18: 0 | HIE18: 0 | HIF18: 0 | HIG18: 0 | HIH18: 0 | HII18: 0 | HIJ18: 0 | HIK18: 0 | HIL18: 0 | HIM18: 0 | HIN18: 0 | HIO18: 0 | HIP18: 0 | HIQ18: 0 | HIR18: 0 | HIS18: 0 | HIT18: 0 | HIU18: 0 | HIV18: 0 | HIW18: 0 | HIX18: 0 | HIY18: 0 | HIZ18: 0 | HJA18: 0 | HJB18: 0 | HJC18: 0 | HJD18: 0 | HJE18: 0 | HJF18: 0 | HJG18: 0 | HJH18: 0 | HJI18: 0 | HJJ18: 0 | HJK18: 0 | HJL18: 0 | HJM18: 0 | HJN18: 0 | HJO18: 0 | HJP18: 0 | HJQ18: 0 | HJR18: 0 | HJS18: 0 | HJT18: 0 | HJU18: 0 | HJV18: 0 | HJW18: 0 | HJX18: 0 | HJY18: 0 | HJZ18: 0 | HKA18: 0 | HKB18: 0 | HKC18: 0 | HKD18: 0 | HKE18: 0 | HKF18: 0 | HKG18: 0 | HKH18: 0 | HKI18: 0 | HKJ18: 0 | HKK18: =HKK16/25 -> 0 | HKL18: 0 | HKM18: 0 | HKN18: 0 | HKO18: 0 | HKP18: 0 | HKQ18: 0 | HKR18: 0 | HKS18: 0 | HKT18: 0 | HKU18: 0 | HKV18: 0 | HKW18: 0 | HKX18: 0 | HKY18: 0 | HKZ18: 0 | HLA18: 0 | HLB18: 0 | HLC18: 0 | HLD18: 0 | HLE18: 0 | HLF18: 0 | HLG18: 0 | HLH18: 0 | HLI18: 0 | HLJ18: 0 | HLK18: 0 | HLL18: 0 | HLM18: 0 | HLN18: 0 | HLO18: 0 | HLP18: 0 | HLQ18: 0 | HLR18: 0 | HLS18: 0 | HLT18: 0 | HLU18: 0 | HLV18: 0 | HLW18: 0 | HLX18: 0 | HLY18: 0 | HLZ18: 0 | HMA18: 0 | HMB18: 0 | HMC18: 0 | HMD18: 0 | HME18: 0 | HMF18: 0 | HMG18: 0 | HMH18: 0 | HMI18: 0 | HMJ18: 0 | HMK18: 0 | HML18: 0 | HMM18: 0 | HMN18: 0 | HMO18: 0 | HMP18: 0 | HMQ18: 0 | HMR18: 0 | HMS18: 0 | HMT18: 0 | HMU18: 0 | HMV18: 0 | HMW18: =HMW16/25 -> 0 | HMX18: 0 | HMY18: 0 | HMZ18: 0 | HNA18: 0 | HNB18: 0 | HNC18: 0 | HND18: 0 | HNE18: 0 | HNF18: 0 | HNG18: 0 | HNH18: 0 | HNI18: 0 | HNJ18: 0 | HNK18: 0 | HNL18: 0 | HNM18: 0 | HNN18: 0 | HNO18: 0 | HNP18: 0 | HNQ18: 0 | HNR18: 0 | HNS18: 0 | HNT18: 0 | HNU18: 0 | HNV18: 0 | HNW18: 0 | HNX18: 0 | HNY18: 0 | HNZ18: 0 | HOA18: 0 | HOB18: 0 | HOC18: 0 | HOD18: 0 | HOE18: 0 | HOF18: 0 | HOG18: 0 | HOH18: 0 | HOI18: 0 | HOJ18: 0 | HOK18: 0 | HOL18: 0 | HOM18: 0 | HON18: 0 | HOO18: 0 | HOP18: 0 | HOQ18: 0 | HOR18: 0 | HOS18: 0 | HOT18: 0 | HOU18: 0 | HOV18: 0 | HOW18: 0 | HOX18: 0 | HOY18: 0 | HOZ18: 0 | HPA18: 0 | HPB18: 0 | HPC18: 0 | HPD18: 0 | HPE18: 0 | HPF18: 0 | HPG18: 0 | HPH18: 0 | HPI18: =HPI16/25 -> 0 | HPJ18: 0 | HPK18: 0 | HPL18: 0 | HPM18: 0 | HPN18: 0 | HPO18: 0 | HPP18: 0 | HPQ18: 0 | HPR18: 0 | HPS18: 0 | HPT18: 0 | HPU18: 0 | HPV18: 0 | HPW18: 0 | HPX18: 0 | HPY18: 0 | HPZ18: 0 | HQA18: 0 | HQB18: 0 | HQC18: 0 | HQD18: 0 | HQE18: 0 | HQF18: 0 | HQG18: 0 | HQH18: 0 | HQI18: 0 | HQJ18: 0 | HQK18: 0 | HQL18: 0 | HQM18: 0 | HQN18: 0 | HQO18: 0 | HQP18: 0 | HQQ18: 0 | HQR18: 0 | HQS18: 0 | HQT18: 0 | HQU18: 0 | HQV18: 0 | HQW18: 0 | HQX18: 0 | HQY18: 0 | HQZ18: 0 | HRA18: 0 | HRB18: 0 | HRC18: 0 | HRD18: 0 | HRE18: 0 | HRF18: 0 | HRG18: 0 | HRH18: 0 | HRI18: 0 | HRJ18: 0 | HRK18: 0 | HRL18: 0 | HRM18: 0 | HRN18: 0 | HRO18: 0 | HRP18: 0 | HRQ18: 0 | HRR18: 0 | HRS18: 0 | HRT18: 0 | HRU18: =HRU16/25 -> 0 | HRV18: 0 | HRW18: 0 | HRX18: 0 | HRY18: 0 | HRZ18: 0 | HSA18: 0 | HSB18: 0 | HSC18: 0 | HSD18: 0 | HSE18: 0 | HSF18: 0 | HSG18: 0 | HSH18: 0 | HSI18: 0 | HSJ18: 0 | HSK18: 0 | HSL18: 0 | HSM18: 0 | HSN18: 0 | HSO18: 0 | HSP18: 0 | HSQ18: 0 | HSR18: 0 | HSS18: 0 | HST18: 0 | HSU18: 0 | HSV18: 0 | HSW18: 0 | HSX18: 0 | HSY18: 0 | HSZ18: 0 | HTA18: 0 | HTB18: 0 | HTC18: 0 | HTD18: 0 | HTE18: 0 | HTF18: 0 | HTG18: 0 | HTH18: 0 | HTI18: 0 | HTJ18: 0 | HTK18: 0 | HTL18: 0 | HTM18: 0 | HTN18: 0 | HTO18: 0 | HTP18: 0 | HTQ18: 0 | HTR18: 0 | HTS18: 0 | HTT18: 0 | HTU18: 0 | HTV18: 0 | HTW18: 0 | HTX18: 0 | HTY18: 0 | HTZ18: 0 | HUA18: 0 | HUB18: 0 | HUC18: 0 | HUD18: 0 | HUE18: 0 | HUF18: 0 | HUG18: =HUG16/25 -> 0 | HUH18: 0 | HUI18: 0 | HUJ18: 0 | HUK18: 0 | HUL18: 0 | HUM18: 0 | HUN18: 0 | HUO18: 0 | HUP18: 0 | HUQ18: 0 | HUR18: 0 | HUS18: 0 | HUT18: 0 | HUU18: 0 | HUV18: 0 | HUW18: 0 | HUX18: 0 | HUY18: 0 | HUZ18: 0 | HVA18: 0 | HVB18: 0 | HVC18: 0 | HVD18: 0 | HVE18: 0 | HVF18: 0 | HVG18: 0 | HVH18: 0 | HVI18: 0 | HVJ18: 0 | HVK18: 0 | HVL18: 0 | HVM18: 0 | HVN18: 0 | HVO18: 0 | HVP18: 0 | HVQ18: 0 | HVR18: 0 | HVS18: 0 | HVT18: 0 | HVU18: 0 | HVV18: 0 | HVW18: 0 | HVX18: 0 | HVY18: 0 | HVZ18: 0 | HWA18: 0 | HWB18: 0 | HWC18: 0 | HWD18: 0 | HWE18: 0 | HWF18: 0 | HWG18: 0 | HWH18: 0 | HWI18: 0 | HWJ18: 0 | HWK18: 0 | HWL18: 0 | HWM18: 0 | HWN18: 0 | HWO18: 0 | HWP18: 0 | HWQ18: 0 | HWR18: 0 | HWS18: =HWS16/25 -> 0 | HWT18: 0 | HWU18: 0 | HWV18: 0 | HWW18: 0 | HWX18: 0 | HWY18: 0 | HWZ18: 0 | HXA18: 0 | HXB18: 0 | HXC18: 0 | HXD18: 0 | HXE18: 0 | HXF18: 0 | HXG18: 0 | HXH18: 0 | HXI18: 0 | HXJ18: 0 | HXK18: 0 | HXL18: 0 | HXM18: 0 | HXN18: 0 | HXO18: 0 | HXP18: 0 | HXQ18: 0 | HXR18: 0 | HXS18: 0 | HXT18: 0 | HXU18: 0 | HXV18: 0 | HXW18: 0 | HXX18: 0 | HXY18: 0 | HXZ18: 0 | HYA18: 0 | HYB18: 0 | HYC18: 0 | HYD18: 0 | HYE18: 0 | HYF18: 0 | HYG18: 0 | HYH18: 0 | HYI18: 0 | HYJ18: 0 | HYK18: 0 | HYL18: 0 | HYM18: 0 | HYN18: 0 | HYO18: 0 | HYP18: 0 | HYQ18: 0 | HYR18: 0 | HYS18: 0 | HYT18: 0 | HYU18: 0 | HYV18: 0 | HYW18: 0 | HYX18: 0 | HYY18: 0 | HYZ18: 0 | HZA18: 0 | HZB18: 0 | HZC18: 0 | HZD18: 0 | HZE18: =HZE16/25 -> 0 | HZF18: 0 | HZG18: 0 | HZH18: 0 | HZI18: 0 | HZJ18: 0 | HZK18: 0 | HZL18: 0 | HZM18: 0 | HZN18: 0 | HZO18: 0 | HZP18: 0 | HZQ18: 0 | HZR18: 0 | HZS18: 0 | HZT18: 0 | HZU18: 0 | HZV18: 0 | HZW18: 0 | HZX18: 0 | HZY18: 0 | HZZ18: 0 | IAA18: 0 | IAB18: 0 | IAC18: 0 | IAD18: 0 | IAE18: 0 | IAF18: 0 | IAG18: 0 | IAH18: 0 | IAI18: 0 | IAJ18: 0 | IAK18: 0 | IAL18: 0 | IAM18: 0 | IAN18: 0 | IAO18: 0 | IAP18: 0 | IAQ18: 0 | IAR18: 0 | IAS18: 0 | IAT18: 0 | IAU18: 0 | IAV18: 0 | IAW18: 0 | IAX18: 0 | IAY18: 0 | IAZ18: 0 | IBA18: 0 | IBB18: 0 | IBC18: 0 | IBD18: 0 | IBE18: 0 | IBF18: 0 | IBG18: 0 | IBH18: 0 | IBI18: 0 | IBJ18: 0 | IBK18: 0 | IBL18: 0 | IBM18: 0 | IBN18: 0 | IBO18: 0 | IBP18: 0 | IBQ18: =IBQ16/25 -> 0 | IBR18: 0 | IBS18: 0 | IBT18: 0 | IBU18: 0 | IBV18: 0 | IBW18: 0 | IBX18: 0 | IBY18: 0 | IBZ18: 0 | ICA18: 0 | ICB18: 0 | ICC18: 0 | ICD18: 0 | ICE18: 0 | ICF18: 0 | ICG18: 0 | ICH18: 0 | ICI18: 0 | ICJ18: 0 | ICK18: 0 | ICL18: 0 | ICM18: 0 | ICN18: 0 | ICO18: 0 | ICP18: 0 | ICQ18: 0 | ICR18: 0 | ICS18: 0 | ICT18: 0 | ICU18: 0 | ICV18: 0 | ICW18: 0 | ICX18: 0 | ICY18: 0 | ICZ18: 0 | IDA18: 0 | IDB18: 0 | IDC18: 0 | IDD18: 0 | IDE18: 0 | IDF18: 0 | IDG18: 0 | IDH18: 0 | IDI18: 0 | IDJ18: 0 | IDK18: 0 | IDL18: 0 | IDM18: 0 | IDN18: 0 | IDO18: 0 | IDP18: 0 | IDQ18: 0 | IDR18: 0 | IDS18: 0 | IDT18: 0 | IDU18: 0 | IDV18: 0 | IDW18: 0 | IDX18: 0 | IDY18: 0 | IDZ18: 0 | IEA18: 0 | IEB18: 0 | IEC18: =IEC16/25 -> 0 | IED18: 0 | IEE18: 0 | IEF18: 0 | IEG18: 0 | IEH18: 0 | IEI18: 0 | IEJ18: 0 | IEK18: 0 | IEL18: 0 | IEM18: 0 | IEN18: 0 | IEO18: 0 | IEP18: 0 | IEQ18: 0 | IER18: 0 | IES18: 0 | IET18: 0 | IEU18: 0 | IEV18: 0 | IEW18: 0 | IEX18: 0 | IEY18: 0 | IEZ18: 0 | IFA18: 0 | IFB18: 0 | IFC18: 0 | IFD18: 0 | IFE18: 0 | IFF18: 0 | IFG18: 0 | IFH18: 0 | IFI18: 0 | IFJ18: 0 | IFK18: 0 | IFL18: 0 | IFM18: 0 | IFN18: 0 | IFO18: 0 | IFP18: 0 | IFQ18: 0 | IFR18: 0 | IFS18: 0 | IFT18: 0 | IFU18: 0 | IFV18: 0 | IFW18: 0 | IFX18: 0 | IFY18: 0 | IFZ18: 0 | IGA18: 0 | IGB18: 0 | IGC18: 0 | IGD18: 0 | IGE18: 0 | IGF18: 0 | IGG18: 0 | IGH18: 0 | IGI18: 0 | IGJ18: 0 | IGK18: 0 | IGL18: 0 | IGM18: 0 | IGN18: 0 | IGO18: =IGO16/25 -> 0 | IGP18: 0 | IGQ18: 0 | IGR18: 0 | IGS18: 0 | IGT18: 0 | IGU18: 0 | IGV18: 0 | IGW18: 0 | IGX18: 0 | IGY18: 0 | IGZ18: 0 | IHA18: 0 | IHB18: 0 | IHC18: 0 | IHD18: 0 | IHE18: 0 | IHF18: 0 | IHG18: 0 | IHH18: 0 | IHI18: 0 | IHJ18: 0 | IHK18: 0 | IHL18: 0 | IHM18: 0 | IHN18: 0 | IHO18: 0 | IHP18: 0 | IHQ18: 0 | IHR18: 0 | IHS18: 0 | IHT18: 0 | IHU18: 0 | IHV18: 0 | IHW18: 0 | IHX18: 0 | IHY18: 0 | IHZ18: 0 | IIA18: 0 | IIB18: 0 | IIC18: 0 | IID18: 0 | IIE18: 0 | IIF18: 0 | IIG18: 0 | IIH18: 0 | III18: 0 | IIJ18: 0 | IIK18: 0 | IIL18: 0 | IIM18: 0 | IIN18: 0 | IIO18: 0 | IIP18: 0 | IIQ18: 0 | IIR18: 0 | IIS18: 0 | IIT18: 0 | IIU18: 0 | IIV18: 0 | IIW18: 0 | IIX18: 0 | IIY18: 0 | IIZ18: 0 | IJA18: =IJA16/25 -> 0 | IJB18: 0 | IJC18: 0 | IJD18: 0 | IJE18: 0 | IJF18: 0 | IJG18: 0 | IJH18: 0 | IJI18: 0 | IJJ18: 0 | IJK18: 0 | IJL18: 0 | IJM18: 0 | IJN18: 0 | IJO18: 0 | IJP18: 0 | IJQ18: 0 | IJR18: 0 | IJS18: 0 | IJT18: 0 | IJU18: 0 | IJV18: 0 | IJW18: 0 | IJX18: 0 | IJY18: 0 | IJZ18: 0 | IKA18: 0 | IKB18: 0 | IKC18: 0 | IKD18: 0 | IKE18: 0 | IKF18: 0 | IKG18: 0 | IKH18: 0 | IKI18: 0 | IKJ18: 0 | IKK18: 0 | IKL18: 0 | IKM18: 0 | IKN18: 0 | IKO18: 0 | IKP18: 0 | IKQ18: 0 | IKR18: 0 | IKS18: 0 | IKT18: 0 | IKU18: 0 | IKV18: 0 | IKW18: 0 | IKX18: 0 | IKY18: 0 | IKZ18: 0 | ILA18: 0 | ILB18: 0 | ILC18: 0 | ILD18: 0 | ILE18: 0 | ILF18: 0 | ILG18: 0 | ILH18: 0 | ILI18: 0 | ILJ18: 0 | ILK18: 0 | ILL18: 0 | ILM18: =ILM16/25 -> 0 | ILN18: 0 | ILO18: 0 | ILP18: 0 | ILQ18: 0 | ILR18: 0 | ILS18: 0 | ILT18: 0 | ILU18: 0 | ILV18: 0 | ILW18: 0 | ILX18: 0 | ILY18: 0 | ILZ18: 0 | IMA18: 0 | IMB18: 0 | IMC18: 0 | IMD18: 0 | IME18: 0 | IMF18: 0 | IMG18: 0 | IMH18: 0 | IMI18: 0 | IMJ18: 0 | IMK18: 0 | IML18: 0 | IMM18: 0 | IMN18: 0 | IMO18: 0 | IMP18: 0 | IMQ18: 0 | IMR18: 0 | IMS18: 0 | IMT18: 0 | IMU18: 0 | IMV18: 0 | IMW18: 0 | IMX18: 0 | IMY18: 0 | IMZ18: 0 | INA18: 0 | INB18: 0 | INC18: 0 | IND18: 0 | INE18: 0 | INF18: 0 | ING18: 0 | INH18: 0 | INI18: 0 | INJ18: 0 | INK18: 0 | INL18: 0 | INM18: 0 | INN18: 0 | INO18: 0 | INP18: 0 | INQ18: 0 | INR18: 0 | INS18: 0 | INT18: 0 | INU18: 0 | INV18: 0 | INW18: 0 | INX18: 0 | INY18: =INY16/25 -> 0 | INZ18: 0 | IOA18: 0 | IOB18: 0 | IOC18: 0 | IOD18: 0 | IOE18: 0 | IOF18: 0 | IOG18: 0 | IOH18: 0 | IOI18: 0 | IOJ18: 0 | IOK18: 0 | IOL18: 0 | IOM18: 0 | ION18: 0 | IOO18: 0 | IOP18: 0 | IOQ18: 0 | IOR18: 0 | IOS18: 0 | IOT18: 0 | IOU18: 0 | IOV18: 0 | IOW18: 0 | IOX18: 0 | IOY18: 0 | IOZ18: 0 | IPA18: 0 | IPB18: 0 | IPC18: 0 | IPD18: 0 | IPE18: 0 | IPF18: 0 | IPG18: 0 | IPH18: 0 | IPI18: 0 | IPJ18: 0 | IPK18: 0 | IPL18: 0 | IPM18: 0 | IPN18: 0 | IPO18: 0 | IPP18: 0 | IPQ18: 0 | IPR18: 0 | IPS18: 0 | IPT18: 0 | IPU18: 0 | IPV18: 0 | IPW18: 0 | IPX18: 0 | IPY18: 0 | IPZ18: 0 | IQA18: 0 | IQB18: 0 | IQC18: 0 | IQD18: 0 | IQE18: 0 | IQF18: 0 | IQG18: 0 | IQH18: 0 | IQI18: 0 | IQJ18: 0 | IQK18: =IQK16/25 -> 0 | IQL18: 0 | IQM18: 0 | IQN18: 0 | IQO18: 0 | IQP18: 0 | IQQ18: 0 | IQR18: 0 | IQS18: 0 | IQT18: 0 | IQU18: 0 | IQV18: 0 | IQW18: 0 | IQX18: 0 | IQY18: 0 | IQZ18: 0 | IRA18: 0 | IRB18: 0 | IRC18: 0 | IRD18: 0 | IRE18: 0 | IRF18: 0 | IRG18: 0 | IRH18: 0 | IRI18: 0 | IRJ18: 0 | IRK18: 0 | IRL18: 0 | IRM18: 0 | IRN18: 0 | IRO18: 0 | IRP18: 0 | IRQ18: 0 | IRR18: 0 | IRS18: 0 | IRT18: 0 | IRU18: 0 | IRV18: 0 | IRW18: 0 | IRX18: 0 | IRY18: 0 | IRZ18: 0 | ISA18: 0 | ISB18: 0 | ISC18: 0 | ISD18: 0 | ISE18: 0 | ISF18: 0 | ISG18: 0 | ISH18: 0 | ISI18: 0 | ISJ18: 0 | ISK18: 0 | ISL18: 0 | ISM18: 0 | ISN18: 0 | ISO18: 0 | ISP18: 0 | ISQ18: 0 | ISR18: 0 | ISS18: 0 | IST18: 0 | ISU18: 0 | ISV18: 0 | ISW18: =ISW16/25 -> 0 | ISX18: 0 | ISY18: 0 | ISZ18: 0 | ITA18: 0 | ITB18: 0 | ITC18: 0 | ITD18: 0 | ITE18: 0 | ITF18: 0 | ITG18: 0 | ITH18: 0 | ITI18: 0 | ITJ18: 0 | ITK18: 0 | ITL18: 0 | ITM18: 0 | ITN18: 0 | ITO18: 0 | ITP18: 0 | ITQ18: 0 | ITR18: 0 | ITS18: 0 | ITT18: 0 | ITU18: 0 | ITV18: 0 | ITW18: 0 | ITX18: 0 | ITY18: 0 | ITZ18: 0 | IUA18: 0 | IUB18: 0 | IUC18: 0 | IUD18: 0 | IUE18: 0 | IUF18: 0 | IUG18: 0 | IUH18: 0 | IUI18: 0 | IUJ18: 0 | IUK18: 0 | IUL18: 0 | IUM18: 0 | IUN18: 0 | IUO18: 0 | IUP18: 0 | IUQ18: 0 | IUR18: 0 | IUS18: 0 | IUT18: 0 | IUU18: 0 | IUV18: 0 | IUW18: 0 | IUX18: 0 | IUY18: 0 | IUZ18: 0 | IVA18: 0 | IVB18: 0 | IVC18: 0 | IVD18: 0 | IVE18: 0 | IVF18: 0 | IVG18: 0 | IVH18: 0 | IVI18: =IVI16/25 -> 0 | IVJ18: 0 | IVK18: 0 | IVL18: 0 | IVM18: 0 | IVN18: 0 | IVO18: 0 | IVP18: 0 | IVQ18: 0 | IVR18: 0 | IVS18: 0 | IVT18: 0 | IVU18: 0 | IVV18: 0 | IVW18: 0 | IVX18: 0 | IVY18: 0 | IVZ18: 0 | IWA18: 0 | IWB18: 0 | IWC18: 0 | IWD18: 0 | IWE18: 0 | IWF18: 0 | IWG18: 0 | IWH18: 0 | IWI18: 0 | IWJ18: 0 | IWK18: 0 | IWL18: 0 | IWM18: 0 | IWN18: 0 | IWO18: 0 | IWP18: 0 | IWQ18: 0 | IWR18: 0 | IWS18: 0 | IWT18: 0 | IWU18: 0 | IWV18: 0 | IWW18: 0 | IWX18: 0 | IWY18: 0 | IWZ18: 0 | IXA18: 0 | IXB18: 0 | IXC18: 0 | IXD18: 0 | IXE18: 0 | IXF18: 0 | IXG18: 0 | IXH18: 0 | IXI18: 0 | IXJ18: 0 | IXK18: 0 | IXL18: 0 | IXM18: 0 | IXN18: 0 | IXO18: 0 | IXP18: 0 | IXQ18: 0 | IXR18: 0 | IXS18: 0 | IXT18: 0 | IXU18: =IXU16/25 -> 0 | IXV18: 0 | IXW18: 0 | IXX18: 0 | IXY18: 0 | IXZ18: 0 | IYA18: 0 | IYB18: 0 | IYC18: 0 | IYD18: 0 | IYE18: 0 | IYF18: 0 | IYG18: 0 | IYH18: 0 | IYI18: 0 | IYJ18: 0 | IYK18: 0 | IYL18: 0 | IYM18: 0 | IYN18: 0 | IYO18: 0 | IYP18: 0 | IYQ18: 0 | IYR18: 0 | IYS18: 0 | IYT18: 0 | IYU18: 0 | IYV18: 0 | IYW18: 0 | IYX18: 0 | IYY18: 0 | IYZ18: 0 | IZA18: 0 | IZB18: 0 | IZC18: 0 | IZD18: 0 | IZE18: 0 | IZF18: 0 | IZG18: 0 | IZH18: 0 | IZI18: 0 | IZJ18: 0 | IZK18: 0 | IZL18: 0 | IZM18: 0 | IZN18: 0 | IZO18: 0 | IZP18: 0 | IZQ18: 0 | IZR18: 0 | IZS18: 0 | IZT18: 0 | IZU18: 0 | IZV18: 0 | IZW18: 0 | IZX18: 0 | IZY18: 0 | IZZ18: 0 | JAA18: 0 | JAB18: 0 | JAC18: 0 | JAD18: 0 | JAE18: 0 | JAF18: 0 | JAG18: =JAG16/25 -> 0 | JAH18: 0 | JAI18: 0 | JAJ18: 0 | JAK18: 0 | JAL18: 0 | JAM18: 0 | JAN18: 0 | JAO18: 0 | JAP18: 0 | JAQ18: 0 | JAR18: 0 | JAS18: 0 | JAT18: 0 | JAU18: 0 | JAV18: 0 | JAW18: 0 | JAX18: 0 | JAY18: 0 | JAZ18: 0 | JBA18: 0 | JBB18: 0 | JBC18: 0 | JBD18: 0 | JBE18: 0 | JBF18: 0 | JBG18: 0 | JBH18: 0 | JBI18: 0 | JBJ18: 0 | JBK18: 0 | JBL18: 0 | JBM18: 0 | JBN18: 0 | JBO18: 0 | JBP18: 0 | JBQ18: 0 | JBR18: 0 | JBS18: 0 | JBT18: 0 | JBU18: 0 | JBV18: 0 | JBW18: 0 | JBX18: 0 | JBY18: 0 | JBZ18: 0 | JCA18: 0 | JCB18: 0 | JCC18: 0 | JCD18: 0 | JCE18: 0 | JCF18: 0 | JCG18: 0 | JCH18: 0 | JCI18: 0 | JCJ18: 0 | JCK18: 0 | JCL18: 0 | JCM18: 0 | JCN18: 0 | JCO18: 0 | JCP18: 0 | JCQ18: 0 | JCR18: 0 | JCS18: =JCS16/25 -> 0 | JCT18: 0 | JCU18: 0 | JCV18: 0 | JCW18: 0 | JCX18: 0 | JCY18: 0 | JCZ18: 0 | JDA18: 0 | JDB18: 0 | JDC18: 0 | JDD18: 0 | JDE18: 0 | JDF18: 0 | JDG18: 0 | JDH18: 0 | JDI18: 0 | JDJ18: 0 | JDK18: 0 | JDL18: 0 | JDM18: 0 | JDN18: 0 | JDO18: 0 | JDP18: 0 | JDQ18: 0 | JDR18: 0 | JDS18: 0 | JDT18: 0 | JDU18: 0 | JDV18: 0 | JDW18: 0 | JDX18: 0 | JDY18: 0 | JDZ18: 0 | JEA18: 0 | JEB18: 0 | JEC18: 0 | JED18: 0 | JEE18: 0 | JEF18: 0 | JEG18: 0 | JEH18: 0 | JEI18: 0 | JEJ18: 0 | JEK18: 0 | JEL18: 0 | JEM18: 0 | JEN18: 0 | JEO18: 0 | JEP18: 0 | JEQ18: 0 | JER18: 0 | JES18: 0 | JET18: 0 | JEU18: 0 | JEV18: 0 | JEW18: 0 | JEX18: 0 | JEY18: 0 | JEZ18: 0 | JFA18: 0 | JFB18: 0 | JFC18: 0 | JFD18: 0 | JFE18: =JFE16/25 -> 0 | JFF18: 0 | JFG18: 0 | JFH18: 0 | JFI18: 0 | JFJ18: 0 | JFK18: 0 | JFL18: 0 | JFM18: 0 | JFN18: 0 | JFO18: 0 | JFP18: 0 | JFQ18: 0 | JFR18: 0 | JFS18: 0 | JFT18: 0 | JFU18: 0 | JFV18: 0 | JFW18: 0 | JFX18: 0 | JFY18: 0 | JFZ18: 0 | JGA18: 0 | JGB18: 0 | JGC18: 0 | JGD18: 0 | JGE18: 0 | JGF18: 0 | JGG18: 0 | JGH18: 0 | JGI18: 0 | JGJ18: 0 | JGK18: 0 | JGL18: 0 | JGM18: 0 | JGN18: 0 | JGO18: 0 | JGP18: 0 | JGQ18: 0 | JGR18: 0 | JGS18: 0 | JGT18: 0 | JGU18: 0 | JGV18: 0 | JGW18: 0 | JGX18: 0 | JGY18: 0 | JGZ18: 0 | JHA18: 0 | JHB18: 0 | JHC18: 0 | JHD18: 0 | JHE18: 0 | JHF18: 0 | JHG18: 0 | JHH18: 0 | JHI18: 0 | JHJ18: 0 | JHK18: 0 | JHL18: 0 | JHM18: 0 | JHN18: 0 | JHO18: 0 | JHP18: 0 | JHQ18: =JHQ16/25 -> 0 | JHR18: 0 | JHS18: 0 | JHT18: 0 | JHU18: 0 | JHV18: 0 | JHW18: 0 | JHX18: 0 | JHY18: 0 | JHZ18: 0 | JIA18: 0 | JIB18: 0 | JIC18: 0 | JID18: 0 | JIE18: 0 | JIF18: 0 | JIG18: 0 | JIH18: 0 | JII18: 0 | JIJ18: 0 | JIK18: 0 | JIL18: 0 | JIM18: 0 | JIN18: 0 | JIO18: 0 | JIP18: 0 | JIQ18: 0 | JIR18: 0 | JIS18: 0 | JIT18: 0 | JIU18: 0 | JIV18: 0 | JIW18: 0 | JIX18: 0 | JIY18: 0 | JIZ18: 0 | JJA18: 0 | JJB18: 0 | JJC18: 0 | JJD18: 0 | JJE18: 0 | JJF18: 0 | JJG18: 0 | JJH18: 0 | JJI18: 0 | JJJ18: 0 | JJK18: 0 | JJL18: 0 | JJM18: 0 | JJN18: 0 | JJO18: 0 | JJP18: 0 | JJQ18: 0 | JJR18: 0 | JJS18: 0 | JJT18: 0 | JJU18: 0 | JJV18: 0 | JJW18: 0 | JJX18: 0 | JJY18: 0 | JJZ18: 0 | JKA18: 0 | JKB18: 0 | JKC18: =JKC16/25 -> 0 | JKD18: 0 | JKE18: 0 | JKF18: 0 | JKG18: 0 | JKH18: 0 | JKI18: 0 | JKJ18: 0 | JKK18: 0 | JKL18: 0 | JKM18: 0 | JKN18: 0 | JKO18: 0 | JKP18: 0 | JKQ18: 0 | JKR18: 0 | JKS18: 0 | JKT18: 0 | JKU18: 0 | JKV18: 0 | JKW18: 0 | JKX18: 0 | JKY18: 0 | JKZ18: 0 | JLA18: 0 | JLB18: 0 | JLC18: 0 | JLD18: 0 | JLE18: 0 | JLF18: 0 | JLG18: 0 | JLH18: 0 | JLI18: 0 | JLJ18: 0 | JLK18: 0 | JLL18: 0 | JLM18: 0 | JLN18: 0 | JLO18: 0 | JLP18: 0 | JLQ18: 0 | JLR18: 0 | JLS18: 0 | JLT18: 0 | JLU18: 0 | JLV18: 0 | JLW18: 0 | JLX18: 0 | JLY18: 0 | JLZ18: 0 | JMA18: 0 | JMB18: 0 | JMC18: 0 | JMD18: 0 | JME18: 0 | JMF18: 0 | JMG18: 0 | JMH18: 0 | JMI18: 0 | JMJ18: 0 | JMK18: 0 | JML18: 0 | JMM18: 0 | JMN18: 0 | JMO18: =JMO16/25 -> 0 | JMP18: 0 | JMQ18: 0 | JMR18: 0 | JMS18: 0 | JMT18: 0 | JMU18: 0 | JMV18: 0 | JMW18: 0 | JMX18: 0 | JMY18: 0 | JMZ18: 0 | JNA18: 0 | JNB18: 0 | JNC18: 0 | JND18: 0 | JNE18: 0 | JNF18: 0 | JNG18: 0 | JNH18: 0 | JNI18: 0 | JNJ18: 0 | JNK18: 0 | JNL18: 0 | JNM18: 0 | JNN18: 0 | JNO18: 0 | JNP18: 0 | JNQ18: 0 | JNR18: 0 | JNS18: 0 | JNT18: 0 | JNU18: 0 | JNV18: 0 | JNW18: 0 | JNX18: 0 | JNY18: 0 | JNZ18: 0 | JOA18: 0 | JOB18: 0 | JOC18: 0 | JOD18: 0 | JOE18: 0 | JOF18: 0 | JOG18: 0 | JOH18: 0 | JOI18: 0 | JOJ18: 0 | JOK18: 0 | JOL18: 0 | JOM18: 0 | JON18: 0 | JOO18: 0 | JOP18: 0 | JOQ18: 0 | JOR18: 0 | JOS18: 0 | JOT18: 0 | JOU18: 0 | JOV18: 0 | JOW18: 0 | JOX18: 0 | JOY18: 0 | JOZ18: 0 | JPA18: =JPA16/25 -> 0 | JPB18: 0 | JPC18: 0 | JPD18: 0 | JPE18: 0 | JPF18: 0 | JPG18: 0 | JPH18: 0 | JPI18: 0 | JPJ18: 0 | JPK18: 0 | JPL18: 0 | JPM18: 0 | JPN18: 0 | JPO18: 0 | JPP18: 0 | JPQ18: 0 | JPR18: 0 | JPS18: 0 | JPT18: 0 | JPU18: 0 | JPV18: 0 | JPW18: 0 | JPX18: 0 | JPY18: 0 | JPZ18: 0 | JQA18: 0 | JQB18: 0 | JQC18: 0 | JQD18: 0 | JQE18: 0 | JQF18: 0 | JQG18: 0 | JQH18: 0 | JQI18: 0 | JQJ18: 0 | JQK18: 0 | JQL18: 0 | JQM18: 0 | JQN18: 0 | JQO18: 0 | JQP18: 0 | JQQ18: 0 | JQR18: 0 | JQS18: 0 | JQT18: 0 | JQU18: 0 | JQV18: 0 | JQW18: 0 | JQX18: 0 | JQY18: 0 | JQZ18: 0 | JRA18: 0 | JRB18: 0 | JRC18: 0 | JRD18: 0 | JRE18: 0 | JRF18: 0 | JRG18: 0 | JRH18: 0 | JRI18: 0 | JRJ18: 0 | JRK18: 0 | JRL18: 0 | JRM18: =JRM16/25 -> 0 | JRN18: 0 | JRO18: 0 | JRP18: 0 | JRQ18: 0 | JRR18: 0 | JRS18: 0 | JRT18: 0 | JRU18: 0 | JRV18: 0 | JRW18: 0 | JRX18: 0 | JRY18: 0 | JRZ18: 0 | JSA18: 0 | JSB18: 0 | JSC18: 0 | JSD18: 0 | JSE18: 0 | JSF18: 0 | JSG18: 0 | JSH18: 0 | JSI18: 0 | JSJ18: 0 | JSK18: 0 | JSL18: 0 | JSM18: 0 | JSN18: 0 | JSO18: 0 | JSP18: 0 | JSQ18: 0 | JSR18: 0 | JSS18: 0 | JST18: 0 | JSU18: 0 | JSV18: 0 | JSW18: 0 | JSX18: 0 | JSY18: 0 | JSZ18: 0 | JTA18: 0 | JTB18: 0 | JTC18: 0 | JTD18: 0 | JTE18: 0 | JTF18: 0 | JTG18: 0 | JTH18: 0 | JTI18: 0 | JTJ18: 0 | JTK18: 0 | JTL18: 0 | JTM18: 0 | JTN18: 0 | JTO18: 0 | JTP18: 0 | JTQ18: 0 | JTR18: 0 | JTS18: 0 | JTT18: 0 | JTU18: 0 | JTV18: 0 | JTW18: 0 | JTX18: 0 | JTY18: =JTY16/25 -> 0 | JTZ18: 0 | JUA18: 0 | JUB18: 0 | JUC18: 0 | JUD18: 0 | JUE18: 0 | JUF18: 0 | JUG18: 0 | JUH18: 0 | JUI18: 0 | JUJ18: 0 | JUK18: 0 | JUL18: 0 | JUM18: 0 | JUN18: 0 | JUO18: 0 | JUP18: 0 | JUQ18: 0 | JUR18: 0 | JUS18: 0 | JUT18: 0 | JUU18: 0 | JUV18: 0 | JUW18: 0 | JUX18: 0 | JUY18: 0 | JUZ18: 0 | JVA18: 0 | JVB18: 0 | JVC18: 0 | JVD18: 0 | JVE18: 0 | JVF18: 0 | JVG18: 0 | JVH18: 0 | JVI18: 0 | JVJ18: 0 | JVK18: 0 | JVL18: 0 | JVM18: 0 | JVN18: 0 | JVO18: 0 | JVP18: 0 | JVQ18: 0 | JVR18: 0 | JVS18: 0 | JVT18: 0 | JVU18: 0 | JVV18: 0 | JVW18: 0 | JVX18: 0 | JVY18: 0 | JVZ18: 0 | JWA18: 0 | JWB18: 0 | JWC18: 0 | JWD18: 0 | JWE18: 0 | JWF18: 0 | JWG18: 0 | JWH18: 0 | JWI18: 0 | JWJ18: 0 | JWK18: =JWK16/25 -> 0 | JWL18: 0 | JWM18: 0 | JWN18: 0 | JWO18: 0 | JWP18: 0 | JWQ18: 0 | JWR18: 0 | JWS18: 0 | JWT18: 0 | JWU18: 0 | JWV18: 0 | JWW18: 0 | JWX18: 0 | JWY18: 0 | JWZ18: 0 | JXA18: 0 | JXB18: 0 | JXC18: 0 | JXD18: 0 | JXE18: 0 | JXF18: 0 | JXG18: 0 | JXH18: 0 | JXI18: 0 | JXJ18: 0 | JXK18: 0 | JXL18: 0 | JXM18: 0 | JXN18: 0 | JXO18: 0 | JXP18: 0 | JXQ18: 0 | JXR18: 0 | JXS18: 0 | JXT18: 0 | JXU18: 0 | JXV18: 0 | JXW18: 0 | JXX18: 0 | JXY18: 0 | JXZ18: 0 | JYA18: 0 | JYB18: 0 | JYC18: 0 | JYD18: 0 | JYE18: 0 | JYF18: 0 | JYG18: 0 | JYH18: 0 | JYI18: 0 | JYJ18: 0 | JYK18: 0 | JYL18: 0 | JYM18: 0 | JYN18: 0 | JYO18: 0 | JYP18: 0 | JYQ18: 0 | JYR18: 0 | JYS18: 0 | JYT18: 0 | JYU18: 0 | JYV18: 0 | JYW18: =JYW16/25 -> 0 | JYX18: 0 | JYY18: 0 | JYZ18: 0 | JZA18: 0 | JZB18: 0 | JZC18: 0 | JZD18: 0 | JZE18: 0 | JZF18: 0 | JZG18: 0 | JZH18: 0 | JZI18: 0 | JZJ18: 0 | JZK18: 0 | JZL18: 0 | JZM18: 0 | JZN18: 0 | JZO18: 0 | JZP18: 0 | JZQ18: 0 | JZR18: 0 | JZS18: 0 | JZT18: 0 | JZU18: 0 | JZV18: 0 | JZW18: 0 | JZX18: 0 | JZY18: 0 | JZZ18: 0 | KAA18: 0 | KAB18: 0 | KAC18: 0 | KAD18: 0 | KAE18: 0 | KAF18: 0 | KAG18: 0 | KAH18: 0 | KAI18: 0 | KAJ18: 0 | KAK18: 0 | KAL18: 0 | KAM18: 0 | KAN18: 0 | KAO18: 0 | KAP18: 0 | KAQ18: 0 | KAR18: 0 | KAS18: 0 | KAT18: 0 | KAU18: 0 | KAV18: 0 | KAW18: 0 | KAX18: 0 | KAY18: 0 | KAZ18: 0 | KBA18: 0 | KBB18: 0 | KBC18: 0 | KBD18: 0 | KBE18: 0 | KBF18: 0 | KBG18: 0 | KBH18: 0 | KBI18: =KBI16/25 -> 0 | KBJ18: 0 | KBK18: 0 | KBL18: 0 | KBM18: 0 | KBN18: 0 | KBO18: 0 | KBP18: 0 | KBQ18: 0 | KBR18: 0 | KBS18: 0 | KBT18: 0 | KBU18: 0 | KBV18: 0 | KBW18: 0 | KBX18: 0 | KBY18: 0 | KBZ18: 0 | KCA18: 0 | KCB18: 0 | KCC18: 0 | KCD18: 0 | KCE18: 0 | KCF18: 0 | KCG18: 0 | KCH18: 0 | KCI18: 0 | KCJ18: 0 | KCK18: 0 | KCL18: 0 | KCM18: 0 | KCN18: 0 | KCO18: 0 | KCP18: 0 | KCQ18: 0 | KCR18: 0 | KCS18: 0 | KCT18: 0 | KCU18: 0 | KCV18: 0 | KCW18: 0 | KCX18: 0 | KCY18: 0 | KCZ18: 0 | KDA18: 0 | KDB18: 0 | KDC18: 0 | KDD18: 0 | KDE18: 0 | KDF18: 0 | KDG18: 0 | KDH18: 0 | KDI18: 0 | KDJ18: 0 | KDK18: 0 | KDL18: 0 | KDM18: 0 | KDN18: 0 | KDO18: 0 | KDP18: 0 | KDQ18: 0 | KDR18: 0 | KDS18: 0 | KDT18: 0 | KDU18: =KDU16/25 -> 0 | KDV18: 0 | KDW18: 0 | KDX18: 0 | KDY18: 0 | KDZ18: 0 | KEA18: 0 | KEB18: 0 | KEC18: 0 | KED18: 0 | KEE18: 0 | KEF18: 0 | KEG18: 0 | KEH18: 0 | KEI18: 0 | KEJ18: 0 | KEK18: 0 | KEL18: 0 | KEM18: 0 | KEN18: 0 | KEO18: 0 | KEP18: 0 | KEQ18: 0 | KER18: 0 | KES18: 0 | KET18: 0 | KEU18: 0 | KEV18: 0 | KEW18: 0 | KEX18: 0 | KEY18: 0 | KEZ18: 0 | KFA18: 0 | KFB18: 0 | KFC18: 0 | KFD18: 0 | KFE18: 0 | KFF18: 0 | KFG18: 0 | KFH18: 0 | KFI18: 0 | KFJ18: 0 | KFK18: 0 | KFL18: 0 | KFM18: 0 | KFN18: 0 | KFO18: 0 | KFP18: 0 | KFQ18: 0 | KFR18: 0 | KFS18: 0 | KFT18: 0 | KFU18: 0 | KFV18: 0 | KFW18: 0 | KFX18: 0 | KFY18: 0 | KFZ18: 0 | KGA18: 0 | KGB18: 0 | KGC18: 0 | KGD18: 0 | KGE18: 0 | KGF18: 0 | KGG18: =KGG16/25 -> 0 | KGH18: 0 | KGI18: 0 | KGJ18: 0 | KGK18: 0 | KGL18: 0 | KGM18: 0 | KGN18: 0 | KGO18: 0 | KGP18: 0 | KGQ18: 0 | KGR18: 0 | KGS18: 0 | KGT18: 0 | KGU18: 0 | KGV18: 0 | KGW18: 0 | KGX18: 0 | KGY18: 0 | KGZ18: 0 | KHA18: 0 | KHB18: 0 | KHC18: 0 | KHD18: 0 | KHE18: 0 | KHF18: 0 | KHG18: 0 | KHH18: 0 | KHI18: 0 | KHJ18: 0 | KHK18: 0 | KHL18: 0 | KHM18: 0 | KHN18: 0 | KHO18: 0 | KHP18: 0 | KHQ18: 0 | KHR18: 0 | KHS18: 0 | KHT18: 0 | KHU18: 0 | KHV18: 0 | KHW18: 0 | KHX18: 0 | KHY18: 0 | KHZ18: 0 | KIA18: 0 | KIB18: 0 | KIC18: 0 | KID18: 0 | KIE18: 0 | KIF18: 0 | KIG18: 0 | KIH18: 0 | KII18: 0 | KIJ18: 0 | KIK18: 0 | KIL18: 0 | KIM18: 0 | KIN18: 0 | KIO18: 0 | KIP18: 0 | KIQ18: 0 | KIR18: 0 | KIS18: =KIS16/25 -> 0 | KIT18: 0 | KIU18: 0 | KIV18: 0 | KIW18: 0 | KIX18: 0 | KIY18: 0 | KIZ18: 0 | KJA18: 0 | KJB18: 0 | KJC18: 0 | KJD18: 0 | KJE18: 0 | KJF18: 0 | KJG18: 0 | KJH18: 0 | KJI18: 0 | KJJ18: 0 | KJK18: 0 | KJL18: 0 | KJM18: 0 | KJN18: 0 | KJO18: 0 | KJP18: 0 | KJQ18: 0 | KJR18: 0 | KJS18: 0 | KJT18: 0 | KJU18: 0 | KJV18: 0 | KJW18: 0 | KJX18: 0 | KJY18: 0 | KJZ18: 0 | KKA18: 0 | KKB18: 0 | KKC18: 0 | KKD18: 0 | KKE18: 0 | KKF18: 0 | KKG18: 0 | KKH18: 0 | KKI18: 0 | KKJ18: 0 | KKK18: 0 | KKL18: 0 | KKM18: 0 | KKN18: 0 | KKO18: 0 | KKP18: 0 | KKQ18: 0 | KKR18: 0 | KKS18: 0 | KKT18: 0 | KKU18: 0 | KKV18: 0 | KKW18: 0 | KKX18: 0 | KKY18: 0 | KKZ18: 0 | KLA18: 0 | KLB18: 0 | KLC18: 0 | KLD18: 0 | KLE18: =KLE16/25 -> 0 | KLF18: 0 | KLG18: 0 | KLH18: 0 | KLI18: 0 | KLJ18: 0 | KLK18: 0 | KLL18: 0 | KLM18: 0 | KLN18: 0 | KLO18: 0 | KLP18: 0 | KLQ18: 0 | KLR18: 0 | KLS18: 0 | KLT18: 0 | KLU18: 0 | KLV18: 0 | KLW18: 0 | KLX18: 0 | KLY18: 0 | KLZ18: 0 | KMA18: 0 | KMB18: 0 | KMC18: 0 | KMD18: 0 | KME18: 0 | KMF18: 0 | KMG18: 0 | KMH18: 0 | KMI18: 0 | KMJ18: 0 | KMK18: 0 | KML18: 0 | KMM18: 0 | KMN18: 0 | KMO18: 0 | KMP18: 0 | KMQ18: 0 | KMR18: 0 | KMS18: 0 | KMT18: 0 | KMU18: 0 | KMV18: 0 | KMW18: 0 | KMX18: 0 | KMY18: 0 | KMZ18: 0 | KNA18: 0 | KNB18: 0 | KNC18: 0 | KND18: 0 | KNE18: 0 | KNF18: 0 | KNG18: 0 | KNH18: 0 | KNI18: 0 | KNJ18: 0 | KNK18: 0 | KNL18: 0 | KNM18: 0 | KNN18: 0 | KNO18: 0 | KNP18: 0 | KNQ18: =KNQ16/25 -> 0 | KNR18: 0 | KNS18: 0 | KNT18: 0 | KNU18: 0 | KNV18: 0 | KNW18: 0 | KNX18: 0 | KNY18: 0 | KNZ18: 0 | KOA18: 0 | KOB18: 0 | KOC18: 0 | KOD18: 0 | KOE18: 0 | KOF18: 0 | KOG18: 0 | KOH18: 0 | KOI18: 0 | KOJ18: 0 | KOK18: 0 | KOL18: 0 | KOM18: 0 | KON18: 0 | KOO18: 0 | KOP18: 0 | KOQ18: 0 | KOR18: 0 | KOS18: 0 | KOT18: 0 | KOU18: 0 | KOV18: 0 | KOW18: 0 | KOX18: 0 | KOY18: 0 | KOZ18: 0 | KPA18: 0 | KPB18: 0 | KPC18: 0 | KPD18: 0 | KPE18: 0 | KPF18: 0 | KPG18: 0 | KPH18: 0 | KPI18: 0 | KPJ18: 0 | KPK18: 0 | KPL18: 0 | KPM18: 0 | KPN18: 0 | KPO18: 0 | KPP18: 0 | KPQ18: 0 | KPR18: 0 | KPS18: 0 | KPT18: 0 | KPU18: 0 | KPV18: 0 | KPW18: 0 | KPX18: 0 | KPY18: 0 | KPZ18: 0 | KQA18: 0 | KQB18: 0 | KQC18: =KQC16/25 -> 0 | KQD18: 0 | KQE18: 0 | KQF18: 0 | KQG18: 0 | KQH18: 0 | KQI18: 0 | KQJ18: 0 | KQK18: 0 | KQL18: 0 | KQM18: 0 | KQN18: 0 | KQO18: 0 | KQP18: 0 | KQQ18: 0 | KQR18: 0 | KQS18: 0 | KQT18: 0 | KQU18: 0 | KQV18: 0 | KQW18: 0 | KQX18: 0 | KQY18: 0 | KQZ18: 0 | KRA18: 0 | KRB18: 0 | KRC18: 0 | KRD18: 0 | KRE18: 0 | KRF18: 0 | KRG18: 0 | KRH18: 0 | KRI18: 0 | KRJ18: 0 | KRK18: 0 | KRL18: 0 | KRM18: 0 | KRN18: 0 | KRO18: 0 | KRP18: 0 | KRQ18: 0 | KRR18: 0 | KRS18: 0 | KRT18: 0 | KRU18: 0 | KRV18: 0 | KRW18: 0 | KRX18: 0 | KRY18: 0 | KRZ18: 0 | KSA18: 0 | KSB18: 0 | KSC18: 0 | KSD18: 0 | KSE18: 0 | KSF18: 0 | KSG18: 0 | KSH18: 0 | KSI18: 0 | KSJ18: 0 | KSK18: 0 | KSL18: 0 | KSM18: 0 | KSN18: 0 | KSO18: =KSO16/25 -> 0 | KSP18: 0 | KSQ18: 0 | KSR18: 0 | KSS18: 0 | KST18: 0 | KSU18: 0 | KSV18: 0 | KSW18: 0 | KSX18: 0 | KSY18: 0 | KSZ18: 0 | KTA18: 0 | KTB18: 0 | KTC18: 0 | KTD18: 0 | KTE18: 0 | KTF18: 0 | KTG18: 0 | KTH18: 0 | KTI18: 0 | KTJ18: 0 | KTK18: 0 | KTL18: 0 | KTM18: 0 | KTN18: 0 | KTO18: 0 | KTP18: 0 | KTQ18: 0 | KTR18: 0 | KTS18: 0 | KTT18: 0 | KTU18: 0 | KTV18: 0 | KTW18: 0 | KTX18: 0 | KTY18: 0 | KTZ18: 0 | KUA18: 0 | KUB18: 0 | KUC18: 0 | KUD18: 0 | KUE18: 0 | KUF18: 0 | KUG18: 0 | KUH18: 0 | KUI18: 0 | KUJ18: 0 | KUK18: 0 | KUL18: 0 | KUM18: 0 | KUN18: 0 | KUO18: 0 | KUP18: 0 | KUQ18: 0 | KUR18: 0 | KUS18: 0 | KUT18: 0 | KUU18: 0 | KUV18: 0 | KUW18: 0 | KUX18: 0 | KUY18: 0 | KUZ18: 0 | KVA18: =KVA16/25 -> 0 | KVB18: 0 | KVC18: 0 | KVD18: 0 | KVE18: 0 | KVF18: 0 | KVG18: 0 | KVH18: 0 | KVI18: 0 | KVJ18: 0 | KVK18: 0 | KVL18: 0 | KVM18: 0 | KVN18: 0 | KVO18: 0 | KVP18: 0 | KVQ18: 0 | KVR18: 0 | KVS18: 0 | KVT18: 0 | KVU18: 0 | KVV18: 0 | KVW18: 0 | KVX18: 0 | KVY18: 0 | KVZ18: 0 | KWA18: 0 | KWB18: 0 | KWC18: 0 | KWD18: 0 | KWE18: 0 | KWF18: 0 | KWG18: 0 | KWH18: 0 | KWI18: 0 | KWJ18: 0 | KWK18: 0 | KWL18: 0 | KWM18: 0 | KWN18: 0 | KWO18: 0 | KWP18: 0 | KWQ18: 0 | KWR18: 0 | KWS18: 0 | KWT18: 0 | KWU18: 0 | KWV18: 0 | KWW18: 0 | KWX18: 0 | KWY18: 0 | KWZ18: 0 | KXA18: 0 | KXB18: 0 | KXC18: 0 | KXD18: 0 | KXE18: 0 | KXF18: 0 | KXG18: 0 | KXH18: 0 | KXI18: 0 | KXJ18: 0 | KXK18: 0 | KXL18: 0 | KXM18: =KXM16/25 -> 0 | KXN18: 0 | KXO18: 0 | KXP18: 0 | KXQ18: 0 | KXR18: 0 | KXS18: 0 | KXT18: 0 | KXU18: 0 | KXV18: 0 | KXW18: 0 | KXX18: 0 | KXY18: 0 | KXZ18: 0 | KYA18: 0 | KYB18: 0 | KYC18: 0 | KYD18: 0 | KYE18: 0 | KYF18: 0 | KYG18: 0 | KYH18: 0 | KYI18: 0 | KYJ18: 0 | KYK18: 0 | KYL18: 0 | KYM18: 0 | KYN18: 0 | KYO18: 0 | KYP18: 0 | KYQ18: 0 | KYR18: 0 | KYS18: 0 | KYT18: 0 | KYU18: 0 | KYV18: 0 | KYW18: 0 | KYX18: 0 | KYY18: 0 | KYZ18: 0 | KZA18: 0 | KZB18: 0 | KZC18: 0 | KZD18: 0 | KZE18: 0 | KZF18: 0 | KZG18: 0 | KZH18: 0 | KZI18: 0 | KZJ18: 0 | KZK18: 0 | KZL18: 0 | KZM18: 0 | KZN18: 0 | KZO18: 0 | KZP18: 0 | KZQ18: 0 | KZR18: 0 | KZS18: 0 | KZT18: 0 | KZU18: 0 | KZV18: 0 | KZW18: 0 | KZX18: 0 | KZY18: =KZY16/25 -> 0 | KZZ18: 0 | LAA18: 0 | LAB18: 0 | LAC18: 0 | LAD18: 0 | LAE18: 0 | LAF18: 0 | LAG18: 0 | LAH18: 0 | LAI18: 0 | LAJ18: 0 | LAK18: 0 | LAL18: 0 | LAM18: 0 | LAN18: 0 | LAO18: 0 | LAP18: 0 | LAQ18: 0 | LAR18: 0 | LAS18: 0 | LAT18: 0 | LAU18: 0 | LAV18: 0 | LAW18: 0 | LAX18: 0 | LAY18: 0 | LAZ18: 0 | LBA18: 0 | LBB18: 0 | LBC18: 0 | LBD18: 0 | LBE18: 0 | LBF18: 0 | LBG18: 0 | LBH18: 0 | LBI18: 0 | LBJ18: 0 | LBK18: 0 | LBL18: 0 | LBM18: 0 | LBN18: 0 | LBO18: 0 | LBP18: 0 | LBQ18: 0 | LBR18: 0 | LBS18: 0 | LBT18: 0 | LBU18: 0 | LBV18: 0 | LBW18: 0 | LBX18: 0 | LBY18: 0 | LBZ18: 0 | LCA18: 0 | LCB18: 0 | LCC18: 0 | LCD18: 0 | LCE18: 0 | LCF18: 0 | LCG18: 0 | LCH18: 0 | LCI18: 0 | LCJ18: 0 | LCK18: =LCK16/25 -> 0 | LCL18: 0 | LCM18: 0 | LCN18: 0 | LCO18: 0 | LCP18: 0 | LCQ18: 0 | LCR18: 0 | LCS18: 0 | LCT18: 0 | LCU18: 0 | LCV18: 0 | LCW18: 0 | LCX18: 0 | LCY18: 0 | LCZ18: 0 | LDA18: 0 | LDB18: 0 | LDC18: 0 | LDD18: 0 | LDE18: 0 | LDF18: 0 | LDG18: 0 | LDH18: 0 | LDI18: 0 | LDJ18: 0 | LDK18: 0 | LDL18: 0 | LDM18: 0 | LDN18: 0 | LDO18: 0 | LDP18: 0 | LDQ18: 0 | LDR18: 0 | LDS18: 0 | LDT18: 0 | LDU18: 0 | LDV18: 0 | LDW18: 0 | LDX18: 0 | LDY18: 0 | LDZ18: 0 | LEA18: 0 | LEB18: 0 | LEC18: 0 | LED18: 0 | LEE18: 0 | LEF18: 0 | LEG18: 0 | LEH18: 0 | LEI18: 0 | LEJ18: 0 | LEK18: 0 | LEL18: 0 | LEM18: 0 | LEN18: 0 | LEO18: 0 | LEP18: 0 | LEQ18: 0 | LER18: 0 | LES18: 0 | LET18: 0 | LEU18: 0 | LEV18: 0 | LEW18: =LEW16/25 -> 0 | LEX18: 0 | LEY18: 0 | LEZ18: 0 | LFA18: 0 | LFB18: 0 | LFC18: 0 | LFD18: 0 | LFE18: 0 | LFF18: 0 | LFG18: 0 | LFH18: 0 | LFI18: 0 | LFJ18: 0 | LFK18: 0 | LFL18: 0 | LFM18: 0 | LFN18: 0 | LFO18: 0 | LFP18: 0 | LFQ18: 0 | LFR18: 0 | LFS18: 0 | LFT18: 0 | LFU18: 0 | LFV18: 0 | LFW18: 0 | LFX18: 0 | LFY18: 0 | LFZ18: 0 | LGA18: 0 | LGB18: 0 | LGC18: 0 | LGD18: 0 | LGE18: 0 | LGF18: 0 | LGG18: 0 | LGH18: 0 | LGI18: 0 | LGJ18: 0 | LGK18: 0 | LGL18: 0 | LGM18: 0 | LGN18: 0 | LGO18: 0 | LGP18: 0 | LGQ18: 0 | LGR18: 0 | LGS18: 0 | LGT18: 0 | LGU18: 0 | LGV18: 0 | LGW18: 0 | LGX18: 0 | LGY18: 0 | LGZ18: 0 | LHA18: 0 | LHB18: 0 | LHC18: 0 | LHD18: 0 | LHE18: 0 | LHF18: 0 | LHG18: 0 | LHH18: 0 | LHI18: =LHI16/25 -> 0 | LHJ18: 0 | LHK18: 0 | LHL18: 0 | LHM18: 0 | LHN18: 0 | LHO18: 0 | LHP18: 0 | LHQ18: 0 | LHR18: 0 | LHS18: 0 | LHT18: 0 | LHU18: 0 | LHV18: 0 | LHW18: 0 | LHX18: 0 | LHY18: 0 | LHZ18: 0 | LIA18: 0 | LIB18: 0 | LIC18: 0 | LID18: 0 | LIE18: 0 | LIF18: 0 | LIG18: 0 | LIH18: 0 | LII18: 0 | LIJ18: 0 | LIK18: 0 | LIL18: 0 | LIM18: 0 | LIN18: 0 | LIO18: 0 | LIP18: 0 | LIQ18: 0 | LIR18: 0 | LIS18: 0 | LIT18: 0 | LIU18: 0 | LIV18: 0 | LIW18: 0 | LIX18: 0 | LIY18: 0 | LIZ18: 0 | LJA18: 0 | LJB18: 0 | LJC18: 0 | LJD18: 0 | LJE18: 0 | LJF18: 0 | LJG18: 0 | LJH18: 0 | LJI18: 0 | LJJ18: 0 | LJK18: 0 | LJL18: 0 | LJM18: 0 | LJN18: 0 | LJO18: 0 | LJP18: 0 | LJQ18: 0 | LJR18: 0 | LJS18: 0 | LJT18: 0 | LJU18: =LJU16/25 -> 0 | LJV18: 0 | LJW18: 0 | LJX18: 0 | LJY18: 0 | LJZ18: 0 | LKA18: 0 | LKB18: 0 | LKC18: 0 | LKD18: 0 | LKE18: 0 | LKF18: 0 | LKG18: 0 | LKH18: 0 | LKI18: 0 | LKJ18: 0 | LKK18: 0 | LKL18: 0 | LKM18: 0 | LKN18: 0 | LKO18: 0 | LKP18: 0 | LKQ18: 0 | LKR18: 0 | LKS18: 0 | LKT18: 0 | LKU18: 0 | LKV18: 0 | LKW18: 0 | LKX18: 0 | LKY18: 0 | LKZ18: 0 | LLA18: 0 | LLB18: 0 | LLC18: 0 | LLD18: 0 | LLE18: 0 | LLF18: 0 | LLG18: 0 | LLH18: 0 | LLI18: 0 | LLJ18: 0 | LLK18: 0 | LLL18: 0 | LLM18: 0 | LLN18: 0 | LLO18: 0 | LLP18: 0 | LLQ18: 0 | LLR18: 0 | LLS18: 0 | LLT18: 0 | LLU18: 0 | LLV18: 0 | LLW18: 0 | LLX18: 0 | LLY18: 0 | LLZ18: 0 | LMA18: 0 | LMB18: 0 | LMC18: 0 | LMD18: 0 | LME18: 0 | LMF18: 0 | LMG18: =LMG16/25 -> 0 | LMH18: 0 | LMI18: 0 | LMJ18: 0 | LMK18: 0 | LML18: 0 | LMM18: 0 | LMN18: 0 | LMO18: 0 | LMP18: 0 | LMQ18: 0 | LMR18: 0 | LMS18: 0 | LMT18: 0 | LMU18: 0 | LMV18: 0 | LMW18: 0 | LMX18: 0 | LMY18: 0 | LMZ18: 0 | LNA18: 0 | LNB18: 0 | LNC18: 0 | LND18: 0 | LNE18: 0 | LNF18: 0 | LNG18: 0 | LNH18: 0 | LNI18: 0 | LNJ18: 0 | LNK18: 0 | LNL18: 0 | LNM18: 0 | LNN18: 0 | LNO18: 0 | LNP18: 0 | LNQ18: 0 | LNR18: 0 | LNS18: 0 | LNT18: 0 | LNU18: 0 | LNV18: 0 | LNW18: 0 | LNX18: 0 | LNY18: 0 | LNZ18: 0 | LOA18: 0 | LOB18: 0 | LOC18: 0 | LOD18: 0 | LOE18: 0 | LOF18: 0 | LOG18: 0 | LOH18: 0 | LOI18: 0 | LOJ18: 0 | LOK18: 0 | LOL18: 0 | LOM18: 0 | LON18: 0 | LOO18: 0 | LOP18: 0 | LOQ18: 0 | LOR18: 0 | LOS18: =LOS16/25 -> 0 | LOT18: 0 | LOU18: 0 | LOV18: 0 | LOW18: 0 | LOX18: 0 | LOY18: 0 | LOZ18: 0 | LPA18: 0 | LPB18: 0 | LPC18: 0 | LPD18: 0 | LPE18: 0 | LPF18: 0 | LPG18: 0 | LPH18: 0 | LPI18: 0 | LPJ18: 0 | LPK18: 0 | LPL18: 0 | LPM18: 0 | LPN18: 0 | LPO18: 0 | LPP18: 0 | LPQ18: 0 | LPR18: 0 | LPS18: 0 | LPT18: 0 | LPU18: 0 | LPV18: 0 | LPW18: 0 | LPX18: 0 | LPY18: 0 | LPZ18: 0 | LQA18: 0 | LQB18: 0 | LQC18: 0 | LQD18: 0 | LQE18: 0 | LQF18: 0 | LQG18: 0 | LQH18: 0 | LQI18: 0 | LQJ18: 0 | LQK18: 0 | LQL18: 0 | LQM18: 0 | LQN18: 0 | LQO18: 0 | LQP18: 0 | LQQ18: 0 | LQR18: 0 | LQS18: 0 | LQT18: 0 | LQU18: 0 | LQV18: 0 | LQW18: 0 | LQX18: 0 | LQY18: 0 | LQZ18: 0 | LRA18: 0 | LRB18: 0 | LRC18: 0 | LRD18: 0 | LRE18: =LRE16/25 -> 0 | LRF18: 0 | LRG18: 0 | LRH18: 0 | LRI18: 0 | LRJ18: 0 | LRK18: 0 | LRL18: 0 | LRM18: 0 | LRN18: 0 | LRO18: 0 | LRP18: 0 | LRQ18: 0 | LRR18: 0 | LRS18: 0 | LRT18: 0 | LRU18: 0 | LRV18: 0 | LRW18: 0 | LRX18: 0 | LRY18: 0 | LRZ18: 0 | LSA18: 0 | LSB18: 0 | LSC18: 0 | LSD18: 0 | LSE18: 0 | LSF18: 0 | LSG18: 0 | LSH18: 0 | LSI18: 0 | LSJ18: 0 | LSK18: 0 | LSL18: 0 | LSM18: 0 | LSN18: 0 | LSO18: 0 | LSP18: 0 | LSQ18: 0 | LSR18: 0 | LSS18: 0 | LST18: 0 | LSU18: 0 | LSV18: 0 | LSW18: 0 | LSX18: 0 | LSY18: 0 | LSZ18: 0 | LTA18: 0 | LTB18: 0 | LTC18: 0 | LTD18: 0 | LTE18: 0 | LTF18: 0 | LTG18: 0 | LTH18: 0 | LTI18: 0 | LTJ18: 0 | LTK18: 0 | LTL18: 0 | LTM18: 0 | LTN18: 0 | LTO18: 0 | LTP18: 0 | LTQ18: =LTQ16/25 -> 0 | LTR18: 0 | LTS18: 0 | LTT18: 0 | LTU18: 0 | LTV18: 0 | LTW18: 0 | LTX18: 0 | LTY18: 0 | LTZ18: 0 | LUA18: 0 | LUB18: 0 | LUC18: 0 | LUD18: 0 | LUE18: 0 | LUF18: 0 | LUG18: 0 | LUH18: 0 | LUI18: 0 | LUJ18: 0 | LUK18: 0 | LUL18: 0 | LUM18: 0 | LUN18: 0 | LUO18: 0 | LUP18: 0 | LUQ18: 0 | LUR18: 0 | LUS18: 0 | LUT18: 0 | LUU18: 0 | LUV18: 0 | LUW18: 0 | LUX18: 0 | LUY18: 0 | LUZ18: 0 | LVA18: 0 | LVB18: 0 | LVC18: 0 | LVD18: 0 | LVE18: 0 | LVF18: 0 | LVG18: 0 | LVH18: 0 | LVI18: 0 | LVJ18: 0 | LVK18: 0 | LVL18: 0 | LVM18: 0 | LVN18: 0 | LVO18: 0 | LVP18: 0 | LVQ18: 0 | LVR18: 0 | LVS18: 0 | LVT18: 0 | LVU18: 0 | LVV18: 0 | LVW18: 0 | LVX18: 0 | LVY18: 0 | LVZ18: 0 | LWA18: 0 | LWB18: 0 | LWC18: =LWC16/25 -> 0 | LWD18: 0 | LWE18: 0 | LWF18: 0 | LWG18: 0 | LWH18: 0 | LWI18: 0 | LWJ18: 0 | LWK18: 0 | LWL18: 0 | LWM18: 0 | LWN18: 0 | LWO18: 0 | LWP18: 0 | LWQ18: 0 | LWR18: 0 | LWS18: 0 | LWT18: 0 | LWU18: 0 | LWV18: 0 | LWW18: 0 | LWX18: 0 | LWY18: 0 | LWZ18: 0 | LXA18: 0 | LXB18: 0 | LXC18: 0 | LXD18: 0 | LXE18: 0 | LXF18: 0 | LXG18: 0 | LXH18: 0 | LXI18: 0 | LXJ18: 0 | LXK18: 0 | LXL18: 0 | LXM18: 0 | LXN18: 0 | LXO18: 0 | LXP18: 0 | LXQ18: 0 | LXR18: 0 | LXS18: 0 | LXT18: 0 | LXU18: 0 | LXV18: 0 | LXW18: 0 | LXX18: 0 | LXY18: 0 | LXZ18: 0 | LYA18: 0 | LYB18: 0 | LYC18: 0 | LYD18: 0 | LYE18: 0 | LYF18: 0 | LYG18: 0 | LYH18: 0 | LYI18: 0 | LYJ18: 0 | LYK18: 0 | LYL18: 0 | LYM18: 0 | LYN18: 0 | LYO18: =LYO16/25 -> 0 | LYP18: 0 | LYQ18: 0 | LYR18: 0 | LYS18: 0 | LYT18: 0 | LYU18: 0 | LYV18: 0 | LYW18: 0 | LYX18: 0 | LYY18: 0 | LYZ18: 0 | LZA18: 0 | LZB18: 0 | LZC18: 0 | LZD18: 0 | LZE18: 0 | LZF18: 0 | LZG18: 0 | LZH18: 0 | LZI18: 0 | LZJ18: 0 | LZK18: 0 | LZL18: 0 | LZM18: 0 | LZN18: 0 | LZO18: 0 | LZP18: 0 | LZQ18: 0 | LZR18: 0 | LZS18: 0 | LZT18: 0 | LZU18: 0 | LZV18: 0 | LZW18: 0 | LZX18: 0 | LZY18: 0 | LZZ18: 0 | MAA18: 0 | MAB18: 0 | MAC18: 0 | MAD18: 0 | MAE18: 0 | MAF18: 0 | MAG18: 0 | MAH18: 0 | MAI18: 0 | MAJ18: 0 | MAK18: 0 | MAL18: 0 | MAM18: 0 | MAN18: 0 | MAO18: 0 | MAP18: 0 | MAQ18: 0 | MAR18: 0 | MAS18: 0 | MAT18: 0 | MAU18: 0 | MAV18: 0 | MAW18: 0 | MAX18: 0 | MAY18: 0 | MAZ18: 0 | MBA18: =MBA16/25 -> 0 | MBB18: 0 | MBC18: 0 | MBD18: 0 | MBE18: 0 | MBF18: 0 | MBG18: 0 | MBH18: 0 | MBI18: 0 | MBJ18: 0 | MBK18: 0 | MBL18: 0 | MBM18: 0 | MBN18: 0 | MBO18: 0 | MBP18: 0 | MBQ18: 0 | MBR18: 0 | MBS18: 0 | MBT18: 0 | MBU18: 0 | MBV18: 0 | MBW18: 0 | MBX18: 0 | MBY18: 0 | MBZ18: 0 | MCA18: 0 | MCB18: 0 | MCC18: 0 | MCD18: 0 | MCE18: 0 | MCF18: 0 | MCG18: 0 | MCH18: 0 | MCI18: 0 | MCJ18: 0 | MCK18: 0 | MCL18: 0 | MCM18: 0 | MCN18: 0 | MCO18: 0 | MCP18: 0 | MCQ18: 0 | MCR18: 0 | MCS18: 0 | MCT18: 0 | MCU18: 0 | MCV18: 0 | MCW18: 0 | MCX18: 0 | MCY18: 0 | MCZ18: 0 | MDA18: 0 | MDB18: 0 | MDC18: 0 | MDD18: 0 | MDE18: 0 | MDF18: 0 | MDG18: 0 | MDH18: 0 | MDI18: 0 | MDJ18: 0 | MDK18: 0 | MDL18: 0 | MDM18: =MDM16/25 -> 0 | MDN18: 0 | MDO18: 0 | MDP18: 0 | MDQ18: 0 | MDR18: 0 | MDS18: 0 | MDT18: 0 | MDU18: 0 | MDV18: 0 | MDW18: 0 | MDX18: 0 | MDY18: 0 | MDZ18: 0 | MEA18: 0 | MEB18: 0 | MEC18: 0 | MED18: 0 | MEE18: 0 | MEF18: 0 | MEG18: 0 | MEH18: 0 | MEI18: 0 | MEJ18: 0 | MEK18: 0 | MEL18: 0 | MEM18: 0 | MEN18: 0 | MEO18: 0 | MEP18: 0 | MEQ18: 0 | MER18: 0 | MES18: 0 | MET18: 0 | MEU18: 0 | MEV18: 0 | MEW18: 0 | MEX18: 0 | MEY18: 0 | MEZ18: 0 | MFA18: 0 | MFB18: 0 | MFC18: 0 | MFD18: 0 | MFE18: 0 | MFF18: 0 | MFG18: 0 | MFH18: 0 | MFI18: 0 | MFJ18: 0 | MFK18: 0 | MFL18: 0 | MFM18: 0 | MFN18: 0 | MFO18: 0 | MFP18: 0 | MFQ18: 0 | MFR18: 0 | MFS18: 0 | MFT18: 0 | MFU18: 0 | MFV18: 0 | MFW18: 0 | MFX18: 0 | MFY18: =MFY16/25 -> 0 | MFZ18: 0 | MGA18: 0 | MGB18: 0 | MGC18: 0 | MGD18: 0 | MGE18: 0 | MGF18: 0 | MGG18: 0 | MGH18: 0 | MGI18: 0 | MGJ18: 0 | MGK18: 0 | MGL18: 0 | MGM18: 0 | MGN18: 0 | MGO18: 0 | MGP18: 0 | MGQ18: 0 | MGR18: 0 | MGS18: 0 | MGT18: 0 | MGU18: 0 | MGV18: 0 | MGW18: 0 | MGX18: 0 | MGY18: 0 | MGZ18: 0 | MHA18: 0 | MHB18: 0 | MHC18: 0 | MHD18: 0 | MHE18: 0 | MHF18: 0 | MHG18: 0 | MHH18: 0 | MHI18: 0 | MHJ18: 0 | MHK18: 0 | MHL18: 0 | MHM18: 0 | MHN18: 0 | MHO18: 0 | MHP18: 0 | MHQ18: 0 | MHR18: 0 | MHS18: 0 | MHT18: 0 | MHU18: 0 | MHV18: 0 | MHW18: 0 | MHX18: 0 | MHY18: 0 | MHZ18: 0 | MIA18: 0 | MIB18: 0 | MIC18: 0 | MID18: 0 | MIE18: 0 | MIF18: 0 | MIG18: 0 | MIH18: 0 | MII18: 0 | MIJ18: 0 | MIK18: =MIK16/25 -> 0 | MIL18: 0 | MIM18: 0 | MIN18: 0 | MIO18: 0 | MIP18: 0 | MIQ18: 0 | MIR18: 0 | MIS18: 0 | MIT18: 0 | MIU18: 0 | MIV18: 0 | MIW18: 0 | MIX18: 0 | MIY18: 0 | MIZ18: 0 | MJA18: 0 | MJB18: 0 | MJC18: 0 | MJD18: 0 | MJE18: 0 | MJF18: 0 | MJG18: 0 | MJH18: 0 | MJI18: 0 | MJJ18: 0 | MJK18: 0 | MJL18: 0 | MJM18: 0 | MJN18: 0 | MJO18: 0 | MJP18: 0 | MJQ18: 0 | MJR18: 0 | MJS18: 0 | MJT18: 0 | MJU18: 0 | MJV18: 0 | MJW18: 0 | MJX18: 0 | MJY18: 0 | MJZ18: 0 | MKA18: 0 | MKB18: 0 | MKC18: 0 | MKD18: 0 | MKE18: 0 | MKF18: 0 | MKG18: 0 | MKH18: 0 | MKI18: 0 | MKJ18: 0 | MKK18: 0 | MKL18: 0 | MKM18: 0 | MKN18: 0 | MKO18: 0 | MKP18: 0 | MKQ18: 0 | MKR18: 0 | MKS18: 0 | MKT18: 0 | MKU18: 0 | MKV18: 0 | MKW18: =MKW16/25 -> 0 | MKX18: 0 | MKY18: 0 | MKZ18: 0 | MLA18: 0 | MLB18: 0 | MLC18: 0 | MLD18: 0 | MLE18: 0 | MLF18: 0 | MLG18: 0 | MLH18: 0 | MLI18: 0 | MLJ18: 0 | MLK18: 0 | MLL18: 0 | MLM18: 0 | MLN18: 0 | MLO18: 0 | MLP18: 0 | MLQ18: 0 | MLR18: 0 | MLS18: 0 | MLT18: 0 | MLU18: 0 | MLV18: 0 | MLW18: 0 | MLX18: 0 | MLY18: 0 | MLZ18: 0 | MMA18: 0 | MMB18: 0 | MMC18: 0 | MMD18: 0 | MME18: 0 | MMF18: 0 | MMG18: 0 | MMH18: 0 | MMI18: 0 | MMJ18: 0 | MMK18: 0 | MML18: 0 | MMM18: 0 | MMN18: 0 | MMO18: 0 | MMP18: 0 | MMQ18: 0 | MMR18: 0 | MMS18: 0 | MMT18: 0 | MMU18: 0 | MMV18: 0 | MMW18: 0 | MMX18: 0 | MMY18: 0 | MMZ18: 0 | MNA18: 0 | MNB18: 0 | MNC18: 0 | MND18: 0 | MNE18: 0 | MNF18: 0 | MNG18: 0 | MNH18: 0 | MNI18: =MNI16/25 -> 0 | MNJ18: 0 | MNK18: 0 | MNL18: 0 | MNM18: 0 | MNN18: 0 | MNO18: 0 | MNP18: 0 | MNQ18: 0 | MNR18: 0 | MNS18: 0 | MNT18: 0 | MNU18: 0 | MNV18: 0 | MNW18: 0 | MNX18: 0 | MNY18: 0 | MNZ18: 0 | MOA18: 0 | MOB18: 0 | MOC18: 0 | MOD18: 0 | MOE18: 0 | MOF18: 0 | MOG18: 0 | MOH18: 0 | MOI18: 0 | MOJ18: 0 | MOK18: 0 | MOL18: 0 | MOM18: 0 | MON18: 0 | MOO18: 0 | MOP18: 0 | MOQ18: 0 | MOR18: 0 | MOS18: 0 | MOT18: 0 | MOU18: 0 | MOV18: 0 | MOW18: 0 | MOX18: 0 | MOY18: 0 | MOZ18: 0 | MPA18: 0 | MPB18: 0 | MPC18: 0 | MPD18: 0 | MPE18: 0 | MPF18: 0 | MPG18: 0 | MPH18: 0 | MPI18: 0 | MPJ18: 0 | MPK18: 0 | MPL18: 0 | MPM18: 0 | MPN18: 0 | MPO18: 0 | MPP18: 0 | MPQ18: 0 | MPR18: 0 | MPS18: 0 | MPT18: 0 | MPU18: =MPU16/25 -> 0 | MPV18: 0 | MPW18: 0 | MPX18: 0 | MPY18: 0 | MPZ18: 0 | MQA18: 0 | MQB18: 0 | MQC18: 0 | MQD18: 0 | MQE18: 0 | MQF18: 0 | MQG18: 0 | MQH18: 0 | MQI18: 0 | MQJ18: 0 | MQK18: 0 | MQL18: 0 | MQM18: 0 | MQN18: 0 | MQO18: 0 | MQP18: 0 | MQQ18: 0 | MQR18: 0 | MQS18: 0 | MQT18: 0 | MQU18: 0 | MQV18: 0 | MQW18: 0 | MQX18: 0 | MQY18: 0 | MQZ18: 0 | MRA18: 0 | MRB18: 0 | MRC18: 0 | MRD18: 0 | MRE18: 0 | MRF18: 0 | MRG18: 0 | MRH18: 0 | MRI18: 0 | MRJ18: 0 | MRK18: 0 | MRL18: 0 | MRM18: 0 | MRN18: 0 | MRO18: 0 | MRP18: 0 | MRQ18: 0 | MRR18: 0 | MRS18: 0 | MRT18: 0 | MRU18: 0 | MRV18: 0 | MRW18: 0 | MRX18: 0 | MRY18: 0 | MRZ18: 0 | MSA18: 0 | MSB18: 0 | MSC18: 0 | MSD18: 0 | MSE18: 0 | MSF18: 0 | MSG18: =MSG16/25 -> 0 | MSH18: 0 | MSI18: 0 | MSJ18: 0 | MSK18: 0 | MSL18: 0 | MSM18: 0 | MSN18: 0 | MSO18: 0 | MSP18: 0 | MSQ18: 0 | MSR18: 0 | MSS18: 0 | MST18: 0 | MSU18: 0 | MSV18: 0 | MSW18: 0 | MSX18: 0 | MSY18: 0 | MSZ18: 0 | MTA18: 0 | MTB18: 0 | MTC18: 0 | MTD18: 0 | MTE18: 0 | MTF18: 0 | MTG18: 0 | MTH18: 0 | MTI18: 0 | MTJ18: 0 | MTK18: 0 | MTL18: 0 | MTM18: 0 | MTN18: 0 | MTO18: 0 | MTP18: 0 | MTQ18: 0 | MTR18: 0 | MTS18: 0 | MTT18: 0 | MTU18: 0 | MTV18: 0 | MTW18: 0 | MTX18: 0 | MTY18: 0 | MTZ18: 0 | MUA18: 0 | MUB18: 0 | MUC18: 0 | MUD18: 0 | MUE18: 0 | MUF18: 0 | MUG18: 0 | MUH18: 0 | MUI18: 0 | MUJ18: 0 | MUK18: 0 | MUL18: 0 | MUM18: 0 | MUN18: 0 | MUO18: 0 | MUP18: 0 | MUQ18: 0 | MUR18: 0 | MUS18: =MUS16/25 -> 0 | MUT18: 0 | MUU18: 0 | MUV18: 0 | MUW18: 0 | MUX18: 0 | MUY18: 0 | MUZ18: 0 | MVA18: 0 | MVB18: 0 | MVC18: 0 | MVD18: 0 | MVE18: 0 | MVF18: 0 | MVG18: 0 | MVH18: 0 | MVI18: 0 | MVJ18: 0 | MVK18: 0 | MVL18: 0 | MVM18: 0 | MVN18: 0 | MVO18: 0 | MVP18: 0 | MVQ18: 0 | MVR18: 0 | MVS18: 0 | MVT18: 0 | MVU18: 0 | MVV18: 0 | MVW18: 0 | MVX18: 0 | MVY18: 0 | MVZ18: 0 | MWA18: 0 | MWB18: 0 | MWC18: 0 | MWD18: 0 | MWE18: 0 | MWF18: 0 | MWG18: 0 | MWH18: 0 | MWI18: 0 | MWJ18: 0 | MWK18: 0 | MWL18: 0 | MWM18: 0 | MWN18: 0 | MWO18: 0 | MWP18: 0 | MWQ18: 0 | MWR18: 0 | MWS18: 0 | MWT18: 0 | MWU18: 0 | MWV18: 0 | MWW18: 0 | MWX18: 0 | MWY18: 0 | MWZ18: 0 | MXA18: 0 | MXB18: 0 | MXC18: 0 | MXD18: 0 | MXE18: =MXE16/25 -> 0 | MXF18: 0 | MXG18: 0 | MXH18: 0 | MXI18: 0 | MXJ18: 0 | MXK18: 0 | MXL18: 0 | MXM18: 0 | MXN18: 0 | MXO18: 0 | MXP18: 0 | MXQ18: 0 | MXR18: 0 | MXS18: 0 | MXT18: 0 | MXU18: 0 | MXV18: 0 | MXW18: 0 | MXX18: 0 | MXY18: 0 | MXZ18: 0 | MYA18: 0 | MYB18: 0 | MYC18: 0 | MYD18: 0 | MYE18: 0 | MYF18: 0 | MYG18: 0 | MYH18: 0 | MYI18: 0 | MYJ18: 0 | MYK18: 0 | MYL18: 0 | MYM18: 0 | MYN18: 0 | MYO18: 0 | MYP18: 0 | MYQ18: 0 | MYR18: 0 | MYS18: 0 | MYT18: 0 | MYU18: 0 | MYV18: 0 | MYW18: 0 | MYX18: 0 | MYY18: 0 | MYZ18: 0 | MZA18: 0 | MZB18: 0 | MZC18: 0 | MZD18: 0 | MZE18: 0 | MZF18: 0 | MZG18: 0 | MZH18: 0 | MZI18: 0 | MZJ18: 0 | MZK18: 0 | MZL18: 0 | MZM18: 0 | MZN18: 0 | MZO18: 0 | MZP18: 0 | MZQ18: =MZQ16/25 -> 0 | MZR18: 0 | MZS18: 0 | MZT18: 0 | MZU18: 0 | MZV18: 0 | MZW18: 0 | MZX18: 0 | MZY18: 0 | MZZ18: 0 | NAA18: 0 | NAB18: 0 | NAC18: 0 | NAD18: 0 | NAE18: 0 | NAF18: 0 | NAG18: 0 | NAH18: 0 | NAI18: 0 | NAJ18: 0 | NAK18: 0 | NAL18: 0 | NAM18: 0 | NAN18: 0 | NAO18: 0 | NAP18: 0 | NAQ18: 0 | NAR18: 0 | NAS18: 0 | NAT18: 0 | NAU18: 0 | NAV18: 0 | NAW18: 0 | NAX18: 0 | NAY18: 0 | NAZ18: 0 | NBA18: 0 | NBB18: 0 | NBC18: 0 | NBD18: 0 | NBE18: 0 | NBF18: 0 | NBG18: 0 | NBH18: 0 | NBI18: 0 | NBJ18: 0 | NBK18: 0 | NBL18: 0 | NBM18: 0 | NBN18: 0 | NBO18: 0 | NBP18: 0 | NBQ18: 0 | NBR18: 0 | NBS18: 0 | NBT18: 0 | NBU18: 0 | NBV18: 0 | NBW18: 0 | NBX18: 0 | NBY18: 0 | NBZ18: 0 | NCA18: 0 | NCB18: 0 | NCC18: =NCC16/25 -> 0 | NCD18: 0 | NCE18: 0 | NCF18: 0 | NCG18: 0 | NCH18: 0 | NCI18: 0 | NCJ18: 0 | NCK18: 0 | NCL18: 0 | NCM18: 0 | NCN18: 0 | NCO18: 0 | NCP18: 0 | NCQ18: 0 | NCR18: 0 | NCS18: 0 | NCT18: 0 | NCU18: 0 | NCV18: 0 | NCW18: 0 | NCX18: 0 | NCY18: 0 | NCZ18: 0 | NDA18: 0 | NDB18: 0 | NDC18: 0 | NDD18: 0 | NDE18: 0 | NDF18: 0 | NDG18: 0 | NDH18: 0 | NDI18: 0 | NDJ18: 0 | NDK18: 0 | NDL18: 0 | NDM18: 0 | NDN18: 0 | NDO18: 0 | NDP18: 0 | NDQ18: 0 | NDR18: 0 | NDS18: 0 | NDT18: 0 | NDU18: 0 | NDV18: 0 | NDW18: 0 | NDX18: 0 | NDY18: 0 | NDZ18: 0 | NEA18: 0 | NEB18: 0 | NEC18: 0 | NED18: 0 | NEE18: 0 | NEF18: 0 | NEG18: 0 | NEH18: 0 | NEI18: 0 | NEJ18: 0 | NEK18: 0 | NEL18: 0 | NEM18: 0 | NEN18: 0 | NEO18: =NEO16/25 -> 0 | NEP18: 0 | NEQ18: 0 | NER18: 0 | NES18: 0 | NET18: 0 | NEU18: 0 | NEV18: 0 | NEW18: 0 | NEX18: 0 | NEY18: 0 | NEZ18: 0 | NFA18: 0 | NFB18: 0 | NFC18: 0 | NFD18: 0 | NFE18: 0 | NFF18: 0 | NFG18: 0 | NFH18: 0 | NFI18: 0 | NFJ18: 0 | NFK18: 0 | NFL18: 0 | NFM18: 0 | NFN18: 0 | NFO18: 0 | NFP18: 0 | NFQ18: 0 | NFR18: 0 | NFS18: 0 | NFT18: 0 | NFU18: 0 | NFV18: 0 | NFW18: 0 | NFX18: 0 | NFY18: 0 | NFZ18: 0 | NGA18: 0 | NGB18: 0 | NGC18: 0 | NGD18: 0 | NGE18: 0 | NGF18: 0 | NGG18: 0 | NGH18: 0 | NGI18: 0 | NGJ18: 0 | NGK18: 0 | NGL18: 0 | NGM18: 0 | NGN18: 0 | NGO18: 0 | NGP18: 0 | NGQ18: 0 | NGR18: 0 | NGS18: 0 | NGT18: 0 | NGU18: 0 | NGV18: 0 | NGW18: 0 | NGX18: 0 | NGY18: 0 | NGZ18: 0 | NHA18: =NHA16/25 -> 0 | NHB18: 0 | NHC18: 0 | NHD18: 0 | NHE18: 0 | NHF18: 0 | NHG18: 0 | NHH18: 0 | NHI18: 0 | NHJ18: 0 | NHK18: 0 | NHL18: 0 | NHM18: 0 | NHN18: 0 | NHO18: 0 | NHP18: 0 | NHQ18: 0 | NHR18: 0 | NHS18: 0 | NHT18: 0 | NHU18: 0 | NHV18: 0 | NHW18: 0 | NHX18: 0 | NHY18: 0 | NHZ18: 0 | NIA18: 0 | NIB18: 0 | NIC18: 0 | NID18: 0 | NIE18: 0 | NIF18: 0 | NIG18: 0 | NIH18: 0 | NII18: 0 | NIJ18: 0 | NIK18: 0 | NIL18: 0 | NIM18: 0 | NIN18: 0 | NIO18: 0 | NIP18: 0 | NIQ18: 0 | NIR18: 0 | NIS18: 0 | NIT18: 0 | NIU18: 0 | NIV18: 0 | NIW18: 0 | NIX18: 0 | NIY18: 0 | NIZ18: 0 | NJA18: 0 | NJB18: 0 | NJC18: 0 | NJD18: 0 | NJE18: 0 | NJF18: 0 | NJG18: 0 | NJH18: 0 | NJI18: 0 | NJJ18: 0 | NJK18: 0 | NJL18: 0 | NJM18: =NJM16/25 -> 0 | NJN18: 0 | NJO18: 0 | NJP18: 0 | NJQ18: 0 | NJR18: 0 | NJS18: 0 | NJT18: 0 | NJU18: 0 | NJV18: 0 | NJW18: 0 | NJX18: 0 | NJY18: 0 | NJZ18: 0 | NKA18: 0 | NKB18: 0 | NKC18: 0 | NKD18: 0 | NKE18: 0 | NKF18: 0 | NKG18: 0 | NKH18: 0 | NKI18: 0 | NKJ18: 0 | NKK18: 0 | NKL18: 0 | NKM18: 0 | NKN18: 0 | NKO18: 0 | NKP18: 0 | NKQ18: 0 | NKR18: 0 | NKS18: 0 | NKT18: 0 | NKU18: 0 | NKV18: 0 | NKW18: 0 | NKX18: 0 | NKY18: 0 | NKZ18: 0 | NLA18: 0 | NLB18: 0 | NLC18: 0 | NLD18: 0 | NLE18: 0 | NLF18: 0 | NLG18: 0 | NLH18: 0 | NLI18: 0 | NLJ18: 0 | NLK18: 0 | NLL18: 0 | NLM18: 0 | NLN18: 0 | NLO18: 0 | NLP18: 0 | NLQ18: 0 | NLR18: 0 | NLS18: 0 | NLT18: 0 | NLU18: 0 | NLV18: 0 | NLW18: 0 | NLX18: 0 | NLY18: =NLY16/25 -> 0 | NLZ18: 0 | NMA18: 0 | NMB18: 0 | NMC18: 0 | NMD18: 0 | NME18: 0 | NMF18: 0 | NMG18: 0 | NMH18: 0 | NMI18: 0 | NMJ18: 0 | NMK18: 0 | NML18: 0 | NMM18: 0 | NMN18: 0 | NMO18: 0 | NMP18: 0 | NMQ18: 0 | NMR18: 0 | NMS18: 0 | NMT18: 0 | NMU18: 0 | NMV18: 0 | NMW18: 0 | NMX18: 0 | NMY18: 0 | NMZ18: 0 | NNA18: 0 | NNB18: 0 | NNC18: 0 | NND18: 0 | NNE18: 0 | NNF18: 0 | NNG18: 0 | NNH18: 0 | NNI18: 0 | NNJ18: 0 | NNK18: 0 | NNL18: 0 | NNM18: 0 | NNN18: 0 | NNO18: 0 | NNP18: 0 | NNQ18: 0 | NNR18: 0 | NNS18: 0 | NNT18: 0 | NNU18: 0 | NNV18: 0 | NNW18: 0 | NNX18: 0 | NNY18: 0 | NNZ18: 0 | NOA18: 0 | NOB18: 0 | NOC18: 0 | NOD18: 0 | NOE18: 0 | NOF18: 0 | NOG18: 0 | NOH18: 0 | NOI18: 0 | NOJ18: 0 | NOK18: =NOK16/25 -> 0 | NOL18: 0 | NOM18: 0 | NON18: 0 | NOO18: 0 | NOP18: 0 | NOQ18: 0 | NOR18: 0 | NOS18: 0 | NOT18: 0 | NOU18: 0 | NOV18: 0 | NOW18: 0 | NOX18: 0 | NOY18: 0 | NOZ18: 0 | NPA18: 0 | NPB18: 0 | NPC18: 0 | NPD18: 0 | NPE18: 0 | NPF18: 0 | NPG18: 0 | NPH18: 0 | NPI18: 0 | NPJ18: 0 | NPK18: 0 | NPL18: 0 | NPM18: 0 | NPN18: 0 | NPO18: 0 | NPP18: 0 | NPQ18: 0 | NPR18: 0 | NPS18: 0 | NPT18: 0 | NPU18: 0 | NPV18: 0 | NPW18: 0 | NPX18: 0 | NPY18: 0 | NPZ18: 0 | NQA18: 0 | NQB18: 0 | NQC18: 0 | NQD18: 0 | NQE18: 0 | NQF18: 0 | NQG18: 0 | NQH18: 0 | NQI18: 0 | NQJ18: 0 | NQK18: 0 | NQL18: 0 | NQM18: 0 | NQN18: 0 | NQO18: 0 | NQP18: 0 | NQQ18: 0 | NQR18: 0 | NQS18: 0 | NQT18: 0 | NQU18: 0 | NQV18: 0 | NQW18: =NQW16/25 -> 0 | NQX18: 0 | NQY18: 0 | NQZ18: 0 | NRA18: 0 | NRB18: 0 | NRC18: 0 | NRD18: 0 | NRE18: 0 | NRF18: 0 | NRG18: 0 | NRH18: 0 | NRI18: 0 | NRJ18: 0 | NRK18: 0 | NRL18: 0 | NRM18: 0 | NRN18: 0 | NRO18: 0 | NRP18: 0 | NRQ18: 0 | NRR18: 0 | NRS18: 0 | NRT18: 0 | NRU18: 0 | NRV18: 0 | NRW18: 0 | NRX18: 0 | NRY18: 0 | NRZ18: 0 | NSA18: 0 | NSB18: 0 | NSC18: 0 | NSD18: 0 | NSE18: 0 | NSF18: 0 | NSG18: 0 | NSH18: 0 | NSI18: 0 | NSJ18: 0 | NSK18: 0 | NSL18: 0 | NSM18: 0 | NSN18: 0 | NSO18: 0 | NSP18: 0 | NSQ18: 0 | NSR18: 0 | NSS18: 0 | NST18: 0 | NSU18: 0 | NSV18: 0 | NSW18: 0 | NSX18: 0 | NSY18: 0 | NSZ18: 0 | NTA18: 0 | NTB18: 0 | NTC18: 0 | NTD18: 0 | NTE18: 0 | NTF18: 0 | NTG18: 0 | NTH18: 0 | NTI18: =NTI16/25 -> 0 | NTJ18: 0 | NTK18: 0 | NTL18: 0 | NTM18: 0 | NTN18: 0 | NTO18: 0 | NTP18: 0 | NTQ18: 0 | NTR18: 0 | NTS18: 0 | NTT18: 0 | NTU18: 0 | NTV18: 0 | NTW18: 0 | NTX18: 0 | NTY18: 0 | NTZ18: 0 | NUA18: 0 | NUB18: 0 | NUC18: 0 | NUD18: 0 | NUE18: 0 | NUF18: 0 | NUG18: 0 | NUH18: 0 | NUI18: 0 | NUJ18: 0 | NUK18: 0 | NUL18: 0 | NUM18: 0 | NUN18: 0 | NUO18: 0 | NUP18: 0 | NUQ18: 0 | NUR18: 0 | NUS18: 0 | NUT18: 0 | NUU18: 0 | NUV18: 0 | NUW18: 0 | NUX18: 0 | NUY18: 0 | NUZ18: 0 | NVA18: 0 | NVB18: 0 | NVC18: 0 | NVD18: 0 | NVE18: 0 | NVF18: 0 | NVG18: 0 | NVH18: 0 | NVI18: 0 | NVJ18: 0 | NVK18: 0 | NVL18: 0 | NVM18: 0 | NVN18: 0 | NVO18: 0 | NVP18: 0 | NVQ18: 0 | NVR18: 0 | NVS18: 0 | NVT18: 0 | NVU18: =NVU16/25 -> 0 | NVV18: 0 | NVW18: 0 | NVX18: 0 | NVY18: 0 | NVZ18: 0 | NWA18: 0 | NWB18: 0 | NWC18: 0 | NWD18: 0 | NWE18: 0 | NWF18: 0 | NWG18: 0 | NWH18: 0 | NWI18: 0 | NWJ18: 0 | NWK18: 0 | NWL18: 0 | NWM18: 0 | NWN18: 0 | NWO18: 0 | NWP18: 0 | NWQ18: 0 | NWR18: 0 | NWS18: 0 | NWT18: 0 | NWU18: 0 | NWV18: 0 | NWW18: 0 | NWX18: 0 | NWY18: 0 | NWZ18: 0 | NXA18: 0 | NXB18: 0 | NXC18: 0 | NXD18: 0 | NXE18: 0 | NXF18: 0 | NXG18: 0 | NXH18: 0 | NXI18: 0 | NXJ18: 0 | NXK18: 0 | NXL18: 0 | NXM18: 0 | NXN18: 0 | NXO18: 0 | NXP18: 0 | NXQ18: 0 | NXR18: 0 | NXS18: 0 | NXT18: 0 | NXU18: 0 | NXV18: 0 | NXW18: 0 | NXX18: 0 | NXY18: 0 | NXZ18: 0 | NYA18: 0 | NYB18: 0 | NYC18: 0 | NYD18: 0 | NYE18: 0 | NYF18: 0 | NYG18: =NYG16/25 -> 0 | NYH18: 0 | NYI18: 0 | NYJ18: 0 | NYK18: 0 | NYL18: 0 | NYM18: 0 | NYN18: 0 | NYO18: 0 | NYP18: 0 | NYQ18: 0 | NYR18: 0 | NYS18: 0 | NYT18: 0 | NYU18: 0 | NYV18: 0 | NYW18: 0 | NYX18: 0 | NYY18: 0 | NYZ18: 0 | NZA18: 0 | NZB18: 0 | NZC18: 0 | NZD18: 0 | NZE18: 0 | NZF18: 0 | NZG18: 0 | NZH18: 0 | NZI18: 0 | NZJ18: 0 | NZK18: 0 | NZL18: 0 | NZM18: 0 | NZN18: 0 | NZO18: 0 | NZP18: 0 | NZQ18: 0 | NZR18: 0 | NZS18: 0 | NZT18: 0 | NZU18: 0 | NZV18: 0 | NZW18: 0 | NZX18: 0 | NZY18: 0 | NZZ18: 0 | OAA18: 0 | OAB18: 0 | OAC18: 0 | OAD18: 0 | OAE18: 0 | OAF18: 0 | OAG18: 0 | OAH18: 0 | OAI18: 0 | OAJ18: 0 | OAK18: 0 | OAL18: 0 | OAM18: 0 | OAN18: 0 | OAO18: 0 | OAP18: 0 | OAQ18: 0 | OAR18: 0 | OAS18: =OAS16/25 -> 0 | OAT18: 0 | OAU18: 0 | OAV18: 0 | OAW18: 0 | OAX18: 0 | OAY18: 0 | OAZ18: 0 | OBA18: 0 | OBB18: 0 | OBC18: 0 | OBD18: 0 | OBE18: 0 | OBF18: 0 | OBG18: 0 | OBH18: 0 | OBI18: 0 | OBJ18: 0 | OBK18: 0 | OBL18: 0 | OBM18: 0 | OBN18: 0 | OBO18: 0 | OBP18: 0 | OBQ18: 0 | OBR18: 0 | OBS18: 0 | OBT18: 0 | OBU18: 0 | OBV18: 0 | OBW18: 0 | OBX18: 0 | OBY18: 0 | OBZ18: 0 | OCA18: 0 | OCB18: 0 | OCC18: 0 | OCD18: 0 | OCE18: 0 | OCF18: 0 | OCG18: 0 | OCH18: 0 | OCI18: 0 | OCJ18: 0 | OCK18: 0 | OCL18: 0 | OCM18: 0 | OCN18: 0 | OCO18: 0 | OCP18: 0 | OCQ18: 0 | OCR18: 0 | OCS18: 0 | OCT18: 0 | OCU18: 0 | OCV18: 0 | OCW18: 0 | OCX18: 0 | OCY18: 0 | OCZ18: 0 | ODA18: 0 | ODB18: 0 | ODC18: 0 | ODD18: 0 | ODE18: =ODE16/25 -> 0 | ODF18: 0 | ODG18: 0 | ODH18: 0 | ODI18: 0 | ODJ18: 0 | ODK18: 0 | ODL18: 0 | ODM18: 0 | ODN18: 0 | ODO18: 0 | ODP18: 0 | ODQ18: 0 | ODR18: 0 | ODS18: 0 | ODT18: 0 | ODU18: 0 | ODV18: 0 | ODW18: 0 | ODX18: 0 | ODY18: 0 | ODZ18: 0 | OEA18: 0 | OEB18: 0 | OEC18: 0 | OED18: 0 | OEE18: 0 | OEF18: 0 | OEG18: 0 | OEH18: 0 | OEI18: 0 | OEJ18: 0 | OEK18: 0 | OEL18: 0 | OEM18: 0 | OEN18: 0 | OEO18: 0 | OEP18: 0 | OEQ18: 0 | OER18: 0 | OES18: 0 | OET18: 0 | OEU18: 0 | OEV18: 0 | OEW18: 0 | OEX18: 0 | OEY18: 0 | OEZ18: 0 | OFA18: 0 | OFB18: 0 | OFC18: 0 | OFD18: 0 | OFE18: 0 | OFF18: 0 | OFG18: 0 | OFH18: 0 | OFI18: 0 | OFJ18: 0 | OFK18: 0 | OFL18: 0 | OFM18: 0 | OFN18: 0 | OFO18: 0 | OFP18: 0 | OFQ18: =OFQ16/25 -> 0 | OFR18: 0 | OFS18: 0 | OFT18: 0 | OFU18: 0 | OFV18: 0 | OFW18: 0 | OFX18: 0 | OFY18: 0 | OFZ18: 0 | OGA18: 0 | OGB18: 0 | OGC18: 0 | OGD18: 0 | OGE18: 0 | OGF18: 0 | OGG18: 0 | OGH18: 0 | OGI18: 0 | OGJ18: 0 | OGK18: 0 | OGL18: 0 | OGM18: 0 | OGN18: 0 | OGO18: 0 | OGP18: 0 | OGQ18: 0 | OGR18: 0 | OGS18: 0 | OGT18: 0 | OGU18: 0 | OGV18: 0 | OGW18: 0 | OGX18: 0 | OGY18: 0 | OGZ18: 0 | OHA18: 0 | OHB18: 0 | OHC18: 0 | OHD18: 0 | OHE18: 0 | OHF18: 0 | OHG18: 0 | OHH18: 0 | OHI18: 0 | OHJ18: 0 | OHK18: 0 | OHL18: 0 | OHM18: 0 | OHN18: 0 | OHO18: 0 | OHP18: 0 | OHQ18: 0 | OHR18: 0 | OHS18: 0 | OHT18: 0 | OHU18: 0 | OHV18: 0 | OHW18: 0 | OHX18: 0 | OHY18: 0 | OHZ18: 0 | OIA18: 0 | OIB18: 0 | OIC18: =OIC16/25 -> 0 | OID18: 0 | OIE18: 0 | OIF18: 0 | OIG18: 0 | OIH18: 0 | OII18: 0 | OIJ18: 0 | OIK18: 0 | OIL18: 0 | OIM18: 0 | OIN18: 0 | OIO18: 0 | OIP18: 0 | OIQ18: 0 | OIR18: 0 | OIS18: 0 | OIT18: 0 | OIU18: 0 | OIV18: 0 | OIW18: 0 | OIX18: 0 | OIY18: 0 | OIZ18: 0 | OJA18: 0 | OJB18: 0 | OJC18: 0 | OJD18: 0 | OJE18: 0 | OJF18: 0 | OJG18: 0 | OJH18: 0 | OJI18: 0 | OJJ18: 0 | OJK18: 0 | OJL18: 0 | OJM18: 0 | OJN18: 0 | OJO18: 0 | OJP18: 0 | OJQ18: 0 | OJR18: 0 | OJS18: 0 | OJT18: 0 | OJU18: 0 | OJV18: 0 | OJW18: 0 | OJX18: 0 | OJY18: 0 | OJZ18: 0 | OKA18: 0 | OKB18: 0 | OKC18: 0 | OKD18: 0 | OKE18: 0 | OKF18: 0 | OKG18: 0 | OKH18: 0 | OKI18: 0 | OKJ18: 0 | OKK18: 0 | OKL18: 0 | OKM18: 0 | OKN18: 0 | OKO18: =OKO16/25 -> 0 | OKP18: 0 | OKQ18: 0 | OKR18: 0 | OKS18: 0 | OKT18: 0 | OKU18: 0 | OKV18: 0 | OKW18: 0 | OKX18: 0 | OKY18: 0 | OKZ18: 0 | OLA18: 0 | OLB18: 0 | OLC18: 0 | OLD18: 0 | OLE18: 0 | OLF18: 0 | OLG18: 0 | OLH18: 0 | OLI18: 0 | OLJ18: 0 | OLK18: 0 | OLL18: 0 | OLM18: 0 | OLN18: 0 | OLO18: 0 | OLP18: 0 | OLQ18: 0 | OLR18: 0 | OLS18: 0 | OLT18: 0 | OLU18: 0 | OLV18: 0 | OLW18: 0 | OLX18: 0 | OLY18: 0 | OLZ18: 0 | OMA18: 0 | OMB18: 0 | OMC18: 0 | OMD18: 0 | OME18: 0 | OMF18: 0 | OMG18: 0 | OMH18: 0 | OMI18: 0 | OMJ18: 0 | OMK18: 0 | OML18: 0 | OMM18: 0 | OMN18: 0 | OMO18: 0 | OMP18: 0 | OMQ18: 0 | OMR18: 0 | OMS18: 0 | OMT18: 0 | OMU18: 0 | OMV18: 0 | OMW18: 0 | OMX18: 0 | OMY18: 0 | OMZ18: 0 | ONA18: =ONA16/25 -> 0 | ONB18: 0 | ONC18: 0 | OND18: 0 | ONE18: 0 | ONF18: 0 | ONG18: 0 | ONH18: 0 | ONI18: 0 | ONJ18: 0 | ONK18: 0 | ONL18: 0 | ONM18: 0 | ONN18: 0 | ONO18: 0 | ONP18: 0 | ONQ18: 0 | ONR18: 0 | ONS18: 0 | ONT18: 0 | ONU18: 0 | ONV18: 0 | ONW18: 0 | ONX18: 0 | ONY18: 0 | ONZ18: 0 | OOA18: 0 | OOB18: 0 | OOC18: 0 | OOD18: 0 | OOE18: 0 | OOF18: 0 | OOG18: 0 | OOH18: 0 | OOI18: 0 | OOJ18: 0 | OOK18: 0 | OOL18: 0 | OOM18: 0 | OON18: 0 | OOO18: 0 | OOP18: 0 | OOQ18: 0 | OOR18: 0 | OOS18: 0 | OOT18: 0 | OOU18: 0 | OOV18: 0 | OOW18: 0 | OOX18: 0 | OOY18: 0 | OOZ18: 0 | OPA18: 0 | OPB18: 0 | OPC18: 0 | OPD18: 0 | OPE18: 0 | OPF18: 0 | OPG18: 0 | OPH18: 0 | OPI18: 0 | OPJ18: 0 | OPK18: 0 | OPL18: 0 | OPM18: =OPM16/25 -> 0 | OPN18: 0 | OPO18: 0 | OPP18: 0 | OPQ18: 0 | OPR18: 0 | OPS18: 0 | OPT18: 0 | OPU18: 0 | OPV18: 0 | OPW18: 0 | OPX18: 0 | OPY18: 0 | OPZ18: 0 | OQA18: 0 | OQB18: 0 | OQC18: 0 | OQD18: 0 | OQE18: 0 | OQF18: 0 | OQG18: 0 | OQH18: 0 | OQI18: 0 | OQJ18: 0 | OQK18: 0 | OQL18: 0 | OQM18: 0 | OQN18: 0 | OQO18: 0 | OQP18: 0 | OQQ18: 0 | OQR18: 0 | OQS18: 0 | OQT18: 0 | OQU18: 0 | OQV18: 0 | OQW18: 0 | OQX18: 0 | OQY18: 0 | OQZ18: 0 | ORA18: 0 | ORB18: 0 | ORC18: 0 | ORD18: 0 | ORE18: 0 | ORF18: 0 | ORG18: 0 | ORH18: 0 | ORI18: 0 | ORJ18: 0 | ORK18: 0 | ORL18: 0 | ORM18: 0 | ORN18: 0 | ORO18: 0 | ORP18: 0 | ORQ18: 0 | ORR18: 0 | ORS18: 0 | ORT18: 0 | ORU18: 0 | ORV18: 0 | ORW18: 0 | ORX18: 0 | ORY18: =ORY16/25 -> 0 | ORZ18: 0 | OSA18: 0 | OSB18: 0 | OSC18: 0 | OSD18: 0 | OSE18: 0 | OSF18: 0 | OSG18: 0 | OSH18: 0 | OSI18: 0 | OSJ18: 0 | OSK18: 0 | OSL18: 0 | OSM18: 0 | OSN18: 0 | OSO18: 0 | OSP18: 0 | OSQ18: 0 | OSR18: 0 | OSS18: 0 | OST18: 0 | OSU18: 0 | OSV18: 0 | OSW18: 0 | OSX18: 0 | OSY18: 0 | OSZ18: 0 | OTA18: 0 | OTB18: 0 | OTC18: 0 | OTD18: 0 | OTE18: 0 | OTF18: 0 | OTG18: 0 | OTH18: 0 | OTI18: 0 | OTJ18: 0 | OTK18: 0 | OTL18: 0 | OTM18: 0 | OTN18: 0 | OTO18: 0 | OTP18: 0 | OTQ18: 0 | OTR18: 0 | OTS18: 0 | OTT18: 0 | OTU18: 0 | OTV18: 0 | OTW18: 0 | OTX18: 0 | OTY18: 0 | OTZ18: 0 | OUA18: 0 | OUB18: 0 | OUC18: 0 | OUD18: 0 | OUE18: 0 | OUF18: 0 | OUG18: 0 | OUH18: 0 | OUI18: 0 | OUJ18: 0 | OUK18: =OUK16/25 -> 0 | OUL18: 0 | OUM18: 0 | OUN18: 0 | OUO18: 0 | OUP18: 0 | OUQ18: 0 | OUR18: 0 | OUS18: 0 | OUT18: 0 | OUU18: 0 | OUV18: 0 | OUW18: 0 | OUX18: 0 | OUY18: 0 | OUZ18: 0 | OVA18: 0 | OVB18: 0 | OVC18: 0 | OVD18: 0 | OVE18: 0 | OVF18: 0 | OVG18: 0 | OVH18: 0 | OVI18: 0 | OVJ18: 0 | OVK18: 0 | OVL18: 0 | OVM18: 0 | OVN18: 0 | OVO18: 0 | OVP18: 0 | OVQ18: 0 | OVR18: 0 | OVS18: 0 | OVT18: 0 | OVU18: 0 | OVV18: 0 | OVW18: 0 | OVX18: 0 | OVY18: 0 | OVZ18: 0 | OWA18: 0 | OWB18: 0 | OWC18: 0 | OWD18: 0 | OWE18: 0 | OWF18: 0 | OWG18: 0 | OWH18: 0 | OWI18: 0 | OWJ18: 0 | OWK18: 0 | OWL18: 0 | OWM18: 0 | OWN18: 0 | OWO18: 0 | OWP18: 0 | OWQ18: 0 | OWR18: 0 | OWS18: 0 | OWT18: 0 | OWU18: 0 | OWV18: 0 | OWW18: =OWW16/25 -> 0 | OWX18: 0 | OWY18: 0 | OWZ18: 0 | OXA18: 0 | OXB18: 0 | OXC18: 0 | OXD18: 0 | OXE18: 0 | OXF18: 0 | OXG18: 0 | OXH18: 0 | OXI18: 0 | OXJ18: 0 | OXK18: 0 | OXL18: 0 | OXM18: 0 | OXN18: 0 | OXO18: 0 | OXP18: 0 | OXQ18: 0 | OXR18: 0 | OXS18: 0 | OXT18: 0 | OXU18: 0 | OXV18: 0 | OXW18: 0 | OXX18: 0 | OXY18: 0 | OXZ18: 0 | OYA18: 0 | OYB18: 0 | OYC18: 0 | OYD18: 0 | OYE18: 0 | OYF18: 0 | OYG18: 0 | OYH18: 0 | OYI18: 0 | OYJ18: 0 | OYK18: 0 | OYL18: 0 | OYM18: 0 | OYN18: 0 | OYO18: 0 | OYP18: 0 | OYQ18: 0 | OYR18: 0 | OYS18: 0 | OYT18: 0 | OYU18: 0 | OYV18: 0 | OYW18: 0 | OYX18: 0 | OYY18: 0 | OYZ18: 0 | OZA18: 0 | OZB18: 0 | OZC18: 0 | OZD18: 0 | OZE18: 0 | OZF18: 0 | OZG18: 0 | OZH18: 0 | OZI18: =OZI16/25 -> 0 | OZJ18: 0 | OZK18: 0 | OZL18: 0 | OZM18: 0 | OZN18: 0 | OZO18: 0 | OZP18: 0 | OZQ18: 0 | OZR18: 0 | OZS18: 0 | OZT18: 0 | OZU18: 0 | OZV18: 0 | OZW18: 0 | OZX18: 0 | OZY18: 0 | OZZ18: 0 | PAA18: 0 | PAB18: 0 | PAC18: 0 | PAD18: 0 | PAE18: 0 | PAF18: 0 | PAG18: 0 | PAH18: 0 | PAI18: 0 | PAJ18: 0 | PAK18: 0 | PAL18: 0 | PAM18: 0 | PAN18: 0 | PAO18: 0 | PAP18: 0 | PAQ18: 0 | PAR18: 0 | PAS18: 0 | PAT18: 0 | PAU18: 0 | PAV18: 0 | PAW18: 0 | PAX18: 0 | PAY18: 0 | PAZ18: 0 | PBA18: 0 | PBB18: 0 | PBC18: 0 | PBD18: 0 | PBE18: 0 | PBF18: 0 | PBG18: 0 | PBH18: 0 | PBI18: 0 | PBJ18: 0 | PBK18: 0 | PBL18: 0 | PBM18: 0 | PBN18: 0 | PBO18: 0 | PBP18: 0 | PBQ18: 0 | PBR18: 0 | PBS18: 0 | PBT18: 0 | PBU18: =PBU16/25 -> 0 | PBV18: 0 | PBW18: 0 | PBX18: 0 | PBY18: 0 | PBZ18: 0 | PCA18: 0 | PCB18: 0 | PCC18: 0 | PCD18: 0 | PCE18: 0 | PCF18: 0 | PCG18: 0 | PCH18: 0 | PCI18: 0 | PCJ18: 0 | PCK18: 0 | PCL18: 0 | PCM18: 0 | PCN18: 0 | PCO18: 0 | PCP18: 0 | PCQ18: 0 | PCR18: 0 | PCS18: 0 | PCT18: 0 | PCU18: 0 | PCV18: 0 | PCW18: 0 | PCX18: 0 | PCY18: 0 | PCZ18: 0 | PDA18: 0 | PDB18: 0 | PDC18: 0 | PDD18: 0 | PDE18: 0 | PDF18: 0 | PDG18: 0 | PDH18: 0 | PDI18: 0 | PDJ18: 0 | PDK18: 0 | PDL18: 0 | PDM18: 0 | PDN18: 0 | PDO18: 0 | PDP18: 0 | PDQ18: 0 | PDR18: 0 | PDS18: 0 | PDT18: 0 | PDU18: 0 | PDV18: 0 | PDW18: 0 | PDX18: 0 | PDY18: 0 | PDZ18: 0 | PEA18: 0 | PEB18: 0 | PEC18: 0 | PED18: 0 | PEE18: 0 | PEF18: 0 | PEG18: =PEG16/25 -> 0 | PEH18: 0 | PEI18: 0 | PEJ18: 0 | PEK18: 0 | PEL18: 0 | PEM18: 0 | PEN18: 0 | PEO18: 0 | PEP18: 0 | PEQ18: 0 | PER18: 0 | PES18: 0 | PET18: 0 | PEU18: 0 | PEV18: 0 | PEW18: 0 | PEX18: 0 | PEY18: 0 | PEZ18: 0 | PFA18: 0 | PFB18: 0 | PFC18: 0 | PFD18: 0 | PFE18: 0 | PFF18: 0 | PFG18: 0 | PFH18: 0 | PFI18: 0 | PFJ18: 0 | PFK18: 0 | PFL18: 0 | PFM18: 0 | PFN18: 0 | PFO18: 0 | PFP18: 0 | PFQ18: 0 | PFR18: 0 | PFS18: 0 | PFT18: 0 | PFU18: 0 | PFV18: 0 | PFW18: 0 | PFX18: 0 | PFY18: 0 | PFZ18: 0 | PGA18: 0 | PGB18: 0 | PGC18: 0 | PGD18: 0 | PGE18: 0 | PGF18: 0 | PGG18: 0 | PGH18: 0 | PGI18: 0 | PGJ18: 0 | PGK18: 0 | PGL18: 0 | PGM18: 0 | PGN18: 0 | PGO18: 0 | PGP18: 0 | PGQ18: 0 | PGR18: 0 | PGS18: =PGS16/25 -> 0 | PGT18: 0 | PGU18: 0 | PGV18: 0 | PGW18: 0 | PGX18: 0 | PGY18: 0 | PGZ18: 0 | PHA18: 0 | PHB18: 0 | PHC18: 0 | PHD18: 0 | PHE18: 0 | PHF18: 0 | PHG18: 0 | PHH18: 0 | PHI18: 0 | PHJ18: 0 | PHK18: 0 | PHL18: 0 | PHM18: 0 | PHN18: 0 | PHO18: 0 | PHP18: 0 | PHQ18: 0 | PHR18: 0 | PHS18: 0 | PHT18: 0 | PHU18: 0 | PHV18: 0 | PHW18: 0 | PHX18: 0 | PHY18: 0 | PHZ18: 0 | PIA18: 0 | PIB18: 0 | PIC18: 0 | PID18: 0 | PIE18: 0 | PIF18: 0 | PIG18: 0 | PIH18: 0 | PII18: 0 | PIJ18: 0 | PIK18: 0 | PIL18: 0 | PIM18: 0 | PIN18: 0 | PIO18: 0 | PIP18: 0 | PIQ18: 0 | PIR18: 0 | PIS18: 0 | PIT18: 0 | PIU18: 0 | PIV18: 0 | PIW18: 0 | PIX18: 0 | PIY18: 0 | PIZ18: 0 | PJA18: 0 | PJB18: 0 | PJC18: 0 | PJD18: 0 | PJE18: =PJE16/25 -> 0 | PJF18: 0 | PJG18: 0 | PJH18: 0 | PJI18: 0 | PJJ18: 0 | PJK18: 0 | PJL18: 0 | PJM18: 0 | PJN18: 0 | PJO18: 0 | PJP18: 0 | PJQ18: 0 | PJR18: 0 | PJS18: 0 | PJT18: 0 | PJU18: 0 | PJV18: 0 | PJW18: 0 | PJX18: 0 | PJY18: 0 | PJZ18: 0 | PKA18: 0 | PKB18: 0 | PKC18: 0 | PKD18: 0 | PKE18: 0 | PKF18: 0 | PKG18: 0 | PKH18: 0 | PKI18: 0 | PKJ18: 0 | PKK18: 0 | PKL18: 0 | PKM18: 0 | PKN18: 0 | PKO18: 0 | PKP18: 0 | PKQ18: 0 | PKR18: 0 | PKS18: 0 | PKT18: 0 | PKU18: 0 | PKV18: 0 | PKW18: 0 | PKX18: 0 | PKY18: 0 | PKZ18: 0 | PLA18: 0 | PLB18: 0 | PLC18: 0 | PLD18: 0 | PLE18: 0 | PLF18: 0 | PLG18: 0 | PLH18: 0 | PLI18: 0 | PLJ18: 0 | PLK18: 0 | PLL18: 0 | PLM18: 0 | PLN18: 0 | PLO18: 0 | PLP18: 0 | PLQ18: =PLQ16/25 -> 0 | PLR18: 0 | PLS18: 0 | PLT18: 0 | PLU18: 0 | PLV18: 0 | PLW18: 0 | PLX18: 0 | PLY18: 0 | PLZ18: 0 | PMA18: 0 | PMB18: 0 | PMC18: 0 | PMD18: 0 | PME18: 0 | PMF18: 0 | PMG18: 0 | PMH18: 0 | PMI18: 0 | PMJ18: 0 | PMK18: 0 | PML18: 0 | PMM18: 0 | PMN18: 0 | PMO18: 0 | PMP18: 0 | PMQ18: 0 | PMR18: 0 | PMS18: 0 | PMT18: 0 | PMU18: 0 | PMV18: 0 | PMW18: 0 | PMX18: 0 | PMY18: 0 | PMZ18: 0 | PNA18: 0 | PNB18: 0 | PNC18: 0 | PND18: 0 | PNE18: 0 | PNF18: 0 | PNG18: 0 | PNH18: 0 | PNI18: 0 | PNJ18: 0 | PNK18: 0 | PNL18: 0 | PNM18: 0 | PNN18: 0 | PNO18: 0 | PNP18: 0 | PNQ18: 0 | PNR18: 0 | PNS18: 0 | PNT18: 0 | PNU18: 0 | PNV18: 0 | PNW18: 0 | PNX18: 0 | PNY18: 0 | PNZ18: 0 | POA18: 0 | POB18: 0 | POC18: =POC16/25 -> 0 | POD18: 0 | POE18: 0 | POF18: 0 | POG18: 0 | POH18: 0 | POI18: 0 | POJ18: 0 | POK18: 0 | POL18: 0 | POM18: 0 | PON18: 0 | POO18: 0 | POP18: 0 | POQ18: 0 | POR18: 0 | POS18: 0 | POT18: 0 | POU18: 0 | POV18: 0 | POW18: 0 | POX18: 0 | POY18: 0 | POZ18: 0 | PPA18: 0 | PPB18: 0 | PPC18: 0 | PPD18: 0 | PPE18: 0 | PPF18: 0 | PPG18: 0 | PPH18: 0 | PPI18: 0 | PPJ18: 0 | PPK18: 0 | PPL18: 0 | PPM18: 0 | PPN18: 0 | PPO18: 0 | PPP18: 0 | PPQ18: 0 | PPR18: 0 | PPS18: 0 | PPT18: 0 | PPU18: 0 | PPV18: 0 | PPW18: 0 | PPX18: 0 | PPY18: 0 | PPZ18: 0 | PQA18: 0 | PQB18: 0 | PQC18: 0 | PQD18: 0 | PQE18: 0 | PQF18: 0 | PQG18: 0 | PQH18: 0 | PQI18: 0 | PQJ18: 0 | PQK18: 0 | PQL18: 0 | PQM18: 0 | PQN18: 0 | PQO18: =PQO16/25 -> 0 | PQP18: 0 | PQQ18: 0 | PQR18: 0 | PQS18: 0 | PQT18: 0 | PQU18: 0 | PQV18: 0 | PQW18: 0 | PQX18: 0 | PQY18: 0 | PQZ18: 0 | PRA18: 0 | PRB18: 0 | PRC18: 0 | PRD18: 0 | PRE18: 0 | PRF18: 0 | PRG18: 0 | PRH18: 0 | PRI18: 0 | PRJ18: 0 | PRK18: 0 | PRL18: 0 | PRM18: 0 | PRN18: 0 | PRO18: 0 | PRP18: 0 | PRQ18: 0 | PRR18: 0 | PRS18: 0 | PRT18: 0 | PRU18: 0 | PRV18: 0 | PRW18: 0 | PRX18: 0 | PRY18: 0 | PRZ18: 0 | PSA18: 0 | PSB18: 0 | PSC18: 0 | PSD18: 0 | PSE18: 0 | PSF18: 0 | PSG18: 0 | PSH18: 0 | PSI18: 0 | PSJ18: 0 | PSK18: 0 | PSL18: 0 | PSM18: 0 | PSN18: 0 | PSO18: 0 | PSP18: 0 | PSQ18: 0 | PSR18: 0 | PSS18: 0 | PST18: 0 | PSU18: 0 | PSV18: 0 | PSW18: 0 | PSX18: 0 | PSY18: 0 | PSZ18: 0 | PTA18: =PTA16/25 -> 0 | PTB18: 0 | PTC18: 0 | PTD18: 0 | PTE18: 0 | PTF18: 0 | PTG18: 0 | PTH18: 0 | PTI18: 0 | PTJ18: 0 | PTK18: 0 | PTL18: 0 | PTM18: 0 | PTN18: 0 | PTO18: 0 | PTP18: 0 | PTQ18: 0 | PTR18: 0 | PTS18: 0 | PTT18: 0 | PTU18: 0 | PTV18: 0 | PTW18: 0 | PTX18: 0 | PTY18: 0 | PTZ18: 0 | PUA18: 0 | PUB18: 0 | PUC18: 0 | PUD18: 0 | PUE18: 0 | PUF18: 0 | PUG18: 0 | PUH18: 0 | PUI18: 0 | PUJ18: 0 | PUK18: 0 | PUL18: 0 | PUM18: 0 | PUN18: 0 | PUO18: 0 | PUP18: 0 | PUQ18: 0 | PUR18: 0 | PUS18: 0 | PUT18: 0 | PUU18: 0 | PUV18: 0 | PUW18: 0 | PUX18: 0 | PUY18: 0 | PUZ18: 0 | PVA18: 0 | PVB18: 0 | PVC18: 0 | PVD18: 0 | PVE18: 0 | PVF18: 0 | PVG18: 0 | PVH18: 0 | PVI18: 0 | PVJ18: 0 | PVK18: 0 | PVL18: 0 | PVM18: =PVM16/25 -> 0 | PVN18: 0 | PVO18: 0 | PVP18: 0 | PVQ18: 0 | PVR18: 0 | PVS18: 0 | PVT18: 0 | PVU18: 0 | PVV18: 0 | PVW18: 0 | PVX18: 0 | PVY18: 0 | PVZ18: 0 | PWA18: 0 | PWB18: 0 | PWC18: 0 | PWD18: 0 | PWE18: 0 | PWF18: 0 | PWG18: 0 | PWH18: 0 | PWI18: 0 | PWJ18: 0 | PWK18: 0 | PWL18: 0 | PWM18: 0 | PWN18: 0 | PWO18: 0 | PWP18: 0 | PWQ18: 0 | PWR18: 0 | PWS18: 0 | PWT18: 0 | PWU18: 0 | PWV18: 0 | PWW18: 0 | PWX18: 0 | PWY18: 0 | PWZ18: 0 | PXA18: 0 | PXB18: 0 | PXC18: 0 | PXD18: 0 | PXE18: 0 | PXF18: 0 | PXG18: 0 | PXH18: 0 | PXI18: 0 | PXJ18: 0 | PXK18: 0 | PXL18: 0 | PXM18: 0 | PXN18: 0 | PXO18: 0 | PXP18: 0 | PXQ18: 0 | PXR18: 0 | PXS18: 0 | PXT18: 0 | PXU18: 0 | PXV18: 0 | PXW18: 0 | PXX18: 0 | PXY18: =PXY16/25 -> 0 | PXZ18: 0 | PYA18: 0 | PYB18: 0 | PYC18: 0 | PYD18: 0 | PYE18: 0 | PYF18: 0 | PYG18: 0 | PYH18: 0 | PYI18: 0 | PYJ18: 0 | PYK18: 0 | PYL18: 0 | PYM18: 0 | PYN18: 0 | PYO18: 0 | PYP18: 0 | PYQ18: 0 | PYR18: 0 | PYS18: 0 | PYT18: 0 | PYU18: 0 | PYV18: 0 | PYW18: 0 | PYX18: 0 | PYY18: 0 | PYZ18: 0 | PZA18: 0 | PZB18: 0 | PZC18: 0 | PZD18: 0 | PZE18: 0 | PZF18: 0 | PZG18: 0 | PZH18: 0 | PZI18: 0 | PZJ18: 0 | PZK18: 0 | PZL18: 0 | PZM18: 0 | PZN18: 0 | PZO18: 0 | PZP18: 0 | PZQ18: 0 | PZR18: 0 | PZS18: 0 | PZT18: 0 | PZU18: 0 | PZV18: 0 | PZW18: 0 | PZX18: 0 | PZY18: 0 | PZZ18: 0 | QAA18: 0 | QAB18: 0 | QAC18: 0 | QAD18: 0 | QAE18: 0 | QAF18: 0 | QAG18: 0 | QAH18: 0 | QAI18: 0 | QAJ18: 0 | QAK18: =QAK16/25 -> 0 | QAL18: 0 | QAM18: 0 | QAN18: 0 | QAO18: 0 | QAP18: 0 | QAQ18: 0 | QAR18: 0 | QAS18: 0 | QAT18: 0 | QAU18: 0 | QAV18: 0 | QAW18: 0 | QAX18: 0 | QAY18: 0 | QAZ18: 0 | QBA18: 0 | QBB18: 0 | QBC18: 0 | QBD18: 0 | QBE18: 0 | QBF18: 0 | QBG18: 0 | QBH18: 0 | QBI18: 0 | QBJ18: 0 | QBK18: 0 | QBL18: 0 | QBM18: 0 | QBN18: 0 | QBO18: 0 | QBP18: 0 | QBQ18: 0 | QBR18: 0 | QBS18: 0 | QBT18: 0 | QBU18: 0 | QBV18: 0 | QBW18: 0 | QBX18: 0 | QBY18: 0 | QBZ18: 0 | QCA18: 0 | QCB18: 0 | QCC18: 0 | QCD18: 0 | QCE18: 0 | QCF18: 0 | QCG18: 0 | QCH18: 0 | QCI18: 0 | QCJ18: 0 | QCK18: 0 | QCL18: 0 | QCM18: 0 | QCN18: 0 | QCO18: 0 | QCP18: 0 | QCQ18: 0 | QCR18: 0 | QCS18: 0 | QCT18: 0 | QCU18: 0 | QCV18: 0 | QCW18: =QCW16/25 -> 0 | QCX18: 0 | QCY18: 0 | QCZ18: 0 | QDA18: 0 | QDB18: 0 | QDC18: 0 | QDD18: 0 | QDE18: 0 | QDF18: 0 | QDG18: 0 | QDH18: 0 | QDI18: 0 | QDJ18: 0 | QDK18: 0 | QDL18: 0 | QDM18: 0 | QDN18: 0 | QDO18: 0 | QDP18: 0 | QDQ18: 0 | QDR18: 0 | QDS18: 0 | QDT18: 0 | QDU18: 0 | QDV18: 0 | QDW18: 0 | QDX18: 0 | QDY18: 0 | QDZ18: 0 | QEA18: 0 | QEB18: 0 | QEC18: 0 | QED18: 0 | QEE18: 0 | QEF18: 0 | QEG18: 0 | QEH18: 0 | QEI18: 0 | QEJ18: 0 | QEK18: 0 | QEL18: 0 | QEM18: 0 | QEN18: 0 | QEO18: 0 | QEP18: 0 | QEQ18: 0 | QER18: 0 | QES18: 0 | QET18: 0 | QEU18: 0 | QEV18: 0 | QEW18: 0 | QEX18: 0 | QEY18: 0 | QEZ18: 0 | QFA18: 0 | QFB18: 0 | QFC18: 0 | QFD18: 0 | QFE18: 0 | QFF18: 0 | QFG18: 0 | QFH18: 0 | QFI18: =QFI16/25 -> 0 | QFJ18: 0 | QFK18: 0 | QFL18: 0 | QFM18: 0 | QFN18: 0 | QFO18: 0 | QFP18: 0 | QFQ18: 0 | QFR18: 0 | QFS18: 0 | QFT18: 0 | QFU18: 0 | QFV18: 0 | QFW18: 0 | QFX18: 0 | QFY18: 0 | QFZ18: 0 | QGA18: 0 | QGB18: 0 | QGC18: 0 | QGD18: 0 | QGE18: 0 | QGF18: 0 | QGG18: 0 | QGH18: 0 | QGI18: 0 | QGJ18: 0 | QGK18: 0 | QGL18: 0 | QGM18: 0 | QGN18: 0 | QGO18: 0 | QGP18: 0 | QGQ18: 0 | QGR18: 0 | QGS18: 0 | QGT18: 0 | QGU18: 0 | QGV18: 0 | QGW18: 0 | QGX18: 0 | QGY18: 0 | QGZ18: 0 | QHA18: 0 | QHB18: 0 | QHC18: 0 | QHD18: 0 | QHE18: 0 | QHF18: 0 | QHG18: 0 | QHH18: 0 | QHI18: 0 | QHJ18: 0 | QHK18: 0 | QHL18: 0 | QHM18: 0 | QHN18: 0 | QHO18: 0 | QHP18: 0 | QHQ18: 0 | QHR18: 0 | QHS18: 0 | QHT18: 0 | QHU18: =QHU16/25 -> 0 | QHV18: 0 | QHW18: 0 | QHX18: 0 | QHY18: 0 | QHZ18: 0 | QIA18: 0 | QIB18: 0 | QIC18: 0 | QID18: 0 | QIE18: 0 | QIF18: 0 | QIG18: 0 | QIH18: 0 | QII18: 0 | QIJ18: 0 | QIK18: 0 | QIL18: 0 | QIM18: 0 | QIN18: 0 | QIO18: 0 | QIP18: 0 | QIQ18: 0 | QIR18: 0 | QIS18: 0 | QIT18: 0 | QIU18: 0 | QIV18: 0 | QIW18: 0 | QIX18: 0 | QIY18: 0 | QIZ18: 0 | QJA18: 0 | QJB18: 0 | QJC18: 0 | QJD18: 0 | QJE18: 0 | QJF18: 0 | QJG18: 0 | QJH18: 0 | QJI18: 0 | QJJ18: 0 | QJK18: 0 | QJL18: 0 | QJM18: 0 | QJN18: 0 | QJO18: 0 | QJP18: 0 | QJQ18: 0 | QJR18: 0 | QJS18: 0 | QJT18: 0 | QJU18: 0 | QJV18: 0 | QJW18: 0 | QJX18: 0 | QJY18: 0 | QJZ18: 0 | QKA18: 0 | QKB18: 0 | QKC18: 0 | QKD18: 0 | QKE18: 0 | QKF18: 0 | QKG18: =QKG16/25 -> 0 | QKH18: 0 | QKI18: 0 | QKJ18: 0 | QKK18: 0 | QKL18: 0 | QKM18: 0 | QKN18: 0 | QKO18: 0 | QKP18: 0 | QKQ18: 0 | QKR18: 0 | QKS18: 0 | QKT18: 0 | QKU18: 0 | QKV18: 0 | QKW18: 0 | QKX18: 0 | QKY18: 0 | QKZ18: 0 | QLA18: 0 | QLB18: 0 | QLC18: 0 | QLD18: 0 | QLE18: 0 | QLF18: 0 | QLG18: 0 | QLH18: 0 | QLI18: 0 | QLJ18: 0 | QLK18: 0 | QLL18: 0 | QLM18: 0 | QLN18: 0 | QLO18: 0 | QLP18: 0 | QLQ18: 0 | QLR18: 0 | QLS18: 0 | QLT18: 0 | QLU18: 0 | QLV18: 0 | QLW18: 0 | QLX18: 0 | QLY18: 0 | QLZ18: 0 | QMA18: 0 | QMB18: 0 | QMC18: 0 | QMD18: 0 | QME18: 0 | QMF18: 0 | QMG18: 0 | QMH18: 0 | QMI18: 0 | QMJ18: 0 | QMK18: 0 | QML18: 0 | QMM18: 0 | QMN18: 0 | QMO18: 0 | QMP18: 0 | QMQ18: 0 | QMR18: 0 | QMS18: =QMS16/25 -> 0 | QMT18: 0 | QMU18: 0 | QMV18: 0 | QMW18: 0 | QMX18: 0 | QMY18: 0 | QMZ18: 0 | QNA18: 0 | QNB18: 0 | QNC18: 0 | QND18: 0 | QNE18: 0 | QNF18: 0 | QNG18: 0 | QNH18: 0 | QNI18: 0 | QNJ18: 0 | QNK18: 0 | QNL18: 0 | QNM18: 0 | QNN18: 0 | QNO18: 0 | QNP18: 0 | QNQ18: 0 | QNR18: 0 | QNS18: 0 | QNT18: 0 | QNU18: 0 | QNV18: 0 | QNW18: 0 | QNX18: 0 | QNY18: 0 | QNZ18: 0 | QOA18: 0 | QOB18: 0 | QOC18: 0 | QOD18: 0 | QOE18: 0 | QOF18: 0 | QOG18: 0 | QOH18: 0 | QOI18: 0 | QOJ18: 0 | QOK18: 0 | QOL18: 0 | QOM18: 0 | QON18: 0 | QOO18: 0 | QOP18: 0 | QOQ18: 0 | QOR18: 0 | QOS18: 0 | QOT18: 0 | QOU18: 0 | QOV18: 0 | QOW18: 0 | QOX18: 0 | QOY18: 0 | QOZ18: 0 | QPA18: 0 | QPB18: 0 | QPC18: 0 | QPD18: 0 | QPE18: =QPE16/25 -> 0 | QPF18: 0 | QPG18: 0 | QPH18: 0 | QPI18: 0 | QPJ18: 0 | QPK18: 0 | QPL18: 0 | QPM18: 0 | QPN18: 0 | QPO18: 0 | QPP18: 0 | QPQ18: 0 | QPR18: 0 | QPS18: 0 | QPT18: 0 | QPU18: 0 | QPV18: 0 | QPW18: 0 | QPX18: 0 | QPY18: 0 | QPZ18: 0 | QQA18: 0 | QQB18: 0 | QQC18: 0 | QQD18: 0 | QQE18: 0 | QQF18: 0 | QQG18: 0 | QQH18: 0 | QQI18: 0 | QQJ18: 0 | QQK18: 0 | QQL18: 0 | QQM18: 0 | QQN18: 0 | QQO18: 0 | QQP18: 0 | QQQ18: 0 | QQR18: 0 | QQS18: 0 | QQT18: 0 | QQU18: 0 | QQV18: 0 | QQW18: 0 | QQX18: 0 | QQY18: 0 | QQZ18: 0 | QRA18: 0 | QRB18: 0 | QRC18: 0 | QRD18: 0 | QRE18: 0 | QRF18: 0 | QRG18: 0 | QRH18: 0 | QRI18: 0 | QRJ18: 0 | QRK18: 0 | QRL18: 0 | QRM18: 0 | QRN18: 0 | QRO18: 0 | QRP18: 0 | QRQ18: =QRQ16/25 -> 0 | QRR18: 0 | QRS18: 0 | QRT18: 0 | QRU18: 0 | QRV18: 0 | QRW18: 0 | QRX18: 0 | QRY18: 0 | QRZ18: 0 | QSA18: 0 | QSB18: 0 | QSC18: 0 | QSD18: 0 | QSE18: 0 | QSF18: 0 | QSG18: 0 | QSH18: 0 | QSI18: 0 | QSJ18: 0 | QSK18: 0 | QSL18: 0 | QSM18: 0 | QSN18: 0 | QSO18: 0 | QSP18: 0 | QSQ18: 0 | QSR18: 0 | QSS18: 0 | QST18: 0 | QSU18: 0 | QSV18: 0 | QSW18: 0 | QSX18: 0 | QSY18: 0 | QSZ18: 0 | QTA18: 0 | QTB18: 0 | QTC18: 0 | QTD18: 0 | QTE18: 0 | QTF18: 0 | QTG18: 0 | QTH18: 0 | QTI18: 0 | QTJ18: 0 | QTK18: 0 | QTL18: 0 | QTM18: 0 | QTN18: 0 | QTO18: 0 | QTP18: 0 | QTQ18: 0 | QTR18: 0 | QTS18: 0 | QTT18: 0 | QTU18: 0 | QTV18: 0 | QTW18: 0 | QTX18: 0 | QTY18: 0 | QTZ18: 0 | QUA18: 0 | QUB18: 0 | QUC18: =QUC16/25 -> 0 | QUD18: 0 | QUE18: 0 | QUF18: 0 | QUG18: 0 | QUH18: 0 | QUI18: 0 | QUJ18: 0 | QUK18: 0 | QUL18: 0 | QUM18: 0 | QUN18: 0 | QUO18: 0 | QUP18: 0 | QUQ18: 0 | QUR18: 0 | QUS18: 0 | QUT18: 0 | QUU18: 0 | QUV18: 0 | QUW18: 0 | QUX18: 0 | QUY18: 0 | QUZ18: 0 | QVA18: 0 | QVB18: 0 | QVC18: 0 | QVD18: 0 | QVE18: 0 | QVF18: 0 | QVG18: 0 | QVH18: 0 | QVI18: 0 | QVJ18: 0 | QVK18: 0 | QVL18: 0 | QVM18: 0 | QVN18: 0 | QVO18: 0 | QVP18: 0 | QVQ18: 0 | QVR18: 0 | QVS18: 0 | QVT18: 0 | QVU18: 0 | QVV18: 0 | QVW18: 0 | QVX18: 0 | QVY18: 0 | QVZ18: 0 | QWA18: 0 | QWB18: 0 | QWC18: 0 | QWD18: 0 | QWE18: 0 | QWF18: 0 | QWG18: 0 | QWH18: 0 | QWI18: 0 | QWJ18: 0 | QWK18: 0 | QWL18: 0 | QWM18: 0 | QWN18: 0 | QWO18: =QWO16/25 -> 0 | QWP18: 0 | QWQ18: 0 | QWR18: 0 | QWS18: 0 | QWT18: 0 | QWU18: 0 | QWV18: 0 | QWW18: 0 | QWX18: 0 | QWY18: 0 | QWZ18: 0 | QXA18: 0 | QXB18: 0 | QXC18: 0 | QXD18: 0 | QXE18: 0 | QXF18: 0 | QXG18: 0 | QXH18: 0 | QXI18: 0 | QXJ18: 0 | QXK18: 0 | QXL18: 0 | QXM18: 0 | QXN18: 0 | QXO18: 0 | QXP18: 0 | QXQ18: 0 | QXR18: 0 | QXS18: 0 | QXT18: 0 | QXU18: 0 | QXV18: 0 | QXW18: 0 | QXX18: 0 | QXY18: 0 | QXZ18: 0 | QYA18: 0 | QYB18: 0 | QYC18: 0 | QYD18: 0 | QYE18: 0 | QYF18: 0 | QYG18: 0 | QYH18: 0 | QYI18: 0 | QYJ18: 0 | QYK18: 0 | QYL18: 0 | QYM18: 0 | QYN18: 0 | QYO18: 0 | QYP18: 0 | QYQ18: 0 | QYR18: 0 | QYS18: 0 | QYT18: 0 | QYU18: 0 | QYV18: 0 | QYW18: 0 | QYX18: 0 | QYY18: 0 | QYZ18: 0 | QZA18: =QZA16/25 -> 0 | QZB18: 0 | QZC18: 0 | QZD18: 0 | QZE18: 0 | QZF18: 0 | QZG18: 0 | QZH18: 0 | QZI18: 0 | QZJ18: 0 | QZK18: 0 | QZL18: 0 | QZM18: 0 | QZN18: 0 | QZO18: 0 | QZP18: 0 | QZQ18: 0 | QZR18: 0 | QZS18: 0 | QZT18: 0 | QZU18: 0 | QZV18: 0 | QZW18: 0 | QZX18: 0 | QZY18: 0 | QZZ18: 0 | RAA18: 0 | RAB18: 0 | RAC18: 0 | RAD18: 0 | RAE18: 0 | RAF18: 0 | RAG18: 0 | RAH18: 0 | RAI18: 0 | RAJ18: 0 | RAK18: 0 | RAL18: 0 | RAM18: 0 | RAN18: 0 | RAO18: 0 | RAP18: 0 | RAQ18: 0 | RAR18: 0 | RAS18: 0 | RAT18: 0 | RAU18: 0 | RAV18: 0 | RAW18: 0 | RAX18: 0 | RAY18: 0 | RAZ18: 0 | RBA18: 0 | RBB18: 0 | RBC18: 0 | RBD18: 0 | RBE18: 0 | RBF18: 0 | RBG18: 0 | RBH18: 0 | RBI18: 0 | RBJ18: 0 | RBK18: 0 | RBL18: 0 | RBM18: =RBM16/25 -> 0 | RBN18: 0 | RBO18: 0 | RBP18: 0 | RBQ18: 0 | RBR18: 0 | RBS18: 0 | RBT18: 0 | RBU18: 0 | RBV18: 0 | RBW18: 0 | RBX18: 0 | RBY18: 0 | RBZ18: 0 | RCA18: 0 | RCB18: 0 | RCC18: 0 | RCD18: 0 | RCE18: 0 | RCF18: 0 | RCG18: 0 | RCH18: 0 | RCI18: 0 | RCJ18: 0 | RCK18: 0 | RCL18: 0 | RCM18: 0 | RCN18: 0 | RCO18: 0 | RCP18: 0 | RCQ18: 0 | RCR18: 0 | RCS18: 0 | RCT18: 0 | RCU18: 0 | RCV18: 0 | RCW18: 0 | RCX18: 0 | RCY18: 0 | RCZ18: 0 | RDA18: 0 | RDB18: 0 | RDC18: 0 | RDD18: 0 | RDE18: 0 | RDF18: 0 | RDG18: 0 | RDH18: 0 | RDI18: 0 | RDJ18: 0 | RDK18: 0 | RDL18: 0 | RDM18: 0 | RDN18: 0 | RDO18: 0 | RDP18: 0 | RDQ18: 0 | RDR18: 0 | RDS18: 0 | RDT18: 0 | RDU18: 0 | RDV18: 0 | RDW18: 0 | RDX18: 0 | RDY18: =RDY16/25 -> 0 | RDZ18: 0 | REA18: 0 | REB18: 0 | REC18: 0 | RED18: 0 | REE18: 0 | REF18: 0 | REG18: 0 | REH18: 0 | REI18: 0 | REJ18: 0 | REK18: 0 | REL18: 0 | REM18: 0 | REN18: 0 | REO18: 0 | REP18: 0 | REQ18: 0 | RER18: 0 | RES18: 0 | RET18: 0 | REU18: 0 | REV18: 0 | REW18: 0 | REX18: 0 | REY18: 0 | REZ18: 0 | RFA18: 0 | RFB18: 0 | RFC18: 0 | RFD18: 0 | RFE18: 0 | RFF18: 0 | RFG18: 0 | RFH18: 0 | RFI18: 0 | RFJ18: 0 | RFK18: 0 | RFL18: 0 | RFM18: 0 | RFN18: 0 | RFO18: 0 | RFP18: 0 | RFQ18: 0 | RFR18: 0 | RFS18: 0 | RFT18: 0 | RFU18: 0 | RFV18: 0 | RFW18: 0 | RFX18: 0 | RFY18: 0 | RFZ18: 0 | RGA18: 0 | RGB18: 0 | RGC18: 0 | RGD18: 0 | RGE18: 0 | RGF18: 0 | RGG18: 0 | RGH18: 0 | RGI18: 0 | RGJ18: 0 | RGK18: =RGK16/25 -> 0 | RGL18: 0 | RGM18: 0 | RGN18: 0 | RGO18: 0 | RGP18: 0 | RGQ18: 0 | RGR18: 0 | RGS18: 0 | RGT18: 0 | RGU18: 0 | RGV18: 0 | RGW18: 0 | RGX18: 0 | RGY18: 0 | RGZ18: 0 | RHA18: 0 | RHB18: 0 | RHC18: 0 | RHD18: 0 | RHE18: 0 | RHF18: 0 | RHG18: 0 | RHH18: 0 | RHI18: 0 | RHJ18: 0 | RHK18: 0 | RHL18: 0 | RHM18: 0 | RHN18: 0 | RHO18: 0 | RHP18: 0 | RHQ18: 0 | RHR18: 0 | RHS18: 0 | RHT18: 0 | RHU18: 0 | RHV18: 0 | RHW18: 0 | RHX18: 0 | RHY18: 0 | RHZ18: 0 | RIA18: 0 | RIB18: 0 | RIC18: 0 | RID18: 0 | RIE18: 0 | RIF18: 0 | RIG18: 0 | RIH18: 0 | RII18: 0 | RIJ18: 0 | RIK18: 0 | RIL18: 0 | RIM18: 0 | RIN18: 0 | RIO18: 0 | RIP18: 0 | RIQ18: 0 | RIR18: 0 | RIS18: 0 | RIT18: 0 | RIU18: 0 | RIV18: 0 | RIW18: =RIW16/25 -> 0 | RIX18: 0 | RIY18: 0 | RIZ18: 0 | RJA18: 0 | RJB18: 0 | RJC18: 0 | RJD18: 0 | RJE18: 0 | RJF18: 0 | RJG18: 0 | RJH18: 0 | RJI18: 0 | RJJ18: 0 | RJK18: 0 | RJL18: 0 | RJM18: 0 | RJN18: 0 | RJO18: 0 | RJP18: 0 | RJQ18: 0 | RJR18: 0 | RJS18: 0 | RJT18: 0 | RJU18: 0 | RJV18: 0 | RJW18: 0 | RJX18: 0 | RJY18: 0 | RJZ18: 0 | RKA18: 0 | RKB18: 0 | RKC18: 0 | RKD18: 0 | RKE18: 0 | RKF18: 0 | RKG18: 0 | RKH18: 0 | RKI18: 0 | RKJ18: 0 | RKK18: 0 | RKL18: 0 | RKM18: 0 | RKN18: 0 | RKO18: 0 | RKP18: 0 | RKQ18: 0 | RKR18: 0 | RKS18: 0 | RKT18: 0 | RKU18: 0 | RKV18: 0 | RKW18: 0 | RKX18: 0 | RKY18: 0 | RKZ18: 0 | RLA18: 0 | RLB18: 0 | RLC18: 0 | RLD18: 0 | RLE18: 0 | RLF18: 0 | RLG18: 0 | RLH18: 0 | RLI18: =RLI16/25 -> 0 | RLJ18: 0 | RLK18: 0 | RLL18: 0 | RLM18: 0 | RLN18: 0 | RLO18: 0 | RLP18: 0 | RLQ18: 0 | RLR18: 0 | RLS18: 0 | RLT18: 0 | RLU18: 0 | RLV18: 0 | RLW18: 0 | RLX18: 0 | RLY18: 0 | RLZ18: 0 | RMA18: 0 | RMB18: 0 | RMC18: 0 | RMD18: 0 | RME18: 0 | RMF18: 0 | RMG18: 0 | RMH18: 0 | RMI18: 0 | RMJ18: 0 | RMK18: 0 | RML18: 0 | RMM18: 0 | RMN18: 0 | RMO18: 0 | RMP18: 0 | RMQ18: 0 | RMR18: 0 | RMS18: 0 | RMT18: 0 | RMU18: 0 | RMV18: 0 | RMW18: 0 | RMX18: 0 | RMY18: 0 | RMZ18: 0 | RNA18: 0 | RNB18: 0 | RNC18: 0 | RND18: 0 | RNE18: 0 | RNF18: 0 | RNG18: 0 | RNH18: 0 | RNI18: 0 | RNJ18: 0 | RNK18: 0 | RNL18: 0 | RNM18: 0 | RNN18: 0 | RNO18: 0 | RNP18: 0 | RNQ18: 0 | RNR18: 0 | RNS18: 0 | RNT18: 0 | RNU18: =RNU16/25 -> 0 | RNV18: 0 | RNW18: 0 | RNX18: 0 | RNY18: 0 | RNZ18: 0 | ROA18: 0 | ROB18: 0 | ROC18: 0 | ROD18: 0 | ROE18: 0 | ROF18: 0 | ROG18: 0 | ROH18: 0 | ROI18: 0 | ROJ18: 0 | ROK18: 0 | ROL18: 0 | ROM18: 0 | RON18: 0 | ROO18: 0 | ROP18: 0 | ROQ18: 0 | ROR18: 0 | ROS18: 0 | ROT18: 0 | ROU18: 0 | ROV18: 0 | ROW18: 0 | ROX18: 0 | ROY18: 0 | ROZ18: 0 | RPA18: 0 | RPB18: 0 | RPC18: 0 | RPD18: 0 | RPE18: 0 | RPF18: 0 | RPG18: 0 | RPH18: 0 | RPI18: 0 | RPJ18: 0 | RPK18: 0 | RPL18: 0 | RPM18: 0 | RPN18: 0 | RPO18: 0 | RPP18: 0 | RPQ18: 0 | RPR18: 0 | RPS18: 0 | RPT18: 0 | RPU18: 0 | RPV18: 0 | RPW18: 0 | RPX18: 0 | RPY18: 0 | RPZ18: 0 | RQA18: 0 | RQB18: 0 | RQC18: 0 | RQD18: 0 | RQE18: 0 | RQF18: 0 | RQG18: =RQG16/25 -> 0 | RQH18: 0 | RQI18: 0 | RQJ18: 0 | RQK18: 0 | RQL18: 0 | RQM18: 0 | RQN18: 0 | RQO18: 0 | RQP18: 0 | RQQ18: 0 | RQR18: 0 | RQS18: 0 | RQT18: 0 | RQU18: 0 | RQV18: 0 | RQW18: 0 | RQX18: 0 | RQY18: 0 | RQZ18: 0 | RRA18: 0 | RRB18: 0 | RRC18: 0 | RRD18: 0 | RRE18: 0 | RRF18: 0 | RRG18: 0 | RRH18: 0 | RRI18: 0 | RRJ18: 0 | RRK18: 0 | RRL18: 0 | RRM18: 0 | RRN18: 0 | RRO18: 0 | RRP18: 0 | RRQ18: 0 | RRR18: 0 | RRS18: 0 | RRT18: 0 | RRU18: 0 | RRV18: 0 | RRW18: 0 | RRX18: 0 | RRY18: 0 | RRZ18: 0 | RSA18: 0 | RSB18: 0 | RSC18: 0 | RSD18: 0 | RSE18: 0 | RSF18: 0 | RSG18: 0 | RSH18: 0 | RSI18: 0 | RSJ18: 0 | RSK18: 0 | RSL18: 0 | RSM18: 0 | RSN18: 0 | RSO18: 0 | RSP18: 0 | RSQ18: 0 | RSR18: 0 | RSS18: =RSS16/25 -> 0 | RST18: 0 | RSU18: 0 | RSV18: 0 | RSW18: 0 | RSX18: 0 | RSY18: 0 | RSZ18: 0 | RTA18: 0 | RTB18: 0 | RTC18: 0 | RTD18: 0 | RTE18: 0 | RTF18: 0 | RTG18: 0 | RTH18: 0 | RTI18: 0 | RTJ18: 0 | RTK18: 0 | RTL18: 0 | RTM18: 0 | RTN18: 0 | RTO18: 0 | RTP18: 0 | RTQ18: 0 | RTR18: 0 | RTS18: 0 | RTT18: 0 | RTU18: 0 | RTV18: 0 | RTW18: 0 | RTX18: 0 | RTY18: 0 | RTZ18: 0 | RUA18: 0 | RUB18: 0 | RUC18: 0 | RUD18: 0 | RUE18: 0 | RUF18: 0 | RUG18: 0 | RUH18: 0 | RUI18: 0 | RUJ18: 0 | RUK18: 0 | RUL18: 0 | RUM18: 0 | RUN18: 0 | RUO18: 0 | RUP18: 0 | RUQ18: 0 | RUR18: 0 | RUS18: 0 | RUT18: 0 | RUU18: 0 | RUV18: 0 | RUW18: 0 | RUX18: 0 | RUY18: 0 | RUZ18: 0 | RVA18: 0 | RVB18: 0 | RVC18: 0 | RVD18: 0 | RVE18: =RVE16/25 -> 0 | RVF18: 0 | RVG18: 0 | RVH18: 0 | RVI18: 0 | RVJ18: 0 | RVK18: 0 | RVL18: 0 | RVM18: 0 | RVN18: 0 | RVO18: 0 | RVP18: 0 | RVQ18: 0 | RVR18: 0 | RVS18: 0 | RVT18: 0 | RVU18: 0 | RVV18: 0 | RVW18: 0 | RVX18: 0 | RVY18: 0 | RVZ18: 0 | RWA18: 0 | RWB18: 0 | RWC18: 0 | RWD18: 0 | RWE18: 0 | RWF18: 0 | RWG18: 0 | RWH18: 0 | RWI18: 0 | RWJ18: 0 | RWK18: 0 | RWL18: 0 | RWM18: 0 | RWN18: 0 | RWO18: 0 | RWP18: 0 | RWQ18: 0 | RWR18: 0 | RWS18: 0 | RWT18: 0 | RWU18: 0 | RWV18: 0 | RWW18: 0 | RWX18: 0 | RWY18: 0 | RWZ18: 0 | RXA18: 0 | RXB18: 0 | RXC18: 0 | RXD18: 0 | RXE18: 0 | RXF18: 0 | RXG18: 0 | RXH18: 0 | RXI18: 0 | RXJ18: 0 | RXK18: 0 | RXL18: 0 | RXM18: 0 | RXN18: 0 | RXO18: 0 | RXP18: 0 | RXQ18: =RXQ16/25 -> 0 | RXR18: 0 | RXS18: 0 | RXT18: 0 | RXU18: 0 | RXV18: 0 | RXW18: 0 | RXX18: 0 | RXY18: 0 | RXZ18: 0 | RYA18: 0 | RYB18: 0 | RYC18: 0 | RYD18: 0 | RYE18: 0 | RYF18: 0 | RYG18: 0 | RYH18: 0 | RYI18: 0 | RYJ18: 0 | RYK18: 0 | RYL18: 0 | RYM18: 0 | RYN18: 0 | RYO18: 0 | RYP18: 0 | RYQ18: 0 | RYR18: 0 | RYS18: 0 | RYT18: 0 | RYU18: 0 | RYV18: 0 | RYW18: 0 | RYX18: 0 | RYY18: 0 | RYZ18: 0 | RZA18: 0 | RZB18: 0 | RZC18: 0 | RZD18: 0 | RZE18: 0 | RZF18: 0 | RZG18: 0 | RZH18: 0 | RZI18: 0 | RZJ18: 0 | RZK18: 0 | RZL18: 0 | RZM18: 0 | RZN18: 0 | RZO18: 0 | RZP18: 0 | RZQ18: 0 | RZR18: 0 | RZS18: 0 | RZT18: 0 | RZU18: 0 | RZV18: 0 | RZW18: 0 | RZX18: 0 | RZY18: 0 | RZZ18: 0 | SAA18: 0 | SAB18: 0 | SAC18: =SAC16/25 -> 0 | SAD18: 0 | SAE18: 0 | SAF18: 0 | SAG18: 0 | SAH18: 0 | SAI18: 0 | SAJ18: 0 | SAK18: 0 | SAL18: 0 | SAM18: 0 | SAN18: 0 | SAO18: 0 | SAP18: 0 | SAQ18: 0 | SAR18: 0 | SAS18: 0 | SAT18: 0 | SAU18: 0 | SAV18: 0 | SAW18: 0 | SAX18: 0 | SAY18: 0 | SAZ18: 0 | SBA18: 0 | SBB18: 0 | SBC18: 0 | SBD18: 0 | SBE18: 0 | SBF18: 0 | SBG18: 0 | SBH18: 0 | SBI18: 0 | SBJ18: 0 | SBK18: 0 | SBL18: 0 | SBM18: 0 | SBN18: 0 | SBO18: 0 | SBP18: 0 | SBQ18: 0 | SBR18: 0 | SBS18: 0 | SBT18: 0 | SBU18: 0 | SBV18: 0 | SBW18: 0 | SBX18: 0 | SBY18: 0 | SBZ18: 0 | SCA18: 0 | SCB18: 0 | SCC18: 0 | SCD18: 0 | SCE18: 0 | SCF18: 0 | SCG18: 0 | SCH18: 0 | SCI18: 0 | SCJ18: 0 | SCK18: 0 | SCL18: 0 | SCM18: 0 | SCN18: 0 | SCO18: =SCO16/25 -> 0 | SCP18: 0 | SCQ18: 0 | SCR18: 0 | SCS18: 0 | SCT18: 0 | SCU18: 0 | SCV18: 0 | SCW18: 0 | SCX18: 0 | SCY18: 0 | SCZ18: 0 | SDA18: 0 | SDB18: 0 | SDC18: 0 | SDD18: 0 | SDE18: 0 | SDF18: 0 | SDG18: 0 | SDH18: 0 | SDI18: 0 | SDJ18: 0 | SDK18: 0 | SDL18: 0 | SDM18: 0 | SDN18: 0 | SDO18: 0 | SDP18: 0 | SDQ18: 0 | SDR18: 0 | SDS18: 0 | SDT18: 0 | SDU18: 0 | SDV18: 0 | SDW18: 0 | SDX18: 0 | SDY18: 0 | SDZ18: 0 | SEA18: 0 | SEB18: 0 | SEC18: 0 | SED18: 0 | SEE18: 0 | SEF18: 0 | SEG18: 0 | SEH18: 0 | SEI18: 0 | SEJ18: 0 | SEK18: 0 | SEL18: 0 | SEM18: 0 | SEN18: 0 | SEO18: 0 | SEP18: 0 | SEQ18: 0 | SER18: 0 | SES18: 0 | SET18: 0 | SEU18: 0 | SEV18: 0 | SEW18: 0 | SEX18: 0 | SEY18: 0 | SEZ18: 0 | SFA18: =SFA16/25 -> 0 | SFB18: 0 | SFC18: 0 | SFD18: 0 | SFE18: 0 | SFF18: 0 | SFG18: 0 | SFH18: 0 | SFI18: 0 | SFJ18: 0 | SFK18: 0 | SFL18: 0 | SFM18: 0 | SFN18: 0 | SFO18: 0 | SFP18: 0 | SFQ18: 0 | SFR18: 0 | SFS18: 0 | SFT18: 0 | SFU18: 0 | SFV18: 0 | SFW18: 0 | SFX18: 0 | SFY18: 0 | SFZ18: 0 | SGA18: 0 | SGB18: 0 | SGC18: 0 | SGD18: 0 | SGE18: 0 | SGF18: 0 | SGG18: 0 | SGH18: 0 | SGI18: 0 | SGJ18: 0 | SGK18: 0 | SGL18: 0 | SGM18: 0 | SGN18: 0 | SGO18: 0 | SGP18: 0 | SGQ18: 0 | SGR18: 0 | SGS18: 0 | SGT18: 0 | SGU18: 0 | SGV18: 0 | SGW18: 0 | SGX18: 0 | SGY18: 0 | SGZ18: 0 | SHA18: 0 | SHB18: 0 | SHC18: 0 | SHD18: 0 | SHE18: 0 | SHF18: 0 | SHG18: 0 | SHH18: 0 | SHI18: 0 | SHJ18: 0 | SHK18: 0 | SHL18: 0 | SHM18: =SHM16/25 -> 0 | SHN18: 0 | SHO18: 0 | SHP18: 0 | SHQ18: 0 | SHR18: 0 | SHS18: 0 | SHT18: 0 | SHU18: 0 | SHV18: 0 | SHW18: 0 | SHX18: 0 | SHY18: 0 | SHZ18: 0 | SIA18: 0 | SIB18: 0 | SIC18: 0 | SID18: 0 | SIE18: 0 | SIF18: 0 | SIG18: 0 | SIH18: 0 | SII18: 0 | SIJ18: 0 | SIK18: 0 | SIL18: 0 | SIM18: 0 | SIN18: 0 | SIO18: 0 | SIP18: 0 | SIQ18: 0 | SIR18: 0 | SIS18: 0 | SIT18: 0 | SIU18: 0 | SIV18: 0 | SIW18: 0 | SIX18: 0 | SIY18: 0 | SIZ18: 0 | SJA18: 0 | SJB18: 0 | SJC18: 0 | SJD18: 0 | SJE18: 0 | SJF18: 0 | SJG18: 0 | SJH18: 0 | SJI18: 0 | SJJ18: 0 | SJK18: 0 | SJL18: 0 | SJM18: 0 | SJN18: 0 | SJO18: 0 | SJP18: 0 | SJQ18: 0 | SJR18: 0 | SJS18: 0 | SJT18: 0 | SJU18: 0 | SJV18: 0 | SJW18: 0 | SJX18: 0 | SJY18: =SJY16/25 -> 0 | SJZ18: 0 | SKA18: 0 | SKB18: 0 | SKC18: 0 | SKD18: 0 | SKE18: 0 | SKF18: 0 | SKG18: 0 | SKH18: 0 | SKI18: 0 | SKJ18: 0 | SKK18: 0 | SKL18: 0 | SKM18: 0 | SKN18: 0 | SKO18: 0 | SKP18: 0 | SKQ18: 0 | SKR18: 0 | SKS18: 0 | SKT18: 0 | SKU18: 0 | SKV18: 0 | SKW18: 0 | SKX18: 0 | SKY18: 0 | SKZ18: 0 | SLA18: 0 | SLB18: 0 | SLC18: 0 | SLD18: 0 | SLE18: 0 | SLF18: 0 | SLG18: 0 | SLH18: 0 | SLI18: 0 | SLJ18: 0 | SLK18: 0 | SLL18: 0 | SLM18: 0 | SLN18: 0 | SLO18: 0 | SLP18: 0 | SLQ18: 0 | SLR18: 0 | SLS18: 0 | SLT18: 0 | SLU18: 0 | SLV18: 0 | SLW18: 0 | SLX18: 0 | SLY18: 0 | SLZ18: 0 | SMA18: 0 | SMB18: 0 | SMC18: 0 | SMD18: 0 | SME18: 0 | SMF18: 0 | SMG18: 0 | SMH18: 0 | SMI18: 0 | SMJ18: 0 | SMK18: =SMK16/25 -> 0 | SML18: 0 | SMM18: 0 | SMN18: 0 | SMO18: 0 | SMP18: 0 | SMQ18: 0 | SMR18: 0 | SMS18: 0 | SMT18: 0 | SMU18: 0 | SMV18: 0 | SMW18: 0 | SMX18: 0 | SMY18: 0 | SMZ18: 0 | SNA18: 0 | SNB18: 0 | SNC18: 0 | SND18: 0 | SNE18: 0 | SNF18: 0 | SNG18: 0 | SNH18: 0 | SNI18: 0 | SNJ18: 0 | SNK18: 0 | SNL18: 0 | SNM18: 0 | SNN18: 0 | SNO18: 0 | SNP18: 0 | SNQ18: 0 | SNR18: 0 | SNS18: 0 | SNT18: 0 | SNU18: 0 | SNV18: 0 | SNW18: 0 | SNX18: 0 | SNY18: 0 | SNZ18: 0 | SOA18: 0 | SOB18: 0 | SOC18: 0 | SOD18: 0 | SOE18: 0 | SOF18: 0 | SOG18: 0 | SOH18: 0 | SOI18: 0 | SOJ18: 0 | SOK18: 0 | SOL18: 0 | SOM18: 0 | SON18: 0 | SOO18: 0 | SOP18: 0 | SOQ18: 0 | SOR18: 0 | SOS18: 0 | SOT18: 0 | SOU18: 0 | SOV18: 0 | SOW18: =SOW16/25 -> 0 | SOX18: 0 | SOY18: 0 | SOZ18: 0 | SPA18: 0 | SPB18: 0 | SPC18: 0 | SPD18: 0 | SPE18: 0 | SPF18: 0 | SPG18: 0 | SPH18: 0 | SPI18: 0 | SPJ18: 0 | SPK18: 0 | SPL18: 0 | SPM18: 0 | SPN18: 0 | SPO18: 0 | SPP18: 0 | SPQ18: 0 | SPR18: 0 | SPS18: 0 | SPT18: 0 | SPU18: 0 | SPV18: 0 | SPW18: 0 | SPX18: 0 | SPY18: 0 | SPZ18: 0 | SQA18: 0 | SQB18: 0 | SQC18: 0 | SQD18: 0 | SQE18: 0 | SQF18: 0 | SQG18: 0 | SQH18: 0 | SQI18: 0 | SQJ18: 0 | SQK18: 0 | SQL18: 0 | SQM18: 0 | SQN18: 0 | SQO18: 0 | SQP18: 0 | SQQ18: 0 | SQR18: 0 | SQS18: 0 | SQT18: 0 | SQU18: 0 | SQV18: 0 | SQW18: 0 | SQX18: 0 | SQY18: 0 | SQZ18: 0 | SRA18: 0 | SRB18: 0 | SRC18: 0 | SRD18: 0 | SRE18: 0 | SRF18: 0 | SRG18: 0 | SRH18: 0 | SRI18: =SRI16/25 -> 0 | SRJ18: 0 | SRK18: 0 | SRL18: 0 | SRM18: 0 | SRN18: 0 | SRO18: 0 | SRP18: 0 | SRQ18: 0 | SRR18: 0 | SRS18: 0 | SRT18: 0 | SRU18: 0 | SRV18: 0 | SRW18: 0 | SRX18: 0 | SRY18: 0 | SRZ18: 0 | SSA18: 0 | SSB18: 0 | SSC18: 0 | SSD18: 0 | SSE18: 0 | SSF18: 0 | SSG18: 0 | SSH18: 0 | SSI18: 0 | SSJ18: 0 | SSK18: 0 | SSL18: 0 | SSM18: 0 | SSN18: 0 | SSO18: 0 | SSP18: 0 | SSQ18: 0 | SSR18: 0 | SSS18: 0 | SST18: 0 | SSU18: 0 | SSV18: 0 | SSW18: 0 | SSX18: 0 | SSY18: 0 | SSZ18: 0 | STA18: 0 | STB18: 0 | STC18: 0 | STD18: 0 | STE18: 0 | STF18: 0 | STG18: 0 | STH18: 0 | STI18: 0 | STJ18: 0 | STK18: 0 | STL18: 0 | STM18: 0 | STN18: 0 | STO18: 0 | STP18: 0 | STQ18: 0 | STR18: 0 | STS18: 0 | STT18: 0 | STU18: =STU16/25 -> 0 | STV18: 0 | STW18: 0 | STX18: 0 | STY18: 0 | STZ18: 0 | SUA18: 0 | SUB18: 0 | SUC18: 0 | SUD18: 0 | SUE18: 0 | SUF18: 0 | SUG18: 0 | SUH18: 0 | SUI18: 0 | SUJ18: 0 | SUK18: 0 | SUL18: 0 | SUM18: 0 | SUN18: 0 | SUO18: 0 | SUP18: 0 | SUQ18: 0 | SUR18: 0 | SUS18: 0 | SUT18: 0 | SUU18: 0 | SUV18: 0 | SUW18: 0 | SUX18: 0 | SUY18: 0 | SUZ18: 0 | SVA18: 0 | SVB18: 0 | SVC18: 0 | SVD18: 0 | SVE18: 0 | SVF18: 0 | SVG18: 0 | SVH18: 0 | SVI18: 0 | SVJ18: 0 | SVK18: 0 | SVL18: 0 | SVM18: 0 | SVN18: 0 | SVO18: 0 | SVP18: 0 | SVQ18: 0 | SVR18: 0 | SVS18: 0 | SVT18: 0 | SVU18: 0 | SVV18: 0 | SVW18: 0 | SVX18: 0 | SVY18: 0 | SVZ18: 0 | SWA18: 0 | SWB18: 0 | SWC18: 0 | SWD18: 0 | SWE18: 0 | SWF18: 0 | SWG18: =SWG16/25 -> 0 | SWH18: 0 | SWI18: 0 | SWJ18: 0 | SWK18: 0 | SWL18: 0 | SWM18: 0 | SWN18: 0 | SWO18: 0 | SWP18: 0 | SWQ18: 0 | SWR18: 0 | SWS18: 0 | SWT18: 0 | SWU18: 0 | SWV18: 0 | SWW18: 0 | SWX18: 0 | SWY18: 0 | SWZ18: 0 | SXA18: 0 | SXB18: 0 | SXC18: 0 | SXD18: 0 | SXE18: 0 | SXF18: 0 | SXG18: 0 | SXH18: 0 | SXI18: 0 | SXJ18: 0 | SXK18: 0 | SXL18: 0 | SXM18: 0 | SXN18: 0 | SXO18: 0 | SXP18: 0 | SXQ18: 0 | SXR18: 0 | SXS18: 0 | SXT18: 0 | SXU18: 0 | SXV18: 0 | SXW18: 0 | SXX18: 0 | SXY18: 0 | SXZ18: 0 | SYA18: 0 | SYB18: 0 | SYC18: 0 | SYD18: 0 | SYE18: 0 | SYF18: 0 | SYG18: 0 | SYH18: 0 | SYI18: 0 | SYJ18: 0 | SYK18: 0 | SYL18: 0 | SYM18: 0 | SYN18: 0 | SYO18: 0 | SYP18: 0 | SYQ18: 0 | SYR18: 0 | SYS18: =SYS16/25 -> 0 | SYT18: 0 | SYU18: 0 | SYV18: 0 | SYW18: 0 | SYX18: 0 | SYY18: 0 | SYZ18: 0 | SZA18: 0 | SZB18: 0 | SZC18: 0 | SZD18: 0 | SZE18: 0 | SZF18: 0 | SZG18: 0 | SZH18: 0 | SZI18: 0 | SZJ18: 0 | SZK18: 0 | SZL18: 0 | SZM18: 0 | SZN18: 0 | SZO18: 0 | SZP18: 0 | SZQ18: 0 | SZR18: 0 | SZS18: 0 | SZT18: 0 | SZU18: 0 | SZV18: 0 | SZW18: 0 | SZX18: 0 | SZY18: 0 | SZZ18: 0 | TAA18: 0 | TAB18: 0 | TAC18: 0 | TAD18: 0 | TAE18: 0 | TAF18: 0 | TAG18: 0 | TAH18: 0 | TAI18: 0 | TAJ18: 0 | TAK18: 0 | TAL18: 0 | TAM18: 0 | TAN18: 0 | TAO18: 0 | TAP18: 0 | TAQ18: 0 | TAR18: 0 | TAS18: 0 | TAT18: 0 | TAU18: 0 | TAV18: 0 | TAW18: 0 | TAX18: 0 | TAY18: 0 | TAZ18: 0 | TBA18: 0 | TBB18: 0 | TBC18: 0 | TBD18: 0 | TBE18: =TBE16/25 -> 0 | TBF18: 0 | TBG18: 0 | TBH18: 0 | TBI18: 0 | TBJ18: 0 | TBK18: 0 | TBL18: 0 | TBM18: 0 | TBN18: 0 | TBO18: 0 | TBP18: 0 | TBQ18: 0 | TBR18: 0 | TBS18: 0 | TBT18: 0 | TBU18: 0 | TBV18: 0 | TBW18: 0 | TBX18: 0 | TBY18: 0 | TBZ18: 0 | TCA18: 0 | TCB18: 0 | TCC18: 0 | TCD18: 0 | TCE18: 0 | TCF18: 0 | TCG18: 0 | TCH18: 0 | TCI18: 0 | TCJ18: 0 | TCK18: 0 | TCL18: 0 | TCM18: 0 | TCN18: 0 | TCO18: 0 | TCP18: 0 | TCQ18: 0 | TCR18: 0 | TCS18: 0 | TCT18: 0 | TCU18: 0 | TCV18: 0 | TCW18: 0 | TCX18: 0 | TCY18: 0 | TCZ18: 0 | TDA18: 0 | TDB18: 0 | TDC18: 0 | TDD18: 0 | TDE18: 0 | TDF18: 0 | TDG18: 0 | TDH18: 0 | TDI18: 0 | TDJ18: 0 | TDK18: 0 | TDL18: 0 | TDM18: 0 | TDN18: 0 | TDO18: 0 | TDP18: 0 | TDQ18: =TDQ16/25 -> 0 | TDR18: 0 | TDS18: 0 | TDT18: 0 | TDU18: 0 | TDV18: 0 | TDW18: 0 | TDX18: 0 | TDY18: 0 | TDZ18: 0 | TEA18: 0 | TEB18: 0 | TEC18: 0 | TED18: 0 | TEE18: 0 | TEF18: 0 | TEG18: 0 | TEH18: 0 | TEI18: 0 | TEJ18: 0 | TEK18: 0 | TEL18: 0 | TEM18: 0 | TEN18: 0 | TEO18: 0 | TEP18: 0 | TEQ18: 0 | TER18: 0 | TES18: 0 | TET18: 0 | TEU18: 0 | TEV18: 0 | TEW18: 0 | TEX18: 0 | TEY18: 0 | TEZ18: 0 | TFA18: 0 | TFB18: 0 | TFC18: 0 | TFD18: 0 | TFE18: 0 | TFF18: 0 | TFG18: 0 | TFH18: 0 | TFI18: 0 | TFJ18: 0 | TFK18: 0 | TFL18: 0 | TFM18: 0 | TFN18: 0 | TFO18: 0 | TFP18: 0 | TFQ18: 0 | TFR18: 0 | TFS18: 0 | TFT18: 0 | TFU18: 0 | TFV18: 0 | TFW18: 0 | TFX18: 0 | TFY18: 0 | TFZ18: 0 | TGA18: 0 | TGB18: 0 | TGC18: =TGC16/25 -> 0 | TGD18: 0 | TGE18: 0 | TGF18: 0 | TGG18: 0 | TGH18: 0 | TGI18: 0 | TGJ18: 0 | TGK18: 0 | TGL18: 0 | TGM18: 0 | TGN18: 0 | TGO18: 0 | TGP18: 0 | TGQ18: 0 | TGR18: 0 | TGS18: 0 | TGT18: 0 | TGU18: 0 | TGV18: 0 | TGW18: 0 | TGX18: 0 | TGY18: 0 | TGZ18: 0 | THA18: 0 | THB18: 0 | THC18: 0 | THD18: 0 | THE18: 0 | THF18: 0 | THG18: 0 | THH18: 0 | THI18: 0 | THJ18: 0 | THK18: 0 | THL18: 0 | THM18: 0 | THN18: 0 | THO18: 0 | THP18: 0 | THQ18: 0 | THR18: 0 | THS18: 0 | THT18: 0 | THU18: 0 | THV18: 0 | THW18: 0 | THX18: 0 | THY18: 0 | THZ18: 0 | TIA18: 0 | TIB18: 0 | TIC18: 0 | TID18: 0 | TIE18: 0 | TIF18: 0 | TIG18: 0 | TIH18: 0 | TII18: 0 | TIJ18: 0 | TIK18: 0 | TIL18: 0 | TIM18: 0 | TIN18: 0 | TIO18: =TIO16/25 -> 0 | TIP18: 0 | TIQ18: 0 | TIR18: 0 | TIS18: 0 | TIT18: 0 | TIU18: 0 | TIV18: 0 | TIW18: 0 | TIX18: 0 | TIY18: 0 | TIZ18: 0 | TJA18: 0 | TJB18: 0 | TJC18: 0 | TJD18: 0 | TJE18: 0 | TJF18: 0 | TJG18: 0 | TJH18: 0 | TJI18: 0 | TJJ18: 0 | TJK18: 0 | TJL18: 0 | TJM18: 0 | TJN18: 0 | TJO18: 0 | TJP18: 0 | TJQ18: 0 | TJR18: 0 | TJS18: 0 | TJT18: 0 | TJU18: 0 | TJV18: 0 | TJW18: 0 | TJX18: 0 | TJY18: 0 | TJZ18: 0 | TKA18: 0 | TKB18: 0 | TKC18: 0 | TKD18: 0 | TKE18: 0 | TKF18: 0 | TKG18: 0 | TKH18: 0 | TKI18: 0 | TKJ18: 0 | TKK18: 0 | TKL18: 0 | TKM18: 0 | TKN18: 0 | TKO18: 0 | TKP18: 0 | TKQ18: 0 | TKR18: 0 | TKS18: 0 | TKT18: 0 | TKU18: 0 | TKV18: 0 | TKW18: 0 | TKX18: 0 | TKY18: 0 | TKZ18: 0 | TLA18: =TLA16/25 -> 0 | TLB18: 0 | TLC18: 0 | TLD18: 0 | TLE18: 0 | TLF18: 0 | TLG18: 0 | TLH18: 0 | TLI18: 0 | TLJ18: 0 | TLK18: 0 | TLL18: 0 | TLM18: 0 | TLN18: 0 | TLO18: 0 | TLP18: 0 | TLQ18: 0 | TLR18: 0 | TLS18: 0 | TLT18: 0 | TLU18: 0 | TLV18: 0 | TLW18: 0 | TLX18: 0 | TLY18: 0 | TLZ18: 0 | TMA18: 0 | TMB18: 0 | TMC18: 0 | TMD18: 0 | TME18: 0 | TMF18: 0 | TMG18: 0 | TMH18: 0 | TMI18: 0 | TMJ18: 0 | TMK18: 0 | TML18: 0 | TMM18: 0 | TMN18: 0 | TMO18: 0 | TMP18: 0 | TMQ18: 0 | TMR18: 0 | TMS18: 0 | TMT18: 0 | TMU18: 0 | TMV18: 0 | TMW18: 0 | TMX18: 0 | TMY18: 0 | TMZ18: 0 | TNA18: 0 | TNB18: 0 | TNC18: 0 | TND18: 0 | TNE18: 0 | TNF18: 0 | TNG18: 0 | TNH18: 0 | TNI18: 0 | TNJ18: 0 | TNK18: 0 | TNL18: 0 | TNM18: =TNM16/25 -> 0 | TNN18: 0 | TNO18: 0 | TNP18: 0 | TNQ18: 0 | TNR18: 0 | TNS18: 0 | TNT18: 0 | TNU18: 0 | TNV18: 0 | TNW18: 0 | TNX18: 0 | TNY18: 0 | TNZ18: 0 | TOA18: 0 | TOB18: 0 | TOC18: 0 | TOD18: 0 | TOE18: 0 | TOF18: 0 | TOG18: 0 | TOH18: 0 | TOI18: 0 | TOJ18: 0 | TOK18: 0 | TOL18: 0 | TOM18: 0 | TON18: 0 | TOO18: 0 | TOP18: 0 | TOQ18: 0 | TOR18: 0 | TOS18: 0 | TOT18: 0 | TOU18: 0 | TOV18: 0 | TOW18: 0 | TOX18: 0 | TOY18: 0 | TOZ18: 0 | TPA18: 0 | TPB18: 0 | TPC18: 0 | TPD18: 0 | TPE18: 0 | TPF18: 0 | TPG18: 0 | TPH18: 0 | TPI18: 0 | TPJ18: 0 | TPK18: 0 | TPL18: 0 | TPM18: 0 | TPN18: 0 | TPO18: 0 | TPP18: 0 | TPQ18: 0 | TPR18: 0 | TPS18: 0 | TPT18: 0 | TPU18: 0 | TPV18: 0 | TPW18: 0 | TPX18: 0 | TPY18: =TPY16/25 -> 0 | TPZ18: 0 | TQA18: 0 | TQB18: 0 | TQC18: 0 | TQD18: 0 | TQE18: 0 | TQF18: 0 | TQG18: 0 | TQH18: 0 | TQI18: 0 | TQJ18: 0 | TQK18: 0 | TQL18: 0 | TQM18: 0 | TQN18: 0 | TQO18: 0 | TQP18: 0 | TQQ18: 0 | TQR18: 0 | TQS18: 0 | TQT18: 0 | TQU18: 0 | TQV18: 0 | TQW18: 0 | TQX18: 0 | TQY18: 0 | TQZ18: 0 | TRA18: 0 | TRB18: 0 | TRC18: 0 | TRD18: 0 | TRE18: 0 | TRF18: 0 | TRG18: 0 | TRH18: 0 | TRI18: 0 | TRJ18: 0 | TRK18: 0 | TRL18: 0 | TRM18: 0 | TRN18: 0 | TRO18: 0 | TRP18: 0 | TRQ18: 0 | TRR18: 0 | TRS18: 0 | TRT18: 0 | TRU18: 0 | TRV18: 0 | TRW18: 0 | TRX18: 0 | TRY18: 0 | TRZ18: 0 | TSA18: 0 | TSB18: 0 | TSC18: 0 | TSD18: 0 | TSE18: 0 | TSF18: 0 | TSG18: 0 | TSH18: 0 | TSI18: 0 | TSJ18: 0 | TSK18: =TSK16/25 -> 0 | TSL18: 0 | TSM18: 0 | TSN18: 0 | TSO18: 0 | TSP18: 0 | TSQ18: 0 | TSR18: 0 | TSS18: 0 | TST18: 0 | TSU18: 0 | TSV18: 0 | TSW18: 0 | TSX18: 0 | TSY18: 0 | TSZ18: 0 | TTA18: 0 | TTB18: 0 | TTC18: 0 | TTD18: 0 | TTE18: 0 | TTF18: 0 | TTG18: 0 | TTH18: 0 | TTI18: 0 | TTJ18: 0 | TTK18: 0 | TTL18: 0 | TTM18: 0 | TTN18: 0 | TTO18: 0 | TTP18: 0 | TTQ18: 0 | TTR18: 0 | TTS18: 0 | TTT18: 0 | TTU18: 0 | TTV18: 0 | TTW18: 0 | TTX18: 0 | TTY18: 0 | TTZ18: 0 | TUA18: 0 | TUB18: 0 | TUC18: 0 | TUD18: 0 | TUE18: 0 | TUF18: 0 | TUG18: 0 | TUH18: 0 | TUI18: 0 | TUJ18: 0 | TUK18: 0 | TUL18: 0 | TUM18: 0 | TUN18: 0 | TUO18: 0 | TUP18: 0 | TUQ18: 0 | TUR18: 0 | TUS18: 0 | TUT18: 0 | TUU18: 0 | TUV18: 0 | TUW18: =TUW16/25 -> 0 | TUX18: 0 | TUY18: 0 | TUZ18: 0 | TVA18: 0 | TVB18: 0 | TVC18: 0 | TVD18: 0 | TVE18: 0 | TVF18: 0 | TVG18: 0 | TVH18: 0 | TVI18: 0 | TVJ18: 0 | TVK18: 0 | TVL18: 0 | TVM18: 0 | TVN18: 0 | TVO18: 0 | TVP18: 0 | TVQ18: 0 | TVR18: 0 | TVS18: 0 | TVT18: 0 | TVU18: 0 | TVV18: 0 | TVW18: 0 | TVX18: 0 | TVY18: 0 | TVZ18: 0 | TWA18: 0 | TWB18: 0 | TWC18: 0 | TWD18: 0 | TWE18: 0 | TWF18: 0 | TWG18: 0 | TWH18: 0 | TWI18: 0 | TWJ18: 0 | TWK18: 0 | TWL18: 0 | TWM18: 0 | TWN18: 0 | TWO18: 0 | TWP18: 0 | TWQ18: 0 | TWR18: 0 | TWS18: 0 | TWT18: 0 | TWU18: 0 | TWV18: 0 | TWW18: 0 | TWX18: 0 | TWY18: 0 | TWZ18: 0 | TXA18: 0 | TXB18: 0 | TXC18: 0 | TXD18: 0 | TXE18: 0 | TXF18: 0 | TXG18: 0 | TXH18: 0 | TXI18: =TXI16/25 -> 0 | TXJ18: 0 | TXK18: 0 | TXL18: 0 | TXM18: 0 | TXN18: 0 | TXO18: 0 | TXP18: 0 | TXQ18: 0 | TXR18: 0 | TXS18: 0 | TXT18: 0 | TXU18: 0 | TXV18: 0 | TXW18: 0 | TXX18: 0 | TXY18: 0 | TXZ18: 0 | TYA18: 0 | TYB18: 0 | TYC18: 0 | TYD18: 0 | TYE18: 0 | TYF18: 0 | TYG18: 0 | TYH18: 0 | TYI18: 0 | TYJ18: 0 | TYK18: 0 | TYL18: 0 | TYM18: 0 | TYN18: 0 | TYO18: 0 | TYP18: 0 | TYQ18: 0 | TYR18: 0 | TYS18: 0 | TYT18: 0 | TYU18: 0 | TYV18: 0 | TYW18: 0 | TYX18: 0 | TYY18: 0 | TYZ18: 0 | TZA18: 0 | TZB18: 0 | TZC18: 0 | TZD18: 0 | TZE18: 0 | TZF18: 0 | TZG18: 0 | TZH18: 0 | TZI18: 0 | TZJ18: 0 | TZK18: 0 | TZL18: 0 | TZM18: 0 | TZN18: 0 | TZO18: 0 | TZP18: 0 | TZQ18: 0 | TZR18: 0 | TZS18: 0 | TZT18: 0 | TZU18: =TZU16/25 -> 0 | TZV18: 0 | TZW18: 0 | TZX18: 0 | TZY18: 0 | TZZ18: 0 | UAA18: 0 | UAB18: 0 | UAC18: 0 | UAD18: 0 | UAE18: 0 | UAF18: 0 | UAG18: 0 | UAH18: 0 | UAI18: 0 | UAJ18: 0 | UAK18: 0 | UAL18: 0 | UAM18: 0 | UAN18: 0 | UAO18: 0 | UAP18: 0 | UAQ18: 0 | UAR18: 0 | UAS18: 0 | UAT18: 0 | UAU18: 0 | UAV18: 0 | UAW18: 0 | UAX18: 0 | UAY18: 0 | UAZ18: 0 | UBA18: 0 | UBB18: 0 | UBC18: 0 | UBD18: 0 | UBE18: 0 | UBF18: 0 | UBG18: 0 | UBH18: 0 | UBI18: 0 | UBJ18: 0 | UBK18: 0 | UBL18: 0 | UBM18: 0 | UBN18: 0 | UBO18: 0 | UBP18: 0 | UBQ18: 0 | UBR18: 0 | UBS18: 0 | UBT18: 0 | UBU18: 0 | UBV18: 0 | UBW18: 0 | UBX18: 0 | UBY18: 0 | UBZ18: 0 | UCA18: 0 | UCB18: 0 | UCC18: 0 | UCD18: 0 | UCE18: 0 | UCF18: 0 | UCG18: =UCG16/25 -> 0 | UCH18: 0 | UCI18: 0 | UCJ18: 0 | UCK18: 0 | UCL18: 0 | UCM18: 0 | UCN18: 0 | UCO18: 0 | UCP18: 0 | UCQ18: 0 | UCR18: 0 | UCS18: 0 | UCT18: 0 | UCU18: 0 | UCV18: 0 | UCW18: 0 | UCX18: 0 | UCY18: 0 | UCZ18: 0 | UDA18: 0 | UDB18: 0 | UDC18: 0 | UDD18: 0 | UDE18: 0 | UDF18: 0 | UDG18: 0 | UDH18: 0 | UDI18: 0 | UDJ18: 0 | UDK18: 0 | UDL18: 0 | UDM18: 0 | UDN18: 0 | UDO18: 0 | UDP18: 0 | UDQ18: 0 | UDR18: 0 | UDS18: 0 | UDT18: 0 | UDU18: 0 | UDV18: 0 | UDW18: 0 | UDX18: 0 | UDY18: 0 | UDZ18: 0 | UEA18: 0 | UEB18: 0 | UEC18: 0 | UED18: 0 | UEE18: 0 | UEF18: 0 | UEG18: 0 | UEH18: 0 | UEI18: 0 | UEJ18: 0 | UEK18: 0 | UEL18: 0 | UEM18: 0 | UEN18: 0 | UEO18: 0 | UEP18: 0 | UEQ18: 0 | UER18: 0 | UES18: =UES16/25 -> 0 | UET18: 0 | UEU18: 0 | UEV18: 0 | UEW18: 0 | UEX18: 0 | UEY18: 0 | UEZ18: 0 | UFA18: 0 | UFB18: 0 | UFC18: 0 | UFD18: 0 | UFE18: 0 | UFF18: 0 | UFG18: 0 | UFH18: 0 | UFI18: 0 | UFJ18: 0 | UFK18: 0 | UFL18: 0 | UFM18: 0 | UFN18: 0 | UFO18: 0 | UFP18: 0 | UFQ18: 0 | UFR18: 0 | UFS18: 0 | UFT18: 0 | UFU18: 0 | UFV18: 0 | UFW18: 0 | UFX18: 0 | UFY18: 0 | UFZ18: 0 | UGA18: 0 | UGB18: 0 | UGC18: 0 | UGD18: 0 | UGE18: 0 | UGF18: 0 | UGG18: 0 | UGH18: 0 | UGI18: 0 | UGJ18: 0 | UGK18: 0 | UGL18: 0 | UGM18: 0 | UGN18: 0 | UGO18: 0 | UGP18: 0 | UGQ18: 0 | UGR18: 0 | UGS18: 0 | UGT18: 0 | UGU18: 0 | UGV18: 0 | UGW18: 0 | UGX18: 0 | UGY18: 0 | UGZ18: 0 | UHA18: 0 | UHB18: 0 | UHC18: 0 | UHD18: 0 | UHE18: =UHE16/25 -> 0 | UHF18: 0 | UHG18: 0 | UHH18: 0 | UHI18: 0 | UHJ18: 0 | UHK18: 0 | UHL18: 0 | UHM18: 0 | UHN18: 0 | UHO18: 0 | UHP18: 0 | UHQ18: 0 | UHR18: 0 | UHS18: 0 | UHT18: 0 | UHU18: 0 | UHV18: 0 | UHW18: 0 | UHX18: 0 | UHY18: 0 | UHZ18: 0 | UIA18: 0 | UIB18: 0 | UIC18: 0 | UID18: 0 | UIE18: 0 | UIF18: 0 | UIG18: 0 | UIH18: 0 | UII18: 0 | UIJ18: 0 | UIK18: 0 | UIL18: 0 | UIM18: 0 | UIN18: 0 | UIO18: 0 | UIP18: 0 | UIQ18: 0 | UIR18: 0 | UIS18: 0 | UIT18: 0 | UIU18: 0 | UIV18: 0 | UIW18: 0 | UIX18: 0 | UIY18: 0 | UIZ18: 0 | UJA18: 0 | UJB18: 0 | UJC18: 0 | UJD18: 0 | UJE18: 0 | UJF18: 0 | UJG18: 0 | UJH18: 0 | UJI18: 0 | UJJ18: 0 | UJK18: 0 | UJL18: 0 | UJM18: 0 | UJN18: 0 | UJO18: 0 | UJP18: 0 | UJQ18: =UJQ16/25 -> 0 | UJR18: 0 | UJS18: 0 | UJT18: 0 | UJU18: 0 | UJV18: 0 | UJW18: 0 | UJX18: 0 | UJY18: 0 | UJZ18: 0 | UKA18: 0 | UKB18: 0 | UKC18: 0 | UKD18: 0 | UKE18: 0 | UKF18: 0 | UKG18: 0 | UKH18: 0 | UKI18: 0 | UKJ18: 0 | UKK18: 0 | UKL18: 0 | UKM18: 0 | UKN18: 0 | UKO18: 0 | UKP18: 0 | UKQ18: 0 | UKR18: 0 | UKS18: 0 | UKT18: 0 | UKU18: 0 | UKV18: 0 | UKW18: 0 | UKX18: 0 | UKY18: 0 | UKZ18: 0 | ULA18: 0 | ULB18: 0 | ULC18: 0 | ULD18: 0 | ULE18: 0 | ULF18: 0 | ULG18: 0 | ULH18: 0 | ULI18: 0 | ULJ18: 0 | ULK18: 0 | ULL18: 0 | ULM18: 0 | ULN18: 0 | ULO18: 0 | ULP18: 0 | ULQ18: 0 | ULR18: 0 | ULS18: 0 | ULT18: 0 | ULU18: 0 | ULV18: 0 | ULW18: 0 | ULX18: 0 | ULY18: 0 | ULZ18: 0 | UMA18: 0 | UMB18: 0 | UMC18: =UMC16/25 -> 0 | UMD18: 0 | UME18: 0 | UMF18: 0 | UMG18: 0 | UMH18: 0 | UMI18: 0 | UMJ18: 0 | UMK18: 0 | UML18: 0 | UMM18: 0 | UMN18: 0 | UMO18: 0 | UMP18: 0 | UMQ18: 0 | UMR18: 0 | UMS18: 0 | UMT18: 0 | UMU18: 0 | UMV18: 0 | UMW18: 0 | UMX18: 0 | UMY18: 0 | UMZ18: 0 | UNA18: 0 | UNB18: 0 | UNC18: 0 | UND18: 0 | UNE18: 0 | UNF18: 0 | UNG18: 0 | UNH18: 0 | UNI18: 0 | UNJ18: 0 | UNK18: 0 | UNL18: 0 | UNM18: 0 | UNN18: 0 | UNO18: 0 | UNP18: 0 | UNQ18: 0 | UNR18: 0 | UNS18: 0 | UNT18: 0 | UNU18: 0 | UNV18: 0 | UNW18: 0 | UNX18: 0 | UNY18: 0 | UNZ18: 0 | UOA18: 0 | UOB18: 0 | UOC18: 0 | UOD18: 0 | UOE18: 0 | UOF18: 0 | UOG18: 0 | UOH18: 0 | UOI18: 0 | UOJ18: 0 | UOK18: 0 | UOL18: 0 | UOM18: 0 | UON18: 0 | UOO18: =UOO16/25 -> 0 | UOP18: 0 | UOQ18: 0 | UOR18: 0 | UOS18: 0 | UOT18: 0 | UOU18: 0 | UOV18: 0 | UOW18: 0 | UOX18: 0 | UOY18: 0 | UOZ18: 0 | UPA18: 0 | UPB18: 0 | UPC18: 0 | UPD18: 0 | UPE18: 0 | UPF18: 0 | UPG18: 0 | UPH18: 0 | UPI18: 0 | UPJ18: 0 | UPK18: 0 | UPL18: 0 | UPM18: 0 | UPN18: 0 | UPO18: 0 | UPP18: 0 | UPQ18: 0 | UPR18: 0 | UPS18: 0 | UPT18: 0 | UPU18: 0 | UPV18: 0 | UPW18: 0 | UPX18: 0 | UPY18: 0 | UPZ18: 0 | UQA18: 0 | UQB18: 0 | UQC18: 0 | UQD18: 0 | UQE18: 0 | UQF18: 0 | UQG18: 0 | UQH18: 0 | UQI18: 0 | UQJ18: 0 | UQK18: 0 | UQL18: 0 | UQM18: 0 | UQN18: 0 | UQO18: 0 | UQP18: 0 | UQQ18: 0 | UQR18: 0 | UQS18: 0 | UQT18: 0 | UQU18: 0 | UQV18: 0 | UQW18: 0 | UQX18: 0 | UQY18: 0 | UQZ18: 0 | URA18: =URA16/25 -> 0 | URB18: 0 | URC18: 0 | URD18: 0 | URE18: 0 | URF18: 0 | URG18: 0 | URH18: 0 | URI18: 0 | URJ18: 0 | URK18: 0 | URL18: 0 | URM18: 0 | URN18: 0 | URO18: 0 | URP18: 0 | URQ18: 0 | URR18: 0 | URS18: 0 | URT18: 0 | URU18: 0 | URV18: 0 | URW18: 0 | URX18: 0 | URY18: 0 | URZ18: 0 | USA18: 0 | USB18: 0 | USC18: 0 | USD18: 0 | USE18: 0 | USF18: 0 | USG18: 0 | USH18: 0 | USI18: 0 | USJ18: 0 | USK18: 0 | USL18: 0 | USM18: 0 | USN18: 0 | USO18: 0 | USP18: 0 | USQ18: 0 | USR18: 0 | USS18: 0 | UST18: 0 | USU18: 0 | USV18: 0 | USW18: 0 | USX18: 0 | USY18: 0 | USZ18: 0 | UTA18: 0 | UTB18: 0 | UTC18: 0 | UTD18: 0 | UTE18: 0 | UTF18: 0 | UTG18: 0 | UTH18: 0 | UTI18: 0 | UTJ18: 0 | UTK18: 0 | UTL18: 0 | UTM18: =UTM16/25 -> 0 | UTN18: 0 | UTO18: 0 | UTP18: 0 | UTQ18: 0 | UTR18: 0 | UTS18: 0 | UTT18: 0 | UTU18: 0 | UTV18: 0 | UTW18: 0 | UTX18: 0 | UTY18: 0 | UTZ18: 0 | UUA18: 0 | UUB18: 0 | UUC18: 0 | UUD18: 0 | UUE18: 0 | UUF18: 0 | UUG18: 0 | UUH18: 0 | UUI18: 0 | UUJ18: 0 | UUK18: 0 | UUL18: 0 | UUM18: 0 | UUN18: 0 | UUO18: 0 | UUP18: 0 | UUQ18: 0 | UUR18: 0 | UUS18: 0 | UUT18: 0 | UUU18: 0 | UUV18: 0 | UUW18: 0 | UUX18: 0 | UUY18: 0 | UUZ18: 0 | UVA18: 0 | UVB18: 0 | UVC18: 0 | UVD18: 0 | UVE18: 0 | UVF18: 0 | UVG18: 0 | UVH18: 0 | UVI18: 0 | UVJ18: 0 | UVK18: 0 | UVL18: 0 | UVM18: 0 | UVN18: 0 | UVO18: 0 | UVP18: 0 | UVQ18: 0 | UVR18: 0 | UVS18: 0 | UVT18: 0 | UVU18: 0 | UVV18: 0 | UVW18: 0 | UVX18: 0 | UVY18: =UVY16/25 -> 0 | UVZ18: 0 | UWA18: 0 | UWB18: 0 | UWC18: 0 | UWD18: 0 | UWE18: 0 | UWF18: 0 | UWG18: 0 | UWH18: 0 | UWI18: 0 | UWJ18: 0 | UWK18: 0 | UWL18: 0 | UWM18: 0 | UWN18: 0 | UWO18: 0 | UWP18: 0 | UWQ18: 0 | UWR18: 0 | UWS18: 0 | UWT18: 0 | UWU18: 0 | UWV18: 0 | UWW18: 0 | UWX18: 0 | UWY18: 0 | UWZ18: 0 | UXA18: 0 | UXB18: 0 | UXC18: 0 | UXD18: 0 | UXE18: 0 | UXF18: 0 | UXG18: 0 | UXH18: 0 | UXI18: 0 | UXJ18: 0 | UXK18: 0 | UXL18: 0 | UXM18: 0 | UXN18: 0 | UXO18: 0 | UXP18: 0 | UXQ18: 0 | UXR18: 0 | UXS18: 0 | UXT18: 0 | UXU18: 0 | UXV18: 0 | UXW18: 0 | UXX18: 0 | UXY18: 0 | UXZ18: 0 | UYA18: 0 | UYB18: 0 | UYC18: 0 | UYD18: 0 | UYE18: 0 | UYF18: 0 | UYG18: 0 | UYH18: 0 | UYI18: 0 | UYJ18: 0 | UYK18: =UYK16/25 -> 0 | UYL18: 0 | UYM18: 0 | UYN18: 0 | UYO18: 0 | UYP18: 0 | UYQ18: 0 | UYR18: 0 | UYS18: 0 | UYT18: 0 | UYU18: 0 | UYV18: 0 | UYW18: 0 | UYX18: 0 | UYY18: 0 | UYZ18: 0 | UZA18: 0 | UZB18: 0 | UZC18: 0 | UZD18: 0 | UZE18: 0 | UZF18: 0 | UZG18: 0 | UZH18: 0 | UZI18: 0 | UZJ18: 0 | UZK18: 0 | UZL18: 0 | UZM18: 0 | UZN18: 0 | UZO18: 0 | UZP18: 0 | UZQ18: 0 | UZR18: 0 | UZS18: 0 | UZT18: 0 | UZU18: 0 | UZV18: 0 | UZW18: 0 | UZX18: 0 | UZY18: 0 | UZZ18: 0 | VAA18: 0 | VAB18: 0 | VAC18: 0 | VAD18: 0 | VAE18: 0 | VAF18: 0 | VAG18: 0 | VAH18: 0 | VAI18: 0 | VAJ18: 0 | VAK18: 0 | VAL18: 0 | VAM18: 0 | VAN18: 0 | VAO18: 0 | VAP18: 0 | VAQ18: 0 | VAR18: 0 | VAS18: 0 | VAT18: 0 | VAU18: 0 | VAV18: 0 | VAW18: =VAW16/25 -> 0 | VAX18: 0 | VAY18: 0 | VAZ18: 0 | VBA18: 0 | VBB18: 0 | VBC18: 0 | VBD18: 0 | VBE18: 0 | VBF18: 0 | VBG18: 0 | VBH18: 0 | VBI18: 0 | VBJ18: 0 | VBK18: 0 | VBL18: 0 | VBM18: 0 | VBN18: 0 | VBO18: 0 | VBP18: 0 | VBQ18: 0 | VBR18: 0 | VBS18: 0 | VBT18: 0 | VBU18: 0 | VBV18: 0 | VBW18: 0 | VBX18: 0 | VBY18: 0 | VBZ18: 0 | VCA18: 0 | VCB18: 0 | VCC18: 0 | VCD18: 0 | VCE18: 0 | VCF18: 0 | VCG18: 0 | VCH18: 0 | VCI18: 0 | VCJ18: 0 | VCK18: 0 | VCL18: 0 | VCM18: 0 | VCN18: 0 | VCO18: 0 | VCP18: 0 | VCQ18: 0 | VCR18: 0 | VCS18: 0 | VCT18: 0 | VCU18: 0 | VCV18: 0 | VCW18: 0 | VCX18: 0 | VCY18: 0 | VCZ18: 0 | VDA18: 0 | VDB18: 0 | VDC18: 0 | VDD18: 0 | VDE18: 0 | VDF18: 0 | VDG18: 0 | VDH18: 0 | VDI18: =VDI16/25 -> 0 | VDJ18: 0 | VDK18: 0 | VDL18: 0 | VDM18: 0 | VDN18: 0 | VDO18: 0 | VDP18: 0 | VDQ18: 0 | VDR18: 0 | VDS18: 0 | VDT18: 0 | VDU18: 0 | VDV18: 0 | VDW18: 0 | VDX18: 0 | VDY18: 0 | VDZ18: 0 | VEA18: 0 | VEB18: 0 | VEC18: 0 | VED18: 0 | VEE18: 0 | VEF18: 0 | VEG18: 0 | VEH18: 0 | VEI18: 0 | VEJ18: 0 | VEK18: 0 | VEL18: 0 | VEM18: 0 | VEN18: 0 | VEO18: 0 | VEP18: 0 | VEQ18: 0 | VER18: 0 | VES18: 0 | VET18: 0 | VEU18: 0 | VEV18: 0 | VEW18: 0 | VEX18: 0 | VEY18: 0 | VEZ18: 0 | VFA18: 0 | VFB18: 0 | VFC18: 0 | VFD18: 0 | VFE18: 0 | VFF18: 0 | VFG18: 0 | VFH18: 0 | VFI18: 0 | VFJ18: 0 | VFK18: 0 | VFL18: 0 | VFM18: 0 | VFN18: 0 | VFO18: 0 | VFP18: 0 | VFQ18: 0 | VFR18: 0 | VFS18: 0 | VFT18: 0 | VFU18: =VFU16/25 -> 0 | VFV18: 0 | VFW18: 0 | VFX18: 0 | VFY18: 0 | VFZ18: 0 | VGA18: 0 | VGB18: 0 | VGC18: 0 | VGD18: 0 | VGE18: 0 | VGF18: 0 | VGG18: 0 | VGH18: 0 | VGI18: 0 | VGJ18: 0 | VGK18: 0 | VGL18: 0 | VGM18: 0 | VGN18: 0 | VGO18: 0 | VGP18: 0 | VGQ18: 0 | VGR18: 0 | VGS18: 0 | VGT18: 0 | VGU18: 0 | VGV18: 0 | VGW18: 0 | VGX18: 0 | VGY18: 0 | VGZ18: 0 | VHA18: 0 | VHB18: 0 | VHC18: 0 | VHD18: 0 | VHE18: 0 | VHF18: 0 | VHG18: 0 | VHH18: 0 | VHI18: 0 | VHJ18: 0 | VHK18: 0 | VHL18: 0 | VHM18: 0 | VHN18: 0 | VHO18: 0 | VHP18: 0 | VHQ18: 0 | VHR18: 0 | VHS18: 0 | VHT18: 0 | VHU18: 0 | VHV18: 0 | VHW18: 0 | VHX18: 0 | VHY18: 0 | VHZ18: 0 | VIA18: 0 | VIB18: 0 | VIC18: 0 | VID18: 0 | VIE18: 0 | VIF18: 0 | VIG18: =VIG16/25 -> 0 | VIH18: 0 | VII18: 0 | VIJ18: 0 | VIK18: 0 | VIL18: 0 | VIM18: 0 | VIN18: 0 | VIO18: 0 | VIP18: 0 | VIQ18: 0 | VIR18: 0 | VIS18: 0 | VIT18: 0 | VIU18: 0 | VIV18: 0 | VIW18: 0 | VIX18: 0 | VIY18: 0 | VIZ18: 0 | VJA18: 0 | VJB18: 0 | VJC18: 0 | VJD18: 0 | VJE18: 0 | VJF18: 0 | VJG18: 0 | VJH18: 0 | VJI18: 0 | VJJ18: 0 | VJK18: 0 | VJL18: 0 | VJM18: 0 | VJN18: 0 | VJO18: 0 | VJP18: 0 | VJQ18: 0 | VJR18: 0 | VJS18: 0 | VJT18: 0 | VJU18: 0 | VJV18: 0 | VJW18: 0 | VJX18: 0 | VJY18: 0 | VJZ18: 0 | VKA18: 0 | VKB18: 0 | VKC18: 0 | VKD18: 0 | VKE18: 0 | VKF18: 0 | VKG18: 0 | VKH18: 0 | VKI18: 0 | VKJ18: 0 | VKK18: 0 | VKL18: 0 | VKM18: 0 | VKN18: 0 | VKO18: 0 | VKP18: 0 | VKQ18: 0 | VKR18: 0 | VKS18: =VKS16/25 -> 0 | VKT18: 0 | VKU18: 0 | VKV18: 0 | VKW18: 0 | VKX18: 0 | VKY18: 0 | VKZ18: 0 | VLA18: 0 | VLB18: 0 | VLC18: 0 | VLD18: 0 | VLE18: 0 | VLF18: 0 | VLG18: 0 | VLH18: 0 | VLI18: 0 | VLJ18: 0 | VLK18: 0 | VLL18: 0 | VLM18: 0 | VLN18: 0 | VLO18: 0 | VLP18: 0 | VLQ18: 0 | VLR18: 0 | VLS18: 0 | VLT18: 0 | VLU18: 0 | VLV18: 0 | VLW18: 0 | VLX18: 0 | VLY18: 0 | VLZ18: 0 | VMA18: 0 | VMB18: 0 | VMC18: 0 | VMD18: 0 | VME18: 0 | VMF18: 0 | VMG18: 0 | VMH18: 0 | VMI18: 0 | VMJ18: 0 | VMK18: 0 | VML18: 0 | VMM18: 0 | VMN18: 0 | VMO18: 0 | VMP18: 0 | VMQ18: 0 | VMR18: 0 | VMS18: 0 | VMT18: 0 | VMU18: 0 | VMV18: 0 | VMW18: 0 | VMX18: 0 | VMY18: 0 | VMZ18: 0 | VNA18: 0 | VNB18: 0 | VNC18: 0 | VND18: 0 | VNE18: =VNE16/25 -> 0 | VNF18: 0 | VNG18: 0 | VNH18: 0 | VNI18: 0 | VNJ18: 0 | VNK18: 0 | VNL18: 0 | VNM18: 0 | VNN18: 0 | VNO18: 0 | VNP18: 0 | VNQ18: 0 | VNR18: 0 | VNS18: 0 | VNT18: 0 | VNU18: 0 | VNV18: 0 | VNW18: 0 | VNX18: 0 | VNY18: 0 | VNZ18: 0 | VOA18: 0 | VOB18: 0 | VOC18: 0 | VOD18: 0 | VOE18: 0 | VOF18: 0 | VOG18: 0 | VOH18: 0 | VOI18: 0 | VOJ18: 0 | VOK18: 0 | VOL18: 0 | VOM18: 0 | VON18: 0 | VOO18: 0 | VOP18: 0 | VOQ18: 0 | VOR18: 0 | VOS18: 0 | VOT18: 0 | VOU18: 0 | VOV18: 0 | VOW18: 0 | VOX18: 0 | VOY18: 0 | VOZ18: 0 | VPA18: 0 | VPB18: 0 | VPC18: 0 | VPD18: 0 | VPE18: 0 | VPF18: 0 | VPG18: 0 | VPH18: 0 | VPI18: 0 | VPJ18: 0 | VPK18: 0 | VPL18: 0 | VPM18: 0 | VPN18: 0 | VPO18: 0 | VPP18: 0 | VPQ18: =VPQ16/25 -> 0 | VPR18: 0 | VPS18: 0 | VPT18: 0 | VPU18: 0 | VPV18: 0 | VPW18: 0 | VPX18: 0 | VPY18: 0 | VPZ18: 0 | VQA18: 0 | VQB18: 0 | VQC18: 0 | VQD18: 0 | VQE18: 0 | VQF18: 0 | VQG18: 0 | VQH18: 0 | VQI18: 0 | VQJ18: 0 | VQK18: 0 | VQL18: 0 | VQM18: 0 | VQN18: 0 | VQO18: 0 | VQP18: 0 | VQQ18: 0 | VQR18: 0 | VQS18: 0 | VQT18: 0 | VQU18: 0 | VQV18: 0 | VQW18: 0 | VQX18: 0 | VQY18: 0 | VQZ18: 0 | VRA18: 0 | VRB18: 0 | VRC18: 0 | VRD18: 0 | VRE18: 0 | VRF18: 0 | VRG18: 0 | VRH18: 0 | VRI18: 0 | VRJ18: 0 | VRK18: 0 | VRL18: 0 | VRM18: 0 | VRN18: 0 | VRO18: 0 | VRP18: 0 | VRQ18: 0 | VRR18: 0 | VRS18: 0 | VRT18: 0 | VRU18: 0 | VRV18: 0 | VRW18: 0 | VRX18: 0 | VRY18: 0 | VRZ18: 0 | VSA18: 0 | VSB18: 0 | VSC18: =VSC16/25 -> 0 | VSD18: 0 | VSE18: 0 | VSF18: 0 | VSG18: 0 | VSH18: 0 | VSI18: 0 | VSJ18: 0 | VSK18: 0 | VSL18: 0 | VSM18: 0 | VSN18: 0 | VSO18: 0 | VSP18: 0 | VSQ18: 0 | VSR18: 0 | VSS18: 0 | VST18: 0 | VSU18: 0 | VSV18: 0 | VSW18: 0 | VSX18: 0 | VSY18: 0 | VSZ18: 0 | VTA18: 0 | VTB18: 0 | VTC18: 0 | VTD18: 0 | VTE18: 0 | VTF18: 0 | VTG18: 0 | VTH18: 0 | VTI18: 0 | VTJ18: 0 | VTK18: 0 | VTL18: 0 | VTM18: 0 | VTN18: 0 | VTO18: 0 | VTP18: 0 | VTQ18: 0 | VTR18: 0 | VTS18: 0 | VTT18: 0 | VTU18: 0 | VTV18: 0 | VTW18: 0 | VTX18: 0 | VTY18: 0 | VTZ18: 0 | VUA18: 0 | VUB18: 0 | VUC18: 0 | VUD18: 0 | VUE18: 0 | VUF18: 0 | VUG18: 0 | VUH18: 0 | VUI18: 0 | VUJ18: 0 | VUK18: 0 | VUL18: 0 | VUM18: 0 | VUN18: 0 | VUO18: =VUO16/25 -> 0 | VUP18: 0 | VUQ18: 0 | VUR18: 0 | VUS18: 0 | VUT18: 0 | VUU18: 0 | VUV18: 0 | VUW18: 0 | VUX18: 0 | VUY18: 0 | VUZ18: 0 | VVA18: 0 | VVB18: 0 | VVC18: 0 | VVD18: 0 | VVE18: 0 | VVF18: 0 | VVG18: 0 | VVH18: 0 | VVI18: 0 | VVJ18: 0 | VVK18: 0 | VVL18: 0 | VVM18: 0 | VVN18: 0 | VVO18: 0 | VVP18: 0 | VVQ18: 0 | VVR18: 0 | VVS18: 0 | VVT18: 0 | VVU18: 0 | VVV18: 0 | VVW18: 0 | VVX18: 0 | VVY18: 0 | VVZ18: 0 | VWA18: 0 | VWB18: 0 | VWC18: 0 | VWD18: 0 | VWE18: 0 | VWF18: 0 | VWG18: 0 | VWH18: 0 | VWI18: 0 | VWJ18: 0 | VWK18: 0 | VWL18: 0 | VWM18: 0 | VWN18: 0 | VWO18: 0 | VWP18: 0 | VWQ18: 0 | VWR18: 0 | VWS18: 0 | VWT18: 0 | VWU18: 0 | VWV18: 0 | VWW18: 0 | VWX18: 0 | VWY18: 0 | VWZ18: 0 | VXA18: =VXA16/25 -> 0 | VXB18: 0 | VXC18: 0 | VXD18: 0 | VXE18: 0 | VXF18: 0 | VXG18: 0 | VXH18: 0 | VXI18: 0 | VXJ18: 0 | VXK18: 0 | VXL18: 0 | VXM18: 0 | VXN18: 0 | VXO18: 0 | VXP18: 0 | VXQ18: 0 | VXR18: 0 | VXS18: 0 | VXT18: 0 | VXU18: 0 | VXV18: 0 | VXW18: 0 | VXX18: 0 | VXY18: 0 | VXZ18: 0 | VYA18: 0 | VYB18: 0 | VYC18: 0 | VYD18: 0 | VYE18: 0 | VYF18: 0 | VYG18: 0 | VYH18: 0 | VYI18: 0 | VYJ18: 0 | VYK18: 0 | VYL18: 0 | VYM18: 0 | VYN18: 0 | VYO18: 0 | VYP18: 0 | VYQ18: 0 | VYR18: 0 | VYS18: 0 | VYT18: 0 | VYU18: 0 | VYV18: 0 | VYW18: 0 | VYX18: 0 | VYY18: 0 | VYZ18: 0 | VZA18: 0 | VZB18: 0 | VZC18: 0 | VZD18: 0 | VZE18: 0 | VZF18: 0 | VZG18: 0 | VZH18: 0 | VZI18: 0 | VZJ18: 0 | VZK18: 0 | VZL18: 0 | VZM18: =VZM16/25 -> 0 | VZN18: 0 | VZO18: 0 | VZP18: 0 | VZQ18: 0 | VZR18: 0 | VZS18: 0 | VZT18: 0 | VZU18: 0 | VZV18: 0 | VZW18: 0 | VZX18: 0 | VZY18: 0 | VZZ18: 0 | WAA18: 0 | WAB18: 0 | WAC18: 0 | WAD18: 0 | WAE18: 0 | WAF18: 0 | WAG18: 0 | WAH18: 0 | WAI18: 0 | WAJ18: 0 | WAK18: 0 | WAL18: 0 | WAM18: 0 | WAN18: 0 | WAO18: 0 | WAP18: 0 | WAQ18: 0 | WAR18: 0 | WAS18: 0 | WAT18: 0 | WAU18: 0 | WAV18: 0 | WAW18: 0 | WAX18: 0 | WAY18: 0 | WAZ18: 0 | WBA18: 0 | WBB18: 0 | WBC18: 0 | WBD18: 0 | WBE18: 0 | WBF18: 0 | WBG18: 0 | WBH18: 0 | WBI18: 0 | WBJ18: 0 | WBK18: 0 | WBL18: 0 | WBM18: 0 | WBN18: 0 | WBO18: 0 | WBP18: 0 | WBQ18: 0 | WBR18: 0 | WBS18: 0 | WBT18: 0 | WBU18: 0 | WBV18: 0 | WBW18: 0 | WBX18: 0 | WBY18: =WBY16/25 -> 0 | WBZ18: 0 | WCA18: 0 | WCB18: 0 | WCC18: 0 | WCD18: 0 | WCE18: 0 | WCF18: 0 | WCG18: 0 | WCH18: 0 | WCI18: 0 | WCJ18: 0 | WCK18: 0 | WCL18: 0 | WCM18: 0 | WCN18: 0 | WCO18: 0 | WCP18: 0 | WCQ18: 0 | WCR18: 0 | WCS18: 0 | WCT18: 0 | WCU18: 0 | WCV18: 0 | WCW18: 0 | WCX18: 0 | WCY18: 0 | WCZ18: 0 | WDA18: 0 | WDB18: 0 | WDC18: 0 | WDD18: 0 | WDE18: 0 | WDF18: 0 | WDG18: 0 | WDH18: 0 | WDI18: 0 | WDJ18: 0 | WDK18: 0 | WDL18: 0 | WDM18: 0 | WDN18: 0 | WDO18: 0 | WDP18: 0 | WDQ18: 0 | WDR18: 0 | WDS18: 0 | WDT18: 0 | WDU18: 0 | WDV18: 0 | WDW18: 0 | WDX18: 0 | WDY18: 0 | WDZ18: 0 | WEA18: 0 | WEB18: 0 | WEC18: 0 | WED18: 0 | WEE18: 0 | WEF18: 0 | WEG18: 0 | WEH18: 0 | WEI18: 0 | WEJ18: 0 | WEK18: =WEK16/25 -> 0 | WEL18: 0 | WEM18: 0 | WEN18: 0 | WEO18: 0 | WEP18: 0 | WEQ18: 0 | WER18: 0 | WES18: 0 | WET18: 0 | WEU18: 0 | WEV18: 0 | WEW18: 0 | WEX18: 0 | WEY18: 0 | WEZ18: 0 | WFA18: 0 | WFB18: 0 | WFC18: 0 | WFD18: 0 | WFE18: 0 | WFF18: 0 | WFG18: 0 | WFH18: 0 | WFI18: 0 | WFJ18: 0 | WFK18: 0 | WFL18: 0 | WFM18: 0 | WFN18: 0 | WFO18: 0 | WFP18: 0 | WFQ18: 0 | WFR18: 0 | WFS18: 0 | WFT18: 0 | WFU18: 0 | WFV18: 0 | WFW18: 0 | WFX18: 0 | WFY18: 0 | WFZ18: 0 | WGA18: 0 | WGB18: 0 | WGC18: 0 | WGD18: 0 | WGE18: 0 | WGF18: 0 | WGG18: 0 | WGH18: 0 | WGI18: 0 | WGJ18: 0 | WGK18: 0 | WGL18: 0 | WGM18: 0 | WGN18: 0 | WGO18: 0 | WGP18: 0 | WGQ18: 0 | WGR18: 0 | WGS18: 0 | WGT18: 0 | WGU18: 0 | WGV18: 0 | WGW18: =WGW16/25 -> 0 | WGX18: 0 | WGY18: 0 | WGZ18: 0 | WHA18: 0 | WHB18: 0 | WHC18: 0 | WHD18: 0 | WHE18: 0 | WHF18: 0 | WHG18: 0 | WHH18: 0 | WHI18: 0 | WHJ18: 0 | WHK18: 0 | WHL18: 0 | WHM18: 0 | WHN18: 0 | WHO18: 0 | WHP18: 0 | WHQ18: 0 | WHR18: 0 | WHS18: 0 | WHT18: 0 | WHU18: 0 | WHV18: 0 | WHW18: 0 | WHX18: 0 | WHY18: 0 | WHZ18: 0 | WIA18: 0 | WIB18: 0 | WIC18: 0 | WID18: 0 | WIE18: 0 | WIF18: 0 | WIG18: 0 | WIH18: 0 | WII18: 0 | WIJ18: 0 | WIK18: 0 | WIL18: 0 | WIM18: 0 | WIN18: 0 | WIO18: 0 | WIP18: 0 | WIQ18: 0 | WIR18: 0 | WIS18: 0 | WIT18: 0 | WIU18: 0 | WIV18: 0 | WIW18: 0 | WIX18: 0 | WIY18: 0 | WIZ18: 0 | WJA18: 0 | WJB18: 0 | WJC18: 0 | WJD18: 0 | WJE18: 0 | WJF18: 0 | WJG18: 0 | WJH18: 0 | WJI18: =WJI16/25 -> 0 | WJJ18: 0 | WJK18: 0 | WJL18: 0 | WJM18: 0 | WJN18: 0 | WJO18: 0 | WJP18: 0 | WJQ18: 0 | WJR18: 0 | WJS18: 0 | WJT18: 0 | WJU18: 0 | WJV18: 0 | WJW18: 0 | WJX18: 0 | WJY18: 0 | WJZ18: 0 | WKA18: 0 | WKB18: 0 | WKC18: 0 | WKD18: 0 | WKE18: 0 | WKF18: 0 | WKG18: 0 | WKH18: 0 | WKI18: 0 | WKJ18: 0 | WKK18: 0 | WKL18: 0 | WKM18: 0 | WKN18: 0 | WKO18: 0 | WKP18: 0 | WKQ18: 0 | WKR18: 0 | WKS18: 0 | WKT18: 0 | WKU18: 0 | WKV18: 0 | WKW18: 0 | WKX18: 0 | WKY18: 0 | WKZ18: 0 | WLA18: 0 | WLB18: 0 | WLC18: 0 | WLD18: 0 | WLE18: 0 | WLF18: 0 | WLG18: 0 | WLH18: 0 | WLI18: 0 | WLJ18: 0 | WLK18: 0 | WLL18: 0 | WLM18: 0 | WLN18: 0 | WLO18: 0 | WLP18: 0 | WLQ18: 0 | WLR18: 0 | WLS18: 0 | WLT18: 0 | WLU18: =WLU16/25 -> 0 | WLV18: 0 | WLW18: 0 | WLX18: 0 | WLY18: 0 | WLZ18: 0 | WMA18: 0 | WMB18: 0 | WMC18: 0 | WMD18: 0 | WME18: 0 | WMF18: 0 | WMG18: 0 | WMH18: 0 | WMI18: 0 | WMJ18: 0 | WMK18: 0 | WML18: 0 | WMM18: 0 | WMN18: 0 | WMO18: 0 | WMP18: 0 | WMQ18: 0 | WMR18: 0 | WMS18: 0 | WMT18: 0 | WMU18: 0 | WMV18: 0 | WMW18: 0 | WMX18: 0 | WMY18: 0 | WMZ18: 0 | WNA18: 0 | WNB18: 0 | WNC18: 0 | WND18: 0 | WNE18: 0 | WNF18: 0 | WNG18: 0 | WNH18: 0 | WNI18: 0 | WNJ18: 0 | WNK18: 0 | WNL18: 0 | WNM18: 0 | WNN18: 0 | WNO18: 0 | WNP18: 0 | WNQ18: 0 | WNR18: 0 | WNS18: 0 | WNT18: 0 | WNU18: 0 | WNV18: 0 | WNW18: 0 | WNX18: 0 | WNY18: 0 | WNZ18: 0 | WOA18: 0 | WOB18: 0 | WOC18: 0 | WOD18: 0 | WOE18: 0 | WOF18: 0 | WOG18: =WOG16/25 -> 0 | WOH18: 0 | WOI18: 0 | WOJ18: 0 | WOK18: 0 | WOL18: 0 | WOM18: 0 | WON18: 0 | WOO18: 0 | WOP18: 0 | WOQ18: 0 | WOR18: 0 | WOS18: 0 | WOT18: 0 | WOU18: 0 | WOV18: 0 | WOW18: 0 | WOX18: 0 | WOY18: 0 | WOZ18: 0 | WPA18: 0 | WPB18: 0 | WPC18: 0 | WPD18: 0 | WPE18: 0 | WPF18: 0 | WPG18: 0 | WPH18: 0 | WPI18: 0 | WPJ18: 0 | WPK18: 0 | WPL18: 0 | WPM18: 0 | WPN18: 0 | WPO18: 0 | WPP18: 0 | WPQ18: 0 | WPR18: 0 | WPS18: 0 | WPT18: 0 | WPU18: 0 | WPV18: 0 | WPW18: 0 | WPX18: 0 | WPY18: 0 | WPZ18: 0 | WQA18: 0 | WQB18: 0 | WQC18: 0 | WQD18: 0 | WQE18: 0 | WQF18: 0 | WQG18: 0 | WQH18: 0 | WQI18: 0 | WQJ18: 0 | WQK18: 0 | WQL18: 0 | WQM18: 0 | WQN18: 0 | WQO18: 0 | WQP18: 0 | WQQ18: 0 | WQR18: 0 | WQS18: =WQS16/25 -> 0 | WQT18: 0 | WQU18: 0 | WQV18: 0 | WQW18: 0 | WQX18: 0 | WQY18: 0 | WQZ18: 0 | WRA18: 0 | WRB18: 0 | WRC18: 0 | WRD18: 0 | WRE18: 0 | WRF18: 0 | WRG18: 0 | WRH18: 0 | WRI18: 0 | WRJ18: 0 | WRK18: 0 | WRL18: 0 | WRM18: 0 | WRN18: 0 | WRO18: 0 | WRP18: 0 | WRQ18: 0 | WRR18: 0 | WRS18: 0 | WRT18: 0 | WRU18: 0 | WRV18: 0 | WRW18: 0 | WRX18: 0 | WRY18: 0 | WRZ18: 0 | WSA18: 0 | WSB18: 0 | WSC18: 0 | WSD18: 0 | WSE18: 0 | WSF18: 0 | WSG18: 0 | WSH18: 0 | WSI18: 0 | WSJ18: 0 | WSK18: 0 | WSL18: 0 | WSM18: 0 | WSN18: 0 | WSO18: 0 | WSP18: 0 | WSQ18: 0 | WSR18: 0 | WSS18: 0 | WST18: 0 | WSU18: 0 | WSV18: 0 | WSW18: 0 | WSX18: 0 | WSY18: 0 | WSZ18: 0 | WTA18: 0 | WTB18: 0 | WTC18: 0 | WTD18: 0 | WTE18: =WTE16/25 -> 0 | WTF18: 0 | WTG18: 0 | WTH18: 0 | WTI18: 0 | WTJ18: 0 | WTK18: 0 | WTL18: 0 | WTM18: 0 | WTN18: 0 | WTO18: 0 | WTP18: 0 | WTQ18: 0 | WTR18: 0 | WTS18: 0 | WTT18: 0 | WTU18: 0 | WTV18: 0 | WTW18: 0 | WTX18: 0 | WTY18: 0 | WTZ18: 0 | WUA18: 0 | WUB18: 0 | WUC18: 0 | WUD18: 0 | WUE18: 0 | WUF18: 0 | WUG18: 0 | WUH18: 0 | WUI18: 0 | WUJ18: 0 | WUK18: 0 | WUL18: 0 | WUM18: 0 | WUN18: 0 | WUO18: 0 | WUP18: 0 | WUQ18: 0 | WUR18: 0 | WUS18: 0 | WUT18: 0 | WUU18: 0 | WUV18: 0 | WUW18: 0 | WUX18: 0 | WUY18: 0 | WUZ18: 0 | WVA18: 0 | WVB18: 0 | WVC18: 0 | WVD18: 0 | WVE18: 0 | WVF18: 0 | WVG18: 0 | WVH18: 0 | WVI18: 0 | WVJ18: 0 | WVK18: 0 | WVL18: 0 | WVM18: 0 | WVN18: 0 | WVO18: 0 | WVP18: 0 | WVQ18: =WVQ16/25 -> 0 | WVR18: 0 | WVS18: 0 | WVT18: 0 | WVU18: 0 | WVV18: 0 | WVW18: 0 | WVX18: 0 | WVY18: 0 | WVZ18: 0 | WWA18: 0 | WWB18: 0 | WWC18: 0 | WWD18: 0 | WWE18: 0 | WWF18: 0 | WWG18: 0 | WWH18: 0 | WWI18: 0 | WWJ18: 0 | WWK18: 0 | WWL18: 0 | WWM18: 0 | WWN18: 0 | WWO18: 0 | WWP18: 0 | WWQ18: 0 | WWR18: 0 | WWS18: 0 | WWT18: 0 | WWU18: 0 | WWV18: 0 | WWW18: 0 | WWX18: 0 | WWY18: 0 | WWZ18: 0 | WXA18: 0 | WXB18: 0 | WXC18: 0 | WXD18: 0 | WXE18: 0 | WXF18: 0 | WXG18: 0 | WXH18: 0 | WXI18: 0 | WXJ18: 0 | WXK18: 0 | WXL18: 0 | WXM18: 0 | WXN18: 0 | WXO18: 0 | WXP18: 0 | WXQ18: 0 | WXR18: 0 | WXS18: 0 | WXT18: 0 | WXU18: 0 | WXV18: 0 | WXW18: 0 | WXX18: 0 | WXY18: 0 | WXZ18: 0 | WYA18: 0 | WYB18: 0 | WYC18: =WYC16/25 -> 0 | WYD18: 0 | WYE18: 0 | WYF18: 0 | WYG18: 0 | WYH18: 0 | WYI18: 0 | WYJ18: 0 | WYK18: 0 | WYL18: 0 | WYM18: 0 | WYN18: 0 | WYO18: 0 | WYP18: 0 | WYQ18: 0 | WYR18: 0 | WYS18: 0 | WYT18: 0 | WYU18: 0 | WYV18: 0 | WYW18: 0 | WYX18: 0 | WYY18: 0 | WYZ18: 0 | WZA18: 0 | WZB18: 0 | WZC18: 0 | WZD18: 0 | WZE18: 0 | WZF18: 0 | WZG18: 0 | WZH18: 0 | WZI18: 0 | WZJ18: 0 | WZK18: 0 | WZL18: 0 | WZM18: 0 | WZN18: 0 | WZO18: 0 | WZP18: 0 | WZQ18: 0 | WZR18: 0 | WZS18: 0 | WZT18: 0 | WZU18: 0 | WZV18: 0 | WZW18: 0 | WZX18: 0 | WZY18: 0 | WZZ18: 0 | XAA18: 0 | XAB18: 0 | XAC18: 0 | XAD18: 0 | XAE18: 0 | XAF18: 0 | XAG18: 0 | XAH18: 0 | XAI18: 0 | XAJ18: 0 | XAK18: 0 | XAL18: 0 | XAM18: 0 | XAN18: 0 | XAO18: =XAO16/25 -> 0 | XAP18: 0 | XAQ18: 0 | XAR18: 0 | XAS18: 0 | XAT18: 0 | XAU18: 0 | XAV18: 0 | XAW18: 0 | XAX18: 0 | XAY18: 0 | XAZ18: 0 | XBA18: 0 | XBB18: 0 | XBC18: 0 | XBD18: 0 | XBE18: 0 | XBF18: 0 | XBG18: 0 | XBH18: 0 | XBI18: 0 | XBJ18: 0 | XBK18: 0 | XBL18: 0 | XBM18: 0 | XBN18: 0 | XBO18: 0 | XBP18: 0 | XBQ18: 0 | XBR18: 0 | XBS18: 0 | XBT18: 0 | XBU18: 0 | XBV18: 0 | XBW18: 0 | XBX18: 0 | XBY18: 0 | XBZ18: 0 | XCA18: 0 | XCB18: 0 | XCC18: 0 | XCD18: 0 | XCE18: 0 | XCF18: 0 | XCG18: 0 | XCH18: 0 | XCI18: 0 | XCJ18: 0 | XCK18: 0 | XCL18: 0 | XCM18: 0 | XCN18: 0 | XCO18: 0 | XCP18: 0 | XCQ18: 0 | XCR18: 0 | XCS18: 0 | XCT18: 0 | XCU18: 0 | XCV18: 0 | XCW18: 0 | XCX18: 0 | XCY18: 0 | XCZ18: 0 | XDA18: =XDA16/25 -> 0 | XDB18: 0 | XDC18: 0 | XDD18: 0 | XDE18: 0 | XDF18: 0 | XDG18: 0 | XDH18: 0 | XDI18: 0 | XDJ18: 0 | XDK18: 0 | XDL18: 0 | XDM18: 0 | XDN18: 0 | XDO18: 0 | XDP18: 0 | XDQ18: 0 | XDR18: 0 | XDS18: 0 | XDT18: 0 | XDU18: 0 | XDV18: 0 | XDW18: 0 | XDX18: 0 | XDY18: 0 | XDZ18: 0 | XEA18: 0 | XEB18: 0 | XEC18: 0 | XED18: 0 | XEE18: 0 | XEF18: 0 | XEG18: 0 | XEH18: 0 | XEI18: 0 | XEJ18: 0 | XEK18: 0 | XEL18: 0 | XEM18: 0 | XEN18: 0 | XEO18: 0 | XEP18: 0 | XEQ18: 0 | XER18: 0 | XES18: 0 | XET18: 0 | XEU18: 0 | XEV18: 0 | XEW18: 0 | XEX18: 0 | XEY18: 0 | XEZ18: 0 | XFA18: 0 | XFB18: 0 | XFC18: 0 | XFD18: 0
A19: =PFP!C22 -> M1 | B19: =PFP!D22 -> Relatório Parcial | C19: =PFP!E22 -> un | D19: 11 | E19: =PFP!G22 -> 0 | F19: =PFP!H22 -> 0 | G19: =PFP!I22 -> 1 | H19: 1 | I19: 1 | J19: 1 | K19: 1 | L19: 1 | M19: 1 | N19: 1 | O19: 1 | P19: 1 | Q19: 1 | R19: 1 | S19: 0
A20: =PFP!C23 -> M2 | B20: =PFP!D23 -> Relatório Final | C20: =PFP!E23 -> un | D20: 5 | E20: =PFP!G23 -> 0 | F20: =PFP!H23 -> 0 | G20: =PFP!I23 -> 1 | H20: 0 | I20: 0 | J20: 0 | K20: 1 | L20: 0 | M20: 1 | N20: 1 | O20: 0 | P20: 0 | Q20: 0 | R20: 1 | S20: 1
A21: TOTAL | B21: VALOR TOTAL POR PRODUTO | C21: R$ | D21: 0 | H21: =SUM(H5:H20*$F$5:$F$20) -> 0 | I21: =SUM(I5:I20*$F$5:$F$20) -> 0 | J21: =SUM(J5:J20*$F$5:$F$20) -> 0 | K21: =SUM(K5:K20*$F$5:$F$20) -> 0 | L21: =SUM(L5:L20*$F$5:$F$20) -> 0 | M21: =SUM(M5:M20*$F$5:$F$20) -> 0 | N21: =SUM(N5:N20*$F$5:$F$20) -> 0 | O21: =SUM(O5:O20*$F$5:$F$20) -> 0 | P21: =SUM(P5:P20*$F$5:$F$20) -> 0 | Q21: =SUM(Q5:Q20*$F$5:$F$20) -> 0 | R21: =SUM(R5:R20*$F$5:$F$20) -> 0 | S21: =SUM(S5:S20*$F$5:$F$20) -> 0
C22: % | H22: =ROUND(H21/$D$21,5) ->  | I22: =ROUND(I21/$D$21,5) ->  | J22: =ROUND(J21/$D$21,5) ->  | K22: =ROUND(K21/$D$21,5) ->  | L22: =ROUND(L21/$D$21,5) ->  | M22: =ROUND(M21/$D$21,5) ->  | N22: =ROUND(N21/$D$21,5) ->  | P22: =ROUND(P21/$D$21,5) ->  | Q22: =ROUND(Q21/$D$21,5) ->  | R22: =ROUND(R21/$D$21,5) ->  | S22: =ROUND(S21/$D$21,5) -> 
A23: TOTAL | B23: VALOR DOS SUBPRODUTOS | C23: R$ | D23: 0 | H23: =H21*0.8 -> 0 | I23: 0 | J23: =J21*0.8 -> 0 | K23: 0 | L23: 0 | M23: 0 | N23: =N21*0.8 -> 0 | O23: 0 | P23: 0 | Q23: 0 | R23: 0 | S23: 0
B24: VALOR DO PRODUTO CONSOLIDADO | C24: R$ | D24: 0 | H24: =H21*0.2 -> 0 | I24: 0 | J24: =J21*0.2 -> 0 | K24: 0 | L24: 0 | M24: 0 | N24: =N21*0.2 -> 0 | O24: 0 | P24: 0 | Q24: 0 | R24: 0 | S24: 0

Sheet CRO2_Pro-Mes
A1: CRONOGRAMA SIMPLIFICADO
A2: Cod1 | B2: Cod2 | C2: Produto/ Mês | D2: Soma | E2: 1 | F2: 2 | G2: 3 | H2: 4 | I2: 5 | J2: 6 | K2: 7 | L2: 8
A3: EV | B3: E1 | C3: Coleta e Análise de Dados Cartográfico/Topográfico em Projetos Existentes | D3: =SUM(E3:L3)/E15 -> 0.5 | E3: 1
A4: EV | B4: E2 | C4: Coleta e Análise de Dados Geológico/Geotécnico em Projetos Existentes | D4: =SUM(E4:L4)/E15 -> 0.5 | E4: 1
A5: EV | B5: E3 | C5: Relatório de Inspeção da Área do Estudo | D5: =SUM(E5:L5)/F15 -> 0.5 | F5: 1
A6: EV | B6: E4 | C6: Relatório de Dados Obtidos em E1-E2-E3 Compilados | D6: =SUM(E6:L6)/F15 -> 0.5 | F6: 1
A7: EV | B7: E5 | C7: Estudo do Meio Físico | D7: =SUM(E7:L7)/G15 -> 0.5 | G7: 1
A8: EV | B8: E6 | C8: Estudo do Meio Biótico | D8: =SUM(E8:L8)/G15 -> 0.5 | G8: 1
A9: EV | B9: E7 | C9: Elaboração dos Anteprojetos das Alternativas | D9: =SUM(E9:L9) -> 2 | H9: 1 | I9: 1
A10: EV | B10: E8 | C10: Avaliação dos Impactos Ambientais | D10: =SUM(E10:L10)/J15 -> 0.3333333333 | J10: 1
A11: EV | B11: E9 | C11: Avaliação Sócio-Econômica | D11: =SUM(E11:L11)/J15 -> 0.3333333333 | J11: 1
A12: EV | B12: E10 | C12: Avaliação Técnica-Econômico-Financeira | D12: =SUM(E12:L12)/J15 -> 0.3333333333 | J12: 1
A13: EV | B13: E11 | C13: Consolidação da Alternativa Selecionada | D13: =SUM(E13:L13) -> 1 | K13: 1
A14: EV | B14: E12 | C14: Relatório Final | D14: =SUM(E14:L14) -> 1 | L14: 1
C15: Total | D15: =SUM(D3:D14) -> 8 | E15: =SUM(E3:E14) -> 2 | F15: =SUM(F3:F14) -> 2 | G15: 2 | H15: 1 | I15: 1 | J15: 3 | K15: 1 | L15: 1
